Workbook

Sheet Anleitung
C3: EWI Merit-Order Tool 2022
C5: Kurzanleitung | E5: =Impressum!F5 -> Version 2022_Nov.0
D8: Um alle Funktionen des EWI Merit-Order Tools 2022 nutzen zu können, müssen Makros aktiviert werden.
D10: Die Merit-Order
D11: Als Merit-Order wird die Einsatzreihenfolge der an der Strombörse anbietenden Kraftwerke bezeichnet. Sie orientiert sich an den Grenzkosten der Kraftwerke, diese werden aufsteigend sortiert. Es handelt sich dabei um eine Annäherung an die tatsächlichen Angebotskurven bspw. der Day-Ahead-Auktion an der Strombörse. Die jährlich mittlere Merit-Order des deutschen Kraftwerksparks gibt einen guten Überblick über die Verhältnisse der Grenzkosten der Kraftwerke entsprechend aktueller Bedingungen. Die Merit-Order wird dabei insbesondere vom Kraftwerkspark und den zugrundeliegenden Brennstoffpreisen und Emissionszertifikatspreisen beeinflusst.
D13: Das EWI Merit-Order Tool 2022
D14: Das EWI Merit-Order Tool 2022 ermöglicht die Ermittlung und grafische Repräsentation der jährlichen mittleren Merit-Order basierend auf dem konventionellen Kraftwerkspark 2022. Benutzer*innen können die der Merit-Order zugrundeliegenden Annahmen variieren, um den Effekt veränderter Brennstoffpreise oder anderer Annahmen auf die Merit-Order zu untersuchen. Zusätzlich besteht die Möglichkeit, Kraftwerke aus der Merit-Order zu entfernen oder hinzuzufügen. Nutzer*innen können also auch den Einfluss von Kraftwerksstilllegungen oder -zubauten auf die Merit-Order analysieren und visualisieren. Als Standardeinstellung wird nur die Merit-Order der konventionellen Kraftwerke ausgegeben. Um die Merit-Order in Abhängigkeit konkreter Einspeisesituationen erneuerbarer-Energien-Anlagen (EE-Anlagen) abzubilden, kann außerdem eine Annahme zur verfügbaren EE-Leistung getroffen werden.
D16: Bedienung:
D18: Start:
D19: Im Tabellenblatt Start können die der Merit-Order zugrundeliegenden Annahmen angepasst werden. Die Standardannahmen bilden die Merit-Order konventioneller Kraftwerke des Jahres 2022 (Januar-Oktober) ab. Um einen Überblick über die Auswirkungen veränderter Annahmen auf die Merit-Order zu geben, wird die Verteilung der Grenzkosten der Kraftwerke als Boxplot-Diagramm visualisiert. Außerdem kann eine Annahme zur EE-Erzeugung getroffen werden.
D21: Über die Schaltfläche Annahmen zurücksetzen können die Annahmen auf die Standardwerte zurückgesetzt werden.
D23: Bei Aktivierung des Schalters Merit-Order aktualisieren wird die Merit-Order im Tabellenblatt Merit-Order, basierend auf den gewählten Annahmen, neu aufgestellt.
D25: Merit-Order:
D26: Im Tabellenblatt Merit-Order wird die Merit-Order visualisiert. Die Darstellung gibt die Merit-Order blockscharf wieder. Dabei werden die einzelnen Kraftwerkstypen farblich kenntlich gemacht. Zusätzlich wird die Merit-Order als nach Grenzkosten sortierte Liste der Kraftwerksblöcke dargestellt. Die Merit-Order wird bei Aktivierung der Schaltfläche Merit-Order aktualisieren neu berechnet.
D28: Kraftwerksliste:
D29: In der Kraftwerksliste werden alle Kraftwerksblöcke und die dazugehörigen Annahmen dargestellt. Einzelne Annahmen können verändert werden. Zusätzlich können Kraftwerke aus der Merit-Order entfernt oder hinzugefügt werden.
D30: Darüber hinaus gibt es die Möglichkeit, die Stein- und Braunkohle Kraftwerke, die im Zuge der Energiekrise 2022 zurück an den Markt kommen, zu der Kraftwerksliste hinzuzufügen. Diese sind zu Anfang deaktiviert.
D32: Eine ausführliche Dokumentation gibt es auf unserer Website:
D33: https://www.ewi.uni-koeln.de/de/publikationen/#misc-publications

Sheet Start
C3: EWI Merit-Order Tool 2022
C5: Start | P5: =Impressum!F5 -> Version 2022_Nov.0
C7: Brennstoffkosten | H7: Übersicht über die Grenzkosten der Kraftwerke
C8: Brennstoff | D8: Kosten | E8: Einheit | F8: Quelle | H8: Das Boxplot-Diagramm gibt einen ersten Überblick über die Grenzkosten der Kraftwerke. In der Abbildung rechts
C9: Kernenergie | D9: 5.5 | E9: EUR/MWhth | F9: siehe Dokumentation | H9: werden die einzelnen Elemente des Diagramms erläutert. Veränderungen der Annahmen gibt das Diagramm
C10: Braunkohle | D10: 3.1 | E10: EUR/MWhth | F10: EWI (2019) | H10: augenblicklich wieder. Um die Annahmen in die Merit-Order (Tabellenblatt: Merit-Order) zu übernehmen, muss die
C11: Steinkohle | D11: 41.2 | E11: EUR/MWhth | F11: ARA | H11: Schaltfläche Aktualisiere Merit-Order aktiviert werden.
C12: Erdgas | D12: 128.4 | E12: EUR/MWhth | F12: Spot TTF
C13: Öl | D13: 58.47 | E13: EUR/MWhth | F13: SDKW (2022)
C14: Abfall | D14: 0 | E14: EUR/MWhth | F14: siehe Dokumentation
C15: Sonstige | D15: 58.47 | E15: EUR/MWhth | F15: siehe Dokumentation
C17: Emissionszertifikatspreis
D18: Kosten | E18: Einheit | F18: Quelle
C19: Emissionszertifikatspreis | D19: 81.17 | E19: EUR/tCO2 | F19: Ember (2022)
C21: Transportkosten
C22: Kraftwerkstyp | D22: Kosten | E22: Einheit | F22: Quelle
C23: Kernenergie | D23: 0 | E23: EUR/MWhth | F23: siehe Dokumentation
C24: Braunkohle | D24: 0 | E24: EUR/MWhth | F24: siehe Dokumentation
C25: Steinkohle | D25: 1.25 | E25: EUR/MWhth | F25: R2B (2019)
C26: Erdgas | D26: 0.5 | E26: EUR/MWhth | F26: R2B (2019)
C27: Öl | D27: 0.3 | E27: EUR/MWhth | F27: R2B (2019)
C28: Abfall | D28: 0 | E28: EUR/MWhth | F28: siehe Dokumentation
C29: Sonstige | D29: 0 | E29: EUR/MWhth | F29: siehe Dokumentation | H29: Verfügbare EE-Leistung | I29: 0 | J29: MW
C31: Sonstige variable Kosten | H31: Nicht-Verfügbarkeit | M31: Emissionsfaktoren
C32: Kraftwerkstyp | D32: Kosten | E32: Einheit | F32: Quelle | H32: Kraftwerkstyp | J32: Einheit | K32: Quelle | M32: Brennstoff | O32: Einheit | P32: Quelle
C33: Kernenergie | D33: 1.2 | E33: EUR/Mwhel | F33: siehe Dokumentation | H33: Kernenergie | I33: 7 | J33: % | K33: siehe Dokumentation | M33: Kernenergie | N33: 0 | O33: tCO2/MWhth | P33: siehe Dokumentation
C34: Braunkohle | D34: 1.7 | E34: EUR/Mwhel | F34: R2B (2019) | H34: Braunkohle | I34: 13 | J34: % | K34: siehe Dokumentation | M34: Braunkohle | N34: 0.404 | O34: tCO2/MWhth | P34: ÜNB (2019)
C35: Steinkohle | D35: 1.3 | E35: EUR/Mwhel | F35: R2B (2019) | H35: Steinkohle | I35: 20 | J35: % | K35: siehe Dokumentation | M35: Steinkohle | N35: 0.337 | O35: tCO2/MWhth | P35: ÜNB (2019)
C36: GuD | D36: 1.5 | E36: EUR/Mwhel | F36: R2B (2019) | H36: GuD | I36: 13 | J36: % | K36: siehe Dokumentation | M36: Erdgas | N36: 0.201 | O36: tCO2/MWhth | P36: ÜNB (2019)
C37: Gasturbine | D37: 1 | E37: EUR/Mwhel | F37: R2B (2019) | H37: Gasturbine | I37: 13 | J37: % | K37: siehe Dokumentation | M37: Öl | N37: 0.28 | O37: tCO2/MWhth | P37: ÜNB (2019)
C38: Öl | D38: 1 | E38: EUR/Mwhel | F38: siehe Dokumentation | H38: Öl | I38: 15 | J38: % | K38: siehe Dokumentation | M38: Abfall | N38: 0 | O38: tCO2/MWhth | P38: siehe Dokumentation
C39: Abfall | D39: 1 | E39: EUR/Mwhel | F39: siehe Dokumentation | H39: Abfall | I39: 15 | J39: % | K39: siehe Dokumentation | M39: Sonstige | N39: 0.214 | O39: tCO2/MWhth | P39: ÜNB (2019)
C40: Sonstige | D40: 1 | E40: EUR/Mwhel | F40: siehe Dokumentation | H40: Sonstige | I40: 15 | J40: % | K40: siehe Dokumentation

Sheet Merit-Order
C3: EWI Merit-Order Tool 2022
C5: Merit-Order | K5: =Impressum!F5 -> Version 2022_Nov.0
C7: Grafische Darstellung der Merit-Order
C10: Merit-Order in tabellarischer Form
C11: MaStR-Nr. | D11: Kraftwerksnummer Bundesnetzagentur | E11: Anlagenbetreiber | F11: Anzeige-Name | G11: Datum der erstmaligen Inbetriebnahme der Einheit | H11: Kraftwerkstyp | I11: Durchschnittliche verfügbare Nettonennleistung [MW] | J11: Kumulierte verfügbare Nettonennleistung [MW] | K11: Grenzkosten [EUR/MWhel]
C12: SEE900128586359 | D12: BNA0746 | E12: N-ERGIE Kraftwerke GmbH | F12: HKW-Sandreuth (Müll) | G12: 17.07.1992 | H12: Abfall | I12: 15.98 | J12: 15.98 | K12: 1
C13: SEE900664653232 | D13: BNA1289 | E13: AMK-Abfallentsorgungsgesellschaft des Märkischen Kreises mbH | F13: Turbine 1 | G13: 01.08.1996 | H13: Abfall | I13: 9.095 | J13: 25.075 | K13: 1
C14: SEE900838448145 | D14: BNA1254 | E14: Zweckverband Müllverwertung Schwandorf | F14: MKW SAD Turbine 3 | G14: 31.08.1982 | H14: Abfall | I14: 9.86 | J14: 34.935 | K14: 1
C15: SEE904604163027 | D15: BNA0519 | E15: RWE Generation SE | F15: Karnap B | G15: 14.02.1987 | H15: Abfall | I15: 32.3 | J15: 67.235 | K15: 1
C16: SEE904983741502 | D16: BNA0641a | E16: MVV Umwelt Asset GmbH | F16: MHKW Mannheim Generator T60 | G16: 07.01.2010 | H16: Abfall | I16: 21.76 | J16: 88.995 | K16: 1
C17: SEE906215229154 | D17: BNA0438 | E17: EEW Energy from Waste Helmstedt GmbH | F17: MVA EEW Helmstedt | G17: 01.01.2014 | H17: Abfall | I17: 31.875 | J17: 120.87 | K17: 1
C18: SEE906331863386 | E18: GSB Sonderabfall-Entsorgung Bayern GmbH | F18: Turbine VA3 | G18: 20.12.1995 | H18: Abfall | I18: 6.00185 | J18: 126.87185 | K18: 1
C19: SEE907370296296 | D19: BNA1254 | E19: Zweckverband Müllverwertung Schwandorf | F19: MKW SAD Turbine 5 | G19: 04.06.1992 | H19: Abfall | I19: 27.88 | J19: 154.75185 | K19: 1
C20: SEE909031885047 | E20: Müllverwertung Borsigstraße GmbH | F20: MVB Borsigstraße Müll | G20: 16.07.2010 | H20: Abfall | I20: 8.5e-06 | J20: 154.7518585 | K20: 1
C21: SEE912257091857 | D21: BNA0287b | E21: MHKW Müllheizkraftwerk Frankfurt am Main GmbH | F21: Turbine 7 | G21: 21.12.2005 | H21: Abfall | I21: 39.525 | J21: 194.2768585 | K21: 1
C22: SEE914179988338 | D22: BNA0407 | E22: Enertec Hameln GmbH | F22: Turbine 6 | G22: 13.11.1970 | H22: Abfall | I22: 2.1675 | J22: 196.4443585 | K22: 1
C23: SEE917110358740 | D23: BNA1330 | E23: Steinbeis Energie GmbH | F23: Steinbeis Energie EBS Kessel 6 | G23: 27.09.2010 | H23: Abfall | I23: 14.45 | J23: 210.8943585 | K23: 1
C24: SEE918623387630 | D24: BNA1261 | E24: EEW Energy from Waste Stapelfeld GmbH | F24: EEW Stapelfeld GmbH | G24: 01.10.1979 | H24: Abfall | I24: 9.69 | J24: 220.5843585 | K24: 1
C25: SEE922849915072 | D25: BNA1148 | E25: MHB Hamm Betriebsführungsgesellschaft mbH | F25: MVA Hamm Turbine 1 | G25: 01.01.1985 | H25: Abfall | I25: 7.48 | J25: 228.0643585 | K25: 1
C26: SEE923271533315 | D26: BNA1155 | E26: RZR II Herten GmbH | F26: RZR II Turbine3 | G26: 01.01.2009 | H26: Abfall | I26: 19.975 | J26: 248.0393585 | K26: 1
C27: SEE923791565131 | E27: Zweckverband Müllheizkraftwerk Stadt und Landkreis Bamberg | F27: Rheinstraße | G27: 07.08.2014 | H27: Abfall | I27: 7.905 | J27: 255.9443585 | K27: 1
C28: SEE923959807806 | D28: BNA0640 | E28: BASF SE | F28: Turbine 3 | G28: 10.11.2006 | H28: Abfall | I28: 9.469 | J28: 265.4133585 | K28: 1
C29: SEE924286409503 | D29: BNA0855 | E29: IKW Rüdersdorf | F29: IKW Rüdersdorf | G29: 12.12.2007 | H29: Abfall | I29: 25.5 | J29: 290.9133585 | K29: 1
C30: SEE924302504816 | D30: BNA0117a | E30: Energie- und Wasserversorgung Bonn/Rhein-Sieg GmbH | F30: HKW Bonn-Nord, Turbogruppe 4 | G30: 01.04.1991 | H30: Abfall | I30: 12.002 | J30: 302.9153585 | K30: 1
C31: SEE925011950635 | D31: BNA1161 | E31: Zweckverband Müllverwertungsanlage Ingolstadt | F31: Turbine VE 40 ZV MVA IN | G31: 10.09.1996 | H31: Abfall | I31: 15.419 | J31: 318.3343585 | K31: 1
C32: SEE925411264011 | D32: BNA1186d | E32: EGK Entsorgungsgesellschaft Krefeld GmbH & Co. KG | F32: Turbine 5 | G32: 01.12.1997 | H32: Abfall | I32: 1.6405 | J32: 319.9748585 | K32: 1
C33: SEE925652456091 | D33: BNA1168 | E33: Müllheizkraftwerk Kassel GmbH | F33: Müllheizkraftwerk Kassel M7 | G33: 17.12.1985 | H33: Abfall | I33: 6.8 | J33: 326.7748585 | K33: 1
C34: SEE925794342412 | D34: BNA0591 | E34: MVV Umwelt Asset GmbH | F34: TREA Leuna 2 | G34: 19.06.2007 | H34: Abfall | I34: 13.80825 | J34: 340.5831085 | K34: 1
C35: SEE927032372373 | D35: BNA1116 | E35: Bremerhavener Entsorgungsgesellschaft mbH | F35: MHKW, Generator 1+2 | G35: 17.03.1977 | H35: Abfall | I35: 11.9 | J35: 352.4831085 | K35: 1
C36: SEE927716043575 | D36: BNA0417 | E36: EEW Energy from Waste Hannover GmbH | F36: MVA EEW Hannover | G36: 01.06.2005 | H36: Abfall | I36: 23.12 | J36: 375.6031085 | K36: 1
C37: SEE927727929912 | D37: BNA1020 | E37: MVA Weisweiler GmbH & Co. KG | F37: MVA-Turbine | G37: 01.10.1996 | H37: Abfall | I37: 22.95 | J37: 398.5531085 | K37: 1
C38: SEE928761575349 | D38: BNA0380 | E38: EEW Energy from Waste Großräschen GmbH | F38: EEW Großräschen GmbH | G38: 16.01.2008 | H38: Abfall | I38: 21.25 | J38: 419.8031085 | K38: 1
C39: SEE929095613516 | E39: GSB Sonderabfall-Entsorgung Bayern GmbH | F39: Turbine VA2 | G39: 06.10.1995 | H39: Abfall | I39: 6.00185 | J39: 425.8049585 | K39: 1
C40: SEE932127408097 | D40: BNA1198 | E40: PreZero Energy Zorbau GmbH | F40: Generator Zorbau | G40: 06.06.2005 | H40: Abfall | I40: 23.12 | J40: 448.9249585 | K40: 1
C41: SEE934298270268 | D41: BNA1190 | E41: Thermische Abfallbehandlung Lauta | F41: T.A. Lauta | G41: 21.07.2004 | H41: Abfall | I41: 13.345 | J41: 462.2699585 | K41: 1
C42: SEE937544161082 | D42: BNA1510 | E42: Hamburger Rieger GmbH GB Kraftwerk | F42: EBS Heizkraftwerk Spremberg | G42: 01.08.2013 | H42: Abfall | I42: 14.875 | J42: 477.1449585 | K42: 1
C43: SEE937822704543 | E43: Zweckverband Abfallverwertung Südhessen (ZAS) | F43: Turbine 2 | G43: 27.01.2020 | H43: Abfall | I43: 1.0625 | J43: 478.2074585 | K43: 1
C44: SEE937978171572 | D44: BNA1289 | E44: AMK-Abfallentsorgungsgesellschaft des Märkischen Kreises mbH | F44: Turbine 2 | G44: 01.04.1981 | H44: Abfall | I44: 2.89 | J44: 481.0974585 | K44: 1
C45: SEE938035990372 | D45: BNA1244 | E45: AVA Velsen GmbH | F45: ABR992555104343 | G45: 07.08.1997 | H45: Abfall | I45: 13.6 | J45: 494.6974585 | K45: 1
C46: SEE938782869693 | D46: BNA1222 | E46: Energieversorgung Offenbach AG | F46: Müllheizkraftwerk Offenbach Turbine 1 | G46: 29.07.2016 | H46: Abfall | I46: 13.0917 | J46: 507.7891585 | K46: 1
C47: SEE939382623364 | E47: Klingele Papierwerke GmbH & Co. KG Papierfabrik Weener | F47: TWIN2 | G47: 01.03.2008 | H47: Abfall | I47: 3.9865 | J47: 511.7756585 | K47: 1
C48: SEE940303116315 | E48: EEW Energy from Waste Premnitz GmbH | F48: Turbosatz 5 | G48: 16.11.2021 | H48: Abfall | I48: 27.472 | J48: 539.2476585 | K48: 1
C49: SEE940474859066 | D49: BNA0616a | E49: BASF SE | F49: Z564 VT1 | G49: 30.04.1992 | H49: Abfall | I49: 10.2 | J49: 549.4476585 | K49: 1
C50: SEE941568392261 | D50: BNA1154 | E50: AGR Abfallentsorgungs-Gesellschaft Ruhrgebiet mbH | F50: RZR I Turbine2 | G50: 01.01.1981 | H50: Abfall | I50: 12.648 | J50: 562.0956585 | K50: 1
C51: SEE941568476039 | D51: BNA1184 | E51: AVG Abfallentsorgungs- und Verwertungsgesellschaft Köln mbH | F51: Turbosatz 1 | G51: 02.02.1998 | H51: Abfall | I51: 39.1 | J51: 601.1956585 | K51: 1
C52: SEE942253705168 | D52: BNA1197 | E52: Technische Werke Ludwigshafen am Rhein | F52: FHKW DT 2 | G52: 24.02.1989 | H52: Abfall | I52: 10.2595 | J52: 611.4551585 | K52: 1
C53: SEE942366584926 | D53: BNA0969a | E53: SWM Services GmbH | F53: SWM HKW Nord 1 T10 | G53: 29.08.1991 | H53: Abfall | I53: 15.3 | J53: 626.7551585 | K53: 1
C54: SEE942777699660 | D54: BNA1490 | E54: EBS Kraftwerk GmbH | F54: EBKW Knapsack | G54: 01.01.2009 | H54: Abfall | I54: 25.415 | J54: 652.1701585 | K54: 1
C55: SEE942956157011 | D55: BNA1867 | E55: AVG Abfallentsorgungs- und Verwertungsgesellschaft Köln mbH | F55: Turbosatz 2 | G55: 30.05.2017 | H55: Abfall | I55: 15.3 | J55: 667.4701585 | K55: 1
C56: SEE943548208159 | D56: BNA1295 | E56: AVA Abfallverwertung Augsburg Kommunalunternehmen | F56: AHKW ND Turbine | G56: 16.09.1994 | H56: Abfall | I56: 5.712 | J56: 673.1821585 | K56: 1
C57: SEE943841929270 | D57: BNA1295 | E57: AVA Abfallverwertung Augsburg Kommunalunternehmen | F57: AHKW HD Turbine | G57: 16.09.1994 | H57: Abfall | I57: 6.7745 | J57: 679.9566585 | K57: 1
C58: SEE944111876263 | D58: BNA0237 | E58: Progroup Power 1 GmbH | F58: PPO1 - Eisenhüttenstadt | G58: 19.10.2009 | H58: Abfall | I58: 27.2 | J58: 707.1566585 | K58: 1
C59: SEE944429192826 | D59: BNA1119 | E59: Zweckverband Abfallverwertung Südostbayern | F59: SEE944429192826 (MHKW Burgkirchen (Müllverbrennung)) | G59: 28.01.1994 | H59: Abfall | I59: 10.88 | J59: 718.0366585 | K59: 1
C60: SEE945150729886 | D60: BNA1154 | E60: AGR Abfallentsorgungs-Gesellschaft Ruhrgebiet mbH | F60: RZR I Turbine1 | G60: 01.01.1981 | H60: Abfall | I60: 12.648 | J60: 730.6846585 | K60: 1
C61: SEE945602121718 | D61: BNA1316 | E61: EkoCity | F61: Generator B | G61: 01.01.1976 | H61: Abfall | I61: 17 | J61: 747.6846585 | K61: 1
C62: SEE946934017984 | D62: BNA1243 | E62: Vattenfall Europe New Energy Ecopower GmbH | F62: EBS-HKW Rostock | G62: 31.03.2010 | H62: Abfall | I62: 15.725 | J62: 763.4096585 | K62: 1
C63: SEE947996339434 | D63: BNA1155 | E63: RZR II Herten GmbH | F63: RZR II Turbine4 | G63: 07.02.2019 | H63: Abfall | I63: 10.421 | J63: 773.8306585 | K63: 1
C64: SEE948093740512 | D64: BNA0641c | E64: MVV Umwelt Asset GmbH | F64: MHKW Mannheim Generator TE0 | G64: 14.06.2012 | H64: Abfall | I64: 3.621 | J64: 777.4516585 | K64: 1
C65: SEE950201173198 | D65: BNA1114 | E65: swb Entsorgung GmbH&Co. KG | F65: MHKW_Gen4 | G65: 01.01.2013 | H65: Abfall | I65: 41.82 | J65: 819.2716585 | K65: 1
C66: SEE950593842498 | D66: BNA1262 | E66: Remondis Thermische Abfallverwertung GmbH | F66: Remondis Thermische Abfallverwertung GmbH | G66: 06.12.2007 | H66: Abfall | I66: 20.4 | J66: 839.6716585 | K66: 1
C67: SEE951648072822 | D67: BNA1286 | E67: Zweckverband für Abfallwirtschaft Südwestthüringen (ZASt) | F67: ZASt | G67: 15.10.2007 | H67: Abfall | I67: 10.285 | J67: 849.9566585 | K67: 1
C68: SEE951966828576 | D68: BNA1161 | E68: Zweckverband Müllverwertungsanlage Ingolstadt | F68: Turbine VE 32 ZV MVA IN | G68: 10.09.1996 | H68: Abfall | I68: 6.29 | J68: 856.2466585 | K68: 1
C69: SEE953182244383 | E69: MVV Umwelt Asset GmbH | F69: MHKW Mannheim Generator X1 | G69: 13.03.2020 | H69: Abfall | I69: 3.468 | J69: 859.7146585 | K69: 1
C70: SEE953730197888 | D70: BNA0641b | E70: MVV Umwelt Asset GmbH | F70: MHKW Mannheim Generator TD0 | G70: 13.08.2012 | H70: Abfall | I70: 3.621 | J70: 863.3356585 | K70: 1
C71: SEE955292024220 | D71: BNA1254 | E71: Zweckverband Müllverwertung Schwandorf | F71: MKW SAD Turbine 4 | G71: 21.09.1982 | H71: Abfall | I71: 9.86 | J71: 873.1956585 | K71: 1
C72: SEE955548455112 | D72: BNA1110 | E72: Zweckverband Restmüllheizkraftwerk Böblingen | F72: Restmüllheizkraftwerk | G72: 01.05.1999 | H72: Abfall | I72: 10.71 | J72: 883.9056585 | K72: 1
C73: SEE955718847075 | D73: BNA0845 | E73: Stadtwerke Rosenheim GmbH & Co. KG | F73: DT1 | G73: 01.01.1988 | H73: Abfall | I73: 5.865 | J73: 889.7706585 | K73: 1
C74: SEE955937262338 | D74: BNA0751 | E74: GMVA Gemeinschafts-Müll-Verbrennungsanlage Niederrhein GmbH | F74: „Turbosatz 1“ | G74: 06.04.2006 | H74: Abfall | I74: 17.935 | J74: 907.7056585 | K74: 1
C75: SEE956268312785 | D75: BNA0088b | E75: Solvay Chemicals GmbH | F75: Kondensationsturbine EKT | G75: 17.12.2009 | H75: Abfall | I75: 25.5 | J75: 933.2056585 | K75: 1
C76: SEE957509710094 | D76: BNA1448 | E76: EEW Energy from Waste Saarbrücken GmbH AHKW-Neunkirchen | F76: AHKW-Neunkirchen | G76: 02.06.1977 | H76: Abfall | I76: 9.86 | J76: 943.0656585 | K76: 1
C77: SEE957686843929 | E77: Zweckverband Abfallverwertung Südhessen (ZAS) | F77: Turbine 1 | G77: 09.10.1991 | H77: Abfall | I77: 8.6887 | J77: 951.7543585 | K77: 1
C78: SEE957830042178 | D78: BNA0599 | E78: AVEA Entsorgungsbetriebe | F78: Turbine 3 | G78: 09.08.2010 | H78: Abfall | I78: 15.8525 | J78: 967.6068585 | K78: 1
C79: SEE958310939391 | D79: BNA0139 | E79: swb Entsorgung GmbH&Co. KG | F79: MKK | G79: 28.08.2009 | H79: Abfall | I79: 27.2 | J79: 994.8068585 | K79: 1
C80: SEE958335974377 | D80: BNA1291 | E80: IHKW Industrieheizkraftwerk Andernach GmbH | F80: Dampfturbine | G80: 15.12.2008 | H80: Abfall | I80: 10.625 | J80: 1005.431859 | K80: 1
C81: SEE958909269267 | E81: Infraserv GmbH & Co. Höchst KG | F81: IPH Ersatzbrennstoffverbrennung Turbine | G81: 28.07.2014 | H81: Abfall | I81: 60.35 | J81: 1065.781858 | K81: 1
C82: SEE962737235608 | D82: BNA0622 | E82: Müllheizkraftwerk Rothensee GmbH | F82: Block 1 | G82: 17.07.2005 | H82: Abfall | I82: 24.82 | J82: 1090.601858 | K82: 1
C83: SEE964170331206 | E83: Zweckverband für Abfallwirtschaft in Nordwest-Oberfranken | F83: MHKW Coburg | G83: 01.01.1988 | H83: Abfall | I83: 9.01 | J83: 1099.611858 | K83: 1
C84: SEE965779402670 | D84: BNA1229 | E84: EEW Energy from Waste Saarbrücken GmbH | F84: MHKW Pirmasens Verbrennung | G84: 01.01.1999 | H84: Abfall | I84: 12.75 | J84: 1112.361858 | K84: 1
C85: SEE966264899036 | D85: BNA1197 | E85: Technische Werke Ludwigshafen am Rhein | F85: FHKW DT5 | G85: 05.07.2005 | H85: Abfall | I85: 7.772672 | J85: 1120.13453 | K85: 1
C86: SEE969698095906 | D86: BNA1197 | E86: Technische Werke Ludwigshafen am Rhein | F86: FHKW DT6 | G86: 12.04.2018 | H86: Abfall | I86: 4.6636015 | J86: 1124.798132 | K86: 1
C87: SEE971280976463 | D87: BNA1144 | E87: EEW Energy from Waste Göppingen | F87: MHKW Turbine | G87: 01.07.1975 | H87: Abfall | I87: 9.35 | J87: 1134.148132 | K87: 1
C88: SEE971796321603 | D88: BNA1449b | E88: Zweckverband Abfallwirtschaft Raum Würzburg | F88: TS II | G88: 09.11.1998 | H88: Abfall | I88: 10.2 | J88: 1144.348132 | K88: 1
C89: SEE972694764301 | D89: BNA1114 | E89: swb Entsorgung GmbH&Co. KG | F89: MHKW_Gen1 | G89: 01.01.1984 | H89: Abfall | I89: 2.21 | J89: 1146.558132 | K89: 1
C90: SEE973464796218 | D90: BNA1255 | E90: LEIPA Georg Leinfelder GmbH | F90: Dampfturbine FSK Kuhheide 32a | G90: 01.04.2011 | H90: Abfall | I90: 24.5684 | J90: 1171.126532 | K90: 1
C91: SEE974051053875 | E91: Klingele Papierwerke GmbH & Co. KG Papierfabrik Weener | F91: Turbine 4 | G91: 12.08.2021 | H91: Abfall | I91: 11.7725 | J91: 1182.899032 | K91: 1
C92: SEE976589352260 | D92: BNA1168 | E92: Müllheizkraftwerk Kassel GmbH | F92: Müllheizkraftwerk Kassel M8 | G92: 12.03.2012 | H92: Abfall | I92: 12.495 | J92: 1195.394032 | K92: 1
C93: SEE976826191515 | D93: BNA1148 | E93: MHB Hamm Betriebsführungsgesellschaft mbH | F93: MVA Hamm Turbine 2 | G93: 01.01.1985 | H93: Abfall | I93: 7.48 | J93: 1202.874032 | K93: 1
C94: SEE977514334252 | D94: BNA1222 | E94: Energieversorgung Offenbach AG | F94: Müllheizkraftwerk Offenbach Turbine 2 | G94: 30.06.2006 | H94: Abfall | I94: 1.802 | J94: 1204.676032 | K94: 1
C95: SEE977770417713 | D95: BNA0693 | E95: SWN Stadtwerke Neumünster GmbH | F95: T3 | G95: 06.07.1979 | H95: Abfall | I95: 10.6437 | J95: 1215.319732 | K95: 1
C96: SEE977898966292 | D96: BNA0398 | E96: MVR Müllverwertung Rugenberger Damm GmbH & Co. KG | F96: MVR Rugenberger Damm Müll | G96: 16.02.1999 | H96: Abfall | I96: 20.29375 | J96: 1235.613482 | K96: 1
C97: SEE979423615132 | D97: BNA1186e | E97: EGK Entsorgungsgesellschaft Krefeld GmbH & Co. KG | F97: Turbine 1 | G97: 27.08.1974 | H97: Abfall | I97: 0.7905 | J97: 1236.403982 | K97: 1
C98: SEE981003349412 | D98: BNA0693 | E98: SWN Stadtwerke Neumünster GmbH | F98: T6 | G98: 10.07.2014 | H98: Abfall | I98: 12.274 | J98: 1248.677982 | K98: 1
C99: SEE981876305560 | D99: BNA0590 | E99: MVV Umwelt Asset GmbH | F99: TREA Leuna 1 | G99: 26.08.2005 | H99: Abfall | I99: 13.80825 | J99: 1262.486232 | K99: 1
C100: SEE986030306643 | D100: BNA1199 | E100: Entsorgungsgesellschaft Mainz mbH | F100: MHKW DTS | G100: 01.06.2009 | H100: Abfall | I100: 12.75 | J100: 1275.236232 | K100: 1
C101: SEE986413873564 | D101: BNA1114 | E101: swb Entsorgung GmbH&Co. KG | F101: MHKW_Gen2 | G101: 01.01.2004 | H101: Abfall | I101: 11.305 | J101: 1286.541232 | K101: 1
C102: SEE988429673565 | D102: BNA1139 | E102: EEW Energy from Waste Saarbrücken GmbH | F102: TREA Breisgau | G102: 17.05.2004 | H102: Abfall | I102: 11.56 | J102: 1298.101232 | K102: 1
C103: SEE988580370860 | E103: EEW Energy from Waste Premnitz GmbH | F103: Turbosatz 4 | G103: 18.12.2005 | H103: Abfall | I103: 1.1475 | J103: 1299.248732 | K103: 1
C104: SEE988841475051 | D104: BNA1465a | E104: B+T Energie GmbH | F104: HKW Witzenhausen | G104: 24.06.2009 | H104: Abfall | I104: 23.8 | J104: 1323.048732 | K104: 1
C105: SEE988848971327 | D105: BNA0084 | E105: Vattenfall Wärme Berlin AG | F105: HKW Reuter, Dampfturbine M | G105: 04.02.1998 | H105: Abfall | I105: 30.6 | J105: 1353.648732 | K105: 1
C106: SEE989887901764 | D106: BNA0407 | E106: Enertec Hameln GmbH | F106: Turbine 5 | G106: 01.10.2009 | H106: Abfall | I106: 10.421 | J106: 1364.069732 | K106: 1
C107: SEE990065849372 | D107: BNA1449a | E107: Zweckverband Abfallwirtschaft Raum Würzburg | F107: TS I | G107: 04.06.1984 | H107: Abfall | I107: 7.395 | J107: 1371.464732 | K107: 1
C108: SEE990760688887 | E108: Entsorgungsgesellschaft Mainz mbH | F108: MHKW EBT | G108: 01.01.2003 | H108: Abfall | I108: 4.25 | J108: 1375.714732 | K108: 1
C109: SEE992607731794 | D109: BNA1186b | E109: EGK Entsorgungsgesellschaft Krefeld GmbH & Co. KG | F109: Turbine 4 | G109: 05.04.2001 | H109: Abfall | I109: 7.8455 | J109: 1383.560232 | K109: 1
C110: SEE992947793209 | D110: BNA1167 | E110: Kreis Weseler Abfallgesellschaft mbH & Co.KG | F110: Dampfturbine | G110: 01.04.1997 | H110: Abfall | I110: 13.6 | J110: 1397.160232 | K110: 1
C111: SEE993054223955 | D111: BNA0750 | E111: GMVA Gemeinschafts-Müll-Verbrennungsanlage Niederrhein GmbH | F111: „Turbosatz 2“ | G111: 17.10.1991 | H111: Abfall | I111: 34.34 | J111: 1431.500232 | K111: 1
C112: SEE993546424112 | D112: BNA0407 | E112: Enertec Hameln GmbH | F112: Turbine 2 | G112: 05.08.1952 | H112: Abfall | I112: 10.727 | J112: 1442.227232 | K112: 1
C113: SEE993787055366 | D113: BNA1186c | E113: EGK Entsorgungsgesellschaft Krefeld GmbH & Co. KG | F113: Turbine 2 | G113: 27.08.1974 | H113: Abfall | I113: 0.7905 | J113: 1443.017732 | K113: 1
C114: SEE994238154089 | D114: BNA1148 | E114: MHB Hamm Betriebsführungsgesellschaft mbH | F114: MVA Hamm Turbine 3 | G114: 24.03.2006 | H114: Abfall | I114: 5.4825 | J114: 1448.500232 | K114: 1
C115: SEE994551453975 | D115: BNA1316 | E115: EkoCity | F115: Generator A | G115: 01.01.1976 | H115: Abfall | I115: 17 | J115: 1465.500232 | K115: 1
C116: SEE996047653111 | D116: BNA1108 | E116: PD energy GmbH | F116: KW TRB Bitterfeld, Bitterfeld-Wolfen, Oststr. 1 | G116: 19.11.2009 | H116: Abfall | I116: 8.5 | J116: 1474.000232 | K116: 1
C117: SEE996891820448 | D117: BNA1186a | E117: EGK Entsorgungsgesellschaft Krefeld GmbH & Co. KG | F117: Turbine 3 | G117: 01.01.1978 | H117: Abfall | I117: 6.8 | J117: 1480.800232 | K117: 1
C118: SEE998216550733 | E118: Klingele Papierwerke GmbH & Co. KG Papierfabrik Weener | F118: TWIN 1 | G118: 01.03.2008 | H118: Abfall | I118: 3.9865 | J118: 1484.786732 | K118: 1
C119: SEE998261618013 | D119: BNA0407 | E119: Enertec Hameln GmbH | F119: Turbine 1 | G119: 31.10.2000 | H119: Abfall | I119: 4.1905 | J119: 1488.977232 | K119: 1
C120: SEE998278854237 | D120: BNA0969c | E120: SWM Services GmbH | F120: SWM HKW Nord 3 T30 | G120: 14.03.1984 | H120: Abfall | I120: 18.7 | J120: 1507.677232 | K120: 1
C121: SEE999588015110 | D121: BNA0287a | E121: MHKW Müllheizkraftwerk Frankfurt am Main GmbH | F121: Turbine 3 | G121: 12.12.1986 | H121: Abfall | I121: 22.1 | J121: 1529.777232 | K121: 1
C122: SEE999819576335 | D122: BNA0623 | E122: Müllheizkraftwerk Rothensee GmbH | F122: Block 2 | G122: 08.09.2006 | H122: Abfall | I122: 28.56 | J122: 1558.337232 | K122: 1
E123: Nicht-EEG-Anlagen < 10 MW | H123: Abfall | I123: 135.044855 | J123: 1693.382087 | K123: 1
C124: SEE944567587799 | D124: BNA0607 | E124: Kernkraftwerk Lippe-Ems GmbH | F124: Emsland A | G124: 20.06.1988 | H124: Kernenergie | I124: 1242.48 | J124: 2935.862087 | K124: 17.14202899
C125: SEE943690268513 | D125: BNA0263 | E125: PreussenElektra | F125: Isar 2 | G125: 22.01.1988 | H125: Kernenergie | I125: 1311.3 | J125: 4247.162087 | K125: 17.86666667
C126: SEE985577062814 | D126: BNA0686 | E126: EnBW Energie Baden-Württemberg AG | F126: GKN II | G126: 15.04.1989 | H126: Kernenergie | I126: 1218.3 | J126: 5465.462087 | K126: 17.86666667
C127: SEE968582186379 | D127: BNA1404 | E127: Lausitz Energie Kraftwerke AG | F127: Boxberg Block R | G127: 06.11.2012 | H127: Braunkohle | I127: 548.1 | J127: 6013.562087 | K127: 83.83427918
C128: SEE952937205877 | D128: BNA1185 | E128: Pfeifer & Langen GmbH ＆ Co. KG | F128: Könnern Generator 2 | G128: 28.09.1993 | H128: Braunkohle | I128: 17.1129 | J128: 6030.674987 | K128: 84.47832103
C129: SEE985453029962 | D129: BNA1185 | E129: Pfeifer & Langen GmbH ＆ Co. KG | F129: Könnern Generator 1 | G129: 01.01.1973 | H129: Braunkohle | I129: 7.2645 | J129: 6037.939487 | K129: 84.47832103
C130: SEE925599434282 | D130: BNA1401a | E130: RWE Power AG | F130: Neurath F | G130: 03.08.2012 | H130: Braunkohle | I130: 922.2 | J130: 6960.139487 | K130: 85.17134884
C131: SEE983252937631 | D131: BNA0709 | E131: RWE Power AG | F131: Niederaußem K | G131: 28.01.2003 | H131: Braunkohle | I131: 821.28 | J131: 7781.419487 | K131: 85.17134884
C132: SEE993592183001 | D132: BNA1401b | E132: RWE Power AG | F132: Neurath G | G132: 08.07.2012 | H132: Braunkohle | I132: 922.2 | J132: 8703.619487 | K132: 85.17134884
C133: SEE915426748132 | D133: BNA0543 | E133: RheinEnergie AG | F133: Block 6 Merkenich RheinEnergie | G133: 16.12.2010 | H133: Braunkohle | I133: 65.511 | J133: 8769.130487 | K133: 86.35254717
C134: SEE907389779292 | D134: BNA0124 | E134: Lausitz Energie Kraftwerke AG | F134: Boxberg Block Q | G134: 01.10.2000 | H134: Braunkohle | I134: 730.8 | J134: 9499.930487 | K134: 86.55267139
C135: SEE957229968300 | D135: BNA0707 | E135: RWE Power AG | F135: Niederaußem H | G135: 16.09.1974 | H135: Braunkohle | I135: 563.76 | J135: 10063.69049 | K135: 86.83444023
C136: SEE998199911088 | D136: BNA0116 | E136: EnBW Energie Baden-Württemberg AG | F136: Kraftwerk Lippendorf Block S | G136: 01.12.1999 | H136: Braunkohle | I136: 775.17 | J136: 10838.86049 | K136: 87.1587619
C137: SEE921905907730 | D137: BNA0708 | E137: RWE Power AG | F137: Niederaußem G | G137: 23.10.1974 | H137: Braunkohle | I137: 546.36 | J137: 11385.22049 | K137: 87.32185115
C138: SEE938337436349 | D138: BNA0914 | E138: Lausitz Energie Kraftwerke AG | F138: Kraftwerk Schwarze Pumpe Block A | G138: 15.12.1997 | H138: Braunkohle | I138: 656.85 | J138: 12042.07049 | K138: 89.24312195
C139: SEE952672318108 | D139: BNA0915 | E139: Lausitz Energie Kraftwerke AG | F139: Kraftwerk Schwarze Pumpe Block B | G139: 25.05.1998 | H139: Braunkohle | I139: 656.85 | J139: 12698.92049 | K139: 89.24312195
C140: SEE966331411864 | D140: BNA0115 | E140: Lausitz Energie Kraftwerke AG | F140: Kraftwerk Lippendorf Block R | G140: 20.06.2000 | H140: Braunkohle | I140: 775.17 | J140: 13474.09049 | K140: 89.24312195
C141: SEE919134316447 | D141: BNA0878 | E141: Saale Energie GmbH | F141: Schkopau A+B Bahngenerator | G141: 01.01.1996 | H141: Braunkohle | I141: 95.7 | J141: 13569.79049 | K141: 91.4317
C142: SEE921449009914 | D142: BNA1461 | E142: CropEnergies Bioethanol GmbH | F142: Dampfturbine IV CropEnergies Zeitz | G142: 01.01.2004 | H142: Braunkohle | I142: 15.46251 | J142: 13585.253 | K142: 91.4317
C143: SEE941974735591 | D143: BNA0183 | E143: Stadtwerke Cottbus GmbH | F143: Rauchgasturbine | G143: 29.08.1998 | H143: Braunkohle | I143: 11.31 | J143: 13596.563 | K143: 91.4317
C144: SEE946537967655 | D144: BNA0183 | E144: Stadtwerke Cottbus GmbH | F144: Hochdruckdampfturbine | G144: 20.02.1999 | H144: Braunkohle | I144: 13.92 | J144: 13610.483 | K144: 91.4317
C145: SEE947677200282 | D145: BNA0879 | E145: Saale Energie GmbH | F145: Schkopau B | G145: 01.01.1996 | H145: Braunkohle | I145: 391.5 | J145: 14001.983 | K145: 91.4317
C146: SEE960652233358 | D146: BNA0878 | E146: Saale Energie GmbH | F146: Schkopau A | G146: 01.01.1995 | H146: Braunkohle | I146: 391.5 | J146: 14393.483 | K146: 91.4317
C147: SEE978888539755 | D147: BNA0183 | E147: Stadtwerke Cottbus GmbH | F147: Mittel-Niederdruckdampfturbine | G147: 23.03.1999 | H147: Braunkohle | I147: 39.15 | J147: 14432.633 | K147: 91.4317
C148: SEE975343602986 | D148: BNA1293b | E148: Martinswerk GmbH | F148: KWK-Anlage: Generator 2 | G148: 01.01.1961 | H148: Braunkohle | I148: 8.613 | J148: 14441.246 | K148: 94.20690722
C149: SEE986936308987 | D149: BNA1293a | E149: Martinswerk GmbH | F149: KWK-Anlage: Generator 1 | G149: 01.01.1961 | H149: Braunkohle | I149: 8.613 | J149: 14449.859 | K149: 94.20690722
C150: SEE998111672394 | D150: BNA1002 | E150: Mitteldeutsche Braunkohlengesellschaft mbH | F150: IKW Wählitz | G150: 25.08.1994 | H150: Braunkohle | I150: 26.97 | J150: 14476.829 | K150: 94.92774026
C151: SEE970305352633 | D151: BNA1400a | E151: Südzucker AG | F151: Dampfturbine III Südzucker Zeitz | G151: 01.08.1993 | H151: Braunkohle | I151: 14.703 | J151: 14491.532 | K151: 95.36565762
C152: SEE999145467468 | D152: BNA0490a | E152: RWE Power AG | F152: GoWerk F | G152: 01.12.1992 | H152: Braunkohle | I152: 34.8 | J152: 14526.332 | K152: 95.36565762
C153: SEE933960350956 | D153: BNA0179 | E153: eins energie in sachsen GmbH & Co. KG | F153: HKW Chemnitz Nord II, Block C | G153: 07.06.1990 | H153: Braunkohle | I153: 80.32884 | J153: 14606.66084 | K153: 97.15925532
C154: SEE994335340088 | E154: Stadtwerke Frankfurt (Oder) GmbH | F154: HKW DT | G154: 09.10.1997 | H154: Braunkohle | I154: 14.79 | J154: 14621.45084 | K154: 97.15925532
E155: Nicht-EEG-Anlagen < 10 MW | H155: Braunkohle | I155: 31.22082 | J155: 14652.67166 | K155: 97.15925532
C156: SEE923943268279 | D156: BNA0788 | E156: Lausitz Energie Kraftwerke AG | F156: Kraftwerk Jänschwalde Block D | G156: 06.10.1985 | H156: Braunkohle | I156: 435 | J156: 15087.67166 | K156: 97.41381333
C157: SEE938669585906 | D157: BNA0786 | E157: Lausitz Energie Kraftwerke AG | F157: Kraftwerk Jänschwalde Block B | G157: 29.11.1982 | H157: Braunkohle | I157: 435 | J157: 15522.67166 | K157: 97.41381333
C158: SEE989591633753 | D158: BNA0787 | E158: Lausitz Energie Kraftwerke AG | F158: Kraftwerk Jänschwalde Block C | G158: 01.02.1984 | H158: Braunkohle | I158: 435 | J158: 15957.67166 | K158: 97.41381333
C159: SEE991817093418 | D159: BNA0785 | E159: Lausitz Energie Kraftwerke AG | F159: Kraftwerk Jänschwalde Block A | G159: 01.10.1981 | H159: Braunkohle | I159: 435 | J159: 16392.67166 | K159: 97.41381333
C160: SEE928076311489 | D160: BNA0523 | E160: Städtische Werke Energie + Wärme GmbH | F160: Fernwärmekraftwerk Kassel | G160: 21.12.1989 | H160: Braunkohle | I160: 29.145 | J160: 16421.81666 | K160: 97.77248394
C161: SEE905721866655 | D161: BNA0292 | E161: RWE Power AG | F161: Fab Frechen | G161: 23.12.1962 | H161: Braunkohle | I161: 153.12 | J161: 16574.93666 | K161: 98.39364224
C162: SEE923082939436 | D162: BNA0177 | E162: eins energie in sachsen GmbH & Co. KG | F162: HKW Chemnitz Nord II, Block B | G162: 26.08.1988 | H162: Braunkohle | I162: 50.60964 | J162: 16625.5463 | K162: 98.39364224
C163: SEE931736847297 | D163: BNA0699 | E163: RWE Power AG | F163: Neurath D | G163: 24.06.1975 | H163: Braunkohle | I163: 528.09 | J163: 17153.6363 | K163: 99.76743169
C164: SEE976414005279 | D164: BNA0700 | E164: RWE Power AG | F164: Neurath E | G164: 22.02.1976 | H164: Braunkohle | I164: 525.48 | J164: 17679.1163 | K164: 99.76743169
C165: SEE955314088254 | D165: BNA1028 | E165: RWE Power AG | F165: Weißweiler H | G165: 18.01.1975 | H165: Braunkohle | I165: 570.72 | J165: 18249.8363 | K165: 101.4018889
C166: SEE987007884447 | D166: BNA1027 | E166: RWE Power AG | F166: Weißweiler G | G166: 14.02.1974 | H166: Braunkohle | I166: 576.81 | J166: 18826.6463 | K166: 101.4018889
C167: SEE908125004449 | D167: BNA0123 | E167: Lausitz Energie Kraftwerke AG | F167: Boxberg Block P | G167: 01.07.1980 | H167: Braunkohle | I167: 435 | J167: 19261.6463 | K167: 104.2505143
C168: SEE985842749525 | D168: BNA0122 | E168: Lausitz Energie Kraftwerke AG | F168: Boxberg Block N | G168: 01.01.1979 | H168: Braunkohle | I168: 435 | J168: 19696.6463 | K168: 104.2505143
C169: SEE912440649056 | D169: BNA1141 | E169: Pfeifer & Langen GmbH ＆ Co. KG | F169: Euskirchen Generator 3 | G169: 01.07.1980 | H169: Braunkohle | I169: 0.98571 | J169: 19697.63201 | K169: 104.367849
C170: SEE927622980674 | D170: BNA1141 | E170: Pfeifer & Langen GmbH ＆ Co. KG | F170: Euskirchen Generator 1 | G170: 30.08.1979 | H170: Braunkohle | I170: 5.91513 | J170: 19703.54714 | K170: 104.367849
C171: SEE927630371594 | D171: BNA1486 | E171: ROMONTA GmbH | F171: Grubenheizkraftwerk Amsdorf | G171: 01.04.1960 | H171: Braunkohle | I171: 7.98153399 | J171: 19711.52867 | K171: 104.367849
C172: SEE920672219015 | D172: BNA1865 | E172: KÄMMERER Energie GmbH | F172: Generator 5 | G172: 10.01.1977 | H172: Braunkohle | I172: 8.526 | J172: 19720.05467 | K172: 110.465697
C173: SEE933685962403 | D173: BNA1026 | E173: RWE Power AG | F173: Weißweiler F | G173: 04.09.1967 | H173: Braunkohle | I173: 279.27 | J173: 19999.32467 | K173: 110.465697
C174: SEE974018310478 | D174: BNA1864 | E174: KÄMMERER Energie GmbH | F174: Generator 4 | G174: 22.12.1962 | H174: Braunkohle | I174: 8.004 | J174: 20007.32867 | K174: 110.465697
C175: SEE990438768378 | D175: BNA0270 | E175: Stadtwerke Flensburg | F175: Dampfturbine 8 | G175: 24.05.1985 | H175: Steinkohle | I175: 26.32 | J175: 20033.64867 | K175: 139.8005754
C176: SEE906830618081 | D176: BNA0714 | E176: RWE Power AG | F176: Fab Fortuna | G176: 01.06.1948 | H176: Braunkohle | I176: 13.05 | J176: 20046.69867 | K176: 143.2326498
C177: SEE966083015792 | D177: BNA1083 | E177: WSW Energie & Wasser AG | F177: GT21 | G177: 09.07.2008 | H177: Öl | I177: 24.99 | J177: 20071.68867 | K177: 145.8846222
C178: SEE957285549260 | D178: BNA0272 | E178: Stadtwerke Flensburg | F178: Dampfturbine 9 | G178: 16.08.1988 | H178: Steinkohle | I178: 26.32 | J178: 20098.00867 | K178: 149.0339471
C179: SEE950041295098 | D179: BNA1015, BNA1016 | E179: Hamburger Energiewerke GmbH | F179: GTKW Wedel | G179: 23.07.1972 | H179: Öl | I179: 86.7 | J179: 20184.70867 | K179: 149.1774545
C180: SEE996990805407 | D180: BNA0138 | E180: Braunschweiger Versorgungs-AG & Co. KG | F180: HKW Mitte Kessel 1 | G180: 18.01.1985 | H180: Steinkohle | I180: 35.6 | J180: 20220.30867 | K180: 150.4544658
C181: SEE988477355802 | D181: BNA0646b | E181: Grosskraftwerk Mannheim | F181: GKM Block 9 | G181: 02.05.2015 | H181: Steinkohle | I181: 674.4 | J181: 20894.70867 | K181: 151.7402802
C182: SEE923577153439 | D182: BNA0662a | E182: Evonik Operations GmbH | F182: Kraftwerk I, T15 | G182: 15.10.1983 | H182: Steinkohle | I182: 54.72 | J182: 20949.42867 | K182: 151.9025674
C183: SEE970425279599 | D183: BNA1674 | E183: Onyx Kraftwerk Wilhelmshaven GmbH & Co. KG | F183: Kraftwerk Wilhelmshaven Onyx | G183: 30.11.2015 | H183: Steinkohle | I183: 580.8 | J183: 21530.22867 | K183: 152.2281946
C184: SEE980331579218 | D184: BNA0518b | E184: EnBW Energie Baden-Württemberg AG | F184: Rheinhafen-Dampfkraftwerk RDK 8 | G184: 01.07.2014 | H184: Steinkohle | I184: 667.2 | J184: 22197.42867 | K184: 153.0484565
C185: SEE961029163353 | D185: BNA1508 | E185: Trianel Kohlekraftwerk Lünen GmbH & Co KG | F185: Trianel Kohlekraftwerk Lünen | G185: 01.01.2013 | H185: Steinkohle | I185: 596.8 | J185: 22794.22867 | K185: 153.21358
C186: SEE958847865460 | D186: BNA1093 | E186: Onyx Kraftwerk Zolling GmbH &Co. KGaA | F186: Kraftwerk Zolling | G186: 01.01.1985 | H186: Steinkohle | I186: 377.6 | J186: 23171.82867 | K186: 155.5636243
C187: SEE913516809497 | D187: BNA1949 | E187: Uniper Kraftwerke GmbH | F187: Datteln 4 | G187: 30.05.2020 | H187: Steinkohle | I187: 841.6 | J187: 24013.42867 | K187: 156.4206444
C188: SEE918143230942 | D188: BNA0216b | E188: STEAG Walsum 10 Kraftwerksgesellschaft | F188: Walsum 10 | G188: 20.12.2013 | H188: Steinkohle | I188: 580 | J188: 24593.42867 | K188: 156.4206444
C189: SEE948609940009 | D189: BNA0434 | E189: EnBW Energie Baden-Württemberg AG | F189: Heizkraftwerk Heilbronn HLB 7 | G189: 01.12.1985 | H189: Steinkohle | I189: 622.4 | J189: 25215.82867 | K189: 157.2872402
C190: SEE904968236689 | D190: BNA0147 | E190: Onyx Kraftwerk Farge GmbH & Co. KGaA | F190: Kraftwerk Farge | G190: 01.01.1969 | H190: Steinkohle | I190: 280 | J190: 25495.82867 | K190: 159.0498079
C191: SEE965782597448 | D191: BNA0019 | E191: EnBW Energie Baden-Württemberg AG | F191: Heizkraftwerk Altbach/Deizisau HKW 2 DT (Solobetrieb) | G191: 29.05.1997 | H191: Steinkohle | I191: 258.4 | J191: 25754.22867 | K191: 159.9461136
C192: SEE909002940690 | D192: BNA0644 | E192: Grosskraftwerk Mannheim | F192: GKM Block 6 | G192: 26.12.2005 | H192: Steinkohle | I192: 204 | J192: 25958.22867 | K192: 160.8526629
C193: SEE980016033738 | D193: BNA0518a | E193: EnBW Energie Baden-Württemberg AG | F193: Rheinhafen-Dampfkraftwerk RDK 7 | G193: 21.06.1985 | H193: Steinkohle | I193: 413.6 | J193: 26371.82867 | K193: 160.8526629
C194: SEE943427876363 | D194: BNA0849 | E194: EnBW Energie Baden-Württemberg AG | F194: Kraftwerk Rostock Block A | G194: 01.10.1994 | H194: Steinkohle | I194: 411.2 | J194: 26783.02867 | K194: 162.8840046
C195: SEE920837459195 | D195: BNA1075b | E195: Volkswagen AG | F195: HKW Nord Generator B | G195: 18.09.1998 | H195: Steinkohle | I195: 48.8 | J195: 26831.82867 | K195: 165.5453882
C196: SEE998984420832 | D196: BNA1075a | E196: Volkswagen AG | F196: HKW Nord Generator A | G196: 01.10.1994 | H196: Steinkohle | I196: 48.8 | J196: 26880.62867 | K196: 165.5453882
C197: SEE979779484642 | D197: BNA0861b | E197: Energie SaarLorLux AG | F197: HKW-Römerbrücke Dampfturbinenanlage DT2 | G197: 27.06.1988 | H197: Steinkohle | I197: 42.4 | J197: 26923.02867 | K197: 167.5006905
C198: SEE938923083674 | D198: BNA0660 | E198: Evonik Operations GmbH | F198: Kraftwerk I, T14 | G198: 01.06.1971 | H198: Steinkohle | I198: 44.448 | J198: 26967.47667 | K198: 171.7622466
C199: SEE975507584615 | D199: BNA0646a | E199: Grosskraftwerk Mannheim | F199: GKM Block 8 | G199: 05.04.1993 | H199: Steinkohle | I199: 348 | J199: 27315.47667 | K199: 172.5988712
C200: SEE987197130805 | D200: BNA0402 | E200: Hamburger Energiewerke GmbH | F200: HKW Tiefstack | G200: 01.04.1993 | H200: Steinkohle | I200: 155.2 | J200: 27470.67667 | K200: 172.5988712
C201: SEE929161243203 | D201: BNA0377 | E201: Uniper Kraftwerke GmbH | F201: Staudinger 5 | G201: 01.01.1992 | H201: Steinkohle | I201: 408 | J201: 27878.67667 | K201: 173.6562716
C202: SEE906834978235 | D202: BNA1187 | E202: Pfeifer & Langen GmbH ＆ Co. KG | F202: Lage Generator 2 | G202: 27.08.1962 | H202: Steinkohle | I202: 3.2616 | J202: 27881.93827 | K202: 174.2112955
C203: SEE952372080091 | D203: BNA0969b | E203: SWM Services GmbH | F203: SWM HKW Nord 2 T20 | G203: 15.12.1991 | H203: Steinkohle | I203: 266.4 | J203: 28148.33827 | K203: 174.7268075
C204: SEE919393178787 | D204: BNA0998 | E204: STEAG | F204: Fenne MKV | G204: 01.08.1982 | H204: Steinkohle | I204: 143.2 | J204: 28291.53827 | K204: 175.810725
C205: SEE945908806647 | D205: BNA0450 | E205: STEAG | F205: Herne 4 | G205: 25.07.1989 | H205: Steinkohle | I205: 368 | J205: 28659.53827 | K205: 175.810725
C206: SEE954169155876 | D206: BNA0758 | E206: Energieversorgung Offenbach AG | F206: Heizkraftwerk-Offenbach-EVO | G206: 18.10.1988 | H206: Steinkohle | I206: 43.2 | J206: 28702.73827 | K206: 175.810725
... 970 more rows

Sheet Kraftwerksliste
C3: EWI Merit-Order Tool 2022
C5: Kraftwerksliste | Z5: =Impressum!F5 -> Version 2022_Nov.0
C7: Die Kraftwerksliste basiert auf der Kraftwerksliste der Bundesnetzagentur (BNetzA, 2022). In die Kraftwerksliste eingegangen sind alle konventionellen Kraftwerke, die am 31.05.2022 in Betrieb waren. Die in dunkelgelb eingefärben Spalten sind unverändert aus BNetzA (2022) übernommen. Die hellgelben Spalten enthalten zusätzliche Informationen, basierend auf eigenen Annahmen, Berechnungen und weiteren Quellen. Die Annahmen zur Effizienz der Kraftwerke sind beispielsweise größtenteils aus OPSD (2020) entnommen. Die weiß hinterlegten Felder können von den Nutzer*innen angepasst werden. So können Kraftwerke aus der Merit-Order entfernt und bis zu 10 neue Kraftwerke hinzugefügt werden. Darüber hinaus gibt es die Möglichkeit, die Stein- und Braunkohle Kraftwerke, die vorraussichtlich im Zuge der Energiekrise 2022 zurück an den Markt kommen, zu der Kraftwerksliste hinzuzufügen. Diese sind zu Anfang deaktiviert.
C10: Teil der Merit-Order? | D10: MaStR-Nr. | E10: Kraftwerksnummer Bundesnetzagentur | F10: Anlagenbetreiber | G10: Anzeige-Name | H10: PLZ der Einheit | I10: Ort der Einheit | J10: Straße und Hausnummer der Einheit | K10: Bundesland der Einheit | L10: Datum der erstmaligen Inbetriebnahme der Einheit | M10: Energieträger | N10: Hauptbrennstoff | O10: Auswertung Energieträger | P10: Wärmeauskopplung (KW) ja/nein | Q10: Technologie der Stromerzeugung | R10: Angenommener Hauptenergieträger | S10: Zuordnung Kraftwerkstyp | T10: Effizienz | U10: Quelle Effizienz | V10: Bruttoleistung [MW] | W10: Netto-Nennleistung (elektrische Wirkleistung) [MW] | X10: Mittlere verfügbare Netto-Nennleistung [MW] | Y10: Brennstoffkosten (inkl. Transport) [EUR/MWHth] | Z10: Grenzkosten [EUR/MWHel]
C11: Nein | D11: (optional) | E11: (optional) | F11: (optional) | G11: (optional) | H11: (optional) | I11: (optional) | J11: (optional) | K11: (optional) | L11: (optional) | M11: (optional) | O11: (optional) | Q11: (optional) | R11: (notwendig) | S11: (notwendig) | T11: (notwendig) | U11: (optional) | V11: (optional) | W11: (notwendig) | X11: =IF(ISNUMBER((1-VLOOKUP(S11,Start!$H$33:$I$40,2,FALSE)/100)*W11),(1-VLOOKUP(S11,Start!$H$33:$I$40,2,FALSE)/100)*W11,0) -> 0 | Y11: =IF(ISNUMBER(VLOOKUP(R11,Start!$C$9:$D$15,2,FALSE)+VLOOKUP(R11,Start!$C$23:$D$29,2,FALSE)),VLOOKUP(R11,Start!$C$9:$D$15,2,FALSE)+VLOOKUP(R11,Start!$C$23:$D$29,2,FALSE),0) -> 0 | Z11: =IF(ISNUMBER((Y11/T11)+Start!$D$19*(VLOOKUP(R11,Start!$M$33:$N$39,2,FALSE)/T11)+VLOOKUP(S11,Start!$C$33:$D$40,2,FALSE)),(Y11/T11)+Start!$D$19*(VLOOKUP(R11,Start!$M$33:$N$39,2,FALSE)/T11)+VLOOKUP(S11,Start!$C$33:$D$40,2,FALSE),0) -> 0
C12: Nein | D12: (optional) | E12: (optional) | F12: (optional) | G12: (optional) | H12: (optional) | I12: (optional) | J12: (optional) | K12: (optional) | L12: (optional) | M12: (optional) | O12: (optional) | Q12: (optional) | R12: (notwendig) | S12: (notwendig) | T12: (notwendig) | U12: (optional) | V12: (optional) | W12: (notwendig) | X12: =IF(ISNUMBER((1-VLOOKUP(S12,Start!$H$33:$I$40,2,FALSE)/100)*W12),(1-VLOOKUP(S12,Start!$H$33:$I$40,2,FALSE)/100)*W12,0) -> 0 | Y12: =IF(ISNUMBER(VLOOKUP(R12,Start!$C$9:$D$15,2,FALSE)+VLOOKUP(R12,Start!$C$23:$D$29,2,FALSE)),VLOOKUP(R12,Start!$C$9:$D$15,2,FALSE)+VLOOKUP(R12,Start!$C$23:$D$29,2,FALSE),0) -> 0 | Z12: =IF(ISNUMBER((Y12/T12)+Start!$D$19*(VLOOKUP(R12,Start!$M$33:$N$39,2,FALSE)/T12)+VLOOKUP(S12,Start!$C$33:$D$40,2,FALSE)),(Y12/T12)+Start!$D$19*(VLOOKUP(R12,Start!$M$33:$N$39,2,FALSE)/T12)+VLOOKUP(S12,Start!$C$33:$D$40,2,FALSE),0) -> 0
C13: Nein | D13: (optional) | E13: (optional) | F13: (optional) | G13: (optional) | H13: (optional) | I13: (optional) | J13: (optional) | K13: (optional) | L13: (optional) | M13: (optional) | O13: (optional) | Q13: (optional) | R13: (notwendig) | S13: (notwendig) | T13: (notwendig) | U13: (optional) | V13: (optional) | W13: (notwendig) | X13: =IF(ISNUMBER((1-VLOOKUP(S13,Start!$H$33:$I$40,2,FALSE)/100)*W13),(1-VLOOKUP(S13,Start!$H$33:$I$40,2,FALSE)/100)*W13,0) -> 0 | Y13: =IF(ISNUMBER(VLOOKUP(R13,Start!$C$9:$D$15,2,FALSE)+VLOOKUP(R13,Start!$C$23:$D$29,2,FALSE)),VLOOKUP(R13,Start!$C$9:$D$15,2,FALSE)+VLOOKUP(R13,Start!$C$23:$D$29,2,FALSE),0) -> 0 | Z13: =IF(ISNUMBER((Y13/T13)+Start!$D$19*(VLOOKUP(R13,Start!$M$33:$N$39,2,FALSE)/T13)+VLOOKUP(S13,Start!$C$33:$D$40,2,FALSE)),(Y13/T13)+Start!$D$19*(VLOOKUP(R13,Start!$M$33:$N$39,2,FALSE)/T13)+VLOOKUP(S13,Start!$C$33:$D$40,2,FALSE),0) -> 0
C14: Nein | D14: (optional) | E14: (optional) | F14: (optional) | G14: (optional) | H14: (optional) | I14: (optional) | J14: (optional) | K14: (optional) | L14: (optional) | M14: (optional) | O14: (optional) | Q14: (optional) | R14: (notwendig) | S14: (notwendig) | T14: (notwendig) | U14: (optional) | V14: (optional) | W14: (notwendig) | X14: =IF(ISNUMBER((1-VLOOKUP(S14,Start!$H$33:$I$40,2,FALSE)/100)*W14),(1-VLOOKUP(S14,Start!$H$33:$I$40,2,FALSE)/100)*W14,0) -> 0 | Y14: =IF(ISNUMBER(VLOOKUP(R14,Start!$C$9:$D$15,2,FALSE)+VLOOKUP(R14,Start!$C$23:$D$29,2,FALSE)),VLOOKUP(R14,Start!$C$9:$D$15,2,FALSE)+VLOOKUP(R14,Start!$C$23:$D$29,2,FALSE),0) -> 0 | Z14: =IF(ISNUMBER((Y14/T14)+Start!$D$19*(VLOOKUP(R14,Start!$M$33:$N$39,2,FALSE)/T14)+VLOOKUP(S14,Start!$C$33:$D$40,2,FALSE)),(Y14/T14)+Start!$D$19*(VLOOKUP(R14,Start!$M$33:$N$39,2,FALSE)/T14)+VLOOKUP(S14,Start!$C$33:$D$40,2,FALSE),0) -> 0
C15: Nein | D15: (optional) | E15: (optional) | F15: (optional) | G15: (optional) | H15: (optional) | I15: (optional) | J15: (optional) | K15: (optional) | L15: (optional) | M15: (optional) | O15: (optional) | Q15: (optional) | R15: (notwendig) | S15: (notwendig) | T15: (notwendig) | U15: (optional) | V15: (optional) | W15: (notwendig) | X15: =IF(ISNUMBER((1-VLOOKUP(S15,Start!$H$33:$I$40,2,FALSE)/100)*W15),(1-VLOOKUP(S15,Start!$H$33:$I$40,2,FALSE)/100)*W15,0) -> 0 | Y15: =IF(ISNUMBER(VLOOKUP(R15,Start!$C$9:$D$15,2,FALSE)+VLOOKUP(R15,Start!$C$23:$D$29,2,FALSE)),VLOOKUP(R15,Start!$C$9:$D$15,2,FALSE)+VLOOKUP(R15,Start!$C$23:$D$29,2,FALSE),0) -> 0 | Z15: =IF(ISNUMBER((Y15/T15)+Start!$D$19*(VLOOKUP(R15,Start!$M$33:$N$39,2,FALSE)/T15)+VLOOKUP(S15,Start!$C$33:$D$40,2,FALSE)),(Y15/T15)+Start!$D$19*(VLOOKUP(R15,Start!$M$33:$N$39,2,FALSE)/T15)+VLOOKUP(S15,Start!$C$33:$D$40,2,FALSE),0) -> 0
C16: Nein | D16: (optional) | E16: (optional) | F16: (optional) | G16: (optional) | H16: (optional) | I16: (optional) | J16: (optional) | K16: (optional) | L16: (optional) | M16: (optional) | O16: (optional) | Q16: (optional) | R16: (notwendig) | S16: (notwendig) | T16: (notwendig) | U16: (optional) | V16: (optional) | W16: (notwendig) | X16: =IF(ISNUMBER((1-VLOOKUP(S16,Start!$H$33:$I$40,2,FALSE)/100)*W16),(1-VLOOKUP(S16,Start!$H$33:$I$40,2,FALSE)/100)*W16,0) -> 0 | Y16: =IF(ISNUMBER(VLOOKUP(R16,Start!$C$9:$D$15,2,FALSE)+VLOOKUP(R16,Start!$C$23:$D$29,2,FALSE)),VLOOKUP(R16,Start!$C$9:$D$15,2,FALSE)+VLOOKUP(R16,Start!$C$23:$D$29,2,FALSE),0) -> 0 | Z16: =IF(ISNUMBER((Y16/T16)+Start!$D$19*(VLOOKUP(R16,Start!$M$33:$N$39,2,FALSE)/T16)+VLOOKUP(S16,Start!$C$33:$D$40,2,FALSE)),(Y16/T16)+Start!$D$19*(VLOOKUP(R16,Start!$M$33:$N$39,2,FALSE)/T16)+VLOOKUP(S16,Start!$C$33:$D$40,2,FALSE),0) -> 0
C17: Nein | D17: (optional) | E17: (optional) | F17: (optional) | G17: (optional) | H17: (optional) | I17: (optional) | J17: (optional) | K17: (optional) | L17: (optional) | M17: (optional) | O17: (optional) | Q17: (optional) | R17: (notwendig) | S17: (notwendig) | T17: (notwendig) | U17: (optional) | V17: (optional) | W17: (notwendig) | X17: =IF(ISNUMBER((1-VLOOKUP(S17,Start!$H$33:$I$40,2,FALSE)/100)*W17),(1-VLOOKUP(S17,Start!$H$33:$I$40,2,FALSE)/100)*W17,0) -> 0 | Y17: =IF(ISNUMBER(VLOOKUP(R17,Start!$C$9:$D$15,2,FALSE)+VLOOKUP(R17,Start!$C$23:$D$29,2,FALSE)),VLOOKUP(R17,Start!$C$9:$D$15,2,FALSE)+VLOOKUP(R17,Start!$C$23:$D$29,2,FALSE),0) -> 0 | Z17: =IF(ISNUMBER((Y17/T17)+Start!$D$19*(VLOOKUP(R17,Start!$M$33:$N$39,2,FALSE)/T17)+VLOOKUP(S17,Start!$C$33:$D$40,2,FALSE)),(Y17/T17)+Start!$D$19*(VLOOKUP(R17,Start!$M$33:$N$39,2,FALSE)/T17)+VLOOKUP(S17,Start!$C$33:$D$40,2,FALSE),0) -> 0
C18: Nein | D18: (optional) | E18: (optional) | F18: (optional) | G18: (optional) | H18: (optional) | I18: (optional) | J18: (optional) | K18: (optional) | L18: (optional) | M18: (optional) | O18: (optional) | Q18: (optional) | R18: (notwendig) | S18: (notwendig) | T18: (notwendig) | U18: (optional) | V18: (optional) | W18: (notwendig) | X18: =IF(ISNUMBER((1-VLOOKUP(S18,Start!$H$33:$I$40,2,FALSE)/100)*W18),(1-VLOOKUP(S18,Start!$H$33:$I$40,2,FALSE)/100)*W18,0) -> 0 | Y18: =IF(ISNUMBER(VLOOKUP(R18,Start!$C$9:$D$15,2,FALSE)+VLOOKUP(R18,Start!$C$23:$D$29,2,FALSE)),VLOOKUP(R18,Start!$C$9:$D$15,2,FALSE)+VLOOKUP(R18,Start!$C$23:$D$29,2,FALSE),0) -> 0 | Z18: =IF(ISNUMBER((Y18/T18)+Start!$D$19*(VLOOKUP(R18,Start!$M$33:$N$39,2,FALSE)/T18)+VLOOKUP(S18,Start!$C$33:$D$40,2,FALSE)),(Y18/T18)+Start!$D$19*(VLOOKUP(R18,Start!$M$33:$N$39,2,FALSE)/T18)+VLOOKUP(S18,Start!$C$33:$D$40,2,FALSE),0) -> 0
C19: Nein | D19: (optional) | E19: (optional) | F19: (optional) | G19: (optional) | H19: (optional) | I19: (optional) | J19: (optional) | K19: (optional) | L19: (optional) | M19: (optional) | O19: (optional) | Q19: (optional) | R19: (notwendig) | S19: (notwendig) | T19: (notwendig) | U19: (optional) | V19: (optional) | W19: (notwendig) | X19: =IF(ISNUMBER((1-VLOOKUP(S19,Start!$H$33:$I$40,2,FALSE)/100)*W19),(1-VLOOKUP(S19,Start!$H$33:$I$40,2,FALSE)/100)*W19,0) -> 0 | Y19: =IF(ISNUMBER(VLOOKUP(R19,Start!$C$9:$D$15,2,FALSE)+VLOOKUP(R19,Start!$C$23:$D$29,2,FALSE)),VLOOKUP(R19,Start!$C$9:$D$15,2,FALSE)+VLOOKUP(R19,Start!$C$23:$D$29,2,FALSE),0) -> 0 | Z19: =IF(ISNUMBER((Y19/T19)+Start!$D$19*(VLOOKUP(R19,Start!$M$33:$N$39,2,FALSE)/T19)+VLOOKUP(S19,Start!$C$33:$D$40,2,FALSE)),(Y19/T19)+Start!$D$19*(VLOOKUP(R19,Start!$M$33:$N$39,2,FALSE)/T19)+VLOOKUP(S19,Start!$C$33:$D$40,2,FALSE),0) -> 0
C20: Nein | D20: (optional) | E20: (optional) | F20: (optional) | G20: (optional) | H20: (optional) | I20: (optional) | J20: (optional) | K20: (optional) | L20: (optional) | M20: (optional) | O20: (optional) | Q20: (optional) | R20: (notwendig) | S20: (notwendig) | T20: (notwendig) | U20: (optional) | V20: (optional) | W20: (notwendig) | X20: =IF(ISNUMBER((1-VLOOKUP(S20,Start!$H$33:$I$40,2,FALSE)/100)*W20),(1-VLOOKUP(S20,Start!$H$33:$I$40,2,FALSE)/100)*W20,0) -> 0 | Y20: =IF(ISNUMBER(VLOOKUP(R20,Start!$C$9:$D$15,2,FALSE)+VLOOKUP(R20,Start!$C$23:$D$29,2,FALSE)),VLOOKUP(R20,Start!$C$9:$D$15,2,FALSE)+VLOOKUP(R20,Start!$C$23:$D$29,2,FALSE),0) -> 0 | Z20: =IF(ISNUMBER((Y20/T20)+Start!$D$19*(VLOOKUP(R20,Start!$M$33:$N$39,2,FALSE)/T20)+VLOOKUP(S20,Start!$C$33:$D$40,2,FALSE)),(Y20/T20)+Start!$D$19*(VLOOKUP(R20,Start!$M$33:$N$39,2,FALSE)/T20)+VLOOKUP(S20,Start!$C$33:$D$40,2,FALSE),0) -> 0
C21: Nein | D21: Braunkohle 1 | E21: BNA0789 | F21: Lausitz Energie Kraftwerke AG | G21: Kraftwerk Jänschwalde Block E | H21: 3185 | I21: Teichland | J21: Am Kraftwerk | K21: Brandenburg | L21: 1987-10-06 | M21: Braunkohle | N21: Rohbraunkohlen | O21: Braunkohle | P21: Nein | Q21: Kondensationsmaschine mit Entnahme | R21: Braunkohle | S21: Braunkohle | T21: 0.3688 | U21: OPSD (2020) | V21: 535 | W21: 500 | X21: =(1-VLOOKUP(S21,Start!$H$33:$I$40,2,FALSE)/100)*W21 -> 435 | Y21: =VLOOKUP(R21,Start!$C$9:$D$15,2,FALSE)+VLOOKUP(R21,Start!$C$23:$D$29,2,FALSE) -> 3.1 | Z21: =(Y21/T21)+Start!$D$19*(VLOOKUP(R21,Start!$M$33:$N$39,2,FALSE)/T21)+VLOOKUP(S21,Start!$C$33:$D$40,2,FALSE) -> 99.02288503
C22: Nein | D22: Braunkohle 2 | E22: BNA0790 | F22: Lausitz Energie Kraftwerke AG | G22: Kraftwerk Jänschwalde Block F | H22: 3185 | I22: Teichland | J22: Am Kraftwerk | K22: Brandenburg | L22: 1989-03-09 | M22: Braunkohle | N22: Rohbraunkohlen | O22: Braunkohle | P22: Nein | Q22: Kondensationsmaschine mit Entnahme | R22: Braunkohle | S22: Braunkohle | T22: 0.3736 | U22: OPSD (2020) | V22: 535 | W22: 500 | X22: =(1-VLOOKUP(S22,Start!$H$33:$I$40,2,FALSE)/100)*W22 -> 435 | Y22: =VLOOKUP(R22,Start!$C$9:$D$15,2,FALSE)+VLOOKUP(R22,Start!$C$23:$D$29,2,FALSE) -> 3.1 | Z22: =(Y22/T22)+Start!$D$19*(VLOOKUP(R22,Start!$M$33:$N$39,2,FALSE)/T22)+VLOOKUP(S22,Start!$C$33:$D$40,2,FALSE) -> 97.77248394
C23: Nein | D23: Braunkohle 3 | E23: BNA0713 | F23: RWE Power AG | G23: Niederaußem E | H23: 50129 | I23: Bergheim | J23: Werkstr. | K23: Nordrhein-Westfalen | L23: 1970-04-12 | M23: Braunkohle | N23: Rohbraunkohlen | O23: Braunkohle | P23: Nein | Q23: Kondensationsmaschine mit Entnahme | R23: Braunkohle | S23: Braunkohle | T23: 0.328 | U23: OPSD (2020) | V23: 324 | W23: 295 | X23: =(1-VLOOKUP(S23,Start!$H$33:$I$40,2,FALSE)/100)*W23 -> 256.65 | Y23: =VLOOKUP(R23,Start!$C$9:$D$15,2,FALSE)+VLOOKUP(R23,Start!$C$23:$D$29,2,FALSE) -> 3.1 | Z23: =(Y23/T23)+Start!$D$19*(VLOOKUP(R23,Start!$M$33:$N$39,2,FALSE)/T23)+VLOOKUP(S23,Start!$C$33:$D$40,2,FALSE) -> 111.1289024
C24: Nein | D24: Braunkohle 4 | E24: BNA0706 | F24: RWE Power AG | G24: Niederaußem F | H24: 50129 | I24: Bergheim | J24: Werkstr. | K24: Nordrhein-Westfalen | L24: 1971-02-03 | M24: Braunkohle | N24: Rohbraunkohlen | O24: Braunkohle | P24: Nein | Q24: Kondensationsmaschine mit Entnahme | R24: Braunkohle | S24: Braunkohle | T24: 0.3304 | U24: OPSD (2020) | V24: 334 | W24: 299 | X24: =(1-VLOOKUP(S24,Start!$H$33:$I$40,2,FALSE)/100)*W24 -> 260.13 | Y24: =VLOOKUP(R24,Start!$C$9:$D$15,2,FALSE)+VLOOKUP(R24,Start!$C$23:$D$29,2,FALSE) -> 3.1 | Z24: =(Y24/T24)+Start!$D$19*(VLOOKUP(R24,Start!$M$33:$N$39,2,FALSE)/T24)+VLOOKUP(S24,Start!$C$33:$D$40,2,FALSE) -> 110.3340194
C25: Nein | D25: Braunkohle 5 | E25: BNA0698 | F25: RWE Power AG | G25: Neurath C | H25: 41517 | I25: Grevenbroich | J25: Energiestraße 101 | K25: Nordrhein-Westfalen | L25: 1973-03-21 | M25: Braunkohle | N25: Rohbraunkohlen | O25: Braunkohle | P25: Nein | Q25: Kondensationsmaschine mit Entnahme | R25: Braunkohle | S25: Braunkohle | T25: 0.3352 | U25: OPSD (2020) | V25: 316 | W25: 292 | X25: =(1-VLOOKUP(S25,Start!$H$33:$I$40,2,FALSE)/100)*W25 -> 254.04 | Y25: =VLOOKUP(R25,Start!$C$9:$D$15,2,FALSE)+VLOOKUP(R25,Start!$C$23:$D$29,2,FALSE) -> 3.1 | Z25: =(Y25/T25)+Start!$D$19*(VLOOKUP(R25,Start!$M$33:$N$39,2,FALSE)/T25)+VLOOKUP(S25,Start!$C$33:$D$40,2,FALSE) -> 108.778401
C26: Nein | D26: Steinkohle 1 | E26: BNA0464 | F26: Kraftwerk Mehrum GmbH | G26: KWM Block 3 | H26: 31249 | I26: Hohenhameln | J26: Triftstraße 25 | K26: Niedersachsen | L26: 1979-08-24 | M26: Steinkohle | N26: Steinkohlen | O26: Steinkohle | P26: Nein | Q26: Sonstige | R26: Steinkohle | S26: Steinkohle | T26: 0.4325 | U26: OPSD (2020) | V26: 750 | W26: 690 | X26: =(1-VLOOKUP(S26,Start!$H$33:$I$40,2,FALSE)/100)*W26 -> 552 | Y26: =VLOOKUP(R26,Start!$C$9:$D$15,2,FALSE)+VLOOKUP(R26,Start!$C$23:$D$29,2,FALSE) -> 42.45 | Z26: =(Y26/T26)+Start!$D$19*(VLOOKUP(R26,Start!$M$33:$N$39,2,FALSE)/T26)+VLOOKUP(S26,Start!$C$33:$D$40,2,FALSE) -> 162.6972023
C27: Nein | D27: Steinkohle 2 | E27: BNA0793 | F27: Uniper Kraftwerke GmbH | G27: Heyden 4 | H27: 32469 | I27: Petershagen | J27: Kraftwerksiedlung 2 | K27: Nordrhein-Westfalen | L27: 1987-01-01 | M27: Steinkohle | N27: Steinkohlen | O27: Steinkohle | P27: Nein | Q27: Kondensationsmaschine mit Entnahme | R27: Steinkohle | S27: Steinkohle | T27: 0.3925 | U27: OPSD (2020) | V27: 920 | W27: 875 | X27: =(1-VLOOKUP(S27,Start!$H$33:$I$40,2,FALSE)/100)*W27 -> 700 | Y27: =VLOOKUP(R27,Start!$C$9:$D$15,2,FALSE)+VLOOKUP(R27,Start!$C$23:$D$29,2,FALSE) -> 42.45 | Z27: =(Y27/T27)+Start!$D$19*(VLOOKUP(R27,Start!$M$33:$N$39,2,FALSE)/T27)+VLOOKUP(S27,Start!$C$33:$D$40,2,FALSE) -> 179.1453248
C28: Nein | D28: Steinkohle 3 | E28: BNA0093 | F28: STEAG | G28: Bexbach | H28: 66450 | I28: Bexbach | J28: Grubenstraße | K28: Saarland | L28: 1983-10-01 | M28: Steinkohle | N28: Steinkohlen | O28: Steinkohle | P28: Nein | Q28: Kondensationsmaschine mit Entnahme | R28: Steinkohle | S28: Steinkohle | T28: 0.3825 | U28: OPSD (2020) | V28: 780 | W28: 726 | X28: =(1-VLOOKUP(S28,Start!$H$33:$I$40,2,FALSE)/100)*W28 -> 580.8 | Y28: =VLOOKUP(R28,Start!$C$9:$D$15,2,FALSE)+VLOOKUP(R28,Start!$C$23:$D$29,2,FALSE) -> 42.45 | Z28: =(Y28/T28)+Start!$D$19*(VLOOKUP(R28,Start!$M$33:$N$39,2,FALSE)/T28)+VLOOKUP(S28,Start!$C$33:$D$40,2,FALSE) -> 183.7948758
C29: Nein | D29: Steinkohle 4 | E29: BNA0820 | F29: STEAG | G29: Weiher 3 | H29: 66287 | I29: Quierschied | J29: Holzer Straße | K29: Saarland | L29: 1976-09-24 | M29: Steinkohle | N29: Steinkohlen | O29: Steinkohle | P29: Nein | Q29: Kondensationsmaschine mit Entnahme | R29: Steinkohle | S29: Steinkohle | T29: 0.365 | U29: OPSD (2020) | V29: 724 | W29: 655.6 | X29: =(1-VLOOKUP(S29,Start!$H$33:$I$40,2,FALSE)/100)*W29 -> 524.48 | Y29: =VLOOKUP(R29,Start!$C$9:$D$15,2,FALSE)+VLOOKUP(R29,Start!$C$23:$D$29,2,FALSE) -> 42.45 | Z29: =(Y29/T29)+Start!$D$19*(VLOOKUP(R29,Start!$M$33:$N$39,2,FALSE)/T29)+VLOOKUP(S29,Start!$C$33:$D$40,2,FALSE) -> 192.5446301
C30: Ja | D30: SEE900040609433 | E30: BNA1331 | F30: R.D.M. Arnsberg GmbH | G30: SSW-NT | H30: 59821 | I30: Arnsberg | J30: Hellefelder Straße 51 | K30: Nordrhein-Westfalen | L30: 1957-02-27 | M30: Steinkohle | N30: Steinkohlen | O30: Steinkohle | P30: Ja | Q30: Kondensationsmaschine mit Entnahme | R30: Steinkohle | S30: Steinkohle | T30: 0.2325 | U30: OPSD (2020) | V30: 7 | W30: 6.14 | X30: =(1-VLOOKUP(S30,Start!$H$33:$I$40,2,FALSE)/100)*W30 -> 4.912 | Y30: =VLOOKUP(R30,Start!$C$9:$D$15,2,FALSE)+VLOOKUP(R30,Start!$C$23:$D$29,2,FALSE) -> 42.45 | Z30: =(Y30/T30)+Start!$D$19*(VLOOKUP(R30,Start!$M$33:$N$39,2,FALSE)/T30)+VLOOKUP(S30,Start!$C$33:$D$40,2,FALSE) -> 301.5335054
C31: Ja | D31: SEE900100287427 | E31: BNA1284 | F31: Grace GmbH | G31: GT2 | H31: 67547 | I31: Worms | J31: In der Hollerhecke 1 | K31: Rheinland-Pfalz | L31: 1991-08-27 | M31: Erdgas | N31: Erdgas, Erdölgas | O31: Erdgas | P31: Ja | Q31: Gasturbinen mit Abhitzekessel | R31: Erdgas | S31: GuD | T31: 0.3751 | U31: OPSD (2020) | V31: 6.5 | W31: 6.41 | X31: =(1-VLOOKUP(S31,Start!$H$33:$I$40,2,FALSE)/100)*W31 -> 5.5767 | Y31: =VLOOKUP(R31,Start!$C$9:$D$15,2,FALSE)+VLOOKUP(R31,Start!$C$23:$D$29,2,FALSE) -> 128.9 | Z31: =(Y31/T31)+Start!$D$19*(VLOOKUP(R31,Start!$M$33:$N$39,2,FALSE)/T31)+VLOOKUP(S31,Start!$C$33:$D$40,2,FALSE) -> 388.6372167
C32: Ja | D32: SEE900128586359 | E32: BNA0746 | F32: N-ERGIE Kraftwerke GmbH | G32: HKW-Sandreuth (Müll) | H32: 90441 | I32: Nürnberg | J32: Sandreuthstraße 55 | K32: Bayern | L32: 1992-07-17 | M32: Wärme | N32: Dampf (fremdbezogen) | O32: Abfall | P32: Ja | Q32: Kondensationsmaschine mit Entnahme | R32: Abfall | S32: Abfall | T32: 0.33 | U32: OPSD (2020) | V32: 23.7 | W32: 18.8 | X32: =(1-VLOOKUP(S32,Start!$H$33:$I$40,2,FALSE)/100)*W32 -> 15.98 | Y32: =VLOOKUP(R32,Start!$C$9:$D$15,2,FALSE)+VLOOKUP(R32,Start!$C$23:$D$29,2,FALSE) -> 0 | Z32: =(Y32/T32)+Start!$D$19*(VLOOKUP(R32,Start!$M$33:$N$39,2,FALSE)/T32)+VLOOKUP(S32,Start!$C$33:$D$40,2,FALSE) -> 1
C33: Ja | D33: SEE900240101683 | E33: BNA1504 | F33: Daimler Truck AG | G33: 129870 Modul 3 | H33: 76744 | I33: Wörth | J33: Daimlerstraße 1 | K33: Rheinland-Pfalz | L33: 2013-02-20 | M33: Erdgas | N33: Erdgas, Erdölgas | O33: Erdgas | P33: Ja | Q33: Verbrennungsmotor | R33: Erdgas | S33: GuD | T33: 0.3993 | U33: OPSD (2020) | V33: 4.49 | W33: 4.44 | X33: =(1-VLOOKUP(S33,Start!$H$33:$I$40,2,FALSE)/100)*W33 -> 3.8628 | Y33: =VLOOKUP(R33,Start!$C$9:$D$15,2,FALSE)+VLOOKUP(R33,Start!$C$23:$D$29,2,FALSE) -> 128.9 | Z33: =(Y33/T33)+Start!$D$19*(VLOOKUP(R33,Start!$M$33:$N$39,2,FALSE)/T33)+VLOOKUP(S33,Start!$C$33:$D$40,2,FALSE) -> 365.1743551
C34: Ja | D34: SEE900252837358 | F34: Baden Board GmbH | G34: Gasturbine | H34: 76593 | I34: Gernsbach | J34: Fabrikstraße 1 | K34: Baden-Württemberg | L34: 2000-04-01 | M34: Erdgas | N34: Erdgas, Erdölgas | O34: Erdgas | P34: Ja | Q34: Gasturbinen mit Abhitzekessel | R34: Erdgas | S34: GuD | T34: 0.4 | U34: eigene Annahme | V34: 4.5 | W34: 4.35 | X34: =(1-VLOOKUP(S34,Start!$H$33:$I$40,2,FALSE)/100)*W34 -> 3.7845 | Y34: =VLOOKUP(R34,Start!$C$9:$D$15,2,FALSE)+VLOOKUP(R34,Start!$C$23:$D$29,2,FALSE) -> 128.9 | Z34: =(Y34/T34)+Start!$D$19*(VLOOKUP(R34,Start!$M$33:$N$39,2,FALSE)/T34)+VLOOKUP(S34,Start!$C$33:$D$40,2,FALSE) -> 364.537925
C35: Ja | D35: SEE900295294101 | E35: BNA0957 | F35: Stadtwerke Tübingen GmbH | G35: BHKW Obere Viehweide M4 (Waldhäuser Str 100) | H35: 72076 | I35: Tübingen | J35: Waldhäuser Straße 100 | K35: Baden-Württemberg | L35: 2013-11-07 | M35: Erdgas | N35: Erdgas, Erdölgas | O35: Erdgas | P35: Ja | Q35: Verbrennungsmotor | R35: Erdgas | S35: GuD | T35: 0.385 | U35: OPSD (2020) | V35: 3.352 | W35: 3.233 | X35: =(1-VLOOKUP(S35,Start!$H$33:$I$40,2,FALSE)/100)*W35 -> 2.81271 | Y35: =VLOOKUP(R35,Start!$C$9:$D$15,2,FALSE)+VLOOKUP(R35,Start!$C$23:$D$29,2,FALSE) -> 128.9 | Z35: =(Y35/T35)+Start!$D$19*(VLOOKUP(R35,Start!$M$33:$N$39,2,FALSE)/T35)+VLOOKUP(S35,Start!$C$33:$D$40,2,FALSE) -> 378.6822597
C36: Ja | D36: SEE900341307519 | E36: BNA1451 | F36: Venator Germany GmbH | G36: HKW Venator Germany | H36: 47198 | I36: Duisburg | J36: Dr.-Rudolf-Sachtleben-Str. 4 | K36: Nordrhein-Westfalen | L36: 1960-05-20 | M36: Erdgas | N36: Erdgas, Erdölgas | O36: Erdgas | P36: Ja | Q36: Gegendruckmaschine mit Entnahme | R36: Erdgas | S36: GuD | T36: 0.341 | U36: Annahme basierend auf DIW (2014) | V36: 15.77 | W36: 14.193 | X36: =(1-VLOOKUP(S36,Start!$H$33:$I$40,2,FALSE)/100)*W36 -> 12.34791 | Y36: =VLOOKUP(R36,Start!$C$9:$D$15,2,FALSE)+VLOOKUP(R36,Start!$C$23:$D$29,2,FALSE) -> 128.9 | Z36: =(Y36/T36)+Start!$D$19*(VLOOKUP(R36,Start!$M$33:$N$39,2,FALSE)/T36)+VLOOKUP(S36,Start!$C$33:$D$40,2,FALSE) -> 427.3509384
C37: Ja | D37: SEE900348277440 | F37: Jäckering Mühlen- und Nährmittelwerke GmbH | G37: BHKW Hafen - Modul 4 | H37: 59067 | I37: Hamm | J37: Speicherstraße 15 | K37: Nordrhein-Westfalen | L37: 2013-04-01 | M37: Erdgas | N37: Erdgas, Erdölgas | O37: Erdgas | P37: Ja | Q37: Verbrennungsmotor | R37: Erdgas | S37: GuD | T37: 0.4 | U37: eigene Annahme | V37: 2.19 | W37: 2.173 | X37: =(1-VLOOKUP(S37,Start!$H$33:$I$40,2,FALSE)/100)*W37 -> 1.89051 | Y37: =VLOOKUP(R37,Start!$C$9:$D$15,2,FALSE)+VLOOKUP(R37,Start!$C$23:$D$29,2,FALSE) -> 128.9 | Z37: =(Y37/T37)+Start!$D$19*(VLOOKUP(R37,Start!$M$33:$N$39,2,FALSE)/T37)+VLOOKUP(S37,Start!$C$33:$D$40,2,FALSE) -> 364.537925
C38: Ja | D38: SEE900364034072 | F38: EnBW Energie Baden-Württemberg AG | G38: Heizkraftwerk Heilbronn FHT 1 | H38: 74076 | I38: Heilbronn | J38: Lichtenbergerstraße 23 | K38: Baden-Württemberg | L38: 2015-05-01 | M38: Erdgas | N38: Erdgas, Erdölgas | O38: Erdgas | P38: Ja | Q38: Gegendruckmaschine mit Entnahme | R38: Erdgas | S38: GuD | T38: 0.4 | U38: eigene Annahme | V38: 6.5 | W38: 6.5 | X38: =(1-VLOOKUP(S38,Start!$H$33:$I$40,2,FALSE)/100)*W38 -> 5.655 | Y38: =VLOOKUP(R38,Start!$C$9:$D$15,2,FALSE)+VLOOKUP(R38,Start!$C$23:$D$29,2,FALSE) -> 128.9 | Z38: =(Y38/T38)+Start!$D$19*(VLOOKUP(R38,Start!$M$33:$N$39,2,FALSE)/T38)+VLOOKUP(S38,Start!$C$33:$D$40,2,FALSE) -> 364.537925
C39: Ja | D39: SEE900452778307 | F39: Salzgitter Flachstahl GmbH | G39: GGT HO B | H39: 38239 | I39: Salzgitter | J39: Eisenhüttenstraße 99 | K39: Niedersachsen | L39: 2012-04-15 | M39: Druck aus Gasleitungen | O39: Sonstige Energieträger (nicht erneuerbar) | P39: Nein | Q39: Sonstige | R39: Sonstige | S39: Sonstige | T39: 0.4 | U39: eigene Annahme | V39: 12 | W39: 8.2 | X39: =(1-VLOOKUP(S39,Start!$H$33:$I$40,2,FALSE)/100)*W39 -> 6.97 | Y39: =VLOOKUP(R39,Start!$C$9:$D$15,2,FALSE)+VLOOKUP(R39,Start!$C$23:$D$29,2,FALSE) -> 58.47 | Z39: =(Y39/T39)+Start!$D$19*(VLOOKUP(R39,Start!$M$33:$N$39,2,FALSE)/T39)+VLOOKUP(S39,Start!$C$33:$D$40,2,FALSE) -> 190.60095
C40: Ja | D40: SEE900527375523 | F40: AG der Dillinger Hüttenwerke | G40: T2 | H40: 66763 | I40: Dillingen | J40: Werkstraße 1 | K40: Saarland | L40: 1960-01-01 | M40: andere Gase | N40: Hochofengas, Konvertergas | O40: Sonstige Energieträger (nicht erneuerbar) | P40: Nein | Q40: Kondensationsmaschine ohne Entnahme | R40: Erdgas | S40: GuD | T40: 0.4 | U40: eigene Annahme | V40: 6 | W40: 5.5 | X40: =(1-VLOOKUP(S40,Start!$H$33:$I$40,2,FALSE)/100)*W40 -> 4.785 | Y40: =VLOOKUP(R40,Start!$C$9:$D$15,2,FALSE)+VLOOKUP(R40,Start!$C$23:$D$29,2,FALSE) -> 128.9 | Z40: =(Y40/T40)+Start!$D$19*(VLOOKUP(R40,Start!$M$33:$N$39,2,FALSE)/T40)+VLOOKUP(S40,Start!$C$33:$D$40,2,FALSE) -> 364.537925
C41: Ja | D41: SEE900534814473 | F41: Covestro Brunsbüttel Energie GmbH | G41: Stromgenerator 2 (SE2) | H41: 25541 | I41: Brunsbüttel | J41: Fährstraße 51 | K41: Schleswig-Holstein | L41: 2020-05-13 | M41: Wärme | N41: Dampf (fremdbezogen) | O41: Wärme | P41: Nein | Q41: Gegendruckmaschine ohne Entnahme | R41: Sonstige | S41: Sonstige | T41: 0.4 | U41: eigene Annahme | V41: 3.5 | W41: 3.5 | X41: =(1-VLOOKUP(S41,Start!$H$33:$I$40,2,FALSE)/100)*W41 -> 2.975 | Y41: =VLOOKUP(R41,Start!$C$9:$D$15,2,FALSE)+VLOOKUP(R41,Start!$C$23:$D$29,2,FALSE) -> 58.47 | Z41: =(Y41/T41)+Start!$D$19*(VLOOKUP(R41,Start!$M$33:$N$39,2,FALSE)/T41)+VLOOKUP(S41,Start!$C$33:$D$40,2,FALSE) -> 190.60095
C42: Ja | D42: SEE900549498521 | F42: Stadtwerke Frankfurt (Oder) GmbH | G42: HKW FFO GM4 | H42: 15236 | I42: Frankfurt | J42: Am Hohen Feld 4 | K42: Brandenburg | L42: 2022-04-01 | M42: Erdgas | N42: Erdgas, Erdölgas | O42: Erdgas | P42: Ja | Q42: Verbrennungsmotor | R42: Erdgas | S42: GuD | T42: 0.48 | U42: https://www.man-es.com/energy-storage/products/gas-fuel-engines | V42: 10.6 | W42: 10.1 | X42: =(1-VLOOKUP(S42,Start!$H$33:$I$40,2,FALSE)/100)*W42 -> 8.787 | Y42: =VLOOKUP(R42,Start!$C$9:$D$15,2,FALSE)+VLOOKUP(R42,Start!$C$23:$D$29,2,FALSE) -> 128.9 | Z42: =(Y42/T42)+Start!$D$19*(VLOOKUP(R42,Start!$M$33:$N$39,2,FALSE)/T42)+VLOOKUP(S42,Start!$C$33:$D$40,2,FALSE) -> 304.0316042
C43: Ja | D43: SEE900559860912 | F43: WUN Pellets GmbH | G43: WUN Pellets - BHKW - Modul II | H43: 95632 | I43: Wunsiedel | J43: Am Energiepark 1 | K43: Bayern | L43: 2018-10-01 | M43: Erdgas | N43: Erdgas, Erdölgas | O43: Erdgas | P43: Ja | Q43: Verbrennungsmotor | R43: Erdgas | S43: GuD | T43: 0.4 | U43: eigene Annahme | V43: 4.5 | W43: 4.41 | X43: =(1-VLOOKUP(S43,Start!$H$33:$I$40,2,FALSE)/100)*W43 -> 3.8367 | Y43: =VLOOKUP(R43,Start!$C$9:$D$15,2,FALSE)+VLOOKUP(R43,Start!$C$23:$D$29,2,FALSE) -> 128.9 | Z43: =(Y43/T43)+Start!$D$19*(VLOOKUP(R43,Start!$M$33:$N$39,2,FALSE)/T43)+VLOOKUP(S43,Start!$C$33:$D$40,2,FALSE) -> 364.537925
C44: Ja | D44: SEE900628853036 | E44: BNA0411 | F44: Trianel Gaskraftwerk Hamm | G44: Trianel Gaskraftwerk Hamm Block 20 | H44: 59071 | I44: Hamm | J44: Trianelstraße 1 | K44: Nordrhein-Westfalen | L44: 2007-12-23 | M44: Erdgas | N44: Erdgas, Erdölgas | O44: Erdgas | P44: Nein | Q44: Gasturbinen mit nachgeschalteter Dampfturbine | R44: Erdgas | S44: GuD | T44: 0.577 | U44: OPSD (2020) | V44: 418 | W44: 410 | X44: =(1-VLOOKUP(S44,Start!$H$33:$I$40,2,FALSE)/100)*W44 -> 356.7 | Y44: =VLOOKUP(R44,Start!$C$9:$D$15,2,FALSE)+VLOOKUP(R44,Start!$C$23:$D$29,2,FALSE) -> 128.9 | Z44: =(Y44/T44)+Start!$D$19*(VLOOKUP(R44,Start!$M$33:$N$39,2,FALSE)/T44)+VLOOKUP(S44,Start!$C$33:$D$40,2,FALSE) -> 253.1727383
C45: Ja | D45: SEE900664653232 | E45: BNA1289 | F45: AMK-Abfallentsorgungsgesellschaft des Märkischen Kreises mbH | G45: Turbine 1 | H45: 58636 | I45: Iserlohn | J45: Giesestraße 10 | K45: Nordrhein-Westfalen | L45: 1996-08-01 | M45: nicht biogener Abfall | N45: nicht biogener Abfall (Hausmüll, Siedlungsabfälle) | O45: Abfall | P45: Ja | Q45: Kondensationsmaschine mit Entnahme | R45: Abfall | S45: Abfall | T45: 0.33 | U45: OPSD (2020) | V45: 13 | W45: 10.7 | X45: =(1-VLOOKUP(S45,Start!$H$33:$I$40,2,FALSE)/100)*W45 -> 9.095 | Y45: =VLOOKUP(R45,Start!$C$9:$D$15,2,FALSE)+VLOOKUP(R45,Start!$C$23:$D$29,2,FALSE) -> 0 | Z45: =(Y45/T45)+Start!$D$19*(VLOOKUP(R45,Start!$M$33:$N$39,2,FALSE)/T45)+VLOOKUP(S45,Start!$C$33:$D$40,2,FALSE) -> 1
C46: Ja | D46: SEE900758207372 | E46: BNA1505 | F46: Opel Automobile GmbH / Werk Eisenach | G46: HKW Wiesengrund | H46: 99817 | I46: Eisenach | J46: Adam-Opel-Straße 101 | K46: Thüringen | L46: 1993-10-13 | M46: Erdgas | N46: Erdgas, Erdölgas | O46: Erdgas | P46: Ja | Q46: Gasturbinen mit nachgeschalteter Dampfturbine | R46: Erdgas | S46: GuD | T46: 0.3773 | U46: OPSD (2020) | V46: 22.7 | W46: 22.1 | X46: =(1-VLOOKUP(S46,Start!$H$33:$I$40,2,FALSE)/100)*W46 -> 19.227 | Y46: =VLOOKUP(R46,Start!$C$9:$D$15,2,FALSE)+VLOOKUP(R46,Start!$C$23:$D$29,2,FALSE) -> 128.9 | Z46: =(Y46/T46)+Start!$D$19*(VLOOKUP(R46,Start!$M$33:$N$39,2,FALSE)/T46)+VLOOKUP(S46,Start!$C$33:$D$40,2,FALSE) -> 386.3798569
C47: Ja | D47: SEE900838448145 | E47: BNA1254 | F47: Zweckverband Müllverwertung Schwandorf | G47: MKW SAD Turbine 3 | H47: 92421 | I47: Schwandorf | J47: Alustraße 7 | K47: Bayern | L47: 1982-08-31 | M47: nicht biogener Abfall | N47: nicht biogener Abfall (Hausmüll, Siedlungsabfälle) | O47: Abfall | P47: Ja | Q47: Kondensationsmaschine mit Entnahme | R47: Abfall | S47: Abfall | T47: 0.33 | U47: OPSD (2020) | V47: 14.5 | W47: 11.6 | X47: =(1-VLOOKUP(S47,Start!$H$33:$I$40,2,FALSE)/100)*W47 -> 9.86 | Y47: =VLOOKUP(R47,Start!$C$9:$D$15,2,FALSE)+VLOOKUP(R47,Start!$C$23:$D$29,2,FALSE) -> 0 | Z47: =(Y47/T47)+Start!$D$19*(VLOOKUP(R47,Start!$M$33:$N$39,2,FALSE)/T47)+VLOOKUP(S47,Start!$C$33:$D$40,2,FALSE) -> 1
C48: Ja | D48: SEE900953976684 | E48: BNA1528 | F48: Stadtwerke Kempen GmbH | G48: 0042 - STW - BHKW - KWK | H48: 47906 | I48: Kempen | J48: Otto-Schott-Straße 4 | K48: Nordrhein-Westfalen | L48: 2010-01-01 | M48: Erdgas | N48: Erdgas, Erdölgas | O48: Erdgas | P48: Ja | Q48: Verbrennungsmotor | R48: Erdgas | S48: GuD | T48: 0.456 | U48: Annahme basierend auf DIW (2014) | V48: 2.427 | W48: 2.391 | X48: =(1-VLOOKUP(S48,Start!$H$33:$I$40,2,FALSE)/100)*W48 -> 2.08017 | Y48: =VLOOKUP(R48,Start!$C$9:$D$15,2,FALSE)+VLOOKUP(R48,Start!$C$23:$D$29,2,FALSE) -> 128.9 | Z48: =(Y48/T48)+Start!$D$19*(VLOOKUP(R48,Start!$M$33:$N$39,2,FALSE)/T48)+VLOOKUP(S48,Start!$C$33:$D$40,2,FALSE) -> 319.9543202
C49: Ja | D49: SEE900957573537 | E49: BNA0598b | F49: InfraLeuna GmbH | G49: KT1 | H49: 6237 | I49: Leuna | K49: Sachsen-Anhalt | L49: 2010-04-30 | M49: Wärme | N49: Dampf (fremdbezogen) | O49: Sonstige Energieträger (nicht erneuerbar) | P49: Nein | Q49: Kondensationsmaschine ohne Entnahme | R49: Sonstige | S49: Sonstige | T49: 0.396 | U49: Annahme basierend auf DIW (2014) | V49: 21.6 | W49: 20 | X49: =(1-VLOOKUP(S49,Start!$H$33:$I$40,2,FALSE)/100)*W49 -> 17 | Y49: =VLOOKUP(R49,Start!$C$9:$D$15,2,FALSE)+VLOOKUP(R49,Start!$C$23:$D$29,2,FALSE) -> 58.47 | Z49: =(Y49/T49)+Start!$D$19*(VLOOKUP(R49,Start!$M$33:$N$39,2,FALSE)/T49)+VLOOKUP(S49,Start!$C$33:$D$40,2,FALSE) -> 192.5161111
C50: Ja | D50: SEE901050642113 | E50: BNA1989 | F50: EVH GmbH | G50: Heizkraftwerk Dieselstraße Block C | H50: 6130 | I50: Halle | J50: Dieselstraße 141 | K50: Sachsen-Anhalt | L50: 2020-10-01 | M50: Erdgas | N50: Erdgas, Erdölgas | O50: Erdgas | P50: Ja | Q50: Gasturbinen mit Abhitzekessel | R50: Erdgas | S50: GuD | T50: 0.44 | U50: https://evh.de/privatkunden/unternehmen/energiepark/dieselstra%C3%9Fe | V50: 57.332 | W50: 57.322 | X50: =(1-VLOOKUP(S50,Start!$H$33:$I$40,2,FALSE)/100)*W50 -> 49.87014 | Y50: =VLOOKUP(R50,Start!$C$9:$D$15,2,FALSE)+VLOOKUP(R50,Start!$C$23:$D$29,2,FALSE) -> 128.9 | Z50: =(Y50/T50)+Start!$D$19*(VLOOKUP(R50,Start!$M$33:$N$39,2,FALSE)/T50)+VLOOKUP(S50,Start!$C$33:$D$40,2,FALSE) -> 331.5344773
C51: Ja | D51: SEE901120268069 | E51: BNA0662b | F51: Evonik Operations GmbH | G51: Kraftwerk I, GT11 | H51: 45772 | I51: Marl | J51: Paul-Baumann-Straße 1 | K51: Nordrhein-Westfalen | L51: 1942-02-22 | M51: Steinkohle | N51: Steinkohlen | O51: Steinkohle | P51: Ja | Q51: Gegendruckmaschine ohne Entnahme | R51: Steinkohle | S51: Steinkohle | T51: 0.27 | U51: OPSD (2020) | V51: 18.4 | W51: 18.4 | X51: =(1-VLOOKUP(S51,Start!$H$33:$I$40,2,FALSE)/100)*W51 -> 14.72 | Y51: =VLOOKUP(R51,Start!$C$9:$D$15,2,FALSE)+VLOOKUP(R51,Start!$C$23:$D$29,2,FALSE) -> 42.45 | Z51: =(Y51/T51)+Start!$D$19*(VLOOKUP(R51,Start!$M$33:$N$39,2,FALSE)/T51)+VLOOKUP(S51,Start!$C$33:$D$40,2,FALSE) -> 259.8344074
C52: Ja | D52: SEE901196452256 | F52: essity Operations Mainz-Kostheim GmbH | G52: Turbine 4 | H52: 55246 | I52: Mainz-Kostheim | J52: Kommerzienrat-Disch-Brücke 1 | K52: Hessen | L52: 1983-06-30 | M52: Erdgas | N52: Erdgas, Erdölgas | O52: Erdgas | P52: Ja | Q52: Gegendruckmaschine mit Entnahme | R52: Erdgas | S52: GuD | T52: 0.4 | U52: eigene Annahme | V52: 7.18 | W52: 6.71 | X52: =(1-VLOOKUP(S52,Start!$H$33:$I$40,2,FALSE)/100)*W52 -> 5.8377 | Y52: =VLOOKUP(R52,Start!$C$9:$D$15,2,FALSE)+VLOOKUP(R52,Start!$C$23:$D$29,2,FALSE) -> 128.9 | Z52: =(Y52/T52)+Start!$D$19*(VLOOKUP(R52,Start!$M$33:$N$39,2,FALSE)/T52)+VLOOKUP(S52,Start!$C$33:$D$40,2,FALSE) -> 364.537925
C53: Ja | D53: SEE901246020381 | E53: BNA1927 | F53: TEAG Thüringer Energie AG | G53: Gasmotor Bad Salzungen | H53: 36433 | I53: Bad Salzungen | J53: Langenfelder Straße 82 | K53: Thüringen | L53: 2018-12-04 | M53: Erdgas | N53: Erdgas, Erdölgas | O53: Erdgas | P53: Ja | Q53: Verbrennungsmotor | R53: Erdgas | S53: GuD | T53: 0.4048 | U53: OPSD (2020) | V53: 10.051 | W53: 10.003 | X53: =(1-VLOOKUP(S53,Start!$H$33:$I$40,2,FALSE)/100)*W53 -> 8.70261 | Y53: =VLOOKUP(R53,Start!$C$9:$D$15,2,FALSE)+VLOOKUP(R53,Start!$C$23:$D$29,2,FALSE) -> 128.9 | Z53: =(Y53/T53)+Start!$D$19*(VLOOKUP(R53,Start!$M$33:$N$39,2,FALSE)/T53)+VLOOKUP(S53,Start!$C$33:$D$40,2,FALSE) -> 360.2331275
C54: Ja | D54: SEE901410470721 | E54: BNA0207 | F54: DREWAG - Stadtwerke Dresden GmbH | G54: GT3 | H54: 1159 | I54: Dresden | J54: Oederaner Straße 21 | K54: Sachsen | L54: 1995-03-29 | M54: Erdgas | N54: Erdgas, Erdölgas | O54: Erdgas | P54: Ja | Q54: Gasturbinen mit nachgeschalteter Dampfturbine | R54: Erdgas | S54: GuD | T54: 0.5175 | U54: OPSD (2020) | V54: 65 | W54: 62 | X54: =(1-VLOOKUP(S54,Start!$H$33:$I$40,2,FALSE)/100)*W54 -> 53.94 | Y54: =VLOOKUP(R54,Start!$C$9:$D$15,2,FALSE)+VLOOKUP(R54,Start!$C$23:$D$29,2,FALSE) -> 128.9 | Z54: =(Y54/T54)+Start!$D$19*(VLOOKUP(R54,Start!$M$33:$N$39,2,FALSE)/T54)+VLOOKUP(S54,Start!$C$33:$D$40,2,FALSE) -> 282.1090242
C55: Ja | D55: SEE901516014812 | F55: Smurfit Kappa Herzberg Solid Board GmbH | G55: Dampfturbine 1 | H55: 37412 | I55: Herzberg | J55: Andreasberger Straße 1 | K55: Niedersachsen | L55: 1955-01-01 | M55: Erdgas | N55: Erdgas, Erdölgas | O55: Erdgas | P55: Ja | Q55: Gegendruckmaschine ohne Entnahme | R55: Erdgas | S55: GuD | T55: 0.35 | U55: eigene Annahme | V55: 2.84 | W55: 2.64 | X55: =(1-VLOOKUP(S55,Start!$H$33:$I$40,2,FALSE)/100)*W55 -> 2.2968 | Y55: =VLOOKUP(R55,Start!$C$9:$D$15,2,FALSE)+VLOOKUP(R55,Start!$C$23:$D$29,2,FALSE) -> 128.9 | Z55: =(Y55/T55)+Start!$D$19*(VLOOKUP(R55,Start!$M$33:$N$39,2,FALSE)/T55)+VLOOKUP(S55,Start!$C$33:$D$40,2,FALSE) -> 416.4004857
C56: Ja | D56: SEE901789931854 | E56: BNA0683c | F56: SWM Services GmbH | G56: SWM HKW Sued GuD1 GT2 | H56: 81371 | I56: München | J56: Schäftlarnstraße 15 | K56: Bayern | L56: 1980-10-01 | M56: Erdgas | N56: Erdgas, Erdölgas | O56: Erdgas | P56: Ja | Q56: Gasturbinen mit Abhitzekessel | R56: Erdgas | S56: GuD | T56: 0.45 | U56: OPSD (2020) | V56: 98.9 | W56: 97.9 | X56: =(1-VLOOKUP(S56,Start!$H$33:$I$40,2,FALSE)/100)*W56 -> 85.173 | Y56: =VLOOKUP(R56,Start!$C$9:$D$15,2,FALSE)+VLOOKUP(R56,Start!$C$23:$D$29,2,FALSE) -> 128.9 | Z56: =(Y56/T56)+Start!$D$19*(VLOOKUP(R56,Start!$M$33:$N$39,2,FALSE)/T56)+VLOOKUP(S56,Start!$C$33:$D$40,2,FALSE) -> 324.2003778
C57: Ja | D57: SEE901884895389 | E57: BNA1315 | F57: Universitätsklinikum Freiburg | G57: Dampfturbine 1 | H57: 79106 | I57: Freiburg | J57: Hartmannstraße 1 | K57: Baden-Württemberg | L57: 2012-12-01 | M57: Erdgas | N57: Erdgas, Erdölgas | O57: Erdgas | P57: Ja | Q57: Gegendruckmaschine mit Entnahme | R57: Erdgas | S57: GuD | T57: 0.3861 | U57: OPSD (2020) | V57: 12.988 | W57: 12.8 | X57: =(1-VLOOKUP(S57,Start!$H$33:$I$40,2,FALSE)/100)*W57 -> 11.136 | Y57: =VLOOKUP(R57,Start!$C$9:$D$15,2,FALSE)+VLOOKUP(R57,Start!$C$23:$D$29,2,FALSE) -> 128.9 | Z57: =(Y57/T57)+Start!$D$19*(VLOOKUP(R57,Start!$M$33:$N$39,2,FALSE)/T57)+VLOOKUP(S57,Start!$C$33:$D$40,2,FALSE) -> 377.6076664
C58: Ja | D58: SEE901925227438 | E58: BNA0386 | F58: Mohn Media Mohndruck GmbH | G58: DT | H58: 33332 | I58: Gütersloh | J58: Carl-Bertelsmann-Straße 161 | K58: Nordrhein-Westfalen | L58: 1994-03-28 | M58: Wärme | O58: Erdgas | P58: Ja | Q58: Gegendruckmaschine ohne Entnahme | R58: Erdgas | S58: GuD | T58: 0.3784 | U58: OPSD (2020) | V58: 6.46 | W58: 6.358 | X58: =(1-VLOOKUP(S58,Start!$H$33:$I$40,2,FALSE)/100)*W58 -> 5.53146 | Y58: =VLOOKUP(R58,Start!$C$9:$D$15,2,FALSE)+VLOOKUP(R58,Start!$C$23:$D$29,2,FALSE) -> 128.9 | Z58: =(Y58/T58)+Start!$D$19*(VLOOKUP(R58,Start!$M$33:$N$39,2,FALSE)/T58)+VLOOKUP(S58,Start!$C$33:$D$40,2,FALSE) -> 385.2610201
C59: Ja | D59: SEE901927360195 | E59: BNA1295 | F59: AVA Abfallverwertung Augsburg Kommunalunternehmen | G59: VT NSD | H59: 86167 | I59: Augsburg | J59: Am Mittleren Moos 60 | K59: Bayern | L59: 1994-09-16 | M59: Mineralölprodukte | O59: Mineralölprodukte | P59: Ja | Q59: Verbrennungsmotor | R59: Öl | S59: Öl | T59: 0.33 | U59: OPSD (2020) | V59: 3.9 | W59: 2.34 | X59: =(1-VLOOKUP(S59,Start!$H$33:$I$40,2,FALSE)/100)*W59 -> 1.989 | Y59: =VLOOKUP(R59,Start!$C$9:$D$15,2,FALSE)+VLOOKUP(R59,Start!$C$23:$D$29,2,FALSE) -> 58.77 | Z59: =(Y59/T59)+Start!$D$19*(VLOOKUP(R59,Start!$M$33:$N$39,2,FALSE)/T59)+VLOOKUP(S59,Start!$C$33:$D$40,2,FALSE) -> 247.9624242
C60: Ja | D60: SEE901935169124 | F60: Salzgitter Flachstahl GmbH | G60: SSD2 | H60: 38239 | I60: Salzgitter | J60: Eisenhüttenstraße 99 | K60: Niedersachsen | L60: 2013-11-12 | M60: Mineralölprodukte | N60: Heizöl, leicht | O60: Mineralölprodukte | P60: Nein | Q60: Verbrennungsmotor | R60: Öl | S60: Öl | T60: 0.4 | U60: eigene Annahme | V60: 2.48 | W60: 2.478 | X60: =(1-VLOOKUP(S60,Start!$H$33:$I$40,2,FALSE)/100)*W60 -> 2.1063 | Y60: =VLOOKUP(R60,Start!$C$9:$D$15,2,FALSE)+VLOOKUP(R60,Start!$C$23:$D$29,2,FALSE) -> 58.77 | Z60: =(Y60/T60)+Start!$D$19*(VLOOKUP(R60,Start!$M$33:$N$39,2,FALSE)/T60)+VLOOKUP(S60,Start!$C$33:$D$40,2,FALSE) -> 204.744
C61: Ja | D61: SEE902096864651 | E61: BNA0516 | F61: Mineraloelraffinerie Oberrhein | G61: Maschine 1 | H61: 76187 | I61: Karlsruhe | J61: Nördliche Raffineriestraße 1 | K61: Baden-Württemberg | L61: 1995-06-17 | M61: Mineralölprodukte | N61: Raffineriegas | O61: Mineralölprodukte | P61: Ja | Q61: Kondensationsmaschine mit Entnahme | R61: Öl | S61: Öl | T61: 0.3795 | U61: OPSD (2020) | V61: 12.5 | W61: 11.3 | X61: =(1-VLOOKUP(S61,Start!$H$33:$I$40,2,FALSE)/100)*W61 -> 9.605 | Y61: =VLOOKUP(R61,Start!$C$9:$D$15,2,FALSE)+VLOOKUP(R61,Start!$C$23:$D$29,2,FALSE) -> 58.77 | Z61: =(Y61/T61)+Start!$D$19*(VLOOKUP(R61,Start!$M$33:$N$39,2,FALSE)/T61)+VLOOKUP(S61,Start!$C$33:$D$40,2,FALSE) -> 215.7499341
C62: Ja | D62: SEE902114639810 | F62: envia THERM GmbH | G62: Bitterfeld BHKW | H62: 6749 | I62: Bitterfeld-Wolfen | J62: Parsevalstraße 3 B | K62: Sachsen-Anhalt | L62: 2016-04-11 | M62: Erdgas | N62: Erdgas, Erdölgas | O62: Erdgas | P62: Ja | Q62: Verbrennungsmotor | R62: Erdgas | S62: GuD | T62: 0.4 | U62: eigene Annahme | V62: 2.478 | W62: 2 | X62: =(1-VLOOKUP(S62,Start!$H$33:$I$40,2,FALSE)/100)*W62 -> 1.74 | Y62: =VLOOKUP(R62,Start!$C$9:$D$15,2,FALSE)+VLOOKUP(R62,Start!$C$23:$D$29,2,FALSE) -> 128.9 | Z62: =(Y62/T62)+Start!$D$19*(VLOOKUP(R62,Start!$M$33:$N$39,2,FALSE)/T62)+VLOOKUP(S62,Start!$C$33:$D$40,2,FALSE) -> 364.537925
C63: Ja | D63: SEE902267138956 | E63: BNA0130 | F63: Uniper Kraftwerke GmbH | G63: Kirchmöser GT 2 | H63: 14774 | I63: Brandenburg | J63: Bahntechnikerring 17 | K63: Brandenburg | L63: 1994-01-01 | M63: Erdgas | N63: Erdgas, Erdölgas | O63: Erdgas | P63: Nein | Q63: Gasturbinen mit nachgeschalteter Dampfturbine | R63: Erdgas | S63: GuD | T63: 0.513 | U63: OPSD (2020) | V63: 63 | W63: 60 | X63: =(1-VLOOKUP(S63,Start!$H$33:$I$40,2,FALSE)/100)*W63 -> 52.2 | Y63: =VLOOKUP(R63,Start!$C$9:$D$15,2,FALSE)+VLOOKUP(R63,Start!$C$23:$D$29,2,FALSE) -> 128.9 | Z63: =(Y63/T63)+Start!$D$19*(VLOOKUP(R63,Start!$M$33:$N$39,2,FALSE)/T63)+VLOOKUP(S63,Start!$C$33:$D$40,2,FALSE) -> 284.5705068
C64: Ja | D64: SEE902329484380 | F64: Südzucker AG | G64: Dampfturbine I Südzucker Wabern | H64: 34590 | I64: Wabern | J64: Homberger Straße 1 | K64: Hessen | L64: 1976-10-08 | M64: Wärme | N64: Prozessdampf | O64: Wärme | P64: Ja | Q64: Gegendruckmaschine ohne Entnahme | R64: Sonstige | S64: Sonstige | T64: 0.35 | U64: eigene Annahme | V64: 12.54 | W64: 11.8754 | X64: =(1-VLOOKUP(S64,Start!$H$33:$I$40,2,FALSE)/100)*W64 -> 10.09409 | Y64: =VLOOKUP(R64,Start!$C$9:$D$15,2,FALSE)+VLOOKUP(R64,Start!$C$23:$D$29,2,FALSE) -> 58.47 | Z64: =(Y64/T64)+Start!$D$19*(VLOOKUP(R64,Start!$M$33:$N$39,2,FALSE)/T64)+VLOOKUP(S64,Start!$C$33:$D$40,2,FALSE) -> 217.6868
C65: Ja | D65: SEE902418917676 | E65: BNA1336 | F65: Henkel AG & Co. KGaA | G65: Z39NEA | H65: 40589 | I65: Düsseldorf | J65: Henkelstraße 67 | K65: Nordrhein-Westfalen | L65: 2004-01-01 | M65: Mineralölprodukte | N65: Heizöl, leicht | O65: Mineralölprodukte | P65: Nein | Q65: Verbrennungsmotor | R65: Öl | S65: Öl | T65: 0.442 | U65: Annahme basierend auf DIW (2014) | V65: 1.4 | W65: 1.4 | X65: =(1-VLOOKUP(S65,Start!$H$33:$I$40,2,FALSE)/100)*W65 -> 1.19 | Y65: =VLOOKUP(R65,Start!$C$9:$D$15,2,FALSE)+VLOOKUP(R65,Start!$C$23:$D$29,2,FALSE) -> 58.77 | Z65: =(Y65/T65)+Start!$D$19*(VLOOKUP(R65,Start!$M$33:$N$39,2,FALSE)/T65)+VLOOKUP(S65,Start!$C$33:$D$40,2,FALSE) -> 185.3837104
C66: Ja | D66: SEE902686859227 | E66: BNA1500 | F66: Nordzucker AG Werk Uelzen | G66: Generator 2 | H66: 29525 | I66: Uelzen | J66: An der Zuckerfabrik 1 | K66: Niedersachsen | L66: 1965-09-01 | M66: Steinkohle | N66: Steinkohlen | O66: Steinkohle | P66: Ja | Q66: Gegendruckmaschine mit Entnahme | R66: Steinkohle | S66: Steinkohle | T66: 0.3375 | U66: OPSD (2020) | V66: 17.1 | W66: 14.9 | X66: =(1-VLOOKUP(S66,Start!$H$33:$I$40,2,FALSE)/100)*W66 -> 11.92 | Y66: =VLOOKUP(R66,Start!$C$9:$D$15,2,FALSE)+VLOOKUP(R66,Start!$C$23:$D$29,2,FALSE) -> 42.45 | Z66: =(Y66/T66)+Start!$D$19*(VLOOKUP(R66,Start!$M$33:$N$39,2,FALSE)/T66)+VLOOKUP(S66,Start!$C$33:$D$40,2,FALSE) -> 208.1275259
C67: Ja | D67: SEE902725989434 | E67: BNA1861 | F67: BMW AG Niederlassung Stuttgart | G67: Regensburg KWK 4 | H67: 93055 | I67: Regensburg | J67: Herbert-Quandt-Allee 1 | K67: Bayern | L67: 2012-10-29 | M67: Erdgas | N67: Erdgas, Erdölgas | O67: Erdgas | P67: Ja | Q67: Verbrennungsmotor | R67: Erdgas | S67: GuD | T67: 0.3982 | U67: OPSD (2020) | V67: 2.678 | W67: 2.624 | X67: =(1-VLOOKUP(S67,Start!$H$33:$I$40,2,FALSE)/100)*W67 -> 2.28288 | Y67: =VLOOKUP(R67,Start!$C$9:$D$15,2,FALSE)+VLOOKUP(R67,Start!$C$23:$D$29,2,FALSE) -> 128.9 | Z67: =(Y67/T67)+Start!$D$19*(VLOOKUP(R67,Start!$M$33:$N$39,2,FALSE)/T67)+VLOOKUP(S67,Start!$C$33:$D$40,2,FALSE) -> 366.1789804
C68: Ja | D68: SEE902796244388 | E68: BNA0012b | F68: Sappi Alfeld | G68: Turbine 4 | H68: 31061 | I68: Alfeld | J68: Mühlenmasch 1 | K68: Niedersachsen | L68: 1970-09-21 | M68: Erdgas | N68: Erdgas, Erdölgas | O68: Erdgas | P68: Ja | Q68: Gegendruckmaschine mit Entnahme | R68: Erdgas | S68: GuD | T68: 0.3267 | U68: OPSD (2020) | V68: 14 | W68: 11 | X68: =(1-VLOOKUP(S68,Start!$H$33:$I$40,2,FALSE)/100)*W68 -> 9.57 | Y68: =VLOOKUP(R68,Start!$C$9:$D$15,2,FALSE)+VLOOKUP(R68,Start!$C$23:$D$29,2,FALSE) -> 128.9 | Z68: =(Y68/T68)+Start!$D$19*(VLOOKUP(R68,Start!$M$33:$N$39,2,FALSE)/T68)+VLOOKUP(S68,Start!$C$33:$D$40,2,FALSE) -> 445.9908785
C69: Ja | D69: SEE902840312209 | E69: BNA0616b | F69: BASF SE | G69: S300 NKT | H69: 67063 | I69: Ludwigshafen | J69: Carl-Bosch-Straße 38 | K69: Rheinland-Pfalz | L69: 1964-05-11 | M69: Wärme | N69: Prozessdampf | O69: Sonstige Energieträger (nicht erneuerbar) | P69: Ja | Q69: Kondensationsmaschine mit Entnahme | R69: Sonstige | S69: Sonstige | T69: 0.345 | U69: Annahme basierend auf DIW (2014) | V69: 40 | W69: 39 | X69: =(1-VLOOKUP(S69,Start!$H$33:$I$40,2,FALSE)/100)*W69 -> 33.15 | Y69: =VLOOKUP(R69,Start!$C$9:$D$15,2,FALSE)+VLOOKUP(R69,Start!$C$23:$D$29,2,FALSE) -> 58.47 | Z69: =(Y69/T69)+Start!$D$19*(VLOOKUP(R69,Start!$M$33:$N$39,2,FALSE)/T69)+VLOOKUP(S69,Start!$C$33:$D$40,2,FALSE) -> 220.8271884
C70: Ja | D70: SEE902845037787 | E70: BNA1946 | F70: BMW AG Niederlassung Stuttgart | G70: Werk 1.1 KWK 3 | H70: 80809 | I70: München | J70: Lerchenauer Straße 76 | K70: Bayern | L70: 2019-02-20 | M70: Erdgas | N70: Erdgas, Erdölgas | O70: Erdgas | P70: Ja | Q70: Verbrennungsmotor | R70: Erdgas | S70: GuD | T70: 0.4059 | U70: OPSD (2020) | V70: 4.61 | W70: 4.5 | X70: =(1-VLOOKUP(S70,Start!$H$33:$I$40,2,FALSE)/100)*W70 -> 3.915 | Y70: =VLOOKUP(R70,Start!$C$9:$D$15,2,FALSE)+VLOOKUP(R70,Start!$C$23:$D$29,2,FALSE) -> 128.9 | Z70: =(Y70/T70)+Start!$D$19*(VLOOKUP(R70,Start!$M$33:$N$39,2,FALSE)/T70)+VLOOKUP(S70,Start!$C$33:$D$40,2,FALSE) -> 359.260951
C71: Ja | D71: SEE903050015065 | F71: Hamburger Energiewerke GmbH | G71: HW Hafen | H71: 20457 | I71: Hamburg | J71: Am Dalmannkai 1 | K71: Hamburg | L71: 2005-09-14 | M71: Erdgas | N71: Erdgas, Erdölgas | O71: Erdgas | P71: Ja | Q71: Gasturbinen mit Abhitzekessel | R71: Erdgas | S71: GuD | T71: 0.4 | U71: eigene Annahme | V71: 2 | W71: 1.915 | X71: =(1-VLOOKUP(S71,Start!$H$33:$I$40,2,FALSE)/100)*W71 -> 1.66605 | Y71: =VLOOKUP(R71,Start!$C$9:$D$15,2,FALSE)+VLOOKUP(R71,Start!$C$23:$D$29,2,FALSE) -> 128.9 | Z71: =(Y71/T71)+Start!$D$19*(VLOOKUP(R71,Start!$M$33:$N$39,2,FALSE)/T71)+VLOOKUP(S71,Start!$C$33:$D$40,2,FALSE) -> 364.537925
C72: Ja | D72: SEE903050601572 | E72: BNA0172b | F72: Wacker Chemie AG | G72: Turbine/Generator 9 | H72: 84489 | I72: Burghausen | J72: Johannes-Hess-Straße 24 | K72: Bayern | L72: 1987-01-01 | M72: Erdgas | N72: Erdgas, Erdölgas | O72: Erdgas | P72: Ja | Q72: Gegendruckmaschine mit Entnahme | R72: Erdgas | S72: GuD | T72: 0.3619 | U72: OPSD (2020) | V72: 13.6 | W72: 13.5 | X72: =(1-VLOOKUP(S72,Start!$H$33:$I$40,2,FALSE)/100)*W72 -> 11.745 | Y72: =VLOOKUP(R72,Start!$C$9:$D$15,2,FALSE)+VLOOKUP(R72,Start!$C$23:$D$29,2,FALSE) -> 128.9 | Z72: =(Y72/T72)+Start!$D$19*(VLOOKUP(R72,Start!$M$33:$N$39,2,FALSE)/T72)+VLOOKUP(S72,Start!$C$33:$D$40,2,FALSE) -> 402.7577231
C73: Ja | D73: SEE903153060207 | E73: BNA0293 | F73: Cerdia Produktions GmbH | G73: Dampfturbine9 | H73: 79108 | I73: Freiburg | J73: Engesserstraße 8 | K73: Baden-Württemberg | L73: 2020-04-18 | M73: Erdgas | N73: Erdgas, Erdölgas | O73: Erdgas | P73: Ja | Q73: Gegendruckmaschine mit Entnahme | R73: Erdgas | S73: GuD | T73: 0.531 | U73: OPSD (2020) | V73: 19.017 | W73: 18.339 | X73: =(1-VLOOKUP(S73,Start!$H$33:$I$40,2,FALSE)/100)*W73 -> 15.95493 | Y73: =VLOOKUP(R73,Start!$C$9:$D$15,2,FALSE)+VLOOKUP(R73,Start!$C$23:$D$29,2,FALSE) -> 128.9 | Z73: =(Y73/T73)+Start!$D$19*(VLOOKUP(R73,Start!$M$33:$N$39,2,FALSE)/T73)+VLOOKUP(S73,Start!$C$33:$D$40,2,FALSE) -> 274.9748964
C74: Ja | D74: SEE903406002589 | E74: BNA1396 | F74: GLOBALFOUNDRIES Dresden Module Two LLC & Co. KG | G74: Gasmotoren-Blockheizkraftwerk I (Generator 5) | H74: 1468 | I74: Moritzburg | J74: Ringstraße 3 | K74: Sachsen | L74: 1998-09-01 | M74: Erdgas | N74: Erdgas, Erdölgas | O74: Erdgas | P74: Ja | Q74: Verbrennungsmotor | R74: Erdgas | S74: GuD | T74: 0.3828 | U74: OPSD (2020) | V74: 3.884 | W74: 3.879 | X74: =(1-VLOOKUP(S74,Start!$H$33:$I$40,2,FALSE)/100)*W74 -> 3.37473 | Y74: =VLOOKUP(R74,Start!$C$9:$D$15,2,FALSE)+VLOOKUP(R74,Start!$C$23:$D$29,2,FALSE) -> 128.9 | Z74: =(Y74/T74)+Start!$D$19*(VLOOKUP(R74,Start!$M$33:$N$39,2,FALSE)/T74)+VLOOKUP(S74,Start!$C$33:$D$40,2,FALSE) -> 380.8499739
C75: Ja | D75: SEE903508467828 | E75: BNA0832 | F75: FairEnergie GmbH | G75: BHKW Hauffstraße | H75: 72762 | I75: Reutlingen | J75: Hauffstraße 89 | K75: Baden-Württemberg | L75: 2011-02-21 | M75: Erdgas | N75: Erdgas, Erdölgas | O75: Erdgas | P75: Ja | Q75: Verbrennungsmotor | R75: Erdgas | S75: GuD | T75: 0.4574 | U75: OPSD (2020) | V75: 2.016 | W75: 1.968 | X75: =(1-VLOOKUP(S75,Start!$H$33:$I$40,2,FALSE)/100)*W75 -> 1.71216 | Y75: =VLOOKUP(R75,Start!$C$9:$D$15,2,FALSE)+VLOOKUP(R75,Start!$C$23:$D$29,2,FALSE) -> 128.9 | Z75: =(Y75/T75)+Start!$D$19*(VLOOKUP(R75,Start!$M$33:$N$39,2,FALSE)/T75)+VLOOKUP(S75,Start!$C$33:$D$40,2,FALSE) -> 318.9796021
C76: Ja | D76: SEE903702464654 | E76: BNA1335a | F76: Papier- u. Kartonfabrik Varel GmbH & Co. KG | G76: PKV Dampfsammelschienen-KWK-Anlage Generator / Turbine GT 5 | H76: 26316 | I76: Varel | J76: Dangaster Straße 38 | K76: Niedersachsen | L76: 1989-01-01 | M76: Erdgas | N76: Erdgas, Erdölgas | O76: Erdgas | P76: Ja | Q76: Gasturbinen mit nachgeschalteter Dampfturbine | R76: Erdgas | S76: GuD | T76: 0.3729 | U76: OPSD (2020) | V76: 5.4 | W76: 5.238 | X76: =(1-VLOOKUP(S76,Start!$H$33:$I$40,2,FALSE)/100)*W76 -> 4.55706 | Y76: =VLOOKUP(R76,Start!$C$9:$D$15,2,FALSE)+VLOOKUP(R76,Start!$C$23:$D$29,2,FALSE) -> 128.9 | Z76: =(Y76/T76)+Start!$D$19*(VLOOKUP(R76,Start!$M$33:$N$39,2,FALSE)/T76)+VLOOKUP(S76,Start!$C$33:$D$40,2,FALSE) -> 390.9212121
C77: Ja | D77: SEE903983424590 | E77: BNA0548b | F77: Statkraft Markets GmbH | G77: Kraftwerk Knapsack II | H77: 50354 | I77: Hürth | J77: Industriestraße 300 | K77: Nordrhein-Westfalen | L77: 2013-06-01 | M77: Erdgas | N77: Erdgas, Erdölgas | O77: Erdgas | P77: Nein | Q77: Gasturbinen mit Abhitzekessel | R77: Erdgas | S77: GuD | T77: 0.592 | U77: OPSD (2020) | V77: 450 | W77: 430 | X77: =(1-VLOOKUP(S77,Start!$H$33:$I$40,2,FALSE)/100)*W77 -> 374.1 | Y77: =VLOOKUP(R77,Start!$C$9:$D$15,2,FALSE)+VLOOKUP(R77,Start!$C$23:$D$29,2,FALSE) -> 128.9 | Z77: =(Y77/T77)+Start!$D$19*(VLOOKUP(R77,Start!$M$33:$N$39,2,FALSE)/T77)+VLOOKUP(S77,Start!$C$33:$D$40,2,FALSE) -> 246.7958953
C78: Ja | D78: SEE904017020009 | F78: ROGESA Roheisengesellschaft Saar mbH | G78: ET HO5 | H78: 66763 | I78: Dillingen | J78: Werkstraße 1 | K78: Saarland | L78: 1984-01-01 | M78: Druck aus Gasleitungen | O78: Sonstige Energieträger (nicht erneuerbar) | P78: Nein | Q78: Sonstige | R78: Sonstige | S78: Sonstige | T78: 0.35 | U78: eigene Annahme | V78: 9.52 | W78: 9.52 | X78: =(1-VLOOKUP(S78,Start!$H$33:$I$40,2,FALSE)/100)*W78 -> 8.092 | Y78: =VLOOKUP(R78,Start!$C$9:$D$15,2,FALSE)+VLOOKUP(R78,Start!$C$23:$D$29,2,FALSE) -> 58.47 | Z78: =(Y78/T78)+Start!$D$19*(VLOOKUP(R78,Start!$M$33:$N$39,2,FALSE)/T78)+VLOOKUP(S78,Start!$C$33:$D$40,2,FALSE) -> 217.6868
C79: Ja | D79: SEE904076796426 | E79: BNA1945 | F79: Stadtwerke Kiel AG | G79: Küstenkraftwerk K.I.E.L Motor 4 | H79: 24149 | I79: Kiel | J79: Hasselfelde 30 | K79: Schleswig-Holstein | L79: 2018-11-23 | M79: Erdgas | N79: Erdgas, Erdölgas | O79: Erdgas | P79: Ja | Q79: Verbrennungsmotor | R79: Erdgas | S79: GuD | T79: 0.4059 | U79: OPSD (2020) | V79: 9.571 | W79: 9.456 | X79: =(1-VLOOKUP(S79,Start!$H$33:$I$40,2,FALSE)/100)*W79 -> 8.22672 | Y79: =VLOOKUP(R79,Start!$C$9:$D$15,2,FALSE)+VLOOKUP(R79,Start!$C$23:$D$29,2,FALSE) -> 128.9 | Z79: =(Y79/T79)+Start!$D$19*(VLOOKUP(R79,Start!$M$33:$N$39,2,FALSE)/T79)+VLOOKUP(S79,Start!$C$33:$D$40,2,FALSE) -> 359.260951
C80: Ja | D80: SEE904161631090 | E80: BNA0018 | F80: EnBW Energie Baden-Württemberg AG | G80: Heizkraftwerk Altbach/Deizisau GT C | H80: 73776 | I80: Altbach | J80: Industriestraße 11 | K80: Baden-Württemberg | L80: 1975-09-01 | M80: Erdgas | N80: Erdgas, Erdölgas | O80: Erdgas | P80: Nein | Q80: Gasturbinen ohne Abhitzekessel | R80: Erdgas | S80: Gasturbine | T80: 0.315 | U80: OPSD (2020) | V80: 87 | W80: 81 | X80: =(1-VLOOKUP(S80,Start!$H$33:$I$40,2,FALSE)/100)*W80 -> 70.47 | Y80: =VLOOKUP(R80,Start!$C$9:$D$15,2,FALSE)+VLOOKUP(R80,Start!$C$23:$D$29,2,FALSE) -> 128.9 | Z80: =(Y80/T80)+Start!$D$19*(VLOOKUP(R80,Start!$M$33:$N$39,2,FALSE)/T80)+VLOOKUP(S80,Start!$C$33:$D$40,2,FALSE) -> 462.0005397
C81: Ja | D81: SEE904165703137 | E81: BNA0893 | F81: BASF Schwarzheide GmbH | G81: GT1 | H81: 1987 | I81: Schwarzheide | J81: Schipkauer Straße 1 | K81: Brandenburg | L81: 1994-11-28 | M81: Erdgas | N81: Erdgas, Erdölgas | O81: Erdgas | P81: Ja | Q81: Gasturbinen mit nachgeschalteter Dampfturbine | R81: Erdgas | S81: GuD | T81: 0.513 | U81: OPSD (2020) | V81: 41.5 | W81: 41.173 | X81: =(1-VLOOKUP(S81,Start!$H$33:$I$40,2,FALSE)/100)*W81 -> 35.82051 | Y81: =VLOOKUP(R81,Start!$C$9:$D$15,2,FALSE)+VLOOKUP(R81,Start!$C$23:$D$29,2,FALSE) -> 128.9 | Z81: =(Y81/T81)+Start!$D$19*(VLOOKUP(R81,Start!$M$33:$N$39,2,FALSE)/T81)+VLOOKUP(S81,Start!$C$33:$D$40,2,FALSE) -> 284.5705068
C82: Ja | D82: SEE904364883227 | E82: BNA1447b | F82: Röhm GmbH | G82: KonTu | H82: 67547 | I82: Worms | J82: Im Pfaffenwinkel 6 | K82: Rheinland-Pfalz | L82: 2012-03-12 | M82: Erdgas | N82: Erdgas, Erdölgas | O82: Erdgas | P82: Nein | Q82: Kondensationsmaschine ohne Entnahme | R82: Erdgas | S82: GuD | T82: 0.33 | U82: eigene Annahme | V82: 7.1 | W82: 6.9 | X82: =(1-VLOOKUP(S82,Start!$H$33:$I$40,2,FALSE)/100)*W82 -> 6.003 | Y82: =VLOOKUP(R82,Start!$C$9:$D$15,2,FALSE)+VLOOKUP(R82,Start!$C$23:$D$29,2,FALSE) -> 128.9 | Z82: =(Y82/T82)+Start!$D$19*(VLOOKUP(R82,Start!$M$33:$N$39,2,FALSE)/T82)+VLOOKUP(S82,Start!$C$33:$D$40,2,FALSE) -> 441.5459697
C83: Ja | D83: SEE904604163027 | E83: BNA0519 | F83: RWE Generation SE | G83: Karnap B | H83: 45329 | I83: Essen | J83: Arenbergstr. 45 | K83: Nordrhein-Westfalen | L83: 1987-02-14 | M83: nicht biogener Abfall | N83: nicht biogener Abfall (Hausmüll, Siedlungsabfälle) | O83: Abfall | P83: Nein | Q83: Kondensationsmaschine mit Entnahme | R83: Abfall | S83: Abfall | T83: 0.33 | U83: OPSD (2020) | V83: 48 | W83: 38 | X83: =(1-VLOOKUP(S83,Start!$H$33:$I$40,2,FALSE)/100)*W83 -> 32.3 | Y83: =VLOOKUP(R83,Start!$C$9:$D$15,2,FALSE)+VLOOKUP(R83,Start!$C$23:$D$29,2,FALSE) -> 0 | Z83: =(Y83/T83)+Start!$D$19*(VLOOKUP(R83,Start!$M$33:$N$39,2,FALSE)/T83)+VLOOKUP(S83,Start!$C$33:$D$40,2,FALSE) -> 1
C84: Ja | D84: SEE904662075126 | E84: BNA1556 | F84: Sachsenmilch Leppersdorf GmbH | G84: 7712MKA10-GT2 | H84: 1454 | I84: Wachau | J84: An den Breiten | K84: Sachsen | L84: 2014-05-14 | M84: Erdgas | N84: Erdgas, Erdölgas | O84: Erdgas | P84: Ja | Q84: Gasturbinen mit Abhitzekessel | R84: Erdgas | S84: GuD | T84: 0.456 | U84: Annahme basierend auf DIW (2014) | V84: 15.45 | W84: 14.885 | X84: =(1-VLOOKUP(S84,Start!$H$33:$I$40,2,FALSE)/100)*W84 -> 12.94995 | Y84: =VLOOKUP(R84,Start!$C$9:$D$15,2,FALSE)+VLOOKUP(R84,Start!$C$23:$D$29,2,FALSE) -> 128.9 | Z84: =(Y84/T84)+Start!$D$19*(VLOOKUP(R84,Start!$M$33:$N$39,2,FALSE)/T84)+VLOOKUP(S84,Start!$C$33:$D$40,2,FALSE) -> 319.9543202
C85: Ja | D85: SEE904748267797 | E85: BNA1925 | F85: ENGIE Deutschland AG | G85: 70001314.01 | H85: 7549 | I85: Gera | J85: Vogtlandstraße 11 | K85: Thüringen | L85: 2018-11-20 | M85: Erdgas | N85: Erdgas, Erdölgas | O85: Erdgas | P85: Ja | Q85: Verbrennungsmotor | R85: Erdgas | S85: GuD | T85: 0.4048 | U85: OPSD (2020) | V85: 4.404 | W85: 4.387 | X85: =(1-VLOOKUP(S85,Start!$H$33:$I$40,2,FALSE)/100)*W85 -> 3.81669 | Y85: =VLOOKUP(R85,Start!$C$9:$D$15,2,FALSE)+VLOOKUP(R85,Start!$C$23:$D$29,2,FALSE) -> 128.9 | Z85: =(Y85/T85)+Start!$D$19*(VLOOKUP(R85,Start!$M$33:$N$39,2,FALSE)/T85)+VLOOKUP(S85,Start!$C$33:$D$40,2,FALSE) -> 360.2331275
C86: Ja | D86: SEE904819420762 | E86: BNA0073 | F86: Vattenfall Wärme Berlin AG | G86: HKW Mitte Gasturbine 1 | H86: 10179 | I86: Berlin | J86: Köpenicker Straße 60 | K86: Berlin | L86: 1997-09-08 | M86: Erdgas | N86: Erdgas, Erdölgas | O86: Erdgas | P86: Ja | Q86: Gasturbinen mit Abhitzekessel | R86: Erdgas | S86: GuD | T86: 0.49 | U86: OPSD (2020) | V86: 172 | W86: 164 | X86: =(1-VLOOKUP(S86,Start!$H$33:$I$40,2,FALSE)/100)*W86 -> 142.68 | Y86: =VLOOKUP(R86,Start!$C$9:$D$15,2,FALSE)+VLOOKUP(R86,Start!$C$23:$D$29,2,FALSE) -> 128.9 | Z86: =(Y86/T86)+Start!$D$19*(VLOOKUP(R86,Start!$M$33:$N$39,2,FALSE)/T86)+VLOOKUP(S86,Start!$C$33:$D$40,2,FALSE) -> 297.8574898
C87: Ja | D87: SEE904887370686 | E87: BNA0597 | F87: InfraLeuna GmbH | G87: DT1 | H87: 6237 | I87: Leuna | K87: Sachsen-Anhalt | L87: 1994-07-01 | M87: Wärme | N87: Prozessdampf | O87: Sonstige Energieträger (nicht erneuerbar) | P87: Ja | Q87: Gegendruckmaschine mit Entnahme | R87: Sonstige | S87: Sonstige | T87: 0.374 | U87: Annahme basierend auf DIW (2014) | V87: 9.1 | W87: 8.7 | X87: =(1-VLOOKUP(S87,Start!$H$33:$I$40,2,FALSE)/100)*W87 -> 7.395 | Y87: =VLOOKUP(R87,Start!$C$9:$D$15,2,FALSE)+VLOOKUP(R87,Start!$C$23:$D$29,2,FALSE) -> 58.47 | Z87: =(Y87/T87)+Start!$D$19*(VLOOKUP(R87,Start!$M$33:$N$39,2,FALSE)/T87)+VLOOKUP(S87,Start!$C$33:$D$40,2,FALSE) -> 203.7817647
C88: Ja | D88: SEE904968236689 | E88: BNA0147 | F88: Onyx Kraftwerk Farge GmbH & Co. KGaA | G88: Kraftwerk Farge | H88: 28777 | I88: Bremen | J88: Wilhelmshavener Straße 6 | K88: Bremen | L88: 1969-01-01 | M88: Steinkohle | N88: Steinkohlen | O88: Steinkohle | P88: Nein | Q88: Kondensationsmaschine ohne Entnahme | R88: Steinkohle | S88: Steinkohle | T88: 0.4425 | U88: OPSD (2020) | V88: 380 | W88: 350 | X88: =(1-VLOOKUP(S88,Start!$H$33:$I$40,2,FALSE)/100)*W88 -> 280 | Y88: =VLOOKUP(R88,Start!$C$9:$D$15,2,FALSE)+VLOOKUP(R88,Start!$C$23:$D$29,2,FALSE) -> 42.45 | Z88: =(Y88/T88)+Start!$D$19*(VLOOKUP(R88,Start!$M$33:$N$39,2,FALSE)/T88)+VLOOKUP(S88,Start!$C$33:$D$40,2,FALSE) -> 159.0498079
C89: Ja | D89: SEE904983741502 | E89: BNA0641a | F89: MVV Umwelt Asset GmbH | G89: MHKW Mannheim Generator T60 | H89: 68169 | I89: Mannheim | J89: Otto-Hahn-Straße 1 | K89: Baden-Württemberg | L89: 2010-01-07 | M89: nicht biogener Abfall | N89: nicht biogener Abfall (Hausmüll, Siedlungsabfälle) | O89: Abfall | P89: Ja | Q89: Kondensationsmaschine mit Entnahme | R89: Abfall | S89: Abfall | T89: 0.33 | U89: OPSD (2020) | V89: 27.6 | W89: 25.6 | X89: =(1-VLOOKUP(S89,Start!$H$33:$I$40,2,FALSE)/100)*W89 -> 21.76 | Y89: =VLOOKUP(R89,Start!$C$9:$D$15,2,FALSE)+VLOOKUP(R89,Start!$C$23:$D$29,2,FALSE) -> 0 | Z89: =(Y89/T89)+Start!$D$19*(VLOOKUP(R89,Start!$M$33:$N$39,2,FALSE)/T89)+VLOOKUP(S89,Start!$C$33:$D$40,2,FALSE) -> 1
C90: Ja | D90: SEE905023260298 | F90: Stadtwerke Rosenheim GmbH & Co. KG | G90: GM7 | H90: 83026 | I90: Rosenheim | J90: Oberaustraße 12 | K90: Bayern | L90: 2022-04-04 | M90: Erdgas | N90: Erdgas, Erdölgas | O90: Erdgas | P90: Ja | Q90: Verbrennungsmotor | R90: Erdgas | S90: GuD | T90: 0.47 | U90: Annahme basierend auf DIW (2014) | V90: 4.502 | W90: 4.457 | X90: =(1-VLOOKUP(S90,Start!$H$33:$I$40,2,FALSE)/100)*W90 -> 3.87759 | Y90: =VLOOKUP(R90,Start!$C$9:$D$15,2,FALSE)+VLOOKUP(R90,Start!$C$23:$D$29,2,FALSE) -> 128.9 | Z90: =(Y90/T90)+Start!$D$19*(VLOOKUP(R90,Start!$M$33:$N$39,2,FALSE)/T90)+VLOOKUP(S90,Start!$C$33:$D$40,2,FALSE) -> 310.4684468
C91: Ja | D91: SEE905035807238 | E91: BNA0130 | F91: Uniper Kraftwerke GmbH | G91: Kirchmöser GT 1 | H91: 14774 | I91: Brandenburg | J91: Bahntechnikerring 17 | K91: Brandenburg | L91: 1994-01-01 | M91: Erdgas | N91: Erdgas, Erdölgas | O91: Erdgas | P91: Nein | Q91: Gasturbinen mit nachgeschalteter Dampfturbine | R91: Erdgas | S91: GuD | T91: 0.513 | U91: OPSD (2020) | V91: 63 | W91: 60 | X91: =(1-VLOOKUP(S91,Start!$H$33:$I$40,2,FALSE)/100)*W91 -> 52.2 | Y91: =VLOOKUP(R91,Start!$C$9:$D$15,2,FALSE)+VLOOKUP(R91,Start!$C$23:$D$29,2,FALSE) -> 128.9 | Z91: =(Y91/T91)+Start!$D$19*(VLOOKUP(R91,Start!$M$33:$N$39,2,FALSE)/T91)+VLOOKUP(S91,Start!$C$33:$D$40,2,FALSE) -> 284.5705068
C92: Ja | D92: SEE905054165586 | E92: BNA1866 | F92: GLOBALFOUNDRIES Dresden Module One LLC & Co. KG | G92: Gasmotoren-Blockheizkraftwerk II (Generator 7) | H92: 1468 | I92: Moritzburg | J92: Ringstraße 3 | K92: Sachsen | L92: 2004-11-10 | M92: Erdgas | N92: Erdgas, Erdölgas | O92: Erdgas | P92: Ja | Q92: Verbrennungsmotor | R92: Erdgas | S92: GuD | T92: 0.442 | U92: Annahme basierend auf DIW (2014) | V92: 3.832 | W92: 3.772 | X92: =(1-VLOOKUP(S92,Start!$H$33:$I$40,2,FALSE)/100)*W92 -> 3.28164 | Y92: =VLOOKUP(R92,Start!$C$9:$D$15,2,FALSE)+VLOOKUP(R92,Start!$C$23:$D$29,2,FALSE) -> 128.9 | Z92: =(Y92/T92)+Start!$D$19*(VLOOKUP(R92,Start!$M$33:$N$39,2,FALSE)/T92)+VLOOKUP(S92,Start!$C$33:$D$40,2,FALSE) -> 330.0411086
C93: Ja | D93: SEE905192478234 | E93: BNA0548a | F93: Knapsack Power GmbH & Co. KG | G93: Knapsack I | H93: 50354 | I93: Hürth | J93: Industriestraße 300 | K93: Nordrhein-Westfalen | L93: 2007-10-17 | M93: Erdgas | N93: Erdgas, Erdölgas | O93: Erdgas | P93: Nein | Q93: Gasturbinen mit nachgeschalteter Dampfturbine | R93: Erdgas | S93: GuD | T93: 0.5715 | U93: OPSD (2020) | V93: 820 | W93: 800 | X93: =(1-VLOOKUP(S93,Start!$H$33:$I$40,2,FALSE)/100)*W93 -> 696 | Y93: =VLOOKUP(R93,Start!$C$9:$D$15,2,FALSE)+VLOOKUP(R93,Start!$C$23:$D$29,2,FALSE) -> 128.9 | Z93: =(Y93/T93)+Start!$D$19*(VLOOKUP(R93,Start!$M$33:$N$39,2,FALSE)/T93)+VLOOKUP(S93,Start!$C$33:$D$40,2,FALSE) -> 255.5947857
C94: Ja | D94: SEE905229048430 | E94: BNA0156b | F94: EGGER Holzwerkstoffe Brilon GmbH & Co. KG | G94: GT8 | H94: 59929 | I94: Brilon | J94: Im Kissen 19 | K94: Nordrhein-Westfalen | L94: 1998-06-01 | M94: Erdgas | N94: Erdgas, Erdölgas | O94: Erdgas | P94: Ja | Q94: Gasturbinen mit Abhitzekessel | R94: Erdgas | S94: GuD | T94: 0.3696 | U94: OPSD (2020) | V94: 5 | W94: 5 | X94: =(1-VLOOKUP(S94,Start!$H$33:$I$40,2,FALSE)/100)*W94 -> 4.35 | Y94: =VLOOKUP(R94,Start!$C$9:$D$15,2,FALSE)+VLOOKUP(R94,Start!$C$23:$D$29,2,FALSE) -> 128.9 | Z94: =(Y94/T94)+Start!$D$19*(VLOOKUP(R94,Start!$M$33:$N$39,2,FALSE)/T94)+VLOOKUP(S94,Start!$C$33:$D$40,2,FALSE) -> 394.3981872
C95: Ja | D95: SEE905257392765 | E95: BNA0025 | F95: Cosun Beet Company GmbH & Co. KG | G95: Kesselhaus | H95: 17389 | I95: Anklam | J95: Bluthsluster Straße 24 | K95: Mecklenburg-Vorpommern | L95: 1993-09-26 | M95: Erdgas | N95: Erdgas, Erdölgas | O95: Erdgas | P95: Ja | Q95: Gegendruckmaschine mit Entnahme | R95: Erdgas | S95: GuD | T95: 0.3773 | U95: OPSD (2020) | V95: 16 | W95: 15 | X95: =(1-VLOOKUP(S95,Start!$H$33:$I$40,2,FALSE)/100)*W95 -> 13.05 | Y95: =VLOOKUP(R95,Start!$C$9:$D$15,2,FALSE)+VLOOKUP(R95,Start!$C$23:$D$29,2,FALSE) -> 128.9 | Z95: =(Y95/T95)+Start!$D$19*(VLOOKUP(R95,Start!$M$33:$N$39,2,FALSE)/T95)+VLOOKUP(S95,Start!$C$33:$D$40,2,FALSE) -> 386.3798569
C96: Ja | D96: SEE905270326723 | E96: BNA0373 | F96: envia THERM GmbH | G96: Großkayna GT3 | H96: 6242 | I96: Großkayna | J96: Werkstraße 1 | K96: Sachsen-Anhalt | L96: 1994-01-17 | M96: Mineralölprodukte | N96: Heizöl, leicht | O96: Mineralölprodukte | P96: Nein | Q96: Gasturbinen ohne Abhitzekessel | R96: Öl | S96: Öl | T96: 0.3644 | U96: OPSD (2020) | V96: 45.625 | W96: 45.625 | X96: =(1-VLOOKUP(S96,Start!$H$33:$I$40,2,FALSE)/100)*W96 -> 38.78125 | Y96: =VLOOKUP(R96,Start!$C$9:$D$15,2,FALSE)+VLOOKUP(R96,Start!$C$23:$D$29,2,FALSE) -> 58.77 | Z96: =(Y96/T96)+Start!$D$19*(VLOOKUP(R96,Start!$M$33:$N$39,2,FALSE)/T96)+VLOOKUP(S96,Start!$C$33:$D$40,2,FALSE) -> 224.6487377
C97: Ja | D97: SEE905366486355 | E97: BNA0499 | F97: Infraserv GmbH & Co. Höchst KG | G97: IPH Strom VT4 | H97: 65929 | I97: Frankfurt | J97: Brüningstraße 50 | K97: Hessen | L97: 2021-09-15 | M97: Erdgas | N97: Erdgas, Erdölgas | O97: Erdgas | P97: Ja | Q97: Gegendruckmaschine ohne Entnahme | R97: Erdgas | S97: GuD | T97: 0.407 | U97: Annahme basierend auf DIW (2014) | V97: 27 | W97: 26.8 | X97: =(1-VLOOKUP(S97,Start!$H$33:$I$40,2,FALSE)/100)*W97 -> 23.316 | Y97: =VLOOKUP(R97,Start!$C$9:$D$15,2,FALSE)+VLOOKUP(R97,Start!$C$23:$D$29,2,FALSE) -> 128.9 | Z97: =(Y97/T97)+Start!$D$19*(VLOOKUP(R97,Start!$M$33:$N$39,2,FALSE)/T97)+VLOOKUP(S97,Start!$C$33:$D$40,2,FALSE) -> 358.2940295
C98: Ja | D98: SEE905714722562 | E98: BNA0936 | F98: EnBW Energie Baden-Württemberg AG | G98: Heizkraftwerk Stuttgart-Münster DT 15 | H98: 70376 | I98: Stuttgart | J98: Voltastraße 45 | K98: Baden-Württemberg | L98: 1984-01-01 | M98: Steinkohle | N98: Steinkohlen | O98: Steinkohle | P98: Ja | Q98: Gegendruckmaschine mit Entnahme | R98: Steinkohle | S98: Steinkohle | T98: 0.385 | U98: OPSD (2020) | V98: 47.2 | W98: 45 | X98: =(1-VLOOKUP(S98,Start!$H$33:$I$40,2,FALSE)/100)*W98 -> 36 | Y98: =VLOOKUP(R98,Start!$C$9:$D$15,2,FALSE)+VLOOKUP(R98,Start!$C$23:$D$29,2,FALSE) -> 42.45 | Z98: =(Y98/T98)+Start!$D$19*(VLOOKUP(R98,Start!$M$33:$N$39,2,FALSE)/T98)+VLOOKUP(S98,Start!$C$33:$D$40,2,FALSE) -> 182.6098442
C99: Ja | D99: SEE905714982744 | F99: GKS-Gemeinschaftskraftwerk Schweinfurt GmbH | G99: VMA 2 | H99: 97424 | I99: Schweinfurt | J99: Hafenstraße 30 | K99: Bayern | L99: 1997-07-23 | M99: Mineralölprodukte | N99: Heizöl, leicht | O99: Mineralölprodukte | P99: Nein | Q99: Verbrennungsmotor | R99: Öl | S99: Öl | T99: 0.38 | U99: eigene Annahme | V99: 4.2 | W99: 4.1 | X99: =(1-VLOOKUP(S99,Start!$H$33:$I$40,2,FALSE)/100)*W99 -> 3.485 | Y99: =VLOOKUP(R99,Start!$C$9:$D$15,2,FALSE)+VLOOKUP(R99,Start!$C$23:$D$29,2,FALSE) -> 58.77 | Z99: =(Y99/T99)+Start!$D$19*(VLOOKUP(R99,Start!$M$33:$N$39,2,FALSE)/T99)+VLOOKUP(S99,Start!$C$33:$D$40,2,FALSE) -> 215.4673684
C100: Ja | D100: SEE905721866655 | E100: BNA0292 | F100: RWE Power AG | G100: Fab Frechen | H100: 50226 | I100: Frechen | J100: Ludwigstraße | K100: Nordrhein-Westfalen | L100: 1962-12-23 | M100: Braunkohle | N100: Rohbraunkohlen | O100: Braunkohle | P100: Ja | Q100: Kondensationsmaschine mit Entnahme | R100: Braunkohle | S100: Braunkohle | T100: 0.3712 | U100: OPSD (2020) | V100: 202 | W100: 176 | X100: =(1-VLOOKUP(S100,Start!$H$33:$I$40,2,FALSE)/100)*W100 -> 153.12 | Y100: =VLOOKUP(R100,Start!$C$9:$D$15,2,FALSE)+VLOOKUP(R100,Start!$C$23:$D$29,2,FALSE) -> 3.1 | Z100: =(Y100/T100)+Start!$D$19*(VLOOKUP(R100,Start!$M$33:$N$39,2,FALSE)/T100)+VLOOKUP(S100,Start!$C$33:$D$40,2,FALSE) -> 98.39364224
C101: Ja | D101: SEE905937514456 | E101: BNA0430 | F101: Peissenberger Kraftwerksgesellschaft | G101: GT 4 | H101: 83734 | I101: Hausham | J101: Brentenstraße 3 | K101: Bayern | L101: 1982-11-01 | M101: Mineralölprodukte | N101: Heizöl, leicht | O101: Mineralölprodukte | P101: Nein | Q101: Gasturbinen ohne Abhitzekessel | R101: Öl | S101: Öl | T101: 0.3332 | U101: OPSD (2020) | V101: 23.2 | W101: 23.2 | X101: =(1-VLOOKUP(S101,Start!$H$33:$I$40,2,FALSE)/100)*W101 -> 19.72 | Y101: =VLOOKUP(R101,Start!$C$9:$D$15,2,FALSE)+VLOOKUP(R101,Start!$C$23:$D$29,2,FALSE) -> 58.77 | Z101: =(Y101/T101)+Start!$D$19*(VLOOKUP(R101,Start!$M$33:$N$39,2,FALSE)/T101)+VLOOKUP(S101,Start!$C$33:$D$40,2,FALSE) -> 245.5906363
C102: Ja | D102: SEE905939296770 | E102: BNA1945 | F102: Stadtwerke Kiel AG | G102: Küstenkraftwerk K.I.E.L Motor 13 | H102: 24149 | I102: Kiel | J102: Hasselfelde 30 | K102: Schleswig-Holstein | L102: 2018-08-21 | M102: Erdgas | N102: Erdgas, Erdölgas | O102: Erdgas | P102: Ja | Q102: Verbrennungsmotor | R102: Erdgas | S102: GuD | T102: 0.4059 | U102: OPSD (2020) | V102: 9.571 | W102: 9.456 | X102: =(1-VLOOKUP(S102,Start!$H$33:$I$40,2,FALSE)/100)*W102 -> 8.22672 | Y102: =VLOOKUP(R102,Start!$C$9:$D$15,2,FALSE)+VLOOKUP(R102,Start!$C$23:$D$29,2,FALSE) -> 128.9 | Z102: =(Y102/T102)+Start!$D$19*(VLOOKUP(R102,Start!$M$33:$N$39,2,FALSE)/T102)+VLOOKUP(S102,Start!$C$33:$D$40,2,FALSE) -> 359.260951
C103: Ja | D103: SEE906061539261 | E103: BNA1333a | F103: Universität Stuttgart | G103: HKW Pfaffenwald, Generator 42 | H103: 70569 | I103: Stuttgart | J103: Pfaffenwaldring 8 | K103: Baden-Württemberg | L103: 1988-01-01 | M103: Erdgas | N103: Erdgas, Erdölgas | O103: Erdgas | P103: Ja | Q103: Gasturbinen mit nachgeschalteter Dampfturbine | R103: Erdgas | S103: GuD | T103: 0.3718 | U103: OPSD (2020) | V103: 5.2 | W103: 4.9 | X103: =(1-VLOOKUP(S103,Start!$H$33:$I$40,2,FALSE)/100)*W103 -> 4.263 | Y103: =VLOOKUP(R103,Start!$C$9:$D$15,2,FALSE)+VLOOKUP(R103,Start!$C$23:$D$29,2,FALSE) -> 128.9 | Z103: =(Y103/T103)+Start!$D$19*(VLOOKUP(R103,Start!$M$33:$N$39,2,FALSE)/T103)+VLOOKUP(S103,Start!$C$33:$D$40,2,FALSE) -> 392.0733459
C104: Ja | D104: SEE906120609386 | E104: BNA0637 | F104: Essity Operations Mannheim GmbH | G104: DTS 2 | H104: 68305 | I104: Mannheim | J104: Sandhofer Straße 176 | K104: Baden-Württemberg | L104: 1969-11-21 | M104: Erdgas | N104: Erdgas, Erdölgas | O104: Erdgas | P104: Ja | Q104: Gegendruckmaschine mit Entnahme | R104: Erdgas | S104: GuD | T104: 0.38 | U104: OPSD (2020) | V104: 28.5 | W104: 28.448 | X104: =(1-VLOOKUP(S104,Start!$H$33:$I$40,2,FALSE)/100)*W104 -> 24.74976 | Y104: =VLOOKUP(R104,Start!$C$9:$D$15,2,FALSE)+VLOOKUP(R104,Start!$C$23:$D$29,2,FALSE) -> 128.9 | Z104: =(Y104/T104)+Start!$D$19*(VLOOKUP(R104,Start!$M$33:$N$39,2,FALSE)/T104)+VLOOKUP(S104,Start!$C$33:$D$40,2,FALSE) -> 383.6451842
C105: Ja | D105: SEE906215229154 | E105: BNA0438 | F105: EEW Energy from Waste Helmstedt GmbH | G105: MVA EEW Helmstedt | H105: 38372 | I105: Büddenstedt | J105: Am Kraftwerk 2 | K105: Niedersachsen | L105: 2014-01-01 | M105: nicht biogener Abfall | N105: nicht biogener Abfall (Hausmüll, Siedlungsabfälle) | O105: Abfall | P105: Nein | Q105: Kondensationsmaschine ohne Entnahme | R105: Abfall | S105: Abfall | T105: 0.33 | U105: OPSD (2020) | V105: 42.3 | W105: 37.5 | X105: =(1-VLOOKUP(S105,Start!$H$33:$I$40,2,FALSE)/100)*W105 -> 31.875 | Y105: =VLOOKUP(R105,Start!$C$9:$D$15,2,FALSE)+VLOOKUP(R105,Start!$C$23:$D$29,2,FALSE) -> 0 | Z105: =(Y105/T105)+Start!$D$19*(VLOOKUP(R105,Start!$M$33:$N$39,2,FALSE)/T105)+VLOOKUP(S105,Start!$C$33:$D$40,2,FALSE) -> 1
C106: Ja | D106: SEE906231810480 | E106: BNA0401 | F106: ADM Hamburg Aktiengesellschaft | G106: GT1 | H106: 21107 | I106: Hamburg | J106: Nippoldstraße 117 | K106: Hamburg | L106: 2013-11-25 | M106: Erdgas | N106: Erdgas, Erdölgas | O106: Erdgas | P106: Ja | Q106: Gasturbinen mit Abhitzekessel | R106: Erdgas | S106: GuD | T106: 0.3773 | U106: OPSD (2020) | V106: 5.688 | W106: 5.538 | X106: =(1-VLOOKUP(S106,Start!$H$33:$I$40,2,FALSE)/100)*W106 -> 4.81806 | Y106: =VLOOKUP(R106,Start!$C$9:$D$15,2,FALSE)+VLOOKUP(R106,Start!$C$23:$D$29,2,FALSE) -> 128.9 | Z106: =(Y106/T106)+Start!$D$19*(VLOOKUP(R106,Start!$M$33:$N$39,2,FALSE)/T106)+VLOOKUP(S106,Start!$C$33:$D$40,2,FALSE) -> 386.3798569
C107: Ja | D107: SEE906257837416 | E107: BNA0894a | F107: PCK Raffinerie GmbH | G107: 5MKA | H107: 16303 | I107: Schwedt | J107: Passower Chaussee 111 | K107: Brandenburg | L107: 1972-01-27 | M107: Mineralölprodukte | N107: Andere Mineralölprodukte | O107: Mineralölprodukte | P107: Nein | Q107: Gegendruckmaschine mit Entnahme | R107: Öl | S107: Öl | T107: 0.3542 | U107: OPSD (2020) | V107: 30 | W107: 28 | X107: =(1-VLOOKUP(S107,Start!$H$33:$I$40,2,FALSE)/100)*W107 -> 23.8 | Y107: =VLOOKUP(R107,Start!$C$9:$D$15,2,FALSE)+VLOOKUP(R107,Start!$C$23:$D$29,2,FALSE) -> 58.77 | Z107: =(Y107/T107)+Start!$D$19*(VLOOKUP(R107,Start!$M$33:$N$39,2,FALSE)/T107)+VLOOKUP(S107,Start!$C$33:$D$40,2,FALSE) -> 231.0892151
C108: Ja | D108: SEE906331863386 | F108: GSB Sonderabfall-Entsorgung Bayern GmbH | G108: Turbine VA3 | H108: 85107 | I108: Baar-Ebenhausen | J108: Äußerer Ring 50 | K108: Bayern | L108: 1995-12-20 | M108: nicht biogener Abfall | N108: nicht biogener Industrieabfall | O108: Abfall | P108: Nein | Q108: Kondensationsmaschine mit Entnahme | R108: Abfall | S108: Abfall | T108: 0.33 | U108: OPSD (2020) | V108: 7.061 | W108: 7.061 | X108: =(1-VLOOKUP(S108,Start!$H$33:$I$40,2,FALSE)/100)*W108 -> 6.00185 | Y108: =VLOOKUP(R108,Start!$C$9:$D$15,2,FALSE)+VLOOKUP(R108,Start!$C$23:$D$29,2,FALSE) -> 0 | Z108: =(Y108/T108)+Start!$D$19*(VLOOKUP(R108,Start!$M$33:$N$39,2,FALSE)/T108)+VLOOKUP(S108,Start!$C$33:$D$40,2,FALSE) -> 1
C109: Ja | D109: SEE906385906152 | E109: BNA1503 | F109: Mercedes-Benz AG | G109: Gebäude 120 / BHKW Modul 04 | H109: 40476 | I109: Düsseldorf | J109: Rather Straße 51 | K109: Nordrhein-Westfalen | L109: 2012-10-31 | M109: Erdgas | N109: Erdgas, Erdölgas | O109: Erdgas | P109: Ja | Q109: Gasturbinen mit Abhitzekessel | R109: Erdgas | S109: GuD | T109: 0.3982 | U109: OPSD (2020) | V109: 4.3 | W109: 4.2 | X109: =(1-VLOOKUP(S109,Start!$H$33:$I$40,2,FALSE)/100)*W109 -> 3.654 | Y109: =VLOOKUP(R109,Start!$C$9:$D$15,2,FALSE)+VLOOKUP(R109,Start!$C$23:$D$29,2,FALSE) -> 128.9 | Z109: =(Y109/T109)+Start!$D$19*(VLOOKUP(R109,Start!$M$33:$N$39,2,FALSE)/T109)+VLOOKUP(S109,Start!$C$33:$D$40,2,FALSE) -> 366.1789804
C110: Ja | D110: SEE906462907775 | F110: K+S Minerals and Agriculture GmbH | G110: Kraftwerk HA GT2 | H110: 36269 | I110: Philippsthal | J110: Hattorfer Straße 1 | K110: Hessen | L110: 2017-07-02 | M110: Erdgas | N110: Erdgas, Erdölgas | O110: Erdgas | P110: Ja | Q110: Gasturbinen mit Abhitzekessel | R110: Erdgas | S110: GuD | T110: 0.4 | U110: eigene Annahme | V110: 5.765 | W110: 5.67 | X110: =(1-VLOOKUP(S110,Start!$H$33:$I$40,2,FALSE)/100)*W110 -> 4.9329 | Y110: =VLOOKUP(R110,Start!$C$9:$D$15,2,FALSE)+VLOOKUP(R110,Start!$C$23:$D$29,2,FALSE) -> 128.9 | Z110: =(Y110/T110)+Start!$D$19*(VLOOKUP(R110,Start!$M$33:$N$39,2,FALSE)/T110)+VLOOKUP(S110,Start!$C$33:$D$40,2,FALSE) -> 364.537925
C111: Ja | D111: SEE906681939748 | F111: Jäckering Mühlen- und Nährmittelwerke GmbH | G111: BHKW Hafen - Modul 1 | H111: 59067 | I111: Hamm | J111: Speicherstraße 15 | K111: Nordrhein-Westfalen | L111: 2013-04-01 | M111: Erdgas | N111: Erdgas, Erdölgas | O111: Erdgas | P111: Ja | Q111: Verbrennungsmotor | R111: Erdgas | S111: GuD | T111: 0.4 | U111: eigene Annahme | V111: 2.19 | W111: 2.173 | X111: =(1-VLOOKUP(S111,Start!$H$33:$I$40,2,FALSE)/100)*W111 -> 1.89051 | Y111: =VLOOKUP(R111,Start!$C$9:$D$15,2,FALSE)+VLOOKUP(R111,Start!$C$23:$D$29,2,FALSE) -> 128.9 | Z111: =(Y111/T111)+Start!$D$19*(VLOOKUP(R111,Start!$M$33:$N$39,2,FALSE)/T111)+VLOOKUP(S111,Start!$C$33:$D$40,2,FALSE) -> 364.537925
C112: Ja | D112: SEE906722372718 | E112: BNA1329 | F112: Kübler & Niethammer Papierfabrik Kriebstein GmbH | G112: Gegendruckturbine 3 MW | H112: 9648 | I112: Kriebstein | J112: Bauhofstraße 1 | K112: Sachsen | L112: 1993-04-08 | M112: Wärme | N112: Prozessdampf | O112: Erdgas | P112: Ja | Q112: Gegendruckmaschine mit Entnahme | R112: Erdgas | S112: GuD | T112: 0.5085 | U112: OPSD (2020) | V112: 3 | W112: 2.975 | X112: =(1-VLOOKUP(S112,Start!$H$33:$I$40,2,FALSE)/100)*W112 -> 2.58825 | Y112: =VLOOKUP(R112,Start!$C$9:$D$15,2,FALSE)+VLOOKUP(R112,Start!$C$23:$D$29,2,FALSE) -> 128.9 | Z112: =(Y112/T112)+Start!$D$19*(VLOOKUP(R112,Start!$M$33:$N$39,2,FALSE)/T112)+VLOOKUP(S112,Start!$C$33:$D$40,2,FALSE) -> 287.0755556
C113: Ja | D113: SEE906830618081 | E113: BNA0714 | F113: RWE Power AG | G113: Fab Fortuna | H113: 50129 | I113: Bergheim | J113: Auenheimer Straße | K113: Nordrhein-Westfalen | L113: 1948-06-01 | M113: Braunkohle | N113: Rohbraunkohlen | O113: Braunkohle | P113: Ja | Q113: Kondensationsmaschine mit Entnahme | R113: Braunkohle | S113: Braunkohle | T113: 0.2536 | U113: OPSD (2020) | V113: 30 | W113: 15 | X113: =(1-VLOOKUP(S113,Start!$H$33:$I$40,2,FALSE)/100)*W113 -> 13.05 | Y113: =VLOOKUP(R113,Start!$C$9:$D$15,2,FALSE)+VLOOKUP(R113,Start!$C$23:$D$29,2,FALSE) -> 3.1 | Z113: =(Y113/T113)+Start!$D$19*(VLOOKUP(R113,Start!$M$33:$N$39,2,FALSE)/T113)+VLOOKUP(S113,Start!$C$33:$D$40,2,FALSE) -> 143.2326498
C114: Ja | D114: SEE906834978235 | E114: BNA1187 | F114: Pfeifer & Langen GmbH ＆ Co. KG | G114: Lage Generator 2 | H114: 32791 | I114: Lage | J114: Heidensche Straße 70 | K114: Nordrhein-Westfalen | L114: 1962-08-27 | M114: Steinkohle | N114: Steinkohlen | O114: Steinkohle | P114: Ja | Q114: Gegendruckmaschine ohne Entnahme | R114: Steinkohle | S114: Steinkohle | T114: 0.4037 | U114: OPSD (2020) | V114: 4.48 | W114: 4.077 | X114: =(1-VLOOKUP(S114,Start!$H$33:$I$40,2,FALSE)/100)*W114 -> 3.2616 | Y114: =VLOOKUP(R114,Start!$C$9:$D$15,2,FALSE)+VLOOKUP(R114,Start!$C$23:$D$29,2,FALSE) -> 42.45 | Z114: =(Y114/T114)+Start!$D$19*(VLOOKUP(R114,Start!$M$33:$N$39,2,FALSE)/T114)+VLOOKUP(S114,Start!$C$33:$D$40,2,FALSE) -> 174.2112955
C115: Ja | D115: SEE906899424722 | E115: BNA0616b | F115: BASF SE | G115: S300 NT7 | H115: 67063 | I115: Ludwigshafen | J115: Carl-Bosch-Straße 38 | K115: Rheinland-Pfalz | L115: 2001-11-21 | M115: Wärme | N115: Prozessdampf | O115: Sonstige Energieträger (nicht erneuerbar) | P115: Ja | Q115: Gegendruckmaschine mit Entnahme | R115: Sonstige | S115: Sonstige | T115: 0.385 | U115: Annahme basierend auf DIW (2014) | V115: 24.5 | W115: 24 | X115: =(1-VLOOKUP(S115,Start!$H$33:$I$40,2,FALSE)/100)*W115 -> 20.4 | Y115: =VLOOKUP(R115,Start!$C$9:$D$15,2,FALSE)+VLOOKUP(R115,Start!$C$23:$D$29,2,FALSE) -> 58.47 | Z115: =(Y115/T115)+Start!$D$19*(VLOOKUP(R115,Start!$M$33:$N$39,2,FALSE)/T115)+VLOOKUP(S115,Start!$C$33:$D$40,2,FALSE) -> 197.988
C116: Ja | D116: SEE907064154956 | F116: K+S Minerals and Agriculture GmbH | G116: Kraftwerk HA GT1 | H116: 36269 | I116: Philippsthal | J116: Hattorfer Straße 1 | K116: Hessen | L116: 2017-07-02 | M116: Erdgas | N116: Erdgas, Erdölgas | O116: Erdgas | P116: Ja | Q116: Gasturbinen mit Abhitzekessel | R116: Erdgas | S116: GuD | T116: 0.4 | U116: eigene Annahme | V116: 6.765 | W116: 5.67 | X116: =(1-VLOOKUP(S116,Start!$H$33:$I$40,2,FALSE)/100)*W116 -> 4.9329 | Y116: =VLOOKUP(R116,Start!$C$9:$D$15,2,FALSE)+VLOOKUP(R116,Start!$C$23:$D$29,2,FALSE) -> 128.9 | Z116: =(Y116/T116)+Start!$D$19*(VLOOKUP(R116,Start!$M$33:$N$39,2,FALSE)/T116)+VLOOKUP(S116,Start!$C$33:$D$40,2,FALSE) -> 364.537925
C117: Ja | D117: SEE907222955227 | E117: BNA0369 | F117: envia THERM GmbH | G117: Sermuth BHKW 3 | H117: 4680 | I117: Colditz | J117: Am Umspannwerk 2 | K117: Sachsen | L117: 1995-10-01 | M117: Mineralölprodukte | N117: Heizöl, leicht | O117: Mineralölprodukte | P117: Nein | Q117: Verbrennungsmotor | R117: Öl | S117: Öl | T117: 0.3795 | U117: OPSD (2020) | V117: 7.2 | W117: 5.7 | X117: =(1-VLOOKUP(S117,Start!$H$33:$I$40,2,FALSE)/100)*W117 -> 4.845 | Y117: =VLOOKUP(R117,Start!$C$9:$D$15,2,FALSE)+VLOOKUP(R117,Start!$C$23:$D$29,2,FALSE) -> 58.77 | Z117: =(Y117/T117)+Start!$D$19*(VLOOKUP(R117,Start!$M$33:$N$39,2,FALSE)/T117)+VLOOKUP(S117,Start!$C$33:$D$40,2,FALSE) -> 215.7499341
C118: Ja | D118: SEE907223904750 | E118: BNA0683a | F118: SWM Services GmbH | G118: SWM HKW Sued GuD1 DT1 | H118: 81371 | I118: München | J118: Schäftlarnstraße 15 | K118: Bayern | L118: 1980-10-01 | M118: Erdgas | N118: Erdgas, Erdölgas | O118: Erdgas | P118: Ja | Q118: Kondensationsmaschine mit Entnahme | R118: Erdgas | S118: GuD | T118: 0.45 | U118: OPSD (2020) | V118: 82.7 | W118: 79.7 | X118: =(1-VLOOKUP(S118,Start!$H$33:$I$40,2,FALSE)/100)*W118 -> 69.339 | Y118: =VLOOKUP(R118,Start!$C$9:$D$15,2,FALSE)+VLOOKUP(R118,Start!$C$23:$D$29,2,FALSE) -> 128.9 | Z118: =(Y118/T118)+Start!$D$19*(VLOOKUP(R118,Start!$M$33:$N$39,2,FALSE)/T118)+VLOOKUP(S118,Start!$C$33:$D$40,2,FALSE) -> 324.2003778
C119: Ja | D119: SEE907370296296 | E119: BNA1254 | F119: Zweckverband Müllverwertung Schwandorf | G119: MKW SAD Turbine 5 | H119: 92421 | I119: Schwandorf | J119: Alustraße 7 | K119: Bayern | L119: 1992-06-04 | M119: nicht biogener Abfall | N119: nicht biogener Abfall (Hausmüll, Siedlungsabfälle) | O119: Abfall | P119: Ja | Q119: Kondensationsmaschine mit Entnahme | R119: Abfall | S119: Abfall | T119: 0.33 | U119: OPSD (2020) | V119: 41 | W119: 32.8 | X119: =(1-VLOOKUP(S119,Start!$H$33:$I$40,2,FALSE)/100)*W119 -> 27.88 | Y119: =VLOOKUP(R119,Start!$C$9:$D$15,2,FALSE)+VLOOKUP(R119,Start!$C$23:$D$29,2,FALSE) -> 0 | Z119: =(Y119/T119)+Start!$D$19*(VLOOKUP(R119,Start!$M$33:$N$39,2,FALSE)/T119)+VLOOKUP(S119,Start!$C$33:$D$40,2,FALSE) -> 1
C120: Ja | D120: SEE907389779292 | E120: BNA0124 | F120: Lausitz Energie Kraftwerke AG | G120: Boxberg Block Q | H120: 2943 | I120: Boxberg | J120: Am Kraftwerk 1 | K120: Sachsen | L120: 2000-10-01 | M120: Braunkohle | N120: Rohbraunkohlen | O120: Braunkohle | P120: Ja | Q120: Kondensationsmaschine mit Entnahme | R120: Braunkohle | S120: Braunkohle | T120: 0.423 | U120: OPSD (2020) | V120: 893 | W120: 840 | X120: =(1-VLOOKUP(S120,Start!$H$33:$I$40,2,FALSE)/100)*W120 -> 730.8 | Y120: =VLOOKUP(R120,Start!$C$9:$D$15,2,FALSE)+VLOOKUP(R120,Start!$C$23:$D$29,2,FALSE) -> 3.1 | Z120: =(Y120/T120)+Start!$D$19*(VLOOKUP(R120,Start!$M$33:$N$39,2,FALSE)/T120)+VLOOKUP(S120,Start!$C$33:$D$40,2,FALSE) -> 86.55267139
C121: Ja | D121: SEE907508778663 | E121: BNA1196a | F121: MVV Enamic Ludwigshafen GmbH | G121: Motor 3 | H121: 67065 | I121: Ludwigshafen | J121: Giulinistrasse 2 | K121: Rheinland-Pfalz | L121: 2007-11-23 | M121: Erdgas | N121: Erdgas, Erdölgas | O121: Erdgas | P121: Ja | Q121: Verbrennungsmotor | R121: Erdgas | S121: GuD | T121: 0.3938 | U121: OPSD (2020) | V121: 3.333 | W121: 3.2 | X121: =(1-VLOOKUP(S121,Start!$H$33:$I$40,2,FALSE)/100)*W121 -> 2.784 | Y121: =VLOOKUP(R121,Start!$C$9:$D$15,2,FALSE)+VLOOKUP(R121,Start!$C$23:$D$29,2,FALSE) -> 128.9 | Z121: =(Y121/T121)+Start!$D$19*(VLOOKUP(R121,Start!$M$33:$N$39,2,FALSE)/T121)+VLOOKUP(S121,Start!$C$33:$D$40,2,FALSE) -> 370.2536059
C122: Ja | D122: SEE907524301289 | E122: BNA1399 | F122: OQ Chemicals Produktion GmbH & Co.KG | G122: T/G 15 | H122: 46147 | I122: Oberhausen | J122: Otto-Roelen-Strasse 3 | K122: Nordrhein-Westfalen | L122: 1954-01-01 | M122: Mineralölprodukte | N122: Andere Mineralölprodukte | O122: Mineralölprodukte | P122: Ja | Q122: Gegendruckmaschine mit Entnahme | R122: Öl | S122: Öl | T122: 0.33 | U122: Annahme basierend auf DIW (2014) | V122: 12 | W122: 10 | X122: =(1-VLOOKUP(S122,Start!$H$33:$I$40,2,FALSE)/100)*W122 -> 8.5 | Y122: =VLOOKUP(R122,Start!$C$9:$D$15,2,FALSE)+VLOOKUP(R122,Start!$C$23:$D$29,2,FALSE) -> 58.77 | Z122: =(Y122/T122)+Start!$D$19*(VLOOKUP(R122,Start!$M$33:$N$39,2,FALSE)/T122)+VLOOKUP(S122,Start!$C$33:$D$40,2,FALSE) -> 247.9624242
C123: Ja | D123: SEE907667431027 | F123: Volkswagen AG | G123: 011_DY01_USV-B-2 | H123: 38440 | I123: Wolfsburg | J123: Berliner Ring 2 | K123: Niedersachsen | L123: 2016-12-01 | M123: Mineralölprodukte | N123: Dieselkraftstoff | O123: Mineralölprodukte | P123: Nein | Q123: Verbrennungsmotor | R123: Öl | S123: Öl | T123: 0.4 | U123: eigene Annahme | V123: 2.2 | W123: 2 | X123: =(1-VLOOKUP(S123,Start!$H$33:$I$40,2,FALSE)/100)*W123 -> 1.7 | Y123: =VLOOKUP(R123,Start!$C$9:$D$15,2,FALSE)+VLOOKUP(R123,Start!$C$23:$D$29,2,FALSE) -> 58.77 | Z123: =(Y123/T123)+Start!$D$19*(VLOOKUP(R123,Start!$M$33:$N$39,2,FALSE)/T123)+VLOOKUP(S123,Start!$C$33:$D$40,2,FALSE) -> 204.744
C124: Ja | D124: SEE907667929555 | E124: BNA1911 | F124: DREWAG - Stadtwerke Dresden GmbH | G124: HKW Dresden-Nord | H124: 1099 | I124: Dresden | J124: Hermann-Mende-Straße 2 | K124: Sachsen | L124: 2018-12-07 | M124: Erdgas | N124: Erdgas, Erdölgas | O124: Erdgas | P124: Ja | Q124: Gasturbinen mit Abhitzekessel | R124: Erdgas | S124: GuD | T124: 0.4048 | U124: OPSD (2020) | V124: 12 | W124: 11.5 | X124: =(1-VLOOKUP(S124,Start!$H$33:$I$40,2,FALSE)/100)*W124 -> 10.005 | Y124: =VLOOKUP(R124,Start!$C$9:$D$15,2,FALSE)+VLOOKUP(R124,Start!$C$23:$D$29,2,FALSE) -> 128.9 | Z124: =(Y124/T124)+Start!$D$19*(VLOOKUP(R124,Start!$M$33:$N$39,2,FALSE)/T124)+VLOOKUP(S124,Start!$C$33:$D$40,2,FALSE) -> 360.2331275
C125: Ja | D125: SEE907828499484 | E125: BNA1336 | F125: Henkel AG & Co. KGaA | G125: F13G6 | H125: 40589 | I125: Düsseldorf | J125: Henkelstraße 67 | K125: Nordrhein-Westfalen | L125: 1983-01-01 | M125: Erdgas | N125: Erdgas, Erdölgas | O125: Erdgas | P125: Ja | Q125: Gegendruckmaschine mit Entnahme | R125: Erdgas | S125: GuD | T125: 0.3278 | U125: OPSD (2020) | V125: 20 | W125: 18 | X125: =(1-VLOOKUP(S125,Start!$H$33:$I$40,2,FALSE)/100)*W125 -> 15.66 | Y125: =VLOOKUP(R125,Start!$C$9:$D$15,2,FALSE)+VLOOKUP(R125,Start!$C$23:$D$29,2,FALSE) -> 128.9 | Z125: =(Y125/T125)+Start!$D$19*(VLOOKUP(R125,Start!$M$33:$N$39,2,FALSE)/T125)+VLOOKUP(S125,Start!$C$33:$D$40,2,FALSE) -> 444.4992984
C126: Ja | D126: SEE907892165506 | F126: Mark-E Aktiengesellschaft | G126: Cuno Heizkraftwerk Herdecke BHKW1 | H126: 58313 | I126: Herdecke | J126: Wetterstraße 111 | K126: Nordrhein-Westfalen | L126: 2004-01-01 | M126: Erdgas | N126: Erdgas, Erdölgas | O126: Erdgas | P126: Ja | Q126: Sonstige | R126: Erdgas | S126: GuD | T126: 0.4 | U126: eigene Annahme | V126: 1.988 | W126: 1.95 | X126: =(1-VLOOKUP(S126,Start!$H$33:$I$40,2,FALSE)/100)*W126 -> 1.6965 | Y126: =VLOOKUP(R126,Start!$C$9:$D$15,2,FALSE)+VLOOKUP(R126,Start!$C$23:$D$29,2,FALSE) -> 128.9 | Z126: =(Y126/T126)+Start!$D$19*(VLOOKUP(R126,Start!$M$33:$N$39,2,FALSE)/T126)+VLOOKUP(S126,Start!$C$33:$D$40,2,FALSE) -> 364.537925
C127: Ja | D127: SEE908040387344 | F127: DFS Energy GmbH | G127: BHKW1 | H127: 63225 | I127: Langen | J127: Am DFS-Campus 3 | K127: Hessen | L127: 2014-10-15 | M127: Erdgas | N127: Erdgas, Erdölgas | O127: Erdgas | P127: Ja | Q127: Verbrennungsmotor | R127: Erdgas | S127: GuD | T127: 0.4 | U127: eigene Annahme | V127: 2.005 | W127: 1.9805 | X127: =(1-VLOOKUP(S127,Start!$H$33:$I$40,2,FALSE)/100)*W127 -> 1.723035 | Y127: =VLOOKUP(R127,Start!$C$9:$D$15,2,FALSE)+VLOOKUP(R127,Start!$C$23:$D$29,2,FALSE) -> 128.9 | Z127: =(Y127/T127)+Start!$D$19*(VLOOKUP(R127,Start!$M$33:$N$39,2,FALSE)/T127)+VLOOKUP(S127,Start!$C$33:$D$40,2,FALSE) -> 364.537925
C128: Ja | D128: SEE908070409573 | E128: BNA0997 | F128: STEAG Gasmotoren Fenne 3 GmbH | G128: Gasmotor 5 Mod. | H128: 66333 | I128: Völklingen | J128: Saarbrücker Straße 135-137 | K128: Saarland | L128: 2021-11-05 | M128: Erdgas | N128: Erdgas, Erdölgas | O128: Erdgas | P128: Ja | Q128: Verbrennungsmotor | R128: Erdgas | S128: GuD | T128: 0.45 | U128: https://www.steag.com/de/leistungen/konventionelle-energieerzeugung | V128: 3.352 | W128: 3.251 | X128: =(1-VLOOKUP(S128,Start!$H$33:$I$40,2,FALSE)/100)*W128 -> 2.82837 | Y128: =VLOOKUP(R128,Start!$C$9:$D$15,2,FALSE)+VLOOKUP(R128,Start!$C$23:$D$29,2,FALSE) -> 128.9 | Z128: =(Y128/T128)+Start!$D$19*(VLOOKUP(R128,Start!$M$33:$N$39,2,FALSE)/T128)+VLOOKUP(S128,Start!$C$33:$D$40,2,FALSE) -> 324.2003778
C129: Ja | D129: SEE908089235248 | E129: BNA0199 | F129: RWE Generation SE | G129: Dormagen GT2 | H129: 41540 | I129: Dormagen | J129: Alte Heerstraße 1 | K129: Nordrhein-Westfalen | L129: 2000-07-23 | M129: Erdgas | N129: Erdgas, Erdölgas | O129: Erdgas | P129: Ja | Q129: Gasturbinen mit Abhitzekessel | R129: Erdgas | S129: GuD | T129: 0.54 | U129: OPSD (2020) | V129: 189 | W129: 184 | X129: =(1-VLOOKUP(S129,Start!$H$33:$I$40,2,FALSE)/100)*W129 -> 160.08 | Y129: =VLOOKUP(R129,Start!$C$9:$D$15,2,FALSE)+VLOOKUP(R129,Start!$C$23:$D$29,2,FALSE) -> 128.9 | Z129: =(Y129/T129)+Start!$D$19*(VLOOKUP(R129,Start!$M$33:$N$39,2,FALSE)/T129)+VLOOKUP(S129,Start!$C$33:$D$40,2,FALSE) -> 270.4169815
C130: Ja | D130: SEE908119179962 | E130: BNA1292b | F130: J. M. Voith SE & Co. KG | G130: HDH_004_Industrieheizkraftwerk-Heidenheim_GM4 | H130: 89522 | I130: Heidenheim | J130: Alexanderstraße 8 | K130: Baden-Württemberg | L130: 1999-01-01 | M130: Erdgas | N130: Erdgas, Erdölgas | O130: Erdgas | P130: Ja | Q130: Verbrennungsmotor | R130: Erdgas | S130: GuD | T130: 0.4004 | U130: OPSD (2020) | V130: 3.884 | W130: 3.725 | X130: =(1-VLOOKUP(S130,Start!$H$33:$I$40,2,FALSE)/100)*W130 -> 3.24075 | Y130: =VLOOKUP(R130,Start!$C$9:$D$15,2,FALSE)+VLOOKUP(R130,Start!$C$23:$D$29,2,FALSE) -> 128.9 | Z130: =(Y130/T130)+Start!$D$19*(VLOOKUP(R130,Start!$M$33:$N$39,2,FALSE)/T130)+VLOOKUP(S130,Start!$C$33:$D$40,2,FALSE) -> 364.1752498
C131: Ja | D131: SEE908125004449 | E131: BNA0123 | F131: Lausitz Energie Kraftwerke AG | G131: Boxberg Block P | H131: 2943 | I131: Boxberg | J131: Am Kraftwerk 1 | K131: Sachsen | L131: 1980-07-01 | M131: Braunkohle | N131: Rohbraunkohlen | O131: Braunkohle | P131: Ja | Q131: Kondensationsmaschine mit Entnahme | R131: Braunkohle | S131: Braunkohle | T131: 0.35 | U131: OPSD (2020) | V131: 540 | W131: 500 | X131: =(1-VLOOKUP(S131,Start!$H$33:$I$40,2,FALSE)/100)*W131 -> 435 | Y131: =VLOOKUP(R131,Start!$C$9:$D$15,2,FALSE)+VLOOKUP(R131,Start!$C$23:$D$29,2,FALSE) -> 3.1 | Z131: =(Y131/T131)+Start!$D$19*(VLOOKUP(R131,Start!$M$33:$N$39,2,FALSE)/T131)+VLOOKUP(S131,Start!$C$33:$D$40,2,FALSE) -> 104.2505143
C132: Ja | D132: SEE908154984538 | E132: BNA0386 | F132: Mohn Media Mohndruck GmbH | G132: GT 1 | H132: 33332 | I132: Gütersloh | J132: Carl-Bertelsmann-Straße 161 | K132: Nordrhein-Westfalen | L132: 1994-03-28 | M132: Erdgas | N132: Erdgas, Erdölgas | O132: Erdgas | P132: Ja | Q132: Gasturbinen mit nachgeschalteter Dampfturbine | R132: Erdgas | S132: GuD | T132: 0.3784 | U132: OPSD (2020) | V132: 5.25 | W132: 5.167 | X132: =(1-VLOOKUP(S132,Start!$H$33:$I$40,2,FALSE)/100)*W132 -> 4.49529 | Y132: =VLOOKUP(R132,Start!$C$9:$D$15,2,FALSE)+VLOOKUP(R132,Start!$C$23:$D$29,2,FALSE) -> 128.9 | Z132: =(Y132/T132)+Start!$D$19*(VLOOKUP(R132,Start!$M$33:$N$39,2,FALSE)/T132)+VLOOKUP(S132,Start!$C$33:$D$40,2,FALSE) -> 385.2610201
C133: Ja | D133: SEE908238702164 | E133: BNA1821 | F133: Bayer AG Berlin | G133: Turboeinheit 1 Dampfturbine 60 t Gen 10 MW | H133: 13353 | I133: Berlin | J133: Müllerstraße 170 | K133: Berlin | L133: 1973-06-01 | M133: Erdgas | N133: Erdgas, Erdölgas | O133: Erdgas | P133: Ja | Q133: Gegendruckmaschine mit Entnahme | R133: Erdgas | S133: GuD | T133: 0.3542 | U133: OPSD (2020) | V133: 10 | W133: 9.6 | X133: =(1-VLOOKUP(S133,Start!$H$33:$I$40,2,FALSE)/100)*W133 -> 8.352 | Y133: =VLOOKUP(R133,Start!$C$9:$D$15,2,FALSE)+VLOOKUP(R133,Start!$C$23:$D$29,2,FALSE) -> 128.9 | Z133: =(Y133/T133)+Start!$D$19*(VLOOKUP(R133,Start!$M$33:$N$39,2,FALSE)/T133)+VLOOKUP(S133,Start!$C$33:$D$40,2,FALSE) -> 411.4807171
C134: Ja | D134: SEE908658611688 | F134: H&R Chemisch Pharmazeutische Spezialitäten GmbH | G134: HuR-IKW-G4 | H134: 48499 | I134: Salzbergen | J134: Neuenkirchener Straße 8 | K134: Niedersachsen | L134: 1977-01-14 | M134: Erdgas | O134: Erdgas | P134: Nein | Q134: Gegendruckmaschine ohne Entnahme | R134: Erdgas | S134: GuD | T134: 0.35 | U134: eigene Annahme | V134: 6.035 | W134: 6.02 | X134: =(1-VLOOKUP(S134,Start!$H$33:$I$40,2,FALSE)/100)*W134 -> 5.2374 | Y134: =VLOOKUP(R134,Start!$C$9:$D$15,2,FALSE)+VLOOKUP(R134,Start!$C$23:$D$29,2,FALSE) -> 128.9 | Z134: =(Y134/T134)+Start!$D$19*(VLOOKUP(R134,Start!$M$33:$N$39,2,FALSE)/T134)+VLOOKUP(S134,Start!$C$33:$D$40,2,FALSE) -> 416.4004857
C135: Ja | D135: SEE908746529123 | E135: BNA0848 | F135: Stadtwerke Rostock Aktiengesellschaft | G135: GuD-Block 3 | H135: 18069 | I135: Rostock | J135: Schmarler Damm 5 | K135: Mecklenburg-Vorpommern | L135: 1996-10-01 | M135: Erdgas | N135: Erdgas, Erdölgas | O135: Erdgas | P135: Ja | Q135: Gasturbinen mit nachgeschalteter Dampfturbine | R135: Erdgas | S135: GuD | T135: 0.522 | U135: OPSD (2020) | V135: 37 | W135: 36 | X135: =(1-VLOOKUP(S135,Start!$H$33:$I$40,2,FALSE)/100)*W135 -> 31.32 | Y135: =VLOOKUP(R135,Start!$C$9:$D$15,2,FALSE)+VLOOKUP(R135,Start!$C$23:$D$29,2,FALSE) -> 128.9 | Z135: =(Y135/T135)+Start!$D$19*(VLOOKUP(R135,Start!$M$33:$N$39,2,FALSE)/T135)+VLOOKUP(S135,Start!$C$33:$D$40,2,FALSE) -> 279.6899808
C136: Ja | D136: SEE908836263777 | F136: AUDI | G136: IN_N19_KWKK_GT2 | H136: 85057 | I136: Ingolstadt | J136: Ettinger Straße 105 | K136: Bayern | L136: 1998-08-05 | M136: Erdgas | N136: Erdgas, Erdölgas | O136: Erdgas | P136: Ja | Q136: Gasturbinen mit Abhitzekessel | R136: Erdgas | S136: GuD | T136: 0.38 | U136: eigene Annahme | V136: 5.1 | W136: 4.985 | X136: =(1-VLOOKUP(S136,Start!$H$33:$I$40,2,FALSE)/100)*W136 -> 4.33695 | Y136: =VLOOKUP(R136,Start!$C$9:$D$15,2,FALSE)+VLOOKUP(R136,Start!$C$23:$D$29,2,FALSE) -> 128.9 | Z136: =(Y136/T136)+Start!$D$19*(VLOOKUP(R136,Start!$M$33:$N$39,2,FALSE)/T136)+VLOOKUP(S136,Start!$C$33:$D$40,2,FALSE) -> 383.6451842
C137: Ja | D137: SEE908927793930 | E137: BNA1861 | F137: BMW AG Niederlassung Stuttgart | G137: Regensburg KWK 2 | H137: 93055 | I137: Regensburg | J137: Herbert-Quandt-Allee 1 | K137: Bayern | L137: 2011-07-05 | M137: Erdgas | N137: Erdgas, Erdölgas | O137: Erdgas | P137: Ja | Q137: Verbrennungsmotor | R137: Erdgas | S137: GuD | T137: 0.3982 | U137: OPSD (2020) | V137: 2.678 | W137: 2.624 | X137: =(1-VLOOKUP(S137,Start!$H$33:$I$40,2,FALSE)/100)*W137 -> 2.28288 | Y137: =VLOOKUP(R137,Start!$C$9:$D$15,2,FALSE)+VLOOKUP(R137,Start!$C$23:$D$29,2,FALSE) -> 128.9 | Z137: =(Y137/T137)+Start!$D$19*(VLOOKUP(R137,Start!$M$33:$N$39,2,FALSE)/T137)+VLOOKUP(S137,Start!$C$33:$D$40,2,FALSE) -> 366.1789804
C138: Ja | D138: SEE909002940690 | E138: BNA0644 | F138: Grosskraftwerk Mannheim | G138: GKM Block 6 | H138: 68199 | I138: Mannheim | J138: Marguerrestraße 1 | K138: Baden-Württemberg | L138: 2005-12-26 | M138: Steinkohle | O138: Steinkohle | P138: Ja | Q138: Gegendruckmaschine mit Entnahme | R138: Steinkohle | S138: Steinkohle | T138: 0.4375 | U138: OPSD (2020) | V138: 280 | W138: 255 | X138: =(1-VLOOKUP(S138,Start!$H$33:$I$40,2,FALSE)/100)*W138 -> 204 | Y138: =VLOOKUP(R138,Start!$C$9:$D$15,2,FALSE)+VLOOKUP(R138,Start!$C$23:$D$29,2,FALSE) -> 42.45 | Z138: =(Y138/T138)+Start!$D$19*(VLOOKUP(R138,Start!$M$33:$N$39,2,FALSE)/T138)+VLOOKUP(S138,Start!$C$33:$D$40,2,FALSE) -> 160.8526629
C139: Ja | D139: SEE909031885047 | F139: Müllverwertung Borsigstraße GmbH | G139: MVB Borsigstraße Müll | H139: 22113 | I139: Hamburg | K139: Hamburg | L139: 2010-07-16 | M139: nicht biogener Abfall | N139: nicht biogener Abfall (Hausmüll, Siedlungsabfälle) | O139: Abfall | P139: Nein | Q139: Gegendruckmaschine mit Entnahme | R139: Abfall | S139: Abfall | T139: 0.33 | U139: OPSD (2020) | V139: 3.05 | W139: 1e-05 | X139: =(1-VLOOKUP(S139,Start!$H$33:$I$40,2,FALSE)/100)*W139 -> 8.5e-06 | Y139: =VLOOKUP(R139,Start!$C$9:$D$15,2,FALSE)+VLOOKUP(R139,Start!$C$23:$D$29,2,FALSE) -> 0 | Z139: =(Y139/T139)+Start!$D$19*(VLOOKUP(R139,Start!$M$33:$N$39,2,FALSE)/T139)+VLOOKUP(S139,Start!$C$33:$D$40,2,FALSE) -> 1
C140: Ja | D140: SEE909106315790 | E140: BNA0517 | F140: Mineraloelraffinerie Oberrhein | G140: TG-1904 | H140: 76187 | I140: Karlsruhe | J140: Nördliche Raffineriestraße 1 | K140: Baden-Württemberg | L140: 1995-06-17 | M140: Mineralölprodukte | N140: Raffineriegas | O140: Mineralölprodukte | P140: Ja | Q140: Gegendruckmaschine mit Entnahme | R140: Öl | S140: Öl | T140: 0.3795 | U140: OPSD (2020) | V140: 15 | W140: 13.5 | X140: =(1-VLOOKUP(S140,Start!$H$33:$I$40,2,FALSE)/100)*W140 -> 11.475 | Y140: =VLOOKUP(R140,Start!$C$9:$D$15,2,FALSE)+VLOOKUP(R140,Start!$C$23:$D$29,2,FALSE) -> 58.77 | Z140: =(Y140/T140)+Start!$D$19*(VLOOKUP(R140,Start!$M$33:$N$39,2,FALSE)/T140)+VLOOKUP(S140,Start!$C$33:$D$40,2,FALSE) -> 215.7499341
C141: Ja | D141: SEE909297051026 | E141: BNA1509 | F141: BP Europa SE | G141: GT2 | H141: 49808 | I141: Lingen | J141: Raffineriestraße 1 | K141: Niedersachsen | L141: 1996-12-06 | M141: Mineralölprodukte | N141: Erdgas, Erdölgas | O141: Mineralölprodukte | P141: Ja | Q141: Gasturbinen mit Abhitzekessel | R141: Öl | S141: Öl | T141: 0.3806 | U141: OPSD (2020) | V141: 24.88 | W141: 22.7 | X141: =(1-VLOOKUP(S141,Start!$H$33:$I$40,2,FALSE)/100)*W141 -> 19.295 | Y141: =VLOOKUP(R141,Start!$C$9:$D$15,2,FALSE)+VLOOKUP(R141,Start!$C$23:$D$29,2,FALSE) -> 58.77 | Z141: =(Y141/T141)+Start!$D$19*(VLOOKUP(R141,Start!$M$33:$N$39,2,FALSE)/T141)+VLOOKUP(S141,Start!$C$33:$D$40,2,FALSE) -> 215.1292696
C142: Ja | D142: SEE909339504022 | E142: BNA1331 | F142: R.D.M. Arnsberg GmbH | G142: SSW-VT | H142: 59821 | I142: Arnsberg | J142: Hellefelder Straße 51 | K142: Nordrhein-Westfalen | L142: 1957-02-27 | M142: Steinkohle | N142: Steinkohlen | O142: Steinkohle | P142: Ja | Q142: Gegendruckmaschine ohne Entnahme | R142: Steinkohle | S142: Steinkohle | T142: 0.2325 | U142: OPSD (2020) | V142: 7 | W142: 6.14 | X142: =(1-VLOOKUP(S142,Start!$H$33:$I$40,2,FALSE)/100)*W142 -> 4.912 | Y142: =VLOOKUP(R142,Start!$C$9:$D$15,2,FALSE)+VLOOKUP(R142,Start!$C$23:$D$29,2,FALSE) -> 42.45 | Z142: =(Y142/T142)+Start!$D$19*(VLOOKUP(R142,Start!$M$33:$N$39,2,FALSE)/T142)+VLOOKUP(S142,Start!$C$33:$D$40,2,FALSE) -> 301.5335054
C143: Ja | D143: SEE909438607068 | E143: BNA0499 | F143: Infraserv GmbH & Co. Höchst KG | G143: IPH Strom VT3 | H143: 65929 | I143: Frankfurt | J143: Brüningstraße 50 | K143: Hessen | L143: 2021-09-15 | M143: Erdgas | N143: Erdgas, Erdölgas | O143: Erdgas | P143: Ja | Q143: Gegendruckmaschine ohne Entnahme | R143: Erdgas | S143: GuD | T143: 0.407 | U143: Annahme basierend auf DIW (2014) | V143: 13 | W143: 12.9 | X143: =(1-VLOOKUP(S143,Start!$H$33:$I$40,2,FALSE)/100)*W143 -> 11.223 | Y143: =VLOOKUP(R143,Start!$C$9:$D$15,2,FALSE)+VLOOKUP(R143,Start!$C$23:$D$29,2,FALSE) -> 128.9 | Z143: =(Y143/T143)+Start!$D$19*(VLOOKUP(R143,Start!$M$33:$N$39,2,FALSE)/T143)+VLOOKUP(S143,Start!$C$33:$D$40,2,FALSE) -> 358.2940295
C144: Ja | D144: SEE909553236495 | F144: Arla Foods Deutschland GmbH | G144: Turbine Pronsfeld | H144: 54597 | I144: Pronsfeld | J144: Im Scheid 1 | K144: Rheinland-Pfalz | L144: 2021-10-27 | M144: Erdgas | N144: Erdgas, Erdölgas | O144: Erdgas | P144: Ja | Q144: Gasturbinen mit Abhitzekessel | R144: Erdgas | S144: GuD | T144: 0.47 | U144: Annahme basierend auf DIW (2014) | V144: 12.982 | W144: 12.255 | X144: =(1-VLOOKUP(S144,Start!$H$33:$I$40,2,FALSE)/100)*W144 -> 10.66185 | Y144: =VLOOKUP(R144,Start!$C$9:$D$15,2,FALSE)+VLOOKUP(R144,Start!$C$23:$D$29,2,FALSE) -> 128.9 | Z144: =(Y144/T144)+Start!$D$19*(VLOOKUP(R144,Start!$M$33:$N$39,2,FALSE)/T144)+VLOOKUP(S144,Start!$C$33:$D$40,2,FALSE) -> 310.4684468
C145: Ja | D145: SEE909727831365 | E145: BNA1105 | F145: TEAG Thüringer Energie AG | G145: Gasturbine Bad Salzungen | H145: 36433 | I145: Bad Salzungen | J145: Langenfelder Straße 82 | K145: Thüringen | L145: 1993-10-28 | M145: Erdgas | N145: Erdgas, Erdölgas | O145: Erdgas | P145: Ja | Q145: Gasturbinen mit Abhitzekessel | R145: Erdgas | S145: GuD | T145: 0.3784 | U145: OPSD (2020) | V145: 10.005 | W145: 9.829 | X145: =(1-VLOOKUP(S145,Start!$H$33:$I$40,2,FALSE)/100)*W145 -> 8.55123 | Y145: =VLOOKUP(R145,Start!$C$9:$D$15,2,FALSE)+VLOOKUP(R145,Start!$C$23:$D$29,2,FALSE) -> 128.9 | Z145: =(Y145/T145)+Start!$D$19*(VLOOKUP(R145,Start!$M$33:$N$39,2,FALSE)/T145)+VLOOKUP(S145,Start!$C$33:$D$40,2,FALSE) -> 385.2610201
C146: Ja | D146: SEE909886576275 | E146: BNA1023 | F146: RWE Power AG | G146: Weißweiler G VGT | H146: 52249 | I146: Eschweiler | J146: Zum Hagelkreuz 22 | K146: Nordrhein-Westfalen | L146: 2006-08-04 | M146: Erdgas | N146: Erdgas, Erdölgas | O146: Erdgas | P146: Nein | Q146: Kondensationsmaschine mit Entnahme | R146: Erdgas | S146: GuD | T146: 0.5 | U146: OPSD (2020) | V146: 202 | W146: 200 | X146: =(1-VLOOKUP(S146,Start!$H$33:$I$40,2,FALSE)/100)*W146 -> 174 | Y146: =VLOOKUP(R146,Start!$C$9:$D$15,2,FALSE)+VLOOKUP(R146,Start!$C$23:$D$29,2,FALSE) -> 128.9 | Z146: =(Y146/T146)+Start!$D$19*(VLOOKUP(R146,Start!$M$33:$N$39,2,FALSE)/T146)+VLOOKUP(S146,Start!$C$33:$D$40,2,FALSE) -> 291.93034
C147: Ja | D147: SEE909927513559 | E147: BNA0626 | F147: Kraftwerke Mainz-Wiesbaden AG | G147: KW3 GT31 | H147: 55120 | I147: Mainz | J147: Kraftwerkallee 1 | K147: Rheinland-Pfalz | L147: 2001-07-05 | M147: Erdgas | N147: Erdgas, Erdölgas | O147: Erdgas | P147: Ja | Q147: Gasturbinen mit Abhitzekessel | R147: Erdgas | S147: GuD | T147: 0.58 | U147: OPSD (2020) | V147: 296.3 | W147: 291.3 | X147: =(1-VLOOKUP(S147,Start!$H$33:$I$40,2,FALSE)/100)*W147 -> 253.431 | Y147: =VLOOKUP(R147,Start!$C$9:$D$15,2,FALSE)+VLOOKUP(R147,Start!$C$23:$D$29,2,FALSE) -> 128.9 | Z147: =(Y147/T147)+Start!$D$19*(VLOOKUP(R147,Start!$M$33:$N$39,2,FALSE)/T147)+VLOOKUP(S147,Start!$C$33:$D$40,2,FALSE) -> 251.8709828
C148: Ja | D148: SEE909963484639 | F148: BMW AG Niederlassung Stuttgart | G148: BMW Landshut KWK 3 | H148: 84030 | I148: Landshut | J148: Ohmstraße 2 | K148: Bayern | L148: 2014-07-31 | M148: Erdgas | N148: Erdgas, Erdölgas | O148: Erdgas | P148: Ja | Q148: Verbrennungsmotor | R148: Erdgas | S148: GuD | T148: 0.4 | U148: eigene Annahme | V148: 2.627 | W148: 2.55 | X148: =(1-VLOOKUP(S148,Start!$H$33:$I$40,2,FALSE)/100)*W148 -> 2.2185 | Y148: =VLOOKUP(R148,Start!$C$9:$D$15,2,FALSE)+VLOOKUP(R148,Start!$C$23:$D$29,2,FALSE) -> 128.9 | Z148: =(Y148/T148)+Start!$D$19*(VLOOKUP(R148,Start!$M$33:$N$39,2,FALSE)/T148)+VLOOKUP(S148,Start!$C$33:$D$40,2,FALSE) -> 364.537925
C149: Ja | D149: SEE910080930862 | E149: BNA1866 | F149: GLOBALFOUNDRIES Dresden Module One LLC & Co. KG | G149: Gasmotoren-Blockheizkraftwerk II (Generator 4) | H149: 1468 | I149: Moritzburg | J149: Ringstraße 3 | K149: Sachsen | L149: 2004-11-10 | M149: Erdgas | N149: Erdgas, Erdölgas | O149: Erdgas | P149: Ja | Q149: Verbrennungsmotor | R149: Erdgas | S149: GuD | T149: 0.442 | U149: Annahme basierend auf DIW (2014) | V149: 3.832 | W149: 3.772 | X149: =(1-VLOOKUP(S149,Start!$H$33:$I$40,2,FALSE)/100)*W149 -> 3.28164 | Y149: =VLOOKUP(R149,Start!$C$9:$D$15,2,FALSE)+VLOOKUP(R149,Start!$C$23:$D$29,2,FALSE) -> 128.9 | Z149: =(Y149/T149)+Start!$D$19*(VLOOKUP(R149,Start!$M$33:$N$39,2,FALSE)/T149)+VLOOKUP(S149,Start!$C$33:$D$40,2,FALSE) -> 330.0411086
C150: Ja | D150: SEE910102553963 | E150: BNA1120 | F150: Rain Carbon Germany GmbH | G150: Gasturbinenanlage Castrop-Rauxel | H150: 44579 | I150: Castrop-Rauxel | J150: Kekulestraße 30 | K150: Nordrhein-Westfalen | L150: 1992-06-15 | M150: Erdgas | N150: Erdgas, Erdölgas | O150: Erdgas | P150: ja | Q150: Gasturbinen mit Abhitzekessel | R150: Erdgas | S150: GuD | T150: 0.3566 | U150: OPSD (2020) | V150: 10.3 | W150: 10 | X150: =(1-VLOOKUP(S150,Start!$H$33:$I$40,2,FALSE)/100)*W150 -> 8.7 | Y150: =VLOOKUP(R150,Start!$C$9:$D$15,2,FALSE)+VLOOKUP(R150,Start!$C$23:$D$29,2,FALSE) -> 128.9 | Z150: =(Y150/T150)+Start!$D$19*(VLOOKUP(R150,Start!$M$33:$N$39,2,FALSE)/T150)+VLOOKUP(S150,Start!$C$33:$D$40,2,FALSE) -> 408.7214526
C151: Ja | D151: SEE910161577337 | E151: BNA0557a | F151: Currenta GmbH & Co. OHG | G151: UER L57 M1 | H151: 47829 | I151: Krefeld | J151: Rheinuferstraße 7 | K151: Nordrhein-Westfalen | L151: 1993-12-15 | M151: Steinkohle | N151: Steinkohlen | O151: Steinkohle | P151: Ja | Q151: Gegendruckmaschine mit Entnahme | R151: Steinkohle | S151: Steinkohle | T151: 0.3175 | U151: OPSD (2020) | V151: 18.2 | W151: 17.097 | X151: =(1-VLOOKUP(S151,Start!$H$33:$I$40,2,FALSE)/100)*W151 -> 13.6776 | Y151: =VLOOKUP(R151,Start!$C$9:$D$15,2,FALSE)+VLOOKUP(R151,Start!$C$23:$D$29,2,FALSE) -> 42.45 | Z151: =(Y151/T151)+Start!$D$19*(VLOOKUP(R151,Start!$M$33:$N$39,2,FALSE)/T151)+VLOOKUP(S151,Start!$C$33:$D$40,2,FALSE) -> 221.1560315
C152: Ja | D152: SEE910326850336 | E152: BNA1861 | F152: BMW AG Niederlassung Stuttgart | G152: Regensburg KWK 1 | H152: 93055 | I152: Regensburg | J152: Herbert-Quandt-Allee 1 | K152: Bayern | L152: 2011-07-05 | M152: Erdgas | N152: Erdgas, Erdölgas | O152: Erdgas | P152: Ja | Q152: Verbrennungsmotor | R152: Erdgas | S152: GuD | T152: 0.3982 | U152: OPSD (2020) | V152: 2.678 | W152: 2.624 | X152: =(1-VLOOKUP(S152,Start!$H$33:$I$40,2,FALSE)/100)*W152 -> 2.28288 | Y152: =VLOOKUP(R152,Start!$C$9:$D$15,2,FALSE)+VLOOKUP(R152,Start!$C$23:$D$29,2,FALSE) -> 128.9 | Z152: =(Y152/T152)+Start!$D$19*(VLOOKUP(R152,Start!$M$33:$N$39,2,FALSE)/T152)+VLOOKUP(S152,Start!$C$33:$D$40,2,FALSE) -> 366.1789804
C153: Ja | D153: SEE910471578864 | E153: BNA1086 | F153: Stadtwerke Würzburg AG | G153: Heizkraftwerk an der Friedensbrücke DampfturbineII | H153: 97080 | I153: Würzburg | J153: Veitshöchheimer Straße 1 | K153: Bayern | L153: 1993-10-26 | M153: Erdgas | N153: Erdgas, Erdölgas | O153: Erdgas | P153: Ja | Q153: Kondensationsmaschine mit Entnahme | R153: Erdgas | S153: GuD | T153: 0.25 | U153: OPSD (2020) | V153: 25.5 | W153: 25 | X153: =(1-VLOOKUP(S153,Start!$H$33:$I$40,2,FALSE)/100)*W153 -> 21.75 | Y153: =VLOOKUP(R153,Start!$C$9:$D$15,2,FALSE)+VLOOKUP(R153,Start!$C$23:$D$29,2,FALSE) -> 128.9 | Z153: =(Y153/T153)+Start!$D$19*(VLOOKUP(R153,Start!$M$33:$N$39,2,FALSE)/T153)+VLOOKUP(S153,Start!$C$33:$D$40,2,FALSE) -> 582.36068
C154: Ja | D154: SEE910623192382 | F154: Südzucker AG | G154: Dampfturbine II Südzucker Offstein | H154: 67283 | I154: Obrigheim | J154: Wormser Straße 11 | K154: Rheinland-Pfalz | L154: 1969-01-01 | M154: Wärme | N154: Prozessdampf | O154: Wärme | P154: Ja | Q154: Gegendruckmaschine ohne Entnahme | R154: Sonstige | S154: Sonstige | T154: 0.33 | U154: eigene Annahme | V154: 8.67 | W154: 7.48915 | X154: =(1-VLOOKUP(S154,Start!$H$33:$I$40,2,FALSE)/100)*W154 -> 6.3657775 | Y154: =VLOOKUP(R154,Start!$C$9:$D$15,2,FALSE)+VLOOKUP(R154,Start!$C$23:$D$29,2,FALSE) -> 58.47 | Z154: =(Y154/T154)+Start!$D$19*(VLOOKUP(R154,Start!$M$33:$N$39,2,FALSE)/T154)+VLOOKUP(S154,Start!$C$33:$D$40,2,FALSE) -> 230.8193333
C155: Ja | D155: SEE910806335483 | F155: Stadtwerke Karlsruhe GmbH | G155: Spitzenstromerzeuger 4 (Diesel 4 HKW-West) | H155: 76189 | I155: Karlsruhe | J155: Honsellstraße 35 | K155: Baden-Württemberg | L155: 1981-01-28 | M155: Mineralölprodukte | N155: Dieselkraftstoff | O155: Mineralölprodukte | P155: Nein | Q155: Verbrennungsmotor | R155: Öl | S155: Öl | T155: 0.38 | U155: eigene Annahme | V155: 3.3 | W155: 3.3 | X155: =(1-VLOOKUP(S155,Start!$H$33:$I$40,2,FALSE)/100)*W155 -> 2.805 | Y155: =VLOOKUP(R155,Start!$C$9:$D$15,2,FALSE)+VLOOKUP(R155,Start!$C$23:$D$29,2,FALSE) -> 58.77 | Z155: =(Y155/T155)+Start!$D$19*(VLOOKUP(R155,Start!$M$33:$N$39,2,FALSE)/T155)+VLOOKUP(S155,Start!$C$33:$D$40,2,FALSE) -> 215.4673684
C156: Ja | D156: SEE910823411191 | E156: BNA1946 | F156: BMW AG Niederlassung Stuttgart | G156: Werk 1.1 KWK 1 | H156: 80809 | I156: München | J156: Lerchenauer Straße 76 | K156: Bayern | L156: 2019-02-20 | M156: Erdgas | N156: Erdgas, Erdölgas | O156: Erdgas | P156: Ja | Q156: Verbrennungsmotor | R156: Erdgas | S156: GuD | T156: 0.4059 | U156: OPSD (2020) | V156: 4.5 | W156: 4.5 | X156: =(1-VLOOKUP(S156,Start!$H$33:$I$40,2,FALSE)/100)*W156 -> 3.915 | Y156: =VLOOKUP(R156,Start!$C$9:$D$15,2,FALSE)+VLOOKUP(R156,Start!$C$23:$D$29,2,FALSE) -> 128.9 | Z156: =(Y156/T156)+Start!$D$19*(VLOOKUP(R156,Start!$M$33:$N$39,2,FALSE)/T156)+VLOOKUP(S156,Start!$C$33:$D$40,2,FALSE) -> 359.260951
C157: Ja | D157: SEE910877433255 | F157: ExxonMobil Production Deutschland GmbH | G157: Expansionsturbinen S2 | H157: 26197 | I157: Großenkneten | J157: vor dem esch 12 | K157: Niedersachsen | L157: 1992-01-01 | M157: Druck aus Wasserleitungen | O157: Sonstige Energieträger (nicht erneuerbar) | P157: Nein | Q157: Sonstige | R157: Sonstige | S157: Sonstige | T157: 0.385 | U157: eigene Annahme | V157: 1.3 | W157: 1.2 | X157: =(1-VLOOKUP(S157,Start!$H$33:$I$40,2,FALSE)/100)*W157 -> 1.02 | Y157: =VLOOKUP(R157,Start!$C$9:$D$15,2,FALSE)+VLOOKUP(R157,Start!$C$23:$D$29,2,FALSE) -> 58.47 | Z157: =(Y157/T157)+Start!$D$19*(VLOOKUP(R157,Start!$M$33:$N$39,2,FALSE)/T157)+VLOOKUP(S157,Start!$C$33:$D$40,2,FALSE) -> 197.988
C158: Ja | D158: SEE910951087138 | E158: BNA1406 | F158: MM Neuss GmbH | G158: MM Neuss GmbH GT1 | H158: 41460 | I158: Neuss | J158: Düsseldorfer Straße 182 | K158: Nordrhein-Westfalen | L158: 1992-07-01 | M158: Erdgas | N158: Erdgas, Erdölgas | O158: Erdgas | P158: Ja | Q158: Gasturbinen mit Abhitzekessel | R158: Erdgas | S158: GuD | T158: 0.3762 | U158: OPSD (2020) | V158: 6.2 | W158: 4.8 | X158: =(1-VLOOKUP(S158,Start!$H$33:$I$40,2,FALSE)/100)*W158 -> 4.176 | Y158: =VLOOKUP(R158,Start!$C$9:$D$15,2,FALSE)+VLOOKUP(R158,Start!$C$23:$D$29,2,FALSE) -> 128.9 | Z158: =(Y158/T158)+Start!$D$19*(VLOOKUP(R158,Start!$M$33:$N$39,2,FALSE)/T158)+VLOOKUP(S158,Start!$C$33:$D$40,2,FALSE) -> 387.5052366
C159: Ja | D159: SEE911097916719 | E159: BNA0233 | F159: Model Sachsen Papier GmbH | G159: Gasturbine Model Sachsen Papier | H159: 4838 | I159: Eilenburg | J159: Am Schanzberg 1 | K159: Sachsen | L159: 2009-12-15 | M159: Erdgas | N159: Erdgas, Erdölgas | O159: Erdgas | P159: Ja | Q159: Gasturbinen mit nachgeschalteter Dampfturbine | R159: Erdgas | S159: GuD | T159: 0.3773 | U159: OPSD (2020) | V159: 30.64926 | W159: 29.472 | X159: =(1-VLOOKUP(S159,Start!$H$33:$I$40,2,FALSE)/100)*W159 -> 25.64064 | Y159: =VLOOKUP(R159,Start!$C$9:$D$15,2,FALSE)+VLOOKUP(R159,Start!$C$23:$D$29,2,FALSE) -> 128.9 | Z159: =(Y159/T159)+Start!$D$19*(VLOOKUP(R159,Start!$M$33:$N$39,2,FALSE)/T159)+VLOOKUP(S159,Start!$C$33:$D$40,2,FALSE) -> 386.3798569
C160: Ja | D160: SEE911257641864 | E160: BNA1503 | F160: Mercedes-Benz AG | G160: Gebäude 120 / BHKW Modul 02 | H160: 40476 | I160: Düsseldorf | J160: Rather Straße 51 | K160: Nordrhein-Westfalen | L160: 2012-10-31 | M160: Erdgas | N160: Erdgas, Erdölgas | O160: Erdgas | P160: Ja | Q160: Gasturbinen mit Abhitzekessel | R160: Erdgas | S160: GuD | T160: 0.3982 | U160: OPSD (2020) | V160: 4.3 | W160: 4.2 | X160: =(1-VLOOKUP(S160,Start!$H$33:$I$40,2,FALSE)/100)*W160 -> 3.654 | Y160: =VLOOKUP(R160,Start!$C$9:$D$15,2,FALSE)+VLOOKUP(R160,Start!$C$23:$D$29,2,FALSE) -> 128.9 | Z160: =(Y160/T160)+Start!$D$19*(VLOOKUP(R160,Start!$M$33:$N$39,2,FALSE)/T160)+VLOOKUP(S160,Start!$C$33:$D$40,2,FALSE) -> 366.1789804
C161: Ja | D161: SEE911283118750 | E161: BNA1531 | F161: Industriekraftwerk Greifswald GmbH | G161: Industriekraftwerk Greifswald GmbH | H161: 17509 | I161: Lubmin | J161: Am Hafen 2 | K161: Mecklenburg-Vorpommern | L161: 2013-12-17 | M161: Erdgas | N161: Erdgas, Erdölgas | O161: Erdgas | P161: Ja | Q161: Gasturbinen mit Abhitzekessel | R161: Erdgas | S161: GuD | T161: 0.3993 | U161: OPSD (2018) | V161: 39 | W161: 38.2 | X161: =(1-VLOOKUP(S161,Start!$H$33:$I$40,2,FALSE)/100)*W161 -> 33.234 | Y161: =VLOOKUP(R161,Start!$C$9:$D$15,2,FALSE)+VLOOKUP(R161,Start!$C$23:$D$29,2,FALSE) -> 128.9 | Z161: =(Y161/T161)+Start!$D$19*(VLOOKUP(R161,Start!$M$33:$N$39,2,FALSE)/T161)+VLOOKUP(S161,Start!$C$33:$D$40,2,FALSE) -> 365.1743551
C162: Ja | D162: SEE911507913505 | F162: Kelheim Fibres GmbH | G162: Turbine 2 | H162: 93309 | I162: Kelheim | J162: Regensburger Straße 109 | K162: Bayern | L162: 1990-07-18 | M162: Erdgas | N162: Erdgas, Erdölgas | O162: Erdgas | P162: Ja | Q162: Gegendruckmaschine ohne Entnahme | R162: Erdgas | S162: GuD | T162: 0.35 | U162: eigene Annahme | V162: 2.943 | W162: 2.722 | X162: =(1-VLOOKUP(S162,Start!$H$33:$I$40,2,FALSE)/100)*W162 -> 2.36814 | Y162: =VLOOKUP(R162,Start!$C$9:$D$15,2,FALSE)+VLOOKUP(R162,Start!$C$23:$D$29,2,FALSE) -> 128.9 | Z162: =(Y162/T162)+Start!$D$19*(VLOOKUP(R162,Start!$M$33:$N$39,2,FALSE)/T162)+VLOOKUP(S162,Start!$C$33:$D$40,2,FALSE) -> 416.4004857
C163: Ja | D163: SEE911567250299 | E163: BNA0759 | F163: Uniper Kraftwerke GmbH | G163: Itzehoe GT | H163: 25588 | I163: Oldendorf | J163: Straße nach Huje 1 | K163: Schleswig-Holstein | L163: 1972-01-01 | M163: Mineralölprodukte | N163: Heizöl, leicht | O163: Mineralölprodukte | P163: Nein | Q163: Gasturbinen ohne Abhitzekessel | R163: Öl | S163: Öl | T163: 0.3542 | U163: OPSD (2020) | V163: 88 | W163: 87 | X163: =(1-VLOOKUP(S163,Start!$H$33:$I$40,2,FALSE)/100)*W163 -> 73.95 | Y163: =VLOOKUP(R163,Start!$C$9:$D$15,2,FALSE)+VLOOKUP(R163,Start!$C$23:$D$29,2,FALSE) -> 58.77 | Z163: =(Y163/T163)+Start!$D$19*(VLOOKUP(R163,Start!$M$33:$N$39,2,FALSE)/T163)+VLOOKUP(S163,Start!$C$33:$D$40,2,FALSE) -> 231.0892151
C164: Ja | D164: SEE911613995433 | E164: BNA1004 | F164: EnBW Energie Baden-Württemberg AG | G164: Kraftwerk Walheim GTD | H164: 74399 | I164: Walheim | J164: Mühlstraße 1 | K164: Baden-Württemberg | L164: 1981-05-13 | M164: Mineralölprodukte | N164: Heizöl, leicht | O164: Mineralölprodukte | P164: Nein | Q164: Gasturbinen ohne Abhitzekessel | R164: Öl | S164: Öl | T164: 0.3306 | U164: OPSD (2020) | V164: 143 | W164: 136 | X164: =(1-VLOOKUP(S164,Start!$H$33:$I$40,2,FALSE)/100)*W164 -> 115.6 | Y164: =VLOOKUP(R164,Start!$C$9:$D$15,2,FALSE)+VLOOKUP(R164,Start!$C$23:$D$29,2,FALSE) -> 58.77 | Z164: =(Y164/T164)+Start!$D$19*(VLOOKUP(R164,Start!$M$33:$N$39,2,FALSE)/T164)+VLOOKUP(S164,Start!$C$33:$D$40,2,FALSE) -> 247.5142166
C165: Ja | D165: SEE911671792326 | E165: BNA0606 | F165: RWE Generation SE | G165: Emsland D GT1 | H165: 49808 | I165: Lingen | J165: Schüttorfer Straße 100 | K165: Niedersachsen | L165: 2010-09-08 | M165: Erdgas | N165: Erdgas, Erdölgas | O165: Erdgas | P165: Ja | Q165: Gasturbinen mit nachgeschalteter Dampfturbine | R165: Erdgas | S165: GuD | T165: 0.592 | U165: OPSD (2020) | V165: 297.93 | W165: 293.5 | X165: =(1-VLOOKUP(S165,Start!$H$33:$I$40,2,FALSE)/100)*W165 -> 255.345 | Y165: =VLOOKUP(R165,Start!$C$9:$D$15,2,FALSE)+VLOOKUP(R165,Start!$C$23:$D$29,2,FALSE) -> 128.9 | Z165: =(Y165/T165)+Start!$D$19*(VLOOKUP(R165,Start!$M$33:$N$39,2,FALSE)/T165)+VLOOKUP(S165,Start!$C$33:$D$40,2,FALSE) -> 246.7958953
C166: Ja | D166: SEE911689709217 | F166: Smurfit Kappa Herzberg Solid Board GmbH | G166: Dampfturbine 2 | H166: 37412 | I166: Herzberg | J166: Andreasberger Straße 1 | K166: Niedersachsen | L166: 1957-01-01 | M166: Erdgas | N166: Erdgas, Erdölgas | O166: Erdgas | P166: Ja | Q166: Kondensationsmaschine mit Entnahme | R166: Erdgas | S166: GuD | T166: 0.4 | U166: eigene Annahme | V166: 6.4 | W166: 6 | X166: =(1-VLOOKUP(S166,Start!$H$33:$I$40,2,FALSE)/100)*W166 -> 5.22 | Y166: =VLOOKUP(R166,Start!$C$9:$D$15,2,FALSE)+VLOOKUP(R166,Start!$C$23:$D$29,2,FALSE) -> 128.9 | Z166: =(Y166/T166)+Start!$D$19*(VLOOKUP(R166,Start!$M$33:$N$39,2,FALSE)/T166)+VLOOKUP(S166,Start!$C$33:$D$40,2,FALSE) -> 364.537925
C167: Ja | D167: SEE911764038249 | E167: BNA0744 | F167: Uniper Kraftwerke GmbH | G167: Franken DT1 | H167: 90449 | I167: Nürnberg | J167: Felsenstraße 14 | K167: Bayern | L167: 1973-01-01 | M167: Erdgas | N167: Erdgas, Erdölgas | O167: Erdgas | P167: Nein | Q167: Kondensationsmaschine mit Entnahme | R167: Erdgas | S167: GuD | T167: 0.4185 | U167: OPSD (2020) | V167: 395 | W167: 383 | X167: =(1-VLOOKUP(S167,Start!$H$33:$I$40,2,FALSE)/100)*W167 -> 333.21 | Y167: =VLOOKUP(R167,Start!$C$9:$D$15,2,FALSE)+VLOOKUP(R167,Start!$C$23:$D$29,2,FALSE) -> 128.9 | Z167: =(Y167/T167)+Start!$D$19*(VLOOKUP(R167,Start!$M$33:$N$39,2,FALSE)/T167)+VLOOKUP(S167,Start!$C$33:$D$40,2,FALSE) -> 348.4896535
C168: Ja | D168: SEE911850657996 | E168: BNA0557b | F168: Currenta GmbH & Co. OHG | G168: UER N230 VST1 | H168: 47829 | I168: Krefeld | J168: Rheinuferstraße 7 | K168: Nordrhein-Westfalen | L168: 1963-01-28 | M168: Steinkohle | N168: Steinkohlen | O168: Steinkohle | P168: Ja | Q168: Gegendruckmaschine ohne Entnahme | R168: Steinkohle | S168: Steinkohle | T168: 0.3525 | U168: OPSD (2020) | V168: 9 | W168: 6.5 | X168: =(1-VLOOKUP(S168,Start!$H$33:$I$40,2,FALSE)/100)*W168 -> 5.2 | Y168: =VLOOKUP(R168,Start!$C$9:$D$15,2,FALSE)+VLOOKUP(R168,Start!$C$23:$D$29,2,FALSE) -> 42.45 | Z168: =(Y168/T168)+Start!$D$19*(VLOOKUP(R168,Start!$M$33:$N$39,2,FALSE)/T168)+VLOOKUP(S168,Start!$C$33:$D$40,2,FALSE) -> 199.3263546
C169: Ja | D169: SEE912008346410 | F169: Baden Board GmbH | G169: Dampfturbine | H169: 76593 | I169: Gernsbach | J169: Fabrikstraße 1 | K169: Baden-Württemberg | L169: 1974-01-01 | M169: Wärme | N169: Prozessdampf | O169: Wärme | P169: Ja | Q169: Gegendruckmaschine mit Entnahme | R169: Sonstige | S169: Sonstige | T169: 0.35 | U169: eigene Annahme | V169: 10.8 | W169: 10.5 | X169: =(1-VLOOKUP(S169,Start!$H$33:$I$40,2,FALSE)/100)*W169 -> 8.925 | Y169: =VLOOKUP(R169,Start!$C$9:$D$15,2,FALSE)+VLOOKUP(R169,Start!$C$23:$D$29,2,FALSE) -> 58.47 | Z169: =(Y169/T169)+Start!$D$19*(VLOOKUP(R169,Start!$M$33:$N$39,2,FALSE)/T169)+VLOOKUP(S169,Start!$C$33:$D$40,2,FALSE) -> 217.6868
C170: Ja | D170: SEE912020488365 | E170: BNA0217 | F170: thyssenkrupp Steel Europe AG | G170: Ruhrort 2 | H170: 47166 | I170: Duisburg | J170: Kaiser-Wilhelm-Str. 100 | K170: Nordrhein-Westfalen | L170: 1955-01-01 | M170: andere Gase | N170: Hochofengas, Konvertergas | O170: Sonstige Energieträger (nicht erneuerbar) | P170: Ja | Q170: Kondensationsmaschine mit Entnahme | R170: Erdgas | S170: GuD | T170: 0.33 | U170: Annahme basierend auf DIW (2014) | V170: 64 | W170: 59.6 | X170: =(1-VLOOKUP(S170,Start!$H$33:$I$40,2,FALSE)/100)*W170 -> 51.852 | Y170: =VLOOKUP(R170,Start!$C$9:$D$15,2,FALSE)+VLOOKUP(R170,Start!$C$23:$D$29,2,FALSE) -> 128.9 | Z170: =(Y170/T170)+Start!$D$19*(VLOOKUP(R170,Start!$M$33:$N$39,2,FALSE)/T170)+VLOOKUP(S170,Start!$C$33:$D$40,2,FALSE) -> 441.5459697
C171: Ja | D171: SEE912160334607 | E171: BNA0594 | F171: TotalEnergies Raffinerie Mitteldeutschland GmbH | G171: Leuna GT2 | H171: 6237 | I171: Leuna | K171: Sachsen-Anhalt | L171: 1994-07-01 | M171: Erdgas | N171: Erdgas, Erdölgas | O171: Erdgas | P171: Ja | Q171: Gasturbinen mit Abhitzekessel | R171: Erdgas | S171: GuD | T171: 0.513 | U171: OPSD (2020) | V171: 37.6 | W171: 37 | X171: =(1-VLOOKUP(S171,Start!$H$33:$I$40,2,FALSE)/100)*W171 -> 32.19 | Y171: =VLOOKUP(R171,Start!$C$9:$D$15,2,FALSE)+VLOOKUP(R171,Start!$C$23:$D$29,2,FALSE) -> 128.9 | Z171: =(Y171/T171)+Start!$D$19*(VLOOKUP(R171,Start!$M$33:$N$39,2,FALSE)/T171)+VLOOKUP(S171,Start!$C$33:$D$40,2,FALSE) -> 284.5705068
C172: Ja | D172: SEE912257091857 | E172: BNA0287b | F172: MHKW Müllheizkraftwerk Frankfurt am Main GmbH | G172: Turbine 7 | H172: 60439 | I172: Frankfurt | J172: Heddernheimer Landstraße 157 | K172: Hessen | L172: 2005-12-21 | M172: nicht biogener Abfall | N172: nicht biogener Abfall (Hausmüll, Siedlungsabfälle) | O172: Abfall | P172: Ja | Q172: Kondensationsmaschine mit Entnahme | R172: Abfall | S172: Abfall | T172: 0.33 | U172: OPSD (2020) | V172: 47.5 | W172: 46.5 | X172: =(1-VLOOKUP(S172,Start!$H$33:$I$40,2,FALSE)/100)*W172 -> 39.525 | Y172: =VLOOKUP(R172,Start!$C$9:$D$15,2,FALSE)+VLOOKUP(R172,Start!$C$23:$D$29,2,FALSE) -> 0 | Z172: =(Y172/T172)+Start!$D$19*(VLOOKUP(R172,Start!$M$33:$N$39,2,FALSE)/T172)+VLOOKUP(S172,Start!$C$33:$D$40,2,FALSE) -> 1
C173: Ja | D173: SEE912440649056 | E173: BNA1141 | F173: Pfeifer & Langen GmbH ＆ Co. KG | G173: Euskirchen Generator 3 | H173: 53879 | I173: Euskirchen | J173: Bonner Straße 2 | K173: Nordrhein-Westfalen | L173: 1980-07-01 | M173: Braunkohle | N173: Braunkohlenbriketts | O173: Braunkohle | P173: Ja | Q173: Gegendruckmaschine ohne Entnahme | R173: Braunkohle | S173: Braunkohle | T173: 0.3496 | U173: OPSD (2020) | V173: 1.2 | W173: 1.133 | X173: =(1-VLOOKUP(S173,Start!$H$33:$I$40,2,FALSE)/100)*W173 -> 0.98571 | Y173: =VLOOKUP(R173,Start!$C$9:$D$15,2,FALSE)+VLOOKUP(R173,Start!$C$23:$D$29,2,FALSE) -> 3.1 | Z173: =(Y173/T173)+Start!$D$19*(VLOOKUP(R173,Start!$M$33:$N$39,2,FALSE)/T173)+VLOOKUP(S173,Start!$C$33:$D$40,2,FALSE) -> 104.367849
C174: Ja | D174: SEE912764206645 | E174: BNA0261a | F174: Erlanger Stadtwerke AG | G174: HKW - GuD1 | H174: 91052 | I174: Erlangen | J174: Äußere Brucker Straße 33 | K174: Bayern | L174: 2005-09-14 | M174: Erdgas | N174: Erdgas, Erdölgas | O174: Erdgas | P174: Ja | Q174: Gasturbinen mit nachgeschalteter Dampfturbine | R174: Erdgas | S174: GuD | T174: 0.5625 | U174: OPSD (2020) | V174: 22.5 | W174: 21.6 | X174: =(1-VLOOKUP(S174,Start!$H$33:$I$40,2,FALSE)/100)*W174 -> 18.792 | Y174: =VLOOKUP(R174,Start!$C$9:$D$15,2,FALSE)+VLOOKUP(R174,Start!$C$23:$D$29,2,FALSE) -> 128.9 | Z174: =(Y174/T174)+Start!$D$19*(VLOOKUP(R174,Start!$M$33:$N$39,2,FALSE)/T174)+VLOOKUP(S174,Start!$C$33:$D$40,2,FALSE) -> 259.6603022
C175: Ja | D175: SEE912906399075 | E175: BNA0243 | F175: Palm Power GmbH & Co. KG | G175: HKW Eltmann | H175: 97483 | I175: Eltmann | J175: Industriestraße 23 | K175: Bayern | L175: 2017-02-07 | M175: Erdgas | N175: Erdgas, Erdölgas | O175: Erdgas | P175: Ja | Q175: Gasturbinen mit nachgeschalteter Dampfturbine | R175: Erdgas | S175: GuD | T175: 0.3927 | U175: OPSD (2020) | V175: 62.808 | W175: 62.808 | X175: =(1-VLOOKUP(S175,Start!$H$33:$I$40,2,FALSE)/100)*W175 -> 54.64296 | Y175: =VLOOKUP(R175,Start!$C$9:$D$15,2,FALSE)+VLOOKUP(R175,Start!$C$23:$D$29,2,FALSE) -> 128.9 | Z175: =(Y175/T175)+Start!$D$19*(VLOOKUP(R175,Start!$M$33:$N$39,2,FALSE)/T175)+VLOOKUP(S175,Start!$C$33:$D$40,2,FALSE) -> 371.2865292
C176: Ja | D176: SEE912912423627 | E176: BNA0516 | F176: Mineraloelraffinerie Oberrhein | G176: Expander | H176: 76187 | I176: Karlsruhe | J176: Nördliche Raffineriestraße 1 | K176: Baden-Württemberg | L176: 1995-06-17 | M176: Mineralölprodukte | N176: Andere Mineralölprodukte | O176: Mineralölprodukte | P176: Nein | Q176: Sonstige | R176: Öl | S176: Öl | T176: 0.3795 | U176: OPSD (2020) | V176: 19 | W176: 18.9 | X176: =(1-VLOOKUP(S176,Start!$H$33:$I$40,2,FALSE)/100)*W176 -> 16.065 | Y176: =VLOOKUP(R176,Start!$C$9:$D$15,2,FALSE)+VLOOKUP(R176,Start!$C$23:$D$29,2,FALSE) -> 58.77 | Z176: =(Y176/T176)+Start!$D$19*(VLOOKUP(R176,Start!$M$33:$N$39,2,FALSE)/T176)+VLOOKUP(S176,Start!$C$33:$D$40,2,FALSE) -> 215.7499341
C177: Ja | D177: SEE912935247576 | E177: BNA0596 | F177: TotalEnergies Raffinerie Mitteldeutschland GmbH | G177: Raffineriekraftwerk Leuna MDT | H177: 6237 | I177: Leuna | J177: Am Haupttor 3691 | K177: Sachsen-Anhalt | L177: 1997-01-01 | M177: Mineralölprodukte | N177: Andere Mineralölprodukte | O177: Mineralölprodukte | P177: Ja | Q177: Gegendruckmaschine mit Entnahme | R177: Öl | S177: Öl | T177: 0.38 | U177: OPSD (2020) | V177: 38.3 | W177: 33.4 | X177: =(1-VLOOKUP(S177,Start!$H$33:$I$40,2,FALSE)/100)*W177 -> 28.39 | Y177: =VLOOKUP(R177,Start!$C$9:$D$15,2,FALSE)+VLOOKUP(R177,Start!$C$23:$D$29,2,FALSE) -> 58.77 | Z177: =(Y177/T177)+Start!$D$19*(VLOOKUP(R177,Start!$M$33:$N$39,2,FALSE)/T177)+VLOOKUP(S177,Start!$C$33:$D$40,2,FALSE) -> 215.4673684
C178: Ja | D178: SEE912975333499 | E178: BNA1248b | F178: UPM GmbH | G178: UPM Schongau HKW 3 GT | H178: 86956 | I178: Schongau | J178: Friedrich-Haindl-Straße 10 | K178: Bayern | L178: 2014-12-20 | M178: Erdgas | N178: Erdgas, Erdölgas | O178: Erdgas | P178: Ja | Q178: Gasturbinen mit Abhitzekessel | R178: Erdgas | S178: GuD | T178: 0.4004 | U178: OPSD (2020) | V178: 47 | W178: 44.328 | X178: =(1-VLOOKUP(S178,Start!$H$33:$I$40,2,FALSE)/100)*W178 -> 38.56536 | Y178: =VLOOKUP(R178,Start!$C$9:$D$15,2,FALSE)+VLOOKUP(R178,Start!$C$23:$D$29,2,FALSE) -> 128.9 | Z178: =(Y178/T178)+Start!$D$19*(VLOOKUP(R178,Start!$M$33:$N$39,2,FALSE)/T178)+VLOOKUP(S178,Start!$C$33:$D$40,2,FALSE) -> 364.1752498
C179: Ja | D179: SEE912978354040 | E179: BNA1866 | F179: GLOBALFOUNDRIES Dresden Module One LLC & Co. KG | G179: Gasmotoren-Blockheizkraftwerk II (Generator 6) | H179: 1468 | I179: Moritzburg | J179: Ringstraße 3 | K179: Sachsen | L179: 2004-11-10 | M179: Erdgas | N179: Erdgas, Erdölgas | O179: Erdgas | P179: Ja | Q179: Verbrennungsmotor | R179: Erdgas | S179: GuD | T179: 0.442 | U179: Annahme basierend auf DIW (2014) | V179: 3.832 | W179: 3.772 | X179: =(1-VLOOKUP(S179,Start!$H$33:$I$40,2,FALSE)/100)*W179 -> 3.28164 | Y179: =VLOOKUP(R179,Start!$C$9:$D$15,2,FALSE)+VLOOKUP(R179,Start!$C$23:$D$29,2,FALSE) -> 128.9 | Z179: =(Y179/T179)+Start!$D$19*(VLOOKUP(R179,Start!$M$33:$N$39,2,FALSE)/T179)+VLOOKUP(S179,Start!$C$33:$D$40,2,FALSE) -> 330.0411086
C180: Ja | D180: SEE912994271871 | E180: BNA0395 | F180: thyssenkrupp Steel Europe AG | G180: Hamborn 3 | H180: 47166 | I180: Duisburg | J180: Kaiser-Wilhelm-Str. 100 | K180: Nordrhein-Westfalen | L180: 1958-01-01 | M180: andere Gase | N180: Hochofengas, Konvertergas | O180: Sonstige Energieträger (nicht erneuerbar) | P180: Ja | Q180: Kondensationsmaschine mit Entnahme | R180: Erdgas | S180: GuD | T180: 0.33 | U180: Annahme basierend auf DIW (2014) | V180: 64 | W180: 59.6 | X180: =(1-VLOOKUP(S180,Start!$H$33:$I$40,2,FALSE)/100)*W180 -> 51.852 | Y180: =VLOOKUP(R180,Start!$C$9:$D$15,2,FALSE)+VLOOKUP(R180,Start!$C$23:$D$29,2,FALSE) -> 128.9 | Z180: =(Y180/T180)+Start!$D$19*(VLOOKUP(R180,Start!$M$33:$N$39,2,FALSE)/T180)+VLOOKUP(S180,Start!$C$33:$D$40,2,FALSE) -> 441.5459697
C181: Ja | D181: SEE913088869400 | E181: BNA0521 | F181: Städtische Werke Energie + Wärme GmbH | G181: Kombi-HKW GT1 | H181: 34134 | I181: Kassel | J181: Dennhäuser Straße 122 | K181: Hessen | L181: 2021-03-31 | M181: Erdgas | N181: Erdgas, Erdölgas | O181: Erdgas | P181: Ja | Q181: Gasturbinen mit nachgeschalteter Dampfturbine | R181: Erdgas | S181: GuD | T181: 0.407 | U181: Annahme basierend auf DIW (2014) | V181: 17.8 | W181: 17.307 | X181: =(1-VLOOKUP(S181,Start!$H$33:$I$40,2,FALSE)/100)*W181 -> 15.05709 | Y181: =VLOOKUP(R181,Start!$C$9:$D$15,2,FALSE)+VLOOKUP(R181,Start!$C$23:$D$29,2,FALSE) -> 128.9 | Z181: =(Y181/T181)+Start!$D$19*(VLOOKUP(R181,Start!$M$33:$N$39,2,FALSE)/T181)+VLOOKUP(S181,Start!$C$33:$D$40,2,FALSE) -> 358.2940295
C182: Ja | D182: SEE913203719740 | E182: BNA1115 | F182: AG der Dillinger Hüttenwerke | G182: GKW | H182: 66763 | I182: Dillingen | J182: Werkstraße 1 | K182: Saarland | L182: 2009-04-22 | M182: andere Gase | N182: Hochofengas, Konvertergas | O182: Sonstige Energieträger (nicht erneuerbar) | P182: Ja | Q182: Kondensationsmaschine mit Entnahme | R182: Erdgas | S182: GuD | T182: 0.396 | U182: Annahme basierend auf DIW (2014) | V182: 95.558 | W182: 89.337 | X182: =(1-VLOOKUP(S182,Start!$H$33:$I$40,2,FALSE)/100)*W182 -> 77.72319 | Y182: =VLOOKUP(R182,Start!$C$9:$D$15,2,FALSE)+VLOOKUP(R182,Start!$C$23:$D$29,2,FALSE) -> 128.9 | Z182: =(Y182/T182)+Start!$D$19*(VLOOKUP(R182,Start!$M$33:$N$39,2,FALSE)/T182)+VLOOKUP(S182,Start!$C$33:$D$40,2,FALSE) -> 368.2049747
C183: Ja | D183: SEE913280112274 | E183: BNA0804 | F183: K+S Minerals and Agriculture GmbH | G183: Kraftwerk HA DT4 | H183: 36269 | I183: Philippsthal | J183: Hattorfer Straße 1 | K183: Hessen | L183: 1962-07-02 | M183: Wärme | N183: Prozessdampf | O183: Erdgas | P183: Ja | Q183: Gegendruckmaschine mit Entnahme | R183: Erdgas | S183: GuD | T183: 0.3993 | U183: OPSD (2020) | V183: 21 | W183: 21 | X183: =(1-VLOOKUP(S183,Start!$H$33:$I$40,2,FALSE)/100)*W183 -> 18.27 | Y183: =VLOOKUP(R183,Start!$C$9:$D$15,2,FALSE)+VLOOKUP(R183,Start!$C$23:$D$29,2,FALSE) -> 128.9 | Z183: =(Y183/T183)+Start!$D$19*(VLOOKUP(R183,Start!$M$33:$N$39,2,FALSE)/T183)+VLOOKUP(S183,Start!$C$33:$D$40,2,FALSE) -> 365.1743551
C184: Ja | D184: SEE913282681389 | F184: Südzucker AG | G184: Dampfturbine I Südzucker Plattling | H184: 94447 | I184: Plattling | J184: Dr.-Ludwig-Kayser-Straße 1 | K184: Bayern | L184: 1962-07-09 | M184: Wärme | N184: Prozessdampf | O184: Wärme | P184: Ja | Q184: Gegendruckmaschine ohne Entnahme | R184: Sonstige | S184: Sonstige | T184: 0.33 | U184: eigene Annahme | V184: 7.1 | W184: 6.7895 | X184: =(1-VLOOKUP(S184,Start!$H$33:$I$40,2,FALSE)/100)*W184 -> 5.771075 | Y184: =VLOOKUP(R184,Start!$C$9:$D$15,2,FALSE)+VLOOKUP(R184,Start!$C$23:$D$29,2,FALSE) -> 58.47 | Z184: =(Y184/T184)+Start!$D$19*(VLOOKUP(R184,Start!$M$33:$N$39,2,FALSE)/T184)+VLOOKUP(S184,Start!$C$33:$D$40,2,FALSE) -> 230.8193333
C185: Ja | D185: SEE913516809497 | E185: BNA1949 | F185: Uniper Kraftwerke GmbH | G185: Datteln 4 | H185: 45711 | I185: Datteln | J185: Im Löringhof 10 | K185: Nordrhein-Westfalen | L185: 2020-05-30 | M185: Steinkohle | N185: Steinkohlen | O185: Steinkohle | P185: Ja | Q185: Kondensationsmaschine mit Entnahme | R185: Steinkohle | S185: Steinkohle | T185: 0.45 | U185: https://www.uniper.energy/de/datteln-4 | V185: 1100 | W185: 1052 | X185: =(1-VLOOKUP(S185,Start!$H$33:$I$40,2,FALSE)/100)*W185 -> 841.6 | Y185: =VLOOKUP(R185,Start!$C$9:$D$15,2,FALSE)+VLOOKUP(R185,Start!$C$23:$D$29,2,FALSE) -> 42.45 | Z185: =(Y185/T185)+Start!$D$19*(VLOOKUP(R185,Start!$M$33:$N$39,2,FALSE)/T185)+VLOOKUP(S185,Start!$C$33:$D$40,2,FALSE) -> 156.4206444
C186: Ja | D186: SEE913556136355 | E186: BNA1408 | F186: Evonik Operations GmbH | G186: Rheinfelden Dampfturbine | H186: 79618 | I186: Rheinfelden | J186: Untere Kanalstraße 3 | K186: Baden-Württemberg | L186: 2006-01-01 | M186: Erdgas | N186: Erdgas, Erdölgas | O186: Erdgas | P186: Ja | Q186: Gegendruckmaschine mit Entnahme | R186: Erdgas | S186: GuD | T186: 0.3619 | U186: OPSD (2020) | V186: 6.43 | W186: 6.43 | X186: =(1-VLOOKUP(S186,Start!$H$33:$I$40,2,FALSE)/100)*W186 -> 5.5941 | Y186: =VLOOKUP(R186,Start!$C$9:$D$15,2,FALSE)+VLOOKUP(R186,Start!$C$23:$D$29,2,FALSE) -> 128.9 | Z186: =(Y186/T186)+Start!$D$19*(VLOOKUP(R186,Start!$M$33:$N$39,2,FALSE)/T186)+VLOOKUP(S186,Start!$C$33:$D$40,2,FALSE) -> 402.7577231
C187: Ja | D187: SEE913600410226 | E187: BNA0997 | F187: STEAG Gasmotoren Fenne 2 GmbH | G187: Gasmotor 4 Mod. | H187: 66333 | I187: Völklingen | J187: Saarbrücker Straße 135-137 | K187: Saarland | L187: 2021-11-05 | M187: Erdgas | N187: Erdgas, Erdölgas | O187: Erdgas | P187: Ja | Q187: Verbrennungsmotor | R187: Erdgas | S187: GuD | T187: 0.45 | U187: https://www.steag.com/de/leistungen/konventionelle-energieerzeugung | V187: 3.352 | W187: 3.251 | X187: =(1-VLOOKUP(S187,Start!$H$33:$I$40,2,FALSE)/100)*W187 -> 2.82837 | Y187: =VLOOKUP(R187,Start!$C$9:$D$15,2,FALSE)+VLOOKUP(R187,Start!$C$23:$D$29,2,FALSE) -> 128.9 | Z187: =(Y187/T187)+Start!$D$19*(VLOOKUP(R187,Start!$M$33:$N$39,2,FALSE)/T187)+VLOOKUP(S187,Start!$C$33:$D$40,2,FALSE) -> 324.2003778
C188: Ja | D188: SEE913609763316 | E188: BNA1056 | F188: Infraserv GmbH & Co. Wiesbaden KG | G188: Generator 1 Erdgas | H188: 65203 | I188: Wiesbaden | J188: Rheingaustraße | K188: Hessen | L188: 1981-08-31 | M188: Erdgas | N188: Erdgas, Erdölgas | O188: Erdgas | P188: Ja | Q188: Gegendruckmaschine ohne Entnahme | R188: Erdgas | S188: GuD | T188: 0.3916 | U188: OPSD (2020) | V188: 7.25 | W188: 7.25 | X188: =(1-VLOOKUP(S188,Start!$H$33:$I$40,2,FALSE)/100)*W188 -> 6.3075 | Y188: =VLOOKUP(R188,Start!$C$9:$D$15,2,FALSE)+VLOOKUP(R188,Start!$C$23:$D$29,2,FALSE) -> 128.9 | Z188: =(Y188/T188)+Start!$D$19*(VLOOKUP(R188,Start!$M$33:$N$39,2,FALSE)/T188)+VLOOKUP(S188,Start!$C$33:$D$40,2,FALSE) -> 372.3252554
C189: Ja | D189: SEE913657334902 | F189: AUDI | G189: NEC_WERK_PST_SÜD | H189: 74172 | I189: Neckarsulm | J189: NSU-Straße 1 | K189: Baden-Württemberg | L189: 1994-12-31 | M189: Mineralölprodukte | N189: Andere Mineralölprodukte | O189: Mineralölprodukte | P189: Nein | Q189: Verbrennungsmotor | R189: Öl | S189: Öl | T189: 0.38 | U189: eigene Annahme | V189: 20.57 | W189: 20.57 | X189: =(1-VLOOKUP(S189,Start!$H$33:$I$40,2,FALSE)/100)*W189 -> 17.4845 | Y189: =VLOOKUP(R189,Start!$C$9:$D$15,2,FALSE)+VLOOKUP(R189,Start!$C$23:$D$29,2,FALSE) -> 58.77 | Z189: =(Y189/T189)+Start!$D$19*(VLOOKUP(R189,Start!$M$33:$N$39,2,FALSE)/T189)+VLOOKUP(S189,Start!$C$33:$D$40,2,FALSE) -> 215.4673684
C190: Ja | D190: SEE913896693631 | E190: BNA0400 | F190: Hamburger Energiewerke GmbH | G190: GuD Tiefstack | H190: 22113 | I190: Hamburg | J190: Andreas-Meyer-Straße 8 | K190: Hamburg | L190: 2009-05-01 | M190: Erdgas | N190: Erdgas, Erdölgas | O190: Erdgas | P190: Ja | Q190: Gasturbinen mit nachgeschalteter Dampfturbine | R190: Erdgas | S190: GuD | T190: 0.5805 | U190: OPSD (2020) | V190: 129.4 | W190: 127 | X190: =(1-VLOOKUP(S190,Start!$H$33:$I$40,2,FALSE)/100)*W190 -> 110.49 | Y190: =VLOOKUP(R190,Start!$C$9:$D$15,2,FALSE)+VLOOKUP(R190,Start!$C$23:$D$29,2,FALSE) -> 128.9 | Z190: =(Y190/T190)+Start!$D$19*(VLOOKUP(R190,Start!$M$33:$N$39,2,FALSE)/T190)+VLOOKUP(S190,Start!$C$33:$D$40,2,FALSE) -> 251.6553316
C191: Ja | D191: SEE914128531905 | E191: BNA1141 | F191: Pfeifer & Langen GmbH ＆ Co. KG | G191: Euskirchen Generator 2 | H191: 53879 | I191: Euskirchen | J191: Bonner Straße 2 | K191: Nordrhein-Westfalen | L191: 1981-09-01 | M191: Erdgas | N191: Erdgas, Erdölgas | O191: Erdgas | P191: Ja | Q191: Gegendruckmaschine ohne Entnahme | R191: Erdgas | S191: GuD | T191: 0.3496 | U191: OPSD (2020) | V191: 6.6 | W191: 6.232 | X191: =(1-VLOOKUP(S191,Start!$H$33:$I$40,2,FALSE)/100)*W191 -> 5.42184 | Y191: =VLOOKUP(R191,Start!$C$9:$D$15,2,FALSE)+VLOOKUP(R191,Start!$C$23:$D$29,2,FALSE) -> 128.9 | Z191: =(Y191/T191)+Start!$D$19*(VLOOKUP(R191,Start!$M$33:$N$39,2,FALSE)/T191)+VLOOKUP(S191,Start!$C$33:$D$40,2,FALSE) -> 416.8752002
C192: Ja | D192: SEE914143996840 | F192: Sasol Germany GmbH | G192: GT3 | H192: 25541 | I192: Brunsbüttel | J192: Fritz-Staiger-Straße 15 | K192: Schleswig-Holstein | L192: 2020-10-02 | M192: Erdgas | N192: Erdgas, Erdölgas | O192: Erdgas | P192: Ja | Q192: Gasturbinen mit Abhitzekessel | R192: Erdgas | S192: GuD | T192: 0.4 | U192: eigene Annahme | V192: 7.486 | W192: 7.428 | X192: =(1-VLOOKUP(S192,Start!$H$33:$I$40,2,FALSE)/100)*W192 -> 6.46236 | Y192: =VLOOKUP(R192,Start!$C$9:$D$15,2,FALSE)+VLOOKUP(R192,Start!$C$23:$D$29,2,FALSE) -> 128.9 | Z192: =(Y192/T192)+Start!$D$19*(VLOOKUP(R192,Start!$M$33:$N$39,2,FALSE)/T192)+VLOOKUP(S192,Start!$C$33:$D$40,2,FALSE) -> 364.537925
C193: Ja | D193: SEE914179988338 | E193: BNA0407 | F193: Enertec Hameln GmbH | G193: Turbine 6 | H193: 31789 | I193: Hameln | J193: Heinrich-Schoormann-Weg 1 | K193: Niedersachsen | L193: 1970-11-13 | M193: nicht biogener Abfall | N193: nicht biogener Abfall (Hausmüll, Siedlungsabfälle) | O193: Abfall | P193: Ja | Q193: Gegendruckmaschine ohne Entnahme | R193: Abfall | S193: Abfall | T193: 0.33 | U193: OPSD (2020) | V193: 4.25 | W193: 2.55 | X193: =(1-VLOOKUP(S193,Start!$H$33:$I$40,2,FALSE)/100)*W193 -> 2.1675 | Y193: =VLOOKUP(R193,Start!$C$9:$D$15,2,FALSE)+VLOOKUP(R193,Start!$C$23:$D$29,2,FALSE) -> 0 | Z193: =(Y193/T193)+Start!$D$19*(VLOOKUP(R193,Start!$M$33:$N$39,2,FALSE)/T193)+VLOOKUP(S193,Start!$C$33:$D$40,2,FALSE) -> 1
C194: Ja | D194: SEE914187135533 | E194: BNA0516 | F194: Mineraloelraffinerie Oberrhein | G194: Maschine 2 | H194: 76187 | I194: Karlsruhe | J194: Nördliche Raffineriestraße 1 | K194: Baden-Württemberg | L194: 1995-06-17 | M194: Mineralölprodukte | N194: Raffineriegas | O194: Mineralölprodukte | P194: Ja | Q194: Kondensationsmaschine mit Entnahme | R194: Öl | S194: Öl | T194: 0.3795 | U194: OPSD (2020) | V194: 12.5 | W194: 11.3 | X194: =(1-VLOOKUP(S194,Start!$H$33:$I$40,2,FALSE)/100)*W194 -> 9.605 | Y194: =VLOOKUP(R194,Start!$C$9:$D$15,2,FALSE)+VLOOKUP(R194,Start!$C$23:$D$29,2,FALSE) -> 58.77 | Z194: =(Y194/T194)+Start!$D$19*(VLOOKUP(R194,Start!$M$33:$N$39,2,FALSE)/T194)+VLOOKUP(S194,Start!$C$33:$D$40,2,FALSE) -> 215.7499341
C195: Ja | D195: SEE914224312040 | E195: BNA1396 | F195: GLOBALFOUNDRIES Dresden Module Two LLC & Co. KG | G195: Gasmotoren-Blockheizkraftwerk I (Generator 1) | H195: 1468 | I195: Moritzburg | J195: Ringstraße 3 | K195: Sachsen | L195: 1998-09-01 | M195: Erdgas | N195: Erdgas, Erdölgas | O195: Erdgas | P195: Ja | Q195: Verbrennungsmotor | R195: Erdgas | S195: GuD | T195: 0.3828 | U195: OPSD (2020) | V195: 3.884 | W195: 3.879 | X195: =(1-VLOOKUP(S195,Start!$H$33:$I$40,2,FALSE)/100)*W195 -> 3.37473 | Y195: =VLOOKUP(R195,Start!$C$9:$D$15,2,FALSE)+VLOOKUP(R195,Start!$C$23:$D$29,2,FALSE) -> 128.9 | Z195: =(Y195/T195)+Start!$D$19*(VLOOKUP(R195,Start!$M$33:$N$39,2,FALSE)/T195)+VLOOKUP(S195,Start!$C$33:$D$40,2,FALSE) -> 380.8499739
C196: Ja | D196: SEE914414538991 | E196: BNA0614b | F196: BASF SE | G196: GuD Mitte GT12 | H196: 67063 | I196: Ludwigshafen | J196: Carl-Bosch-Straße 38 | K196: Rheinland-Pfalz | L196: 2005-05-12 | M196: Erdgas | N196: Erdgas, Erdölgas | O196: Erdgas | P196: Ja | Q196: Gasturbinen mit nachgeschalteter Dampfturbine | R196: Erdgas | S196: GuD | T196: 0.43 | U196: OPSD (2020) | V196: 206 | W196: 204 | X196: =(1-VLOOKUP(S196,Start!$H$33:$I$40,2,FALSE)/100)*W196 -> 177.48 | Y196: =VLOOKUP(R196,Start!$C$9:$D$15,2,FALSE)+VLOOKUP(R196,Start!$C$23:$D$29,2,FALSE) -> 128.9 | Z196: =(Y196/T196)+Start!$D$19*(VLOOKUP(R196,Start!$M$33:$N$39,2,FALSE)/T196)+VLOOKUP(S196,Start!$C$33:$D$40,2,FALSE) -> 339.2096977
C197: Ja | D197: SEE914438115895 | E197: BNA0392a | F197: EVH GmbH | G197: Heizkraftwerk Dieselstraße Block A | H197: 6130 | I197: Halle | J197: Dieselstraße 141 | K197: Sachsen-Anhalt | L197: 2020-04-01 | M197: Erdgas | N197: Erdgas, Erdölgas | O197: Erdgas | P197: Ja | Q197: Gasturbinen mit nachgeschalteter Dampfturbine | R197: Erdgas | S197: GuD | T197: 0.3905 | U197: OPSD (2020) | V197: 57.646 | W197: 56.845 | X197: =(1-VLOOKUP(S197,Start!$H$33:$I$40,2,FALSE)/100)*W197 -> 49.45515 | Y197: =VLOOKUP(R197,Start!$C$9:$D$15,2,FALSE)+VLOOKUP(R197,Start!$C$23:$D$29,2,FALSE) -> 128.9 | Z197: =(Y197/T197)+Start!$D$19*(VLOOKUP(R197,Start!$M$33:$N$39,2,FALSE)/T197)+VLOOKUP(S197,Start!$C$33:$D$40,2,FALSE) -> 373.3698335
C198: Ja | D198: SEE914688001801 | F198: Smurfit Kappa Hoya Papier und Karton GmbH | G198: DT 2 (KKK) | H198: 27318 | I198: Hoya | J198: Von-dem-Bussche-Straße 1 | K198: Niedersachsen | L198: 1996-01-01 | M198: Erdgas | N198: Erdgas, Erdölgas | O198: Erdgas | P198: Ja | Q198: Gegendruckmaschine mit Entnahme | R198: Erdgas | S198: GuD | T198: 0.4 | U198: eigene Annahme | V198: 4.52 | W198: 4.339 | X198: =(1-VLOOKUP(S198,Start!$H$33:$I$40,2,FALSE)/100)*W198 -> 3.77493 | Y198: =VLOOKUP(R198,Start!$C$9:$D$15,2,FALSE)+VLOOKUP(R198,Start!$C$23:$D$29,2,FALSE) -> 128.9 | Z198: =(Y198/T198)+Start!$D$19*(VLOOKUP(R198,Start!$M$33:$N$39,2,FALSE)/T198)+VLOOKUP(S198,Start!$C$33:$D$40,2,FALSE) -> 364.537925
C199: Ja | D199: SEE914740925915 | F199: SWP Stadtwerke Pforzheim | G199: MOT 2 | H199: 75175 | I199: Pforzheim | J199: Hohwiesenweg 19 | K199: Baden-Württemberg | L199: 2021-06-15 | M199: Erdgas | N199: Erdgas, Erdölgas | O199: Erdgas | P199: Ja | Q199: Verbrennungsmotor | R199: Erdgas | S199: GuD | T199: 0.45 | U199: https://www.innio.com/de/loesungen/energieerzeugung/kraft-waerme-kopplung | V199: 10.387 | W199: 10.2 | X199: =(1-VLOOKUP(S199,Start!$H$33:$I$40,2,FALSE)/100)*W199 -> 8.874 | Y199: =VLOOKUP(R199,Start!$C$9:$D$15,2,FALSE)+VLOOKUP(R199,Start!$C$23:$D$29,2,FALSE) -> 128.9 | Z199: =(Y199/T199)+Start!$D$19*(VLOOKUP(R199,Start!$M$33:$N$39,2,FALSE)/T199)+VLOOKUP(S199,Start!$C$33:$D$40,2,FALSE) -> 324.2003778
C200: Ja | D200: SEE914749097217 | E200: BNA1504 | F200: Daimler Truck AG | G200: 129870 Modul 1 | H200: 76744 | I200: Wörth | J200: Daimlerstraße 1 | K200: Rheinland-Pfalz | L200: 2013-02-20 | M200: Erdgas | N200: Erdgas, Erdölgas | O200: Erdgas | P200: Ja | Q200: Verbrennungsmotor | R200: Erdgas | S200: GuD | T200: 0.3993 | U200: OPSD (2020) | V200: 4.49 | W200: 4.44 | X200: =(1-VLOOKUP(S200,Start!$H$33:$I$40,2,FALSE)/100)*W200 -> 3.8628 | Y200: =VLOOKUP(R200,Start!$C$9:$D$15,2,FALSE)+VLOOKUP(R200,Start!$C$23:$D$29,2,FALSE) -> 128.9 | Z200: =(Y200/T200)+Start!$D$19*(VLOOKUP(R200,Start!$M$33:$N$39,2,FALSE)/T200)+VLOOKUP(S200,Start!$C$33:$D$40,2,FALSE) -> 365.1743551
C201: Ja | D201: SEE914857304191 | E201: BNA0199 | F201: RWE Generation SE | G201: Dormagen GT1 | H201: 41540 | I201: Dormagen | J201: Alte Heerstraße 1 | K201: Nordrhein-Westfalen | L201: 2000-07-23 | M201: Erdgas | N201: Erdgas, Erdölgas | O201: Erdgas | P201: Ja | Q201: Gasturbinen mit Abhitzekessel | R201: Erdgas | S201: GuD | T201: 0.54 | U201: OPSD (2020) | V201: 189 | W201: 184 | X201: =(1-VLOOKUP(S201,Start!$H$33:$I$40,2,FALSE)/100)*W201 -> 160.08 | Y201: =VLOOKUP(R201,Start!$C$9:$D$15,2,FALSE)+VLOOKUP(R201,Start!$C$23:$D$29,2,FALSE) -> 128.9 | Z201: =(Y201/T201)+Start!$D$19*(VLOOKUP(R201,Start!$M$33:$N$39,2,FALSE)/T201)+VLOOKUP(S201,Start!$C$33:$D$40,2,FALSE) -> 270.4169815
C202: Ja | D202: SEE914878135613 | E202: BNA0814 | F202: Energie und Wasser Potsdam GmbH | G202: HKW Potsdam-Süd Block2 | H202: 14478 | I202: Potsdam | J202: Zum Heizwerk 20 | K202: Brandenburg | L202: 1996-01-01 | M202: Erdgas | N202: Erdgas, Erdölgas | O202: Erdgas | P202: Ja | Q202: Gasturbinen mit nachgeschalteter Dampfturbine | R202: Erdgas | S202: GuD | T202: 0.3806 | U202: OPSD (2020) | V202: 42 | W202: 40.9 | X202: =(1-VLOOKUP(S202,Start!$H$33:$I$40,2,FALSE)/100)*W202 -> 35.583 | Y202: =VLOOKUP(R202,Start!$C$9:$D$15,2,FALSE)+VLOOKUP(R202,Start!$C$23:$D$29,2,FALSE) -> 128.9 | Z202: =(Y202/T202)+Start!$D$19*(VLOOKUP(R202,Start!$M$33:$N$39,2,FALSE)/T202)+VLOOKUP(S202,Start!$C$33:$D$40,2,FALSE) -> 383.0427483
C203: Ja | D203: SEE914931712744 | E203: BNA1524 | F203: EnBW Contracting GmbH | G203: HK_001_Industrieheizkraftwerk-Walsrode_BHKW-GM1 | H203: 29699 | I203: Walsrode | J203: Bahnhofstraße 13 | K203: Niedersachsen | L203: 2019-01-01 | M203: Erdgas | N203: Erdgas, Erdölgas | O203: Erdgas | P203: Ja | Q203: Verbrennungsmotor | R203: Erdgas | S203: GuD | T203: 0.3509 | U203: OPSD (2020) | V203: 3.2 | W203: 3.2 | X203: =(1-VLOOKUP(S203,Start!$H$33:$I$40,2,FALSE)/100)*W203 -> 2.784 | Y203: =VLOOKUP(R203,Start!$C$9:$D$15,2,FALSE)+VLOOKUP(R203,Start!$C$23:$D$29,2,FALSE) -> 128.9 | Z203: =(Y203/T203)+Start!$D$19*(VLOOKUP(R203,Start!$M$33:$N$39,2,FALSE)/T203)+VLOOKUP(S203,Start!$C$33:$D$40,2,FALSE) -> 415.3363351
C204: Ja | D204: SEE914989602134 | E204: BNA0497 | F204: Infraserv GmbH & Co. Höchst KG | G204: IPH Strom GTX2 | H204: 65929 | I204: Frankfurt | J204: Brüningstraße 50 | K204: Hessen | L204: 2011-01-06 | M204: Erdgas | N204: Erdgas, Erdölgas | O204: Erdgas | P204: Ja | Q204: Gasturbinen mit Abhitzekessel | R204: Erdgas | S204: GuD | T204: 0.3982 | U204: OPSD (2020) | V204: 50 | W204: 49.8 | X204: =(1-VLOOKUP(S204,Start!$H$33:$I$40,2,FALSE)/100)*W204 -> 43.326 | Y204: =VLOOKUP(R204,Start!$C$9:$D$15,2,FALSE)+VLOOKUP(R204,Start!$C$23:$D$29,2,FALSE) -> 128.9 | Z204: =(Y204/T204)+Start!$D$19*(VLOOKUP(R204,Start!$M$33:$N$39,2,FALSE)/T204)+VLOOKUP(S204,Start!$C$33:$D$40,2,FALSE) -> 366.1789804
C205: Ja | D205: SEE915062141939 | F205: Boehringer Ingelheim Pharma GmbH&Co.KG | G205: Boehringer Ingelheim - H111 - NG4 | H205: 88400 | I205: Biberach | J205: Birkendorfer Straße 65 | K205: Baden-Württemberg | L205: 2016-05-11 | M205: Mineralölprodukte | N205: Heizöl, leicht | O205: Mineralölprodukte | P205: Nein | Q205: Verbrennungsmotor | R205: Öl | S205: Öl | T205: 0.4 | U205: eigene Annahme | V205: 2.4 | W205: 2.2 | X205: =(1-VLOOKUP(S205,Start!$H$33:$I$40,2,FALSE)/100)*W205 -> 1.87 | Y205: =VLOOKUP(R205,Start!$C$9:$D$15,2,FALSE)+VLOOKUP(R205,Start!$C$23:$D$29,2,FALSE) -> 58.77 | Z205: =(Y205/T205)+Start!$D$19*(VLOOKUP(R205,Start!$M$33:$N$39,2,FALSE)/T205)+VLOOKUP(S205,Start!$C$33:$D$40,2,FALSE) -> 204.744
C206: Ja | D206: SEE915087411024 | F206: Hamburger Energiewerke GmbH | G206: WUW Bille | H206: 20537 | I206: Hamburg | J206: Anton-Rée-Weg 50 | K206: Hamburg | L206: 2019-09-03 | M206: Wärme | N206: Dampf (fremdbezogen) | O206: Wärme | P206: Nein | Q206: Sonstige | R206: Sonstige | S206: Sonstige | T206: 0.4 | U206: eigene Annahme | V206: 4.5 | W206: 4.4 | X206: =(1-VLOOKUP(S206,Start!$H$33:$I$40,2,FALSE)/100)*W206 -> 3.74 | Y206: =VLOOKUP(R206,Start!$C$9:$D$15,2,FALSE)+VLOOKUP(R206,Start!$C$23:$D$29,2,FALSE) -> 58.47 | Z206: =(Y206/T206)+Start!$D$19*(VLOOKUP(R206,Start!$M$33:$N$39,2,FALSE)/T206)+VLOOKUP(S206,Start!$C$33:$D$40,2,FALSE) -> 190.60095
... 988 more rows

Sheet Quellen
C3: EWI Merit-Order Tool 2022
C5: Quellen | D5: =Impressum!F5 -> Version 2022_Nov.0
C7: Abkürzung | D7: Quelle
C8: BNetzA (2022) | D8: Bundesnetzagentur; Kraftwerksliste der Bundesnetzagentur, Stand: 31.05.2022. Lizensiert unter "dl-de/by-2-0": www.govdata.de/dl-de/by-2-0; URL: https://www.bundesnetzagentur.de/DE/Sachgebiete/ElektrizitaetundGas/Unternehmen_Institutionen/Versorgungssicherheit/Erzeugungskapazitaeten/Kraftwerksliste/start.html (abgerufen am 18.10.2022)
C9: DIW (2014) | D9: Jonas Egerer & Clemens Gerbaulet & Richard Ihlenburg & Friedrich Kunz & Benjamin Reinhard & Christian von Hirschhausen & Alexander Weber & Jens Weibezahn, 2014. "Electricity Sector Data for Policy-Relevant Modeling: Data Documentation and Applications to the German and European Electricity Markets," Data Documentation 72, DIW Berlin, German Institute for Economic Research.
C10: EWI (2019) | D10: Energiewirtschaftliches Institut an der Universität zu Köln gGmbH; Auswirkungen einer Beendigung der Kohleverstromung bis 2038 auf den Strommarkt, CO2-Emissionen und ausgewählte Industrien - Eine Analyse des Abschlussberichts der WSB-Kommission, August 2019.
C11: OPSD (2018) | D11: Open Power System Data. 2018. Data Package Conventional power plants. Version 2018-12-20.
C12: OPSD (2020) | D12: Open Power System Data. 2020. Data Package Conventional power plants. Version 2020-10-01.
C13: R2B (2019) | D13: R2b energy consulting GmbH, Consentec GmbH, Fraunhofer ISI, TEP Energy GmbH; Definition und Monitoring der Versorgungssicherheit an den europäischen Strommärkten, Projekt Nr. 047/16, Januar 2019.
C14: Ember (2021) | D14: Ember; Daily Carbon Prices, URL: https://sandbag.org.uk/carbon-price-viewer/ (accessed on 18.10.2022)
C15: SDKW (2022) | D15: Statistik der Kohlewirtschaft e.V.; Entwicklung ausgewählter Energiepreise, Stand 30.09.2022 (Für September 2022 Annahme des Wertes aus dem August 2022)
C16: ÜNB (2019) | D16: 50Hertz Transmission GmbH, Amprio GmbH, TenneT TSO GmbH und TransnetBW GmbH; Netzentwicklungsplan Strom 2030, Version 2019, 2. Entwurf. April 2019.

Sheet Impressum
C3: EWI Merit-Order Tool 2022
C5: Impressum | F5: =CONCATENATE("Version ",F11," ") -> Version 2022_Nov.0
D8: EWI Merit-Order Tool 2022
D10: Energiewirtschaftliches Institut an der Universität zu Köln gGmbH (EWI) | E10: Letzte Aktualisierung: | F10: 01.11.2022
D11: Alte Wagenfabrik | E11: Modellversion: | F11: 2022_Nov.0
D12: Vogelsanger Straße 321a
D13: 50827 Köln
D14: Tel.: +49 (0)221 277 29-100
D15: Fax: +49 (0)221 277 29-400
D16: www.ewi.uni-koeln.de
D18: Autoren:
D19: Fabian Arnold
D20: Konstantin Gruber
D21: David Schlund
D22: Jakob Junkermann
D23: Dr. Eren Çam
D24: Philipp Artur Kienscherf
D26: Kontakt bei Fragen, Anmerkungen und Kritik: | E26: © Energiewirtschaftliches Institut an der Universität zu Köln gGmbH (EWI).
D27: Fabian Arnold | E27: Alle Rechte vorbehalten. Nutzung des Tools und Ergebnisse nur mit Verweis auf
D28: Tel.: +49 (0)221 277 29-232 | E28: die Autoren und das Energiewirtschaftliche Institut an der Universität zu Köln
D29: fabian.arnold@ewi.uni-koeln.de | E29: gGmbH (EWI) gestattet. Die Haftung für Folgeschäden ist ausgeschlossen. Dies
E30: betrifft auch und insbesondere Schäden oder entgangene Gewinne, die dem/der
E31: Nutzer*in infolge der Verwendung der in diesem Dokument gegebenen
E32: Informationen entstehen.

Sheet Start Reset (hidden)
C3: EWI Merit-Order Tool 2022
C5: Start | P5: =Impressum!F5 -> Version 2022_Nov.0
C7: Brennstoffkosten | H7: Übersicht über die Grenzkosten der Kraftwerke
C8: Brennstoff | D8: Kosten | E8: Einheit | F8: Quelle Standardwert | H8: Das Boxplot-Diagramm gibt einen ersten Überblick über die Grenzkosten der Kraftwerke. In der Abbildung rechts
C9: Kernenergie | D9: 5.5 | E9: EUR/MWhth | F9: siehe Dokumentation | H9: werden die einzelnen Elemente des Diagramms erläutert. Veränderungen an den Annahmen gibt das Diagramm
C10: Braunkohle | D10: 3.1 | E10: EUR/MWhth | F10: EWI (2019) | H10: augenblicklich wieder. Um die Annahmen in die Merit-Order (Tabellenblatt: Merit-Order) zu übernehmen, muss die
C11: Steinkohle | D11: 41.2 | E11: EUR/MWhth | F11: ARA | H11: Schaltfläche Aktualisiere Merit-Order aktiviert werden.
C12: Erdgas | D12: 128.4 | E12: EUR/MWhth | F12: Spot TTF
C13: Öl | D13: 58.47 | E13: EUR/MWhth | F13: SDKW (2022)
C14: Abfall | D14: 0 | E14: EUR/MWhth | F14: siehe Dokumentation
C15: Sonstige | D15: 58.47 | E15: EUR/MWhth | F15: siehe Dokumentation
C17: Emissionszertifikatspreis
D18: Kosten | E18: Einheit | F18: Quelle Standardwert
C19: Emissionszertifikatspreis | D19: 81.17 | E19: EUR/tCO2 | F19: Ember (2022)
C21: Transportkosten
C22: Kraftwerkstyp | D22: Kosten | E22: Einheit | F22: Quelle Standardwert
C23: Kernenergie | D23: 0 | E23: EUR/MWhth | F23: siehe Dokumentation
C24: Braunkohle | D24: 0 | E24: EUR/MWhth | F24: siehe Dokumentation
C25: Steinkohle | D25: 1.25 | E25: EUR/MWhth | F25: R2B (2019)
C26: Erdgas | D26: 0.5 | E26: EUR/MWhth | F26: R2B (2019)
C27: Öl | D27: 0.3 | E27: EUR/MWhth | F27: R2B (2019)
C28: Abfall | D28: 0 | E28: EUR/MWhth | F28: siehe Dokumentation
C29: Sonstige | D29: 0 | E29: EUR/MWhth | F29: siehe Dokumentation | H29: EE-Erzeugung | I29: 0 | J29: MWh
C31: sonstige variable Kosten | H31: Nicht Verfügbarkeit | M31: Emissionsfaktoren
C32: Kraftwerkstyp | D32: Kosten | E32: Einheit | F32: Quelle Standardwert | H32: Kraftwerkstyp | I32: Kosten | J32: Einheit | K32: Quelle Standardwert | M32: Brennstoff | N32: Kosten | O32: Einheit | P32: Quelle Standardwert
C33: Kernenergie | D33: 1.2 | E33: EUR/Mwhel | F33: siehe Dokumentation | H33: Kernenergie | I33: 7 | J33: % | K33: siehe Dokumentation | M33: Kernenergie | N33: 0 | O33: tCO2/MWhth | P33: siehe Dokumentation
C34: Braunkohle | D34: 1.7 | E34: EUR/Mwhel | F34: R2B (2019) | H34: Braunkohle | I34: 13 | J34: % | K34: siehe Dokumentation | M34: Braunkohle | N34: 0.404 | O34: tCO2/MWhth | P34: ÜNB (2019)
C35: Steinkohle | D35: 1.3 | E35: EUR/Mwhel | F35: R2B (2019) | H35: Steinkohle | I35: 20 | J35: % | K35: siehe Dokumentation | M35: Steinkohle | N35: 0.337 | O35: tCO2/MWhth | P35: ÜNB (2019)
C36: GuD | D36: 1.5 | E36: EUR/Mwhel | F36: R2B (2019) | H36: GuD | I36: 13 | J36: % | K36: siehe Dokumentation | M36: Erdgas | N36: 0.201 | O36: tCO2/MWhth | P36: ÜNB (2019)
C37: Gasturbine | D37: 1 | E37: EUR/Mwhel | F37: R2B (2019) | H37: Gasturbine | I37: 13 | J37: % | K37: siehe Dokumentation | M37: Öl | N37: 0.28 | O37: tCO2/MWhth | P37: ÜNB (2019)
C38: Öl | D38: 1 | E38: EUR/Mwhel | F38: siehe Dokumentation | H38: Öl | I38: 15 | J38: % | K38: siehe Dokumentation | M38: Abfall | N38: 0 | O38: tCO2/MWhth | P38: siehe Dokumentation
C39: Abfall | D39: 1 | E39: EUR/Mwhel | F39: siehe Dokumentation | H39: Abfall | I39: 15 | J39: % | K39: siehe Dokumentation | M39: Sonstige | N39: 0.214 | O39: tCO2/MWhth | P39: ÜNB (2019)
C40: Sonstige | D40: 1 | E40: EUR/Mwhel | F40: siehe Dokumentation | H40: Sonstige | I40: 15 | J40: % | K40: siehe Dokumentation

Sheet Backend I (hidden)
A1: Index | B1: Kraftwerktyp | C1: Leistung | D1: kumulierte Leistung | E1: Grenzkosten
A2: SEE900128586359 | B2: Abfall | C2: 15.98 | D2: 15.98 | E2: 1
A3: SEE900664653232 | B3: Abfall | C3: 9.095 | D3: 25.075 | E3: 1
A4: SEE900838448145 | B4: Abfall | C4: 9.86 | D4: 34.935 | E4: 1
A5: SEE904604163027 | B5: Abfall | C5: 32.3 | D5: 67.235 | E5: 1
A6: SEE904983741502 | B6: Abfall | C6: 21.76 | D6: 88.995 | E6: 1
A7: SEE906215229154 | B7: Abfall | C7: 31.875 | D7: 120.87 | E7: 1
A8: SEE906331863386 | B8: Abfall | C8: 6.00185 | D8: 126.87185 | E8: 1
A9: SEE907370296296 | B9: Abfall | C9: 27.88 | D9: 154.75185 | E9: 1
A10: SEE909031885047 | B10: Abfall | C10: 8.5e-06 | D10: 154.7518585 | E10: 1
A11: SEE912257091857 | B11: Abfall | C11: 39.525 | D11: 194.2768585 | E11: 1
A12: SEE914179988338 | B12: Abfall | C12: 2.1675 | D12: 196.4443585 | E12: 1
A13: SEE917110358740 | B13: Abfall | C13: 14.45 | D13: 210.8943585 | E13: 1
A14: SEE918623387630 | B14: Abfall | C14: 9.69 | D14: 220.5843585 | E14: 1
A15: SEE922849915072 | B15: Abfall | C15: 7.48 | D15: 228.0643585 | E15: 1
A16: SEE923271533315 | B16: Abfall | C16: 19.975 | D16: 248.0393585 | E16: 1
A17: SEE923791565131 | B17: Abfall | C17: 7.905 | D17: 255.9443585 | E17: 1
A18: SEE923959807806 | B18: Abfall | C18: 9.469 | D18: 265.4133585 | E18: 1
A19: SEE924286409503 | B19: Abfall | C19: 25.5 | D19: 290.9133585 | E19: 1
A20: SEE924302504816 | B20: Abfall | C20: 12.002 | D20: 302.9153585 | E20: 1
A21: SEE925011950635 | B21: Abfall | C21: 15.419 | D21: 318.3343585 | E21: 1
A22: SEE925411264011 | B22: Abfall | C22: 1.6405 | D22: 319.9748585 | E22: 1
A23: SEE925652456091 | B23: Abfall | C23: 6.8 | D23: 326.7748585 | E23: 1
A24: SEE925794342412 | B24: Abfall | C24: 13.80825 | D24: 340.5831085 | E24: 1
A25: SEE927032372373 | B25: Abfall | C25: 11.9 | D25: 352.4831085 | E25: 1
A26: SEE927716043575 | B26: Abfall | C26: 23.12 | D26: 375.6031085 | E26: 1
A27: SEE927727929912 | B27: Abfall | C27: 22.95 | D27: 398.5531085 | E27: 1
A28: SEE928761575349 | B28: Abfall | C28: 21.25 | D28: 419.8031085 | E28: 1
A29: SEE929095613516 | B29: Abfall | C29: 6.00185 | D29: 425.8049585 | E29: 1
A30: SEE932127408097 | B30: Abfall | C30: 23.12 | D30: 448.9249585 | E30: 1
A31: SEE934298270268 | B31: Abfall | C31: 13.345 | D31: 462.2699585 | E31: 1
A32: SEE937544161082 | B32: Abfall | C32: 14.875 | D32: 477.1449585 | E32: 1
A33: SEE937822704543 | B33: Abfall | C33: 1.0625 | D33: 478.2074585 | E33: 1
A34: SEE937978171572 | B34: Abfall | C34: 2.89 | D34: 481.0974585 | E34: 1
A35: SEE938035990372 | B35: Abfall | C35: 13.6 | D35: 494.6974585 | E35: 1
A36: SEE938782869693 | B36: Abfall | C36: 13.0917 | D36: 507.7891585 | E36: 1
A37: SEE939382623364 | B37: Abfall | C37: 3.9865 | D37: 511.7756585 | E37: 1
A38: SEE940303116315 | B38: Abfall | C38: 27.472 | D38: 539.2476585 | E38: 1
A39: SEE940474859066 | B39: Abfall | C39: 10.2 | D39: 549.4476585 | E39: 1
A40: SEE941568392261 | B40: Abfall | C40: 12.648 | D40: 562.0956585 | E40: 1
A41: SEE941568476039 | B41: Abfall | C41: 39.1 | D41: 601.1956585 | E41: 1
A42: SEE942253705168 | B42: Abfall | C42: 10.2595 | D42: 611.4551585 | E42: 1
A43: SEE942366584926 | B43: Abfall | C43: 15.3 | D43: 626.7551585 | E43: 1
A44: SEE942777699660 | B44: Abfall | C44: 25.415 | D44: 652.1701585 | E44: 1
A45: SEE942956157011 | B45: Abfall | C45: 15.3 | D45: 667.4701585 | E45: 1
A46: SEE943548208159 | B46: Abfall | C46: 5.712 | D46: 673.1821585 | E46: 1
A47: SEE943841929270 | B47: Abfall | C47: 6.7745 | D47: 679.9566585 | E47: 1
A48: SEE944111876263 | B48: Abfall | C48: 27.2 | D48: 707.1566585 | E48: 1
A49: SEE944429192826 | B49: Abfall | C49: 10.88 | D49: 718.0366585 | E49: 1
A50: SEE945150729886 | B50: Abfall | C50: 12.648 | D50: 730.6846585 | E50: 1
A51: SEE945602121718 | B51: Abfall | C51: 17 | D51: 747.6846585 | E51: 1
A52: SEE946934017984 | B52: Abfall | C52: 15.725 | D52: 763.4096585 | E52: 1
A53: SEE947996339434 | B53: Abfall | C53: 10.421 | D53: 773.8306585 | E53: 1
A54: SEE948093740512 | B54: Abfall | C54: 3.621 | D54: 777.4516585 | E54: 1
A55: SEE950201173198 | B55: Abfall | C55: 41.82 | D55: 819.2716585 | E55: 1
A56: SEE950593842498 | B56: Abfall | C56: 20.4 | D56: 839.6716585 | E56: 1
A57: SEE951648072822 | B57: Abfall | C57: 10.285 | D57: 849.9566585 | E57: 1
A58: SEE951966828576 | B58: Abfall | C58: 6.29 | D58: 856.2466585 | E58: 1
A59: SEE953182244383 | B59: Abfall | C59: 3.468 | D59: 859.7146585 | E59: 1
A60: SEE953730197888 | B60: Abfall | C60: 3.621 | D60: 863.3356585 | E60: 1
A61: SEE955292024220 | B61: Abfall | C61: 9.86 | D61: 873.1956585 | E61: 1
A62: SEE955548455112 | B62: Abfall | C62: 10.71 | D62: 883.9056585 | E62: 1
A63: SEE955718847075 | B63: Abfall | C63: 5.865 | D63: 889.7706585 | E63: 1
A64: SEE955937262338 | B64: Abfall | C64: 17.935 | D64: 907.7056585 | E64: 1
A65: SEE956268312785 | B65: Abfall | C65: 25.5 | D65: 933.2056585 | E65: 1
A66: SEE957509710094 | B66: Abfall | C66: 9.86 | D66: 943.0656585 | E66: 1
A67: SEE957686843929 | B67: Abfall | C67: 8.6887 | D67: 951.7543585 | E67: 1
A68: SEE957830042178 | B68: Abfall | C68: 15.8525 | D68: 967.6068585 | E68: 1
A69: SEE958310939391 | B69: Abfall | C69: 27.2 | D69: 994.8068585 | E69: 1
A70: SEE958335974377 | B70: Abfall | C70: 10.625 | D70: 1005.431859 | E70: 1
A71: SEE958909269267 | B71: Abfall | C71: 60.35 | D71: 1065.781858 | E71: 1
A72: SEE962737235608 | B72: Abfall | C72: 24.82 | D72: 1090.601858 | E72: 1
A73: SEE964170331206 | B73: Abfall | C73: 9.01 | D73: 1099.611858 | E73: 1
A74: SEE965779402670 | B74: Abfall | C74: 12.75 | D74: 1112.361858 | E74: 1
A75: SEE966264899036 | B75: Abfall | C75: 7.772672 | D75: 1120.13453 | E75: 1
A76: SEE969698095906 | B76: Abfall | C76: 4.6636015 | D76: 1124.798132 | E76: 1
A77: SEE971280976463 | B77: Abfall | C77: 9.35 | D77: 1134.148132 | E77: 1
A78: SEE971796321603 | B78: Abfall | C78: 10.2 | D78: 1144.348132 | E78: 1
A79: SEE972694764301 | B79: Abfall | C79: 2.21 | D79: 1146.558132 | E79: 1
A80: SEE973464796218 | B80: Abfall | C80: 24.5684 | D80: 1171.126532 | E80: 1
A81: SEE974051053875 | B81: Abfall | C81: 11.7725 | D81: 1182.899032 | E81: 1
A82: SEE976589352260 | B82: Abfall | C82: 12.495 | D82: 1195.394032 | E82: 1
A83: SEE976826191515 | B83: Abfall | C83: 7.48 | D83: 1202.874032 | E83: 1
A84: SEE977514334252 | B84: Abfall | C84: 1.802 | D84: 1204.676032 | E84: 1
A85: SEE977770417713 | B85: Abfall | C85: 10.6437 | D85: 1215.319732 | E85: 1
A86: SEE977898966292 | B86: Abfall | C86: 20.29375 | D86: 1235.613482 | E86: 1
A87: SEE979423615132 | B87: Abfall | C87: 0.7905 | D87: 1236.403982 | E87: 1
A88: SEE981003349412 | B88: Abfall | C88: 12.274 | D88: 1248.677982 | E88: 1
A89: SEE981876305560 | B89: Abfall | C89: 13.80825 | D89: 1262.486232 | E89: 1
A90: SEE986030306643 | B90: Abfall | C90: 12.75 | D90: 1275.236232 | E90: 1
A91: SEE986413873564 | B91: Abfall | C91: 11.305 | D91: 1286.541232 | E91: 1
A92: SEE988429673565 | B92: Abfall | C92: 11.56 | D92: 1298.101232 | E92: 1
A93: SEE988580370860 | B93: Abfall | C93: 1.1475 | D93: 1299.248732 | E93: 1
A94: SEE988841475051 | B94: Abfall | C94: 23.8 | D94: 1323.048732 | E94: 1
A95: SEE988848971327 | B95: Abfall | C95: 30.6 | D95: 1353.648732 | E95: 1
A96: SEE989887901764 | B96: Abfall | C96: 10.421 | D96: 1364.069732 | E96: 1
A97: SEE990065849372 | B97: Abfall | C97: 7.395 | D97: 1371.464732 | E97: 1
A98: SEE990760688887 | B98: Abfall | C98: 4.25 | D98: 1375.714732 | E98: 1
A99: SEE992607731794 | B99: Abfall | C99: 7.8455 | D99: 1383.560232 | E99: 1
A100: SEE992947793209 | B100: Abfall | C100: 13.6 | D100: 1397.160232 | E100: 1
A101: SEE993054223955 | B101: Abfall | C101: 34.34 | D101: 1431.500232 | E101: 1
A102: SEE993546424112 | B102: Abfall | C102: 10.727 | D102: 1442.227232 | E102: 1
A103: SEE993787055366 | B103: Abfall | C103: 0.7905 | D103: 1443.017732 | E103: 1
A104: SEE994238154089 | B104: Abfall | C104: 5.4825 | D104: 1448.500232 | E104: 1
A105: SEE994551453975 | B105: Abfall | C105: 17 | D105: 1465.500232 | E105: 1
A106: SEE996047653111 | B106: Abfall | C106: 8.5 | D106: 1474.000232 | E106: 1
A107: SEE996891820448 | B107: Abfall | C107: 6.8 | D107: 1480.800232 | E107: 1
A108: SEE998216550733 | B108: Abfall | C108: 3.9865 | D108: 1484.786732 | E108: 1
A109: SEE998261618013 | B109: Abfall | C109: 4.1905 | D109: 1488.977232 | E109: 1
A110: SEE998278854237 | B110: Abfall | C110: 18.7 | D110: 1507.677232 | E110: 1
A111: SEE999588015110 | B111: Abfall | C111: 22.1 | D111: 1529.777232 | E111: 1
A112: SEE999819576335 | B112: Abfall | C112: 28.56 | D112: 1558.337232 | E112: 1
B113: Abfall | C113: 135.044855 | D113: 1693.382087 | E113: 1
A114: SEE944567587799 | B114: Kernenergie | C114: 1242.48 | D114: 2935.862087 | E114: 17.14202899
A115: SEE943690268513 | B115: Kernenergie | C115: 1311.3 | D115: 4247.162087 | E115: 17.86666667
A116: SEE985577062814 | B116: Kernenergie | C116: 1218.3 | D116: 5465.462087 | E116: 17.86666667
A117: SEE968582186379 | B117: Braunkohle | C117: 548.1 | D117: 6013.562087 | E117: 83.83427918
A118: SEE952937205877 | B118: Braunkohle | C118: 17.1129 | D118: 6030.674987 | E118: 84.47832103
A119: SEE985453029962 | B119: Braunkohle | C119: 7.2645 | D119: 6037.939487 | E119: 84.47832103
A120: SEE925599434282 | B120: Braunkohle | C120: 922.2 | D120: 6960.139487 | E120: 85.17134884
A121: SEE983252937631 | B121: Braunkohle | C121: 821.28 | D121: 7781.419487 | E121: 85.17134884
A122: SEE993592183001 | B122: Braunkohle | C122: 922.2 | D122: 8703.619487 | E122: 85.17134884
A123: SEE915426748132 | B123: Braunkohle | C123: 65.511 | D123: 8769.130487 | E123: 86.35254717
A124: SEE907389779292 | B124: Braunkohle | C124: 730.8 | D124: 9499.930487 | E124: 86.55267139
A125: SEE957229968300 | B125: Braunkohle | C125: 563.76 | D125: 10063.69049 | E125: 86.83444023
A126: SEE998199911088 | B126: Braunkohle | C126: 775.17 | D126: 10838.86049 | E126: 87.1587619
A127: SEE921905907730 | B127: Braunkohle | C127: 546.36 | D127: 11385.22049 | E127: 87.32185115
A128: SEE938337436349 | B128: Braunkohle | C128: 656.85 | D128: 12042.07049 | E128: 89.24312195
A129: SEE952672318108 | B129: Braunkohle | C129: 656.85 | D129: 12698.92049 | E129: 89.24312195
A130: SEE966331411864 | B130: Braunkohle | C130: 775.17 | D130: 13474.09049 | E130: 89.24312195
A131: SEE919134316447 | B131: Braunkohle | C131: 95.7 | D131: 13569.79049 | E131: 91.4317
A132: SEE921449009914 | B132: Braunkohle | C132: 15.46251 | D132: 13585.253 | E132: 91.4317
A133: SEE941974735591 | B133: Braunkohle | C133: 11.31 | D133: 13596.563 | E133: 91.4317
A134: SEE946537967655 | B134: Braunkohle | C134: 13.92 | D134: 13610.483 | E134: 91.4317
A135: SEE947677200282 | B135: Braunkohle | C135: 391.5 | D135: 14001.983 | E135: 91.4317
A136: SEE960652233358 | B136: Braunkohle | C136: 391.5 | D136: 14393.483 | E136: 91.4317
A137: SEE978888539755 | B137: Braunkohle | C137: 39.15 | D137: 14432.633 | E137: 91.4317
A138: SEE975343602986 | B138: Braunkohle | C138: 8.613 | D138: 14441.246 | E138: 94.20690722
A139: SEE986936308987 | B139: Braunkohle | C139: 8.613 | D139: 14449.859 | E139: 94.20690722
A140: SEE998111672394 | B140: Braunkohle | C140: 26.97 | D140: 14476.829 | E140: 94.92774026
A141: SEE970305352633 | B141: Braunkohle | C141: 14.703 | D141: 14491.532 | E141: 95.36565762
A142: SEE999145467468 | B142: Braunkohle | C142: 34.8 | D142: 14526.332 | E142: 95.36565762
A143: SEE933960350956 | B143: Braunkohle | C143: 80.32884 | D143: 14606.66084 | E143: 97.15925532
A144: SEE994335340088 | B144: Braunkohle | C144: 14.79 | D144: 14621.45084 | E144: 97.15925532
B145: Braunkohle | C145: 31.22082 | D145: 14652.67166 | E145: 97.15925532
A146: SEE923943268279 | B146: Braunkohle | C146: 435 | D146: 15087.67166 | E146: 97.41381333
A147: SEE938669585906 | B147: Braunkohle | C147: 435 | D147: 15522.67166 | E147: 97.41381333
A148: SEE989591633753 | B148: Braunkohle | C148: 435 | D148: 15957.67166 | E148: 97.41381333
A149: SEE991817093418 | B149: Braunkohle | C149: 435 | D149: 16392.67166 | E149: 97.41381333
A150: SEE928076311489 | B150: Braunkohle | C150: 29.145 | D150: 16421.81666 | E150: 97.77248394
A151: SEE905721866655 | B151: Braunkohle | C151: 153.12 | D151: 16574.93666 | E151: 98.39364224
A152: SEE923082939436 | B152: Braunkohle | C152: 50.60964 | D152: 16625.5463 | E152: 98.39364224
A153: SEE931736847297 | B153: Braunkohle | C153: 528.09 | D153: 17153.6363 | E153: 99.76743169
A154: SEE976414005279 | B154: Braunkohle | C154: 525.48 | D154: 17679.1163 | E154: 99.76743169
A155: SEE955314088254 | B155: Braunkohle | C155: 570.72 | D155: 18249.8363 | E155: 101.4018889
A156: SEE987007884447 | B156: Braunkohle | C156: 576.81 | D156: 18826.6463 | E156: 101.4018889
A157: SEE908125004449 | B157: Braunkohle | C157: 435 | D157: 19261.6463 | E157: 104.2505143
A158: SEE985842749525 | B158: Braunkohle | C158: 435 | D158: 19696.6463 | E158: 104.2505143
A159: SEE912440649056 | B159: Braunkohle | C159: 0.98571 | D159: 19697.63201 | E159: 104.367849
A160: SEE927622980674 | B160: Braunkohle | C160: 5.91513 | D160: 19703.54714 | E160: 104.367849
A161: SEE927630371594 | B161: Braunkohle | C161: 7.98153399 | D161: 19711.52867 | E161: 104.367849
A162: SEE920672219015 | B162: Braunkohle | C162: 8.526 | D162: 19720.05467 | E162: 110.465697
A163: SEE933685962403 | B163: Braunkohle | C163: 279.27 | D163: 19999.32467 | E163: 110.465697
A164: SEE974018310478 | B164: Braunkohle | C164: 8.004 | D164: 20007.32867 | E164: 110.465697
A165: SEE990438768378 | B165: Steinkohle | C165: 26.32 | D165: 20033.64867 | E165: 139.8005754
A166: SEE906830618081 | B166: Braunkohle | C166: 13.05 | D166: 20046.69867 | E166: 143.2326498
A167: SEE966083015792 | B167: Öl | C167: 24.99 | D167: 20071.68867 | E167: 145.8846222
A168: SEE957285549260 | B168: Steinkohle | C168: 26.32 | D168: 20098.00867 | E168: 149.0339471
A169: SEE950041295098 | B169: Öl | C169: 86.7 | D169: 20184.70867 | E169: 149.1774545
A170: SEE996990805407 | B170: Steinkohle | C170: 35.6 | D170: 20220.30867 | E170: 150.4544658
A171: SEE988477355802 | B171: Steinkohle | C171: 674.4 | D171: 20894.70867 | E171: 151.7402802
A172: SEE923577153439 | B172: Steinkohle | C172: 54.72 | D172: 20949.42867 | E172: 151.9025674
A173: SEE970425279599 | B173: Steinkohle | C173: 580.8 | D173: 21530.22867 | E173: 152.2281946
A174: SEE980331579218 | B174: Steinkohle | C174: 667.2 | D174: 22197.42867 | E174: 153.0484565
A175: SEE961029163353 | B175: Steinkohle | C175: 596.8 | D175: 22794.22867 | E175: 153.21358
A176: SEE958847865460 | B176: Steinkohle | C176: 377.6 | D176: 23171.82867 | E176: 155.5636243
A177: SEE913516809497 | B177: Steinkohle | C177: 841.6 | D177: 24013.42867 | E177: 156.4206444
A178: SEE918143230942 | B178: Steinkohle | C178: 580 | D178: 24593.42867 | E178: 156.4206444
A179: SEE948609940009 | B179: Steinkohle | C179: 622.4 | D179: 25215.82867 | E179: 157.2872402
A180: SEE904968236689 | B180: Steinkohle | C180: 280 | D180: 25495.82867 | E180: 159.0498079
A181: SEE965782597448 | B181: Steinkohle | C181: 258.4 | D181: 25754.22867 | E181: 159.9461136
A182: SEE909002940690 | B182: Steinkohle | C182: 204 | D182: 25958.22867 | E182: 160.8526629
A183: SEE980016033738 | B183: Steinkohle | C183: 413.6 | D183: 26371.82867 | E183: 160.8526629
A184: SEE943427876363 | B184: Steinkohle | C184: 411.2 | D184: 26783.02867 | E184: 162.8840046
A185: SEE920837459195 | B185: Steinkohle | C185: 48.8 | D185: 26831.82867 | E185: 165.5453882
A186: SEE998984420832 | B186: Steinkohle | C186: 48.8 | D186: 26880.62867 | E186: 165.5453882
A187: SEE979779484642 | B187: Steinkohle | C187: 42.4 | D187: 26923.02867 | E187: 167.5006905
A188: SEE938923083674 | B188: Steinkohle | C188: 44.448 | D188: 26967.47667 | E188: 171.7622466
A189: SEE975507584615 | B189: Steinkohle | C189: 348 | D189: 27315.47667 | E189: 172.5988712
A190: SEE987197130805 | B190: Steinkohle | C190: 155.2 | D190: 27470.67667 | E190: 172.5988712
A191: SEE929161243203 | B191: Steinkohle | C191: 408 | D191: 27878.67667 | E191: 173.6562716
A192: SEE906834978235 | B192: Steinkohle | C192: 3.2616 | D192: 27881.93827 | E192: 174.2112955
A193: SEE952372080091 | B193: Steinkohle | C193: 266.4 | D193: 28148.33827 | E193: 174.7268075
A194: SEE919393178787 | B194: Steinkohle | C194: 143.2 | D194: 28291.53827 | E194: 175.810725
A195: SEE945908806647 | B195: Steinkohle | C195: 368 | D195: 28659.53827 | E195: 175.810725
A196: SEE954169155876 | B196: Steinkohle | C196: 43.2 | D196: 28702.73827 | E196: 175.810725
A197: SEE974753539035 | B197: Steinkohle | C197: 21.52 | D197: 28724.25827 | E197: 175.810725
A198: SEE974883809046 | B198: Steinkohle | C198: 225.6 | D198: 28949.85827 | E198: 175.810725
A199: SEE981109871657 | B199: Steinkohle | C199: 71.2 | D199: 29021.05827 | E199: 175.810725
A200: SEE989328541450 | B200: Steinkohle | C200: 225.6 | D200: 29246.65827 | E200: 175.810725
... 966 more rows

Sheet Backend II (hidden)
A1: Power | B1: Erneuerbare Energien | C1: Abfall | D1: Kernenergie | E1: Braunkohle | F1: Steinkohle | G1: GuD | H1: Gasturbine | I1: Öl | J1: Sonstige
A2: 0 | B2: 0 | C2: 3 | D2: 0 | E2: 0 | F2: 0 | G2: 0 | H2: 0 | I2: 0 | J2: 0
A3: 1693.382087 | B3: 0 | C3: 3 | D3: 0 | E3: 0 | F3: 0 | G3: 0 | H3: 0 | I3: 0 | J3: 0
A4: 1693.382087 | B4: 0 | C4: 0 | D4: 17.142 | E4: 0 | F4: 0 | G4: 0 | H4: 0 | I4: 0 | J4: 0
A5: 2935.862087 | B5: 0 | C5: 0 | D5: 17.142 | E5: 0 | F5: 0 | G5: 0 | H5: 0 | I5: 0 | J5: 0
A6: 2935.862087 | B6: 0 | C6: 0 | D6: 17.8667 | E6: 0 | F6: 0 | G6: 0 | H6: 0 | I6: 0 | J6: 0
A7: 5465.462087 | B7: 0 | C7: 0 | D7: 17.8667 | E7: 0 | F7: 0 | G7: 0 | H7: 0 | I7: 0 | J7: 0
A8: 5465.462087 | B8: 0 | C8: 0 | D8: 0 | E8: 83.8343 | F8: 0 | G8: 0 | H8: 0 | I8: 0 | J8: 0
A9: 6013.562087 | B9: 0 | C9: 0 | D9: 0 | E9: 83.8343 | F9: 0 | G9: 0 | H9: 0 | I9: 0 | J9: 0
A10: 6013.562087 | B10: 0 | C10: 0 | D10: 0 | E10: 84.4783 | F10: 0 | G10: 0 | H10: 0 | I10: 0 | J10: 0
A11: 6037.939487 | B11: 0 | C11: 0 | D11: 0 | E11: 84.4783 | F11: 0 | G11: 0 | H11: 0 | I11: 0 | J11: 0
A12: 6037.939487 | B12: 0 | C12: 0 | D12: 0 | E12: 85.1713 | F12: 0 | G12: 0 | H12: 0 | I12: 0 | J12: 0
A13: 8703.619487 | B13: 0 | C13: 0 | D13: 0 | E13: 85.1713 | F13: 0 | G13: 0 | H13: 0 | I13: 0 | J13: 0
A14: 8703.619487 | B14: 0 | C14: 0 | D14: 0 | E14: 86.3525 | F14: 0 | G14: 0 | H14: 0 | I14: 0 | J14: 0
A15: 8769.130487 | B15: 0 | C15: 0 | D15: 0 | E15: 86.3525 | F15: 0 | G15: 0 | H15: 0 | I15: 0 | J15: 0
A16: 8769.130487 | B16: 0 | C16: 0 | D16: 0 | E16: 86.5527 | F16: 0 | G16: 0 | H16: 0 | I16: 0 | J16: 0
A17: 9499.930487 | B17: 0 | C17: 0 | D17: 0 | E17: 86.5527 | F17: 0 | G17: 0 | H17: 0 | I17: 0 | J17: 0
A18: 9499.930487 | B18: 0 | C18: 0 | D18: 0 | E18: 86.8344 | F18: 0 | G18: 0 | H18: 0 | I18: 0 | J18: 0
A19: 10063.69049 | B19: 0 | C19: 0 | D19: 0 | E19: 86.8344 | F19: 0 | G19: 0 | H19: 0 | I19: 0 | J19: 0
A20: 10063.69049 | B20: 0 | C20: 0 | D20: 0 | E20: 87.1588 | F20: 0 | G20: 0 | H20: 0 | I20: 0 | J20: 0
A21: 10838.86049 | B21: 0 | C21: 0 | D21: 0 | E21: 87.1588 | F21: 0 | G21: 0 | H21: 0 | I21: 0 | J21: 0
A22: 10838.86049 | B22: 0 | C22: 0 | D22: 0 | E22: 87.3219 | F22: 0 | G22: 0 | H22: 0 | I22: 0 | J22: 0
A23: 11385.22049 | B23: 0 | C23: 0 | D23: 0 | E23: 87.3219 | F23: 0 | G23: 0 | H23: 0 | I23: 0 | J23: 0
A24: 11385.22049 | B24: 0 | C24: 0 | D24: 0 | E24: 89.2431 | F24: 0 | G24: 0 | H24: 0 | I24: 0 | J24: 0
A25: 13474.09049 | B25: 0 | C25: 0 | D25: 0 | E25: 89.2431 | F25: 0 | G25: 0 | H25: 0 | I25: 0 | J25: 0
A26: 13474.09049 | B26: 0 | C26: 0 | D26: 0 | E26: 91.4317 | F26: 0 | G26: 0 | H26: 0 | I26: 0 | J26: 0
A27: 14432.633 | B27: 0 | C27: 0 | D27: 0 | E27: 91.4317 | F27: 0 | G27: 0 | H27: 0 | I27: 0 | J27: 0
A28: 14432.633 | B28: 0 | C28: 0 | D28: 0 | E28: 94.2069 | F28: 0 | G28: 0 | H28: 0 | I28: 0 | J28: 0
A29: 14449.859 | B29: 0 | C29: 0 | D29: 0 | E29: 94.2069 | F29: 0 | G29: 0 | H29: 0 | I29: 0 | J29: 0
A30: 14449.859 | B30: 0 | C30: 0 | D30: 0 | E30: 94.9277 | F30: 0 | G30: 0 | H30: 0 | I30: 0 | J30: 0
A31: 14476.829 | B31: 0 | C31: 0 | D31: 0 | E31: 94.9277 | F31: 0 | G31: 0 | H31: 0 | I31: 0 | J31: 0
A32: 14476.829 | B32: 0 | C32: 0 | D32: 0 | E32: 95.3657 | F32: 0 | G32: 0 | H32: 0 | I32: 0 | J32: 0
A33: 14526.332 | B33: 0 | C33: 0 | D33: 0 | E33: 95.3657 | F33: 0 | G33: 0 | H33: 0 | I33: 0 | J33: 0
A34: 14526.332 | B34: 0 | C34: 0 | D34: 0 | E34: 97.1593 | F34: 0 | G34: 0 | H34: 0 | I34: 0 | J34: 0
A35: 14652.67166 | B35: 0 | C35: 0 | D35: 0 | E35: 97.1593 | F35: 0 | G35: 0 | H35: 0 | I35: 0 | J35: 0
A36: 14652.67166 | B36: 0 | C36: 0 | D36: 0 | E36: 97.4138 | F36: 0 | G36: 0 | H36: 0 | I36: 0 | J36: 0
A37: 16392.67166 | B37: 0 | C37: 0 | D37: 0 | E37: 97.4138 | F37: 0 | G37: 0 | H37: 0 | I37: 0 | J37: 0
A38: 16392.67166 | B38: 0 | C38: 0 | D38: 0 | E38: 97.7725 | F38: 0 | G38: 0 | H38: 0 | I38: 0 | J38: 0
A39: 16421.81666 | B39: 0 | C39: 0 | D39: 0 | E39: 97.7725 | F39: 0 | G39: 0 | H39: 0 | I39: 0 | J39: 0
A40: 16421.81666 | B40: 0 | C40: 0 | D40: 0 | E40: 98.3936 | F40: 0 | G40: 0 | H40: 0 | I40: 0 | J40: 0
A41: 16625.5463 | B41: 0 | C41: 0 | D41: 0 | E41: 98.3936 | F41: 0 | G41: 0 | H41: 0 | I41: 0 | J41: 0
A42: 16625.5463 | B42: 0 | C42: 0 | D42: 0 | E42: 99.7674 | F42: 0 | G42: 0 | H42: 0 | I42: 0 | J42: 0
A43: 17679.1163 | B43: 0 | C43: 0 | D43: 0 | E43: 99.7674 | F43: 0 | G43: 0 | H43: 0 | I43: 0 | J43: 0
A44: 17679.1163 | B44: 0 | C44: 0 | D44: 0 | E44: 101.4019 | F44: 0 | G44: 0 | H44: 0 | I44: 0 | J44: 0
A45: 18826.6463 | B45: 0 | C45: 0 | D45: 0 | E45: 101.4019 | F45: 0 | G45: 0 | H45: 0 | I45: 0 | J45: 0
A46: 18826.6463 | B46: 0 | C46: 0 | D46: 0 | E46: 104.2505 | F46: 0 | G46: 0 | H46: 0 | I46: 0 | J46: 0
A47: 19696.6463 | B47: 0 | C47: 0 | D47: 0 | E47: 104.2505 | F47: 0 | G47: 0 | H47: 0 | I47: 0 | J47: 0
A48: 19696.6463 | B48: 0 | C48: 0 | D48: 0 | E48: 104.3678 | F48: 0 | G48: 0 | H48: 0 | I48: 0 | J48: 0
A49: 19711.52867 | B49: 0 | C49: 0 | D49: 0 | E49: 104.3678 | F49: 0 | G49: 0 | H49: 0 | I49: 0 | J49: 0
A50: 19711.52867 | B50: 0 | C50: 0 | D50: 0 | E50: 110.4657 | F50: 0 | G50: 0 | H50: 0 | I50: 0 | J50: 0
A51: 20007.32867 | B51: 0 | C51: 0 | D51: 0 | E51: 110.4657 | F51: 0 | G51: 0 | H51: 0 | I51: 0 | J51: 0
A52: 20007.32867 | B52: 0 | C52: 0 | D52: 0 | E52: 0 | F52: 139.8006 | G52: 0 | H52: 0 | I52: 0 | J52: 0
A53: 20033.64867 | B53: 0 | C53: 0 | D53: 0 | E53: 0 | F53: 139.8006 | G53: 0 | H53: 0 | I53: 0 | J53: 0
A54: 20033.64867 | B54: 0 | C54: 0 | D54: 0 | E54: 143.2326 | F54: 0 | G54: 0 | H54: 0 | I54: 0 | J54: 0
A55: 20046.69867 | B55: 0 | C55: 0 | D55: 0 | E55: 143.2326 | F55: 0 | G55: 0 | H55: 0 | I55: 0 | J55: 0
A56: 20046.69867 | B56: 0 | C56: 0 | D56: 0 | E56: 0 | F56: 0 | G56: 0 | H56: 0 | I56: 145.8846 | J56: 0
A57: 20071.68867 | B57: 0 | C57: 0 | D57: 0 | E57: 0 | F57: 0 | G57: 0 | H57: 0 | I57: 145.8846 | J57: 0
A58: 20071.68867 | B58: 0 | C58: 0 | D58: 0 | E58: 0 | F58: 149.0339 | G58: 0 | H58: 0 | I58: 0 | J58: 0
A59: 20098.00867 | B59: 0 | C59: 0 | D59: 0 | E59: 0 | F59: 149.0339 | G59: 0 | H59: 0 | I59: 0 | J59: 0
A60: 20098.00867 | B60: 0 | C60: 0 | D60: 0 | E60: 0 | F60: 0 | G60: 0 | H60: 0 | I60: 149.1775 | J60: 0
A61: 20184.70867 | B61: 0 | C61: 0 | D61: 0 | E61: 0 | F61: 0 | G61: 0 | H61: 0 | I61: 149.1775 | J61: 0
A62: 20184.70867 | B62: 0 | C62: 0 | D62: 0 | E62: 0 | F62: 150.4545 | G62: 0 | H62: 0 | I62: 0 | J62: 0
A63: 20220.30867 | B63: 0 | C63: 0 | D63: 0 | E63: 0 | F63: 150.4545 | G63: 0 | H63: 0 | I63: 0 | J63: 0
A64: 20220.30867 | B64: 0 | C64: 0 | D64: 0 | E64: 0 | F64: 151.7403 | G64: 0 | H64: 0 | I64: 0 | J64: 0
A65: 20894.70867 | B65: 0 | C65: 0 | D65: 0 | E65: 0 | F65: 151.7403 | G65: 0 | H65: 0 | I65: 0 | J65: 0
A66: 20894.70867 | B66: 0 | C66: 0 | D66: 0 | E66: 0 | F66: 151.9026 | G66: 0 | H66: 0 | I66: 0 | J66: 0
A67: 20949.42867 | B67: 0 | C67: 0 | D67: 0 | E67: 0 | F67: 151.9026 | G67: 0 | H67: 0 | I67: 0 | J67: 0
A68: 20949.42867 | B68: 0 | C68: 0 | D68: 0 | E68: 0 | F68: 152.2282 | G68: 0 | H68: 0 | I68: 0 | J68: 0
A69: 21530.22867 | B69: 0 | C69: 0 | D69: 0 | E69: 0 | F69: 152.2282 | G69: 0 | H69: 0 | I69: 0 | J69: 0
A70: 21530.22867 | B70: 0 | C70: 0 | D70: 0 | E70: 0 | F70: 153.0485 | G70: 0 | H70: 0 | I70: 0 | J70: 0
A71: 22197.42867 | B71: 0 | C71: 0 | D71: 0 | E71: 0 | F71: 153.0485 | G71: 0 | H71: 0 | I71: 0 | J71: 0
A72: 22197.42867 | B72: 0 | C72: 0 | D72: 0 | E72: 0 | F72: 153.2136 | G72: 0 | H72: 0 | I72: 0 | J72: 0
A73: 22794.22867 | B73: 0 | C73: 0 | D73: 0 | E73: 0 | F73: 153.2136 | G73: 0 | H73: 0 | I73: 0 | J73: 0
A74: 22794.22867 | B74: 0 | C74: 0 | D74: 0 | E74: 0 | F74: 155.5636 | G74: 0 | H74: 0 | I74: 0 | J74: 0
A75: 23171.82867 | B75: 0 | C75: 0 | D75: 0 | E75: 0 | F75: 155.5636 | G75: 0 | H75: 0 | I75: 0 | J75: 0
A76: 23171.82867 | B76: 0 | C76: 0 | D76: 0 | E76: 0 | F76: 156.4206 | G76: 0 | H76: 0 | I76: 0 | J76: 0
A77: 24593.42867 | B77: 0 | C77: 0 | D77: 0 | E77: 0 | F77: 156.4206 | G77: 0 | H77: 0 | I77: 0 | J77: 0
A78: 24593.42867 | B78: 0 | C78: 0 | D78: 0 | E78: 0 | F78: 157.2872 | G78: 0 | H78: 0 | I78: 0 | J78: 0
A79: 25215.82867 | B79: 0 | C79: 0 | D79: 0 | E79: 0 | F79: 157.2872 | G79: 0 | H79: 0 | I79: 0 | J79: 0
A80: 25215.82867 | B80: 0 | C80: 0 | D80: 0 | E80: 0 | F80: 159.0498 | G80: 0 | H80: 0 | I80: 0 | J80: 0
A81: 25495.82867 | B81: 0 | C81: 0 | D81: 0 | E81: 0 | F81: 159.0498 | G81: 0 | H81: 0 | I81: 0 | J81: 0
A82: 25495.82867 | B82: 0 | C82: 0 | D82: 0 | E82: 0 | F82: 159.9461 | G82: 0 | H82: 0 | I82: 0 | J82: 0
A83: 25754.22867 | B83: 0 | C83: 0 | D83: 0 | E83: 0 | F83: 159.9461 | G83: 0 | H83: 0 | I83: 0 | J83: 0
A84: 25754.22867 | B84: 0 | C84: 0 | D84: 0 | E84: 0 | F84: 160.8527 | G84: 0 | H84: 0 | I84: 0 | J84: 0
A85: 26371.82867 | B85: 0 | C85: 0 | D85: 0 | E85: 0 | F85: 160.8527 | G85: 0 | H85: 0 | I85: 0 | J85: 0
A86: 26371.82867 | B86: 0 | C86: 0 | D86: 0 | E86: 0 | F86: 162.884 | G86: 0 | H86: 0 | I86: 0 | J86: 0
A87: 26783.02867 | B87: 0 | C87: 0 | D87: 0 | E87: 0 | F87: 162.884 | G87: 0 | H87: 0 | I87: 0 | J87: 0
A88: 26783.02867 | B88: 0 | C88: 0 | D88: 0 | E88: 0 | F88: 165.5454 | G88: 0 | H88: 0 | I88: 0 | J88: 0
A89: 26880.62867 | B89: 0 | C89: 0 | D89: 0 | E89: 0 | F89: 165.5454 | G89: 0 | H89: 0 | I89: 0 | J89: 0
A90: 26880.62867 | B90: 0 | C90: 0 | D90: 0 | E90: 0 | F90: 167.5007 | G90: 0 | H90: 0 | I90: 0 | J90: 0
A91: 26923.02867 | B91: 0 | C91: 0 | D91: 0 | E91: 0 | F91: 167.5007 | G91: 0 | H91: 0 | I91: 0 | J91: 0
A92: 26923.02867 | B92: 0 | C92: 0 | D92: 0 | E92: 0 | F92: 171.7622 | G92: 0 | H92: 0 | I92: 0 | J92: 0
A93: 26967.47667 | B93: 0 | C93: 0 | D93: 0 | E93: 0 | F93: 171.7622 | G93: 0 | H93: 0 | I93: 0 | J93: 0
A94: 26967.47667 | B94: 0 | C94: 0 | D94: 0 | E94: 0 | F94: 172.5989 | G94: 0 | H94: 0 | I94: 0 | J94: 0
A95: 27470.67667 | B95: 0 | C95: 0 | D95: 0 | E95: 0 | F95: 172.5989 | G95: 0 | H95: 0 | I95: 0 | J95: 0
A96: 27470.67667 | B96: 0 | C96: 0 | D96: 0 | E96: 0 | F96: 173.6563 | G96: 0 | H96: 0 | I96: 0 | J96: 0
A97: 27878.67667 | B97: 0 | C97: 0 | D97: 0 | E97: 0 | F97: 173.6563 | G97: 0 | H97: 0 | I97: 0 | J97: 0
A98: 27878.67667 | B98: 0 | C98: 0 | D98: 0 | E98: 0 | F98: 174.2113 | G98: 0 | H98: 0 | I98: 0 | J98: 0
A99: 27881.93827 | B99: 0 | C99: 0 | D99: 0 | E99: 0 | F99: 174.2113 | G99: 0 | H99: 0 | I99: 0 | J99: 0
A100: 27881.93827 | B100: 0 | C100: 0 | D100: 0 | E100: 0 | F100: 174.7268 | G100: 0 | H100: 0 | I100: 0 | J100: 0
A101: 28148.33827 | B101: 0 | C101: 0 | D101: 0 | E101: 0 | F101: 174.7268 | G101: 0 | H101: 0 | I101: 0 | J101: 0
A102: 28148.33827 | B102: 0 | C102: 0 | D102: 0 | E102: 0 | F102: 175.8107 | G102: 0 | H102: 0 | I102: 0 | J102: 0
A103: 29246.65827 | B103: 0 | C103: 0 | D103: 0 | E103: 0 | F103: 175.8107 | G103: 0 | H103: 0 | I103: 0 | J103: 0
A104: 29246.65827 | B104: 0 | C104: 0 | D104: 0 | E104: 0 | F104: 176.9083 | G104: 0 | H104: 0 | I104: 0 | J104: 0
A105: 29608.65827 | B105: 0 | C105: 0 | D105: 0 | E105: 0 | F105: 176.9083 | G105: 0 | H105: 0 | I105: 0 | J105: 0
A106: 29608.65827 | B106: 0 | C106: 0 | D106: 0 | E106: 0 | F106: 178.0197 | G106: 0 | H106: 0 | I106: 0 | J106: 0
A107: 29657.85827 | B107: 0 | C107: 0 | D107: 0 | E107: 0 | F107: 178.0197 | G107: 0 | H107: 0 | I107: 0 | J107: 0
A108: 29657.85827 | B108: 0 | C108: 0 | D108: 0 | E108: 0 | F108: 0 | G108: 0 | H108: 0 | I108: 180.3127 | J108: 0
A109: 29674.00827 | B109: 0 | C109: 0 | D109: 0 | E109: 0 | F109: 0 | G109: 0 | H109: 0 | I109: 180.3127 | J109: 0
A110: 29674.00827 | B110: 0 | C110: 0 | D110: 0 | E110: 180.4484 | F110: 0 | G110: 0 | H110: 0 | I110: 0 | J110: 0
A111: 29759.26827 | B111: 0 | C111: 0 | D111: 0 | E111: 180.4484 | F111: 0 | G111: 0 | H111: 0 | I111: 0 | J111: 0
A112: 29759.26827 | B112: 0 | C112: 0 | D112: 0 | E112: 0 | F112: 181.4401 | G112: 0 | H112: 0 | I112: 0 | J112: 0
A113: 30036.86827 | B113: 0 | C113: 0 | D113: 0 | E113: 0 | F113: 181.4401 | G113: 0 | H113: 0 | I113: 0 | J113: 0
A114: 30036.86827 | B114: 0 | C114: 0 | D114: 0 | E114: 0 | F114: 182.6098 | G114: 0 | H114: 0 | I114: 0 | J114: 0
A115: 30072.86827 | B115: 0 | C115: 0 | D115: 0 | E115: 0 | F115: 182.6098 | G115: 0 | H115: 0 | I115: 0 | J115: 0
A116: 30072.86827 | B116: 0 | C116: 0 | D116: 0 | E116: 0 | F116: 184.9955 | G116: 0 | H116: 0 | I116: 0 | J116: 0
A117: 30108.86827 | B117: 0 | C117: 0 | D117: 0 | E117: 0 | F117: 184.9955 | G117: 0 | H117: 0 | I117: 0 | J117: 0
A118: 30108.86827 | B118: 0 | C118: 0 | D118: 0 | E118: 0 | F118: 0 | G118: 0 | H118: 0 | I118: 185.3837 | J118: 0
A119: 30110.05827 | B119: 0 | C119: 0 | D119: 0 | E119: 0 | F119: 0 | G119: 0 | H119: 0 | I119: 185.3837 | J119: 0
A120: 30110.05827 | B120: 0 | C120: 0 | D120: 0 | E120: 0 | F120: 186.212 | G120: 0 | H120: 0 | I120: 0 | J120: 0
A121: 30686.05827 | B121: 0 | C121: 0 | D121: 0 | E121: 0 | F121: 186.212 | G121: 0 | H121: 0 | I121: 0 | J121: 0
A122: 30686.05827 | B122: 0 | C122: 0 | D122: 0 | E122: 0 | F122: 187.4448 | G122: 0 | H122: 0 | I122: 0 | J122: 0
A123: 30712.29827 | B123: 0 | C123: 0 | D123: 0 | E123: 0 | F123: 187.4448 | G123: 0 | H123: 0 | I123: 0 | J123: 0
A124: 30712.29827 | B124: 0 | C124: 0 | D124: 0 | E124: 0 | F124: 189.9602 | G124: 0 | H124: 0 | I124: 0 | J124: 0
A125: 30881.09827 | B125: 0 | C125: 0 | D125: 0 | E125: 0 | F125: 189.9602 | G125: 0 | H125: 0 | I125: 0 | J125: 0
A126: 30881.09827 | B126: 0 | C126: 0 | D126: 0 | E126: 0 | F126: 0 | G126: 0 | H126: 0 | I126: 0 | J126: 190.6009
A127: 30962.02167 | B127: 0 | C127: 0 | D127: 0 | E127: 0 | F127: 0 | G127: 0 | H127: 0 | I127: 0 | J127: 190.6009
A128: 30962.02167 | B128: 0 | C128: 0 | D128: 0 | E128: 0 | F128: 0 | G128: 0 | H128: 0 | I128: 0 | J128: 192.5161
A129: 31017.69667 | B129: 0 | C129: 0 | D129: 0 | E129: 0 | F129: 0 | G129: 0 | H129: 0 | I129: 0 | J129: 192.5161
A130: 31017.69667 | B130: 0 | C130: 0 | D130: 0 | E130: 0 | F130: 195.2008 | G130: 0 | H130: 0 | I130: 0 | J130: 0
A131: 31220.09667 | B131: 0 | C131: 0 | D131: 0 | E131: 0 | F131: 195.2008 | G131: 0 | H131: 0 | I131: 0 | J131: 0
A132: 31220.09667 | B132: 0 | C132: 0 | D132: 0 | E132: 0 | F132: 0 | G132: 0 | H132: 0 | I132: 0 | J132: 197.988
A133: 31283.62142 | B133: 0 | C133: 0 | D133: 0 | E133: 0 | F133: 0 | G133: 0 | H133: 0 | I133: 0 | J133: 197.988
A134: 31283.62142 | B134: 0 | C134: 0 | D134: 0 | E134: 0 | F134: 199.3264 | G134: 0 | H134: 0 | I134: 0 | J134: 0
A135: 31307.54142 | B135: 0 | C135: 0 | D135: 0 | E135: 0 | F135: 199.3264 | G135: 0 | H135: 0 | I135: 0 | J135: 0
A136: 31307.54142 | B136: 0 | C136: 0 | D136: 0 | E136: 0 | F136: 200.7408 | G136: 0 | H136: 0 | I136: 0 | J136: 0
A137: 31329.46542 | B137: 0 | C137: 0 | D137: 0 | E137: 0 | F137: 200.7408 | G137: 0 | H137: 0 | I137: 0 | J137: 0
A138: 31329.46542 | B138: 0 | C138: 0 | D138: 0 | E138: 0 | F138: 202.1757 | G138: 0 | H138: 0 | I138: 0 | J138: 0
A139: 31605.46542 | B139: 0 | C139: 0 | D139: 0 | E139: 0 | F139: 202.1757 | G139: 0 | H139: 0 | I139: 0 | J139: 0
A140: 31605.46542 | B140: 0 | C140: 0 | D140: 0 | E140: 0 | F140: 203.6313 | G140: 0 | H140: 0 | I140: 0 | J140: 0
A141: 31881.46542 | B141: 0 | C141: 0 | D141: 0 | E141: 0 | F141: 203.6313 | G141: 0 | H141: 0 | I141: 0 | J141: 0
A142: 31881.46542 | B142: 0 | C142: 0 | D142: 0 | E142: 0 | F142: 0 | G142: 0 | H142: 0 | I142: 0 | J142: 203.7818
A143: 31888.86042 | B143: 0 | C143: 0 | D143: 0 | E143: 0 | F143: 0 | G143: 0 | H143: 0 | I143: 0 | J143: 203.7818
A144: 31888.86042 | B144: 0 | C144: 0 | D144: 0 | E144: 0 | F144: 0 | G144: 0 | H144: 0 | I144: 204.744 | J144: 0
A145: 31977.8907 | B145: 0 | C145: 0 | D145: 0 | E145: 0 | F145: 0 | G145: 0 | H145: 0 | I145: 204.744 | J145: 0
A146: 31977.8907 | B146: 0 | C146: 0 | D146: 0 | E146: 0 | F146: 0 | G146: 0 | H146: 0 | I146: 205.1012 | J146: 0
A147: 31979.0467 | B147: 0 | C147: 0 | D147: 0 | E147: 0 | F147: 0 | G147: 0 | H147: 0 | I147: 205.1012 | J147: 0
A148: 31979.0467 | B148: 0 | C148: 0 | D148: 0 | E148: 0 | F148: 205.3464 | G148: 0 | H148: 0 | I148: 0 | J148: 0
A149: 32045.5587 | B149: 0 | C149: 0 | D149: 0 | E149: 0 | F149: 205.3464 | G149: 0 | H149: 0 | I149: 0 | J149: 0
A150: 32045.5587 | B150: 0 | C150: 0 | D150: 0 | E150: 0 | F150: 0 | G150: 0 | H150: 0 | I150: 0 | J150: 205.974
A151: 32066.78745 | B151: 0 | C151: 0 | D151: 0 | E151: 0 | F151: 0 | G151: 0 | H151: 0 | I151: 0 | J151: 205.974
A152: 32066.78745 | B152: 0 | C152: 0 | D152: 0 | E152: 0 | F152: 0 | G152: 0 | H152: 0 | I152: 206.2319 | J152: 0
A153: 32138.02595 | B153: 0 | C153: 0 | D153: 0 | E153: 0 | F153: 0 | G153: 0 | H153: 0 | I153: 206.2319 | J153: 0
A154: 32138.02595 | B154: 0 | C154: 0 | D154: 0 | E154: 0 | F154: 208.1275 | G154: 0 | H154: 0 | I154: 0 | J154: 0
A155: 32165.94595 | B155: 0 | C155: 0 | D155: 0 | E155: 0 | F155: 208.1275 | G155: 0 | H155: 0 | I155: 0 | J155: 0
A156: 32165.94595 | B156: 0 | C156: 0 | D156: 0 | E156: 0 | F156: 0 | G156: 0 | H156: 0 | I156: 0 | J156: 208.7819
A157: 32224.85095 | B157: 0 | C157: 0 | D157: 0 | E157: 0 | F157: 0 | G157: 0 | H157: 0 | I157: 0 | J157: 208.7819
A158: 32224.85095 | B158: 0 | C158: 0 | D158: 0 | E158: 0 | F158: 212.8282 | G158: 0 | H158: 0 | I158: 0 | J158: 0
A159: 32339.31495 | B159: 0 | C159: 0 | D159: 0 | E159: 0 | F159: 212.8282 | G159: 0 | H159: 0 | I159: 0 | J159: 0
A160: 32339.31495 | B160: 0 | C160: 0 | D160: 0 | E160: 0 | F160: 0 | G160: 0 | H160: 0 | I160: 213.8986 | J160: 0
A161: 32519.51495 | B161: 0 | C161: 0 | D161: 0 | E161: 0 | F161: 0 | G161: 0 | H161: 0 | I161: 213.8986 | J161: 0
A162: 32519.51495 | B162: 0 | C162: 0 | D162: 0 | E162: 0 | F162: 0 | G162: 0 | H162: 0 | I162: 214.5122 | J162: 0
A163: 32523.59495 | B163: 0 | C163: 0 | D163: 0 | E163: 0 | F163: 0 | G163: 0 | H163: 0 | I163: 214.5122 | J163: 0
A164: 32523.59495 | B164: 0 | C164: 0 | D164: 0 | E164: 0 | F164: 0 | G164: 0 | H164: 0 | I164: 215.1293 | J164: 0
A165: 32571.19495 | B165: 0 | C165: 0 | D165: 0 | E165: 0 | F165: 0 | G165: 0 | H165: 0 | I165: 215.1293 | J165: 0
A166: 32571.19495 | B166: 0 | C166: 0 | D166: 0 | E166: 0 | F166: 0 | G166: 0 | H166: 0 | I166: 215.4674 | J166: 0
A167: 32850.95715 | B167: 0 | C167: 0 | D167: 0 | E167: 0 | F167: 0 | G167: 0 | H167: 0 | I167: 215.4674 | J167: 0
A168: 32850.95715 | B168: 0 | C168: 0 | D168: 0 | E168: 0 | F168: 0 | G168: 0 | H168: 0 | I168: 215.7499 | J168: 0
A169: 32946.88815 | B169: 0 | C169: 0 | D169: 0 | E169: 0 | F169: 0 | G169: 0 | H169: 0 | I169: 215.7499 | J169: 0
A170: 32946.88815 | B170: 0 | C170: 0 | D170: 0 | E170: 0 | F170: 0 | G170: 0 | H170: 0 | I170: 216.3742 | J170: 0
A171: 32976.21315 | B171: 0 | C171: 0 | D171: 0 | E171: 0 | F171: 0 | G171: 0 | H171: 0 | I171: 216.3742 | J171: 0
A172: 32976.21315 | B172: 0 | C172: 0 | D172: 0 | E172: 0 | F172: 0 | G172: 0 | H172: 0 | I172: 217.6337 | J172: 0
A173: 32985.25715 | B173: 0 | C173: 0 | D173: 0 | E173: 0 | F173: 0 | G173: 0 | H173: 0 | I173: 217.6337 | J173: 0
A174: 32985.25715 | B174: 0 | C174: 0 | D174: 0 | E174: 0 | F174: 0 | G174: 0 | H174: 0 | I174: 0 | J174: 217.6868
A175: 33413.11168 | B175: 0 | C175: 0 | D175: 0 | E175: 0 | F175: 0 | G175: 0 | H175: 0 | I175: 0 | J175: 217.6868
A176: 33413.11168 | B176: 0 | C176: 0 | D176: 0 | E176: 0 | F176: 0 | G176: 0 | H176: 0 | I176: 218.908 | J176: 0
A177: 33936.89935 | B177: 0 | C177: 0 | D177: 0 | E177: 0 | F177: 0 | G177: 0 | H177: 0 | I177: 218.908 | J177: 0
A178: 33936.89935 | B178: 0 | C178: 0 | D178: 0 | E178: 0 | F178: 0 | G178: 0 | H178: 0 | I178: 220.1974 | J178: 0
A179: 33943.01935 | B179: 0 | C179: 0 | D179: 0 | E179: 0 | F179: 0 | G179: 0 | H179: 0 | I179: 220.1974 | J179: 0
A180: 33943.01935 | B180: 0 | C180: 0 | D180: 0 | E180: 0 | F180: 0 | G180: 0 | H180: 0 | I180: 0 | J180: 220.8272
A181: 34024.19435 | B181: 0 | C181: 0 | D181: 0 | E181: 0 | F181: 0 | G181: 0 | H181: 0 | I181: 0 | J181: 220.8272
A182: 34024.19435 | B182: 0 | C182: 0 | D182: 0 | E182: 0 | F182: 221.156 | G182: 0 | H182: 0 | I182: 0 | J182: 0
A183: 34043.65195 | B183: 0 | C183: 0 | D183: 0 | E183: 0 | F183: 221.156 | G183: 0 | H183: 0 | I183: 0 | J183: 0
A184: 34043.65195 | B184: 0 | C184: 0 | D184: 0 | E184: 0 | F184: 0 | G184: 0 | H184: 0 | I184: 224.6487 | J184: 0
A185: 34159.9957 | B185: 0 | C185: 0 | D185: 0 | E185: 0 | F185: 0 | G185: 0 | H185: 0 | I185: 224.6487 | J185: 0
A186: 34159.9957 | B186: 0 | C186: 0 | D186: 0 | E186: 0 | F186: 0 | G186: 0 | H186: 0 | I186: 225.5113 | J186: 0
A187: 34185.4957 | B187: 0 | C187: 0 | D187: 0 | E187: 0 | F187: 0 | G187: 0 | H187: 0 | I187: 225.5113 | J187: 0
A188: 34185.4957 | B188: 0 | C188: 0 | D188: 0 | E188: 0 | F188: 0 | G188: 0 | H188: 0 | I188: 226.8803 | J188: 0
A189: 34203.6857 | B189: 0 | C189: 0 | D189: 0 | E189: 0 | F189: 0 | G189: 0 | H189: 0 | I189: 226.8803 | J189: 0
A190: 34203.6857 | B190: 0 | C190: 0 | D190: 0 | E190: 0 | F190: 0 | G190: 0 | H190: 0 | I190: 230.3769 | J190: 0
A191: 34277.6357 | B191: 0 | C191: 0 | D191: 0 | E191: 0 | F191: 0 | G191: 0 | H191: 0 | I191: 230.3769 | J191: 0
A192: 34277.6357 | B192: 0 | C192: 0 | D192: 0 | E192: 0 | F192: 0 | G192: 0 | H192: 0 | I192: 0 | J192: 230.8193
A193: 34322.45123 | B193: 0 | C193: 0 | D193: 0 | E193: 0 | F193: 0 | G193: 0 | H193: 0 | I193: 0 | J193: 230.8193
A194: 34322.45123 | B194: 0 | C194: 0 | D194: 0 | E194: 0 | F194: 0 | G194: 0 | H194: 0 | I194: 231.0892 | J194: 0
A195: 34420.20123 | B195: 0 | C195: 0 | D195: 0 | E195: 0 | F195: 0 | G195: 0 | H195: 0 | I195: 231.0892 | J195: 0
A196: 34420.20123 | B196: 0 | C196: 0 | D196: 0 | E196: 0 | F196: 0 | G196: 232.0003 | H196: 0 | I196: 0 | J196: 0
A197: 34489.97523 | B197: 0 | C197: 0 | D197: 0 | E197: 0 | F197: 0 | G197: 232.0003 | H197: 0 | I197: 0 | J197: 0
A198: 34489.97523 | B198: 0 | C198: 0 | D198: 0 | E198: 0 | F198: 0 | G198: 0 | H198: 0 | I198: 238.4639 | J198: 0
A199: 34604.89523 | B199: 0 | C199: 0 | D199: 0 | E199: 0 | F199: 0 | G199: 0 | H199: 0 | I199: 238.4639 | J199: 0
A200: 34604.89523 | B200: 0 | C200: 0 | D200: 0 | E200: 0 | F200: 0 | G200: 238.7797 | H200: 0 | I200: 0 | J200: 0
... 1262 more rows

Sheet Kraftwerksliste Backend (hidden)
C3: EWI Merit-Order Tool 2022
C5: Kraftwerksliste | L5: =Impressum!F5 -> Version 2022_Nov.0
C7: Kurze Erläuterung der Liste und der grundsätzlichen Datenquellen
C10: Teil der Merit-Order? | D10: MaStR-Nr. | E10: Kraftwerksnummer Bundesnetzagentur | F10: Unternehmen | G10: Kraftwerksname | H10: Aufnahme der kommerziellen Stromerzeugung | I10: Zuordnung Kraftwerkstyp | J10: Effizienz | K10: Mittlere verfügbare Netto-Nennleistung [MW] | L10: Grenzkosten [EUR/MWHel]
C11: Nein | D11: (optional) | E11: (optional) | F11: (optional) | G11: (optional) | H11: (optional) | I11: (notwendig) | J11: (notwendig) | K11: 0 | L11: 0
C12: Nein | D12: (optional) | E12: (optional) | F12: (optional) | G12: (optional) | H12: (optional) | I12: (notwendig) | J12: (notwendig) | K12: 0 | L12: 0
C13: Nein | D13: (optional) | E13: (optional) | F13: (optional) | G13: (optional) | H13: (optional) | I13: (notwendig) | J13: (notwendig) | K13: 0 | L13: 0
C14: Nein | D14: (optional) | E14: (optional) | F14: (optional) | G14: (optional) | H14: (optional) | I14: (notwendig) | J14: (notwendig) | K14: 0 | L14: 0
C15: Nein | D15: (optional) | E15: (optional) | F15: (optional) | G15: (optional) | H15: (optional) | I15: (notwendig) | J15: (notwendig) | K15: 0 | L15: 0
C16: Nein | D16: (optional) | E16: (optional) | F16: (optional) | G16: (optional) | H16: (optional) | I16: (notwendig) | J16: (notwendig) | K16: 0 | L16: 0
C17: Nein | D17: (optional) | E17: (optional) | F17: (optional) | G17: (optional) | H17: (optional) | I17: (notwendig) | J17: (notwendig) | K17: 0 | L17: 0
C18: Nein | D18: (optional) | E18: (optional) | F18: (optional) | G18: (optional) | H18: (optional) | I18: (notwendig) | J18: (notwendig) | K18: 0 | L18: 0
C19: Nein | D19: (optional) | E19: (optional) | F19: (optional) | G19: (optional) | H19: (optional) | I19: (notwendig) | J19: (notwendig) | K19: 0 | L19: 0
C20: Nein | D20: (optional) | E20: (optional) | F20: (optional) | G20: (optional) | H20: (optional) | I20: (notwendig) | J20: (notwendig) | K20: 0 | L20: 0
C21: Ja | D21: SEE900128586359 | E21: BNA0746 | F21: N-ERGIE Kraftwerke GmbH | G21: HKW-Sandreuth (Müll) | H21: 1992-07-17 | I21: Abfall | J21: 0.33 | K21: 15.98 | L21: 1
C22: Ja | D22: SEE900664653232 | E22: BNA1289 | F22: AMK-Abfallentsorgungsgesellschaft des Märkischen Kreises mbH | G22: Turbine 1 | H22: 1996-08-01 | I22: Abfall | J22: 0.33 | K22: 9.095 | L22: 1
C23: Ja | D23: SEE900838448145 | E23: BNA1254 | F23: Zweckverband Müllverwertung Schwandorf | G23: MKW SAD Turbine 3 | H23: 1982-08-31 | I23: Abfall | J23: 0.33 | K23: 9.86 | L23: 1
C24: Ja | D24: SEE904604163027 | E24: BNA0519 | F24: RWE Generation SE | G24: Karnap B | H24: 1987-02-14 | I24: Abfall | J24: 0.33 | K24: 32.3 | L24: 1
C25: Ja | D25: SEE904983741502 | E25: BNA0641a | F25: MVV Umwelt Asset GmbH | G25: MHKW Mannheim Generator T60 | H25: 2010-01-07 | I25: Abfall | J25: 0.33 | K25: 21.76 | L25: 1
C26: Ja | D26: SEE906215229154 | E26: BNA0438 | F26: EEW Energy from Waste Helmstedt GmbH | G26: MVA EEW Helmstedt | H26: 2014-01-01 | I26: Abfall | J26: 0.33 | K26: 31.875 | L26: 1
C27: Ja | D27: SEE906331863386 | F27: GSB Sonderabfall-Entsorgung Bayern GmbH | G27: Turbine VA3 | H27: 1995-12-20 | I27: Abfall | J27: 0.33 | K27: 6.00185 | L27: 1
C28: Ja | D28: SEE907370296296 | E28: BNA1254 | F28: Zweckverband Müllverwertung Schwandorf | G28: MKW SAD Turbine 5 | H28: 1992-06-04 | I28: Abfall | J28: 0.33 | K28: 27.88 | L28: 1
C29: Ja | D29: SEE909031885047 | F29: Müllverwertung Borsigstraße GmbH | G29: MVB Borsigstraße Müll | H29: 2010-07-16 | I29: Abfall | J29: 0.33 | K29: 8.5e-06 | L29: 1
C30: Ja | D30: SEE912257091857 | E30: BNA0287b | F30: MHKW Müllheizkraftwerk Frankfurt am Main GmbH | G30: Turbine 7 | H30: 2005-12-21 | I30: Abfall | J30: 0.33 | K30: 39.525 | L30: 1
C31: Ja | D31: SEE914179988338 | E31: BNA0407 | F31: Enertec Hameln GmbH | G31: Turbine 6 | H31: 1970-11-13 | I31: Abfall | J31: 0.33 | K31: 2.1675 | L31: 1
C32: Ja | D32: SEE917110358740 | E32: BNA1330 | F32: Steinbeis Energie GmbH | G32: Steinbeis Energie EBS Kessel 6 | H32: 2010-09-27 | I32: Abfall | J32: 0.33 | K32: 14.45 | L32: 1
C33: Ja | D33: SEE918623387630 | E33: BNA1261 | F33: EEW Energy from Waste Stapelfeld GmbH | G33: EEW Stapelfeld GmbH | H33: 1979-10-01 | I33: Abfall | J33: 0.33 | K33: 9.69 | L33: 1
C34: Ja | D34: SEE922849915072 | E34: BNA1148 | F34: MHB Hamm Betriebsführungsgesellschaft mbH | G34: MVA Hamm Turbine 1 | H34: 1985-01-01 | I34: Abfall | J34: 0.33 | K34: 7.48 | L34: 1
C35: Ja | D35: SEE923271533315 | E35: BNA1155 | F35: RZR II Herten GmbH | G35: RZR II Turbine3 | H35: 2009-01-01 | I35: Abfall | J35: 0.33 | K35: 19.975 | L35: 1
C36: Ja | D36: SEE923791565131 | F36: Zweckverband Müllheizkraftwerk Stadt und Landkreis Bamberg | G36: Rheinstraße | H36: 2014-08-07 | I36: Abfall | J36: 0.33 | K36: 7.905 | L36: 1
C37: Ja | D37: SEE923959807806 | E37: BNA0640 | F37: BASF SE | G37: Turbine 3 | H37: 2006-11-10 | I37: Abfall | J37: 0.33 | K37: 9.469 | L37: 1
C38: Ja | D38: SEE924286409503 | E38: BNA0855 | F38: IKW Rüdersdorf | G38: IKW Rüdersdorf | H38: 2007-12-12 | I38: Abfall | J38: 0.33 | K38: 25.5 | L38: 1
C39: Ja | D39: SEE924302504816 | E39: BNA0117a | F39: Energie- und Wasserversorgung Bonn/Rhein-Sieg GmbH | G39: HKW Bonn-Nord, Turbogruppe 4 | H39: 1991-04-01 | I39: Abfall | J39: 0.33 | K39: 12.002 | L39: 1
C40: Ja | D40: SEE925011950635 | E40: BNA1161 | F40: Zweckverband Müllverwertungsanlage Ingolstadt | G40: Turbine VE 40 ZV MVA IN | H40: 1996-09-10 | I40: Abfall | J40: 0.33 | K40: 15.419 | L40: 1
C41: Ja | D41: SEE925411264011 | E41: BNA1186d | F41: EGK Entsorgungsgesellschaft Krefeld GmbH & Co. KG | G41: Turbine 5 | H41: 1997-12-01 | I41: Abfall | J41: 0.33 | K41: 1.6405 | L41: 1
C42: Ja | D42: SEE925652456091 | E42: BNA1168 | F42: Müllheizkraftwerk Kassel GmbH | G42: Müllheizkraftwerk Kassel M7 | H42: 1985-12-17 | I42: Abfall | J42: 0.33 | K42: 6.8 | L42: 1
C43: Ja | D43: SEE925794342412 | E43: BNA0591 | F43: MVV Umwelt Asset GmbH | G43: TREA Leuna 2 | H43: 2007-06-19 | I43: Abfall | J43: 0.33 | K43: 13.80825 | L43: 1
C44: Ja | D44: SEE927032372373 | E44: BNA1116 | F44: Bremerhavener Entsorgungsgesellschaft mbH | G44: MHKW, Generator 1+2 | H44: 1977-03-17 | I44: Abfall | J44: 0.33 | K44: 11.9 | L44: 1
C45: Ja | D45: SEE927716043575 | E45: BNA0417 | F45: EEW Energy from Waste Hannover GmbH | G45: MVA EEW Hannover | H45: 2005-06-01 | I45: Abfall | J45: 0.33 | K45: 23.12 | L45: 1
C46: Ja | D46: SEE927727929912 | E46: BNA1020 | F46: MVA Weisweiler GmbH & Co. KG | G46: MVA-Turbine | H46: 1996-10-01 | I46: Abfall | J46: 0.33 | K46: 22.95 | L46: 1
C47: Ja | D47: SEE928761575349 | E47: BNA0380 | F47: EEW Energy from Waste Großräschen GmbH | G47: EEW Großräschen GmbH | H47: 2008-01-16 | I47: Abfall | J47: 0.33 | K47: 21.25 | L47: 1
C48: Ja | D48: SEE929095613516 | F48: GSB Sonderabfall-Entsorgung Bayern GmbH | G48: Turbine VA2 | H48: 1995-10-06 | I48: Abfall | J48: 0.33 | K48: 6.00185 | L48: 1
C49: Ja | D49: SEE932127408097 | E49: BNA1198 | F49: PreZero Energy Zorbau GmbH | G49: Generator Zorbau | H49: 2005-06-06 | I49: Abfall | J49: 0.33 | K49: 23.12 | L49: 1
C50: Ja | D50: SEE934298270268 | E50: BNA1190 | F50: Thermische Abfallbehandlung Lauta | G50: T.A. Lauta | H50: 2004-07-21 | I50: Abfall | J50: 0.33 | K50: 13.345 | L50: 1
C51: Ja | D51: SEE937544161082 | E51: BNA1510 | F51: Hamburger Rieger GmbH GB Kraftwerk | G51: EBS Heizkraftwerk Spremberg | H51: 2013-08-01 | I51: Abfall | J51: 0.33 | K51: 14.875 | L51: 1
C52: Ja | D52: SEE937822704543 | F52: Zweckverband Abfallverwertung Südhessen (ZAS) | G52: Turbine 2 | H52: 2020-01-27 | I52: Abfall | J52: 0.33 | K52: 1.0625 | L52: 1
C53: Ja | D53: SEE937978171572 | E53: BNA1289 | F53: AMK-Abfallentsorgungsgesellschaft des Märkischen Kreises mbH | G53: Turbine 2 | H53: 1981-04-01 | I53: Abfall | J53: 0.33 | K53: 2.89 | L53: 1
C54: Ja | D54: SEE938035990372 | E54: BNA1244 | F54: AVA Velsen GmbH | G54: ABR992555104343 | H54: 1997-08-07 | I54: Abfall | J54: 0.33 | K54: 13.6 | L54: 1
C55: Ja | D55: SEE938782869693 | E55: BNA1222 | F55: Energieversorgung Offenbach AG | G55: Müllheizkraftwerk Offenbach Turbine 1 | H55: 2016-07-29 | I55: Abfall | J55: 0.33 | K55: 13.0917 | L55: 1
C56: Ja | D56: SEE939382623364 | F56: Klingele Papierwerke GmbH & Co. KG Papierfabrik Weener | G56: TWIN2 | H56: 2008-03-01 | I56: Abfall | J56: 0.33 | K56: 3.9865 | L56: 1
C57: Ja | D57: SEE940303116315 | F57: EEW Energy from Waste Premnitz GmbH | G57: Turbosatz 5 | H57: 2021-11-16 | I57: Abfall | J57: 0.33 | K57: 27.472 | L57: 1
C58: Ja | D58: SEE940474859066 | E58: BNA0616a | F58: BASF SE | G58: Z564 VT1 | H58: 1992-04-30 | I58: Abfall | J58: 0.33 | K58: 10.2 | L58: 1
C59: Ja | D59: SEE941568392261 | E59: BNA1154 | F59: AGR Abfallentsorgungs-Gesellschaft Ruhrgebiet mbH | G59: RZR I Turbine2 | H59: 1981-01-01 | I59: Abfall | J59: 0.33 | K59: 12.648 | L59: 1
C60: Ja | D60: SEE941568476039 | E60: BNA1184 | F60: AVG Abfallentsorgungs- und Verwertungsgesellschaft Köln mbH | G60: Turbosatz 1 | H60: 1998-02-02 | I60: Abfall | J60: 0.33 | K60: 39.1 | L60: 1
C61: Ja | D61: SEE942253705168 | E61: BNA1197 | F61: Technische Werke Ludwigshafen am Rhein | G61: FHKW DT 2 | H61: 1989-02-24 | I61: Abfall | J61: 0.33 | K61: 10.2595 | L61: 1
C62: Ja | D62: SEE942366584926 | E62: BNA0969a | F62: SWM Services GmbH | G62: SWM HKW Nord 1 T10 | H62: 1991-08-29 | I62: Abfall | J62: 0.33 | K62: 15.3 | L62: 1
C63: Ja | D63: SEE942777699660 | E63: BNA1490 | F63: EBS Kraftwerk GmbH | G63: EBKW Knapsack | H63: 2009-01-01 | I63: Abfall | J63: 0.33 | K63: 25.415 | L63: 1
C64: Ja | D64: SEE942956157011 | E64: BNA1867 | F64: AVG Abfallentsorgungs- und Verwertungsgesellschaft Köln mbH | G64: Turbosatz 2 | H64: 2017-05-30 | I64: Abfall | J64: 0.33 | K64: 15.3 | L64: 1
C65: Ja | D65: SEE943548208159 | E65: BNA1295 | F65: AVA Abfallverwertung Augsburg Kommunalunternehmen | G65: AHKW ND Turbine | H65: 1994-09-16 | I65: Abfall | J65: 0.33 | K65: 5.712 | L65: 1
C66: Ja | D66: SEE943841929270 | E66: BNA1295 | F66: AVA Abfallverwertung Augsburg Kommunalunternehmen | G66: AHKW HD Turbine | H66: 1994-09-16 | I66: Abfall | J66: 0.33 | K66: 6.7745 | L66: 1
C67: Ja | D67: SEE944111876263 | E67: BNA0237 | F67: Progroup Power 1 GmbH | G67: PPO1 - Eisenhüttenstadt | H67: 2009-10-19 | I67: Abfall | J67: 0.33 | K67: 27.2 | L67: 1
C68: Ja | D68: SEE944429192826 | E68: BNA1119 | F68: Zweckverband Abfallverwertung Südostbayern | G68: SEE944429192826 (MHKW Burgkirchen (Müllverbrennung)) | H68: 1994-01-28 | I68: Abfall | J68: 0.33 | K68: 10.88 | L68: 1
C69: Ja | D69: SEE945150729886 | E69: BNA1154 | F69: AGR Abfallentsorgungs-Gesellschaft Ruhrgebiet mbH | G69: RZR I Turbine1 | H69: 1981-01-01 | I69: Abfall | J69: 0.33 | K69: 12.648 | L69: 1
C70: Ja | D70: SEE945602121718 | E70: BNA1316 | F70: EkoCity | G70: Generator B | H70: 1976-01-01 | I70: Abfall | J70: 0.33 | K70: 17 | L70: 1
C71: Ja | D71: SEE946934017984 | E71: BNA1243 | F71: Vattenfall Europe New Energy Ecopower GmbH | G71: EBS-HKW Rostock | H71: 2010-03-31 | I71: Abfall | J71: 0.33 | K71: 15.725 | L71: 1
C72: Ja | D72: SEE947996339434 | E72: BNA1155 | F72: RZR II Herten GmbH | G72: RZR II Turbine4 | H72: 2019-02-07 | I72: Abfall | J72: 0.33 | K72: 10.421 | L72: 1
C73: Ja | D73: SEE948093740512 | E73: BNA0641c | F73: MVV Umwelt Asset GmbH | G73: MHKW Mannheim Generator TE0 | H73: 2012-06-14 | I73: Abfall | J73: 0.33 | K73: 3.621 | L73: 1
C74: Ja | D74: SEE950201173198 | E74: BNA1114 | F74: swb Entsorgung GmbH&Co. KG | G74: MHKW_Gen4 | H74: 2013-01-01 | I74: Abfall | J74: 0.33 | K74: 41.82 | L74: 1
C75: Ja | D75: SEE950593842498 | E75: BNA1262 | F75: Remondis Thermische Abfallverwertung GmbH | G75: Remondis Thermische Abfallverwertung GmbH | H75: 2007-12-06 | I75: Abfall | J75: 0.33 | K75: 20.4 | L75: 1
C76: Ja | D76: SEE951648072822 | E76: BNA1286 | F76: Zweckverband für Abfallwirtschaft Südwestthüringen (ZASt) | G76: ZASt | H76: 2007-10-15 | I76: Abfall | J76: 0.33 | K76: 10.285 | L76: 1
C77: Ja | D77: SEE951966828576 | E77: BNA1161 | F77: Zweckverband Müllverwertungsanlage Ingolstadt | G77: Turbine VE 32 ZV MVA IN | H77: 1996-09-10 | I77: Abfall | J77: 0.33 | K77: 6.29 | L77: 1
C78: Ja | D78: SEE953182244383 | F78: MVV Umwelt Asset GmbH | G78: MHKW Mannheim Generator X1 | H78: 2020-03-13 | I78: Abfall | J78: 0.33 | K78: 3.468 | L78: 1
C79: Ja | D79: SEE953730197888 | E79: BNA0641b | F79: MVV Umwelt Asset GmbH | G79: MHKW Mannheim Generator TD0 | H79: 2012-08-13 | I79: Abfall | J79: 0.33 | K79: 3.621 | L79: 1
C80: Ja | D80: SEE955292024220 | E80: BNA1254 | F80: Zweckverband Müllverwertung Schwandorf | G80: MKW SAD Turbine 4 | H80: 1982-09-21 | I80: Abfall | J80: 0.33 | K80: 9.86 | L80: 1
C81: Ja | D81: SEE955548455112 | E81: BNA1110 | F81: Zweckverband Restmüllheizkraftwerk Böblingen | G81: Restmüllheizkraftwerk | H81: 1999-05-01 | I81: Abfall | J81: 0.33 | K81: 10.71 | L81: 1
C82: Ja | D82: SEE955718847075 | E82: BNA0845 | F82: Stadtwerke Rosenheim GmbH & Co. KG | G82: DT1 | H82: 1988-01-01 | I82: Abfall | J82: 0.33 | K82: 5.865 | L82: 1
C83: Ja | D83: SEE955937262338 | E83: BNA0751 | F83: GMVA Gemeinschafts-Müll-Verbrennungsanlage Niederrhein GmbH | G83: „Turbosatz 1“ | H83: 2006-04-06 | I83: Abfall | J83: 0.33 | K83: 17.935 | L83: 1
C84: Ja | D84: SEE956268312785 | E84: BNA0088b | F84: Solvay Chemicals GmbH | G84: Kondensationsturbine EKT | H84: 2009-12-17 | I84: Abfall | J84: 0.33 | K84: 25.5 | L84: 1
C85: Ja | D85: SEE957509710094 | E85: BNA1448 | F85: EEW Energy from Waste Saarbrücken GmbH AHKW-Neunkirchen | G85: AHKW-Neunkirchen | H85: 1977-06-02 | I85: Abfall | J85: 0.33 | K85: 9.86 | L85: 1
C86: Ja | D86: SEE957686843929 | F86: Zweckverband Abfallverwertung Südhessen (ZAS) | G86: Turbine 1 | H86: 1991-10-09 | I86: Abfall | J86: 0.33 | K86: 8.6887 | L86: 1
C87: Ja | D87: SEE957830042178 | E87: BNA0599 | F87: AVEA Entsorgungsbetriebe | G87: Turbine 3 | H87: 2010-08-09 | I87: Abfall | J87: 0.33 | K87: 15.8525 | L87: 1
C88: Ja | D88: SEE958310939391 | E88: BNA0139 | F88: swb Entsorgung GmbH&Co. KG | G88: MKK | H88: 2009-08-28 | I88: Abfall | J88: 0.33 | K88: 27.2 | L88: 1
C89: Ja | D89: SEE958335974377 | E89: BNA1291 | F89: IHKW Industrieheizkraftwerk Andernach GmbH | G89: Dampfturbine | H89: 2008-12-15 | I89: Abfall | J89: 0.33 | K89: 10.625 | L89: 1
C90: Ja | D90: SEE958909269267 | F90: Infraserv GmbH & Co. Höchst KG | G90: IPH Ersatzbrennstoffverbrennung Turbine | H90: 2014-07-28 | I90: Abfall | J90: 0.33 | K90: 60.35 | L90: 1
C91: Ja | D91: SEE962737235608 | E91: BNA0622 | F91: Müllheizkraftwerk Rothensee GmbH | G91: Block 1 | H91: 2005-07-17 | I91: Abfall | J91: 0.33 | K91: 24.82 | L91: 1
C92: Ja | D92: SEE964170331206 | F92: Zweckverband für Abfallwirtschaft in Nordwest-Oberfranken | G92: MHKW Coburg | H92: 1988-01-01 | I92: Abfall | J92: 0.33 | K92: 9.01 | L92: 1
C93: Ja | D93: SEE965779402670 | E93: BNA1229 | F93: EEW Energy from Waste Saarbrücken GmbH | G93: MHKW Pirmasens Verbrennung | H93: 1999-01-01 | I93: Abfall | J93: 0.33 | K93: 12.75 | L93: 1
C94: Ja | D94: SEE966264899036 | E94: BNA1197 | F94: Technische Werke Ludwigshafen am Rhein | G94: FHKW DT5 | H94: 2005-07-05 | I94: Abfall | J94: 0.33 | K94: 7.772672 | L94: 1
C95: Ja | D95: SEE969698095906 | E95: BNA1197 | F95: Technische Werke Ludwigshafen am Rhein | G95: FHKW DT6 | H95: 2018-04-12 | I95: Abfall | J95: 0.33 | K95: 4.6636015 | L95: 1
C96: Ja | D96: SEE971280976463 | E96: BNA1144 | F96: EEW Energy from Waste Göppingen | G96: MHKW Turbine | H96: 1975-07-01 | I96: Abfall | J96: 0.33 | K96: 9.35 | L96: 1
C97: Ja | D97: SEE971796321603 | E97: BNA1449b | F97: Zweckverband Abfallwirtschaft Raum Würzburg | G97: TS II | H97: 1998-11-09 | I97: Abfall | J97: 0.33 | K97: 10.2 | L97: 1
C98: Ja | D98: SEE972694764301 | E98: BNA1114 | F98: swb Entsorgung GmbH&Co. KG | G98: MHKW_Gen1 | H98: 1984-01-01 | I98: Abfall | J98: 0.33 | K98: 2.21 | L98: 1
C99: Ja | D99: SEE973464796218 | E99: BNA1255 | F99: LEIPA Georg Leinfelder GmbH | G99: Dampfturbine FSK Kuhheide 32a | H99: 2011-04-01 | I99: Abfall | J99: 0.33 | K99: 24.5684 | L99: 1
C100: Ja | D100: SEE974051053875 | F100: Klingele Papierwerke GmbH & Co. KG Papierfabrik Weener | G100: Turbine 4 | H100: 2021-08-12 | I100: Abfall | J100: 0.33 | K100: 11.7725 | L100: 1
C101: Ja | D101: SEE976589352260 | E101: BNA1168 | F101: Müllheizkraftwerk Kassel GmbH | G101: Müllheizkraftwerk Kassel M8 | H101: 2012-03-12 | I101: Abfall | J101: 0.33 | K101: 12.495 | L101: 1
C102: Ja | D102: SEE976826191515 | E102: BNA1148 | F102: MHB Hamm Betriebsführungsgesellschaft mbH | G102: MVA Hamm Turbine 2 | H102: 1985-01-01 | I102: Abfall | J102: 0.33 | K102: 7.48 | L102: 1
C103: Ja | D103: SEE977514334252 | E103: BNA1222 | F103: Energieversorgung Offenbach AG | G103: Müllheizkraftwerk Offenbach Turbine 2 | H103: 2006-06-30 | I103: Abfall | J103: 0.33 | K103: 1.802 | L103: 1
C104: Ja | D104: SEE977770417713 | E104: BNA0693 | F104: SWN Stadtwerke Neumünster GmbH | G104: T3 | H104: 1979-07-06 | I104: Abfall | J104: 0.33 | K104: 10.6437 | L104: 1
C105: Ja | D105: SEE977898966292 | E105: BNA0398 | F105: MVR Müllverwertung Rugenberger Damm GmbH & Co. KG | G105: MVR Rugenberger Damm Müll | H105: 1999-02-16 | I105: Abfall | J105: 0.33 | K105: 20.29375 | L105: 1
C106: Ja | D106: SEE979423615132 | E106: BNA1186e | F106: EGK Entsorgungsgesellschaft Krefeld GmbH & Co. KG | G106: Turbine 1 | H106: 1974-08-27 | I106: Abfall | J106: 0.33 | K106: 0.7905 | L106: 1
C107: Ja | D107: SEE981003349412 | E107: BNA0693 | F107: SWN Stadtwerke Neumünster GmbH | G107: T6 | H107: 2014-07-10 | I107: Abfall | J107: 0.33 | K107: 12.274 | L107: 1
C108: Ja | D108: SEE981876305560 | E108: BNA0590 | F108: MVV Umwelt Asset GmbH | G108: TREA Leuna 1 | H108: 2005-08-26 | I108: Abfall | J108: 0.33 | K108: 13.80825 | L108: 1
C109: Ja | D109: SEE986030306643 | E109: BNA1199 | F109: Entsorgungsgesellschaft Mainz mbH | G109: MHKW DTS | H109: 2009-06-01 | I109: Abfall | J109: 0.33 | K109: 12.75 | L109: 1
C110: Ja | D110: SEE986413873564 | E110: BNA1114 | F110: swb Entsorgung GmbH&Co. KG | G110: MHKW_Gen2 | H110: 2004-01-01 | I110: Abfall | J110: 0.33 | K110: 11.305 | L110: 1
C111: Ja | D111: SEE988429673565 | E111: BNA1139 | F111: EEW Energy from Waste Saarbrücken GmbH | G111: TREA Breisgau | H111: 2004-05-17 | I111: Abfall | J111: 0.33 | K111: 11.56 | L111: 1
C112: Ja | D112: SEE988580370860 | F112: EEW Energy from Waste Premnitz GmbH | G112: Turbosatz 4 | H112: 2005-12-18 | I112: Abfall | J112: 0.33 | K112: 1.1475 | L112: 1
C113: Ja | D113: SEE988841475051 | E113: BNA1465a | F113: B+T Energie GmbH | G113: HKW Witzenhausen | H113: 2009-06-24 | I113: Abfall | J113: 0.33 | K113: 23.8 | L113: 1
C114: Ja | D114: SEE988848971327 | E114: BNA0084 | F114: Vattenfall Wärme Berlin AG | G114: HKW Reuter, Dampfturbine M | H114: 1998-02-04 | I114: Abfall | J114: 0.33 | K114: 30.6 | L114: 1
C115: Ja | D115: SEE989887901764 | E115: BNA0407 | F115: Enertec Hameln GmbH | G115: Turbine 5 | H115: 2009-10-01 | I115: Abfall | J115: 0.33 | K115: 10.421 | L115: 1
C116: Ja | D116: SEE990065849372 | E116: BNA1449a | F116: Zweckverband Abfallwirtschaft Raum Würzburg | G116: TS I | H116: 1984-06-04 | I116: Abfall | J116: 0.33 | K116: 7.395 | L116: 1
C117: Ja | D117: SEE990760688887 | F117: Entsorgungsgesellschaft Mainz mbH | G117: MHKW EBT | H117: 2003-01-01 | I117: Abfall | J117: 0.33 | K117: 4.25 | L117: 1
C118: Ja | D118: SEE992607731794 | E118: BNA1186b | F118: EGK Entsorgungsgesellschaft Krefeld GmbH & Co. KG | G118: Turbine 4 | H118: 2001-04-05 | I118: Abfall | J118: 0.33 | K118: 7.8455 | L118: 1
C119: Ja | D119: SEE992947793209 | E119: BNA1167 | F119: Kreis Weseler Abfallgesellschaft mbH & Co.KG | G119: Dampfturbine | H119: 1997-04-01 | I119: Abfall | J119: 0.33 | K119: 13.6 | L119: 1
C120: Ja | D120: SEE993054223955 | E120: BNA0750 | F120: GMVA Gemeinschafts-Müll-Verbrennungsanlage Niederrhein GmbH | G120: „Turbosatz 2“ | H120: 1991-10-17 | I120: Abfall | J120: 0.33 | K120: 34.34 | L120: 1
C121: Ja | D121: SEE993546424112 | E121: BNA0407 | F121: Enertec Hameln GmbH | G121: Turbine 2 | H121: 1952-08-05 | I121: Abfall | J121: 0.33 | K121: 10.727 | L121: 1
C122: Ja | D122: SEE993787055366 | E122: BNA1186c | F122: EGK Entsorgungsgesellschaft Krefeld GmbH & Co. KG | G122: Turbine 2 | H122: 1974-08-27 | I122: Abfall | J122: 0.33 | K122: 0.7905 | L122: 1
C123: Ja | D123: SEE994238154089 | E123: BNA1148 | F123: MHB Hamm Betriebsführungsgesellschaft mbH | G123: MVA Hamm Turbine 3 | H123: 2006-03-24 | I123: Abfall | J123: 0.33 | K123: 5.4825 | L123: 1
C124: Ja | D124: SEE994551453975 | E124: BNA1316 | F124: EkoCity | G124: Generator A | H124: 1976-01-01 | I124: Abfall | J124: 0.33 | K124: 17 | L124: 1
C125: Ja | D125: SEE996047653111 | E125: BNA1108 | F125: PD energy GmbH | G125: KW TRB Bitterfeld, Bitterfeld-Wolfen, Oststr. 1 | H125: 2009-11-19 | I125: Abfall | J125: 0.33 | K125: 8.5 | L125: 1
C126: Ja | D126: SEE996891820448 | E126: BNA1186a | F126: EGK Entsorgungsgesellschaft Krefeld GmbH & Co. KG | G126: Turbine 3 | H126: 1978-01-01 | I126: Abfall | J126: 0.33 | K126: 6.8 | L126: 1
C127: Ja | D127: SEE998216550733 | F127: Klingele Papierwerke GmbH & Co. KG Papierfabrik Weener | G127: TWIN 1 | H127: 2008-03-01 | I127: Abfall | J127: 0.33 | K127: 3.9865 | L127: 1
C128: Ja | D128: SEE998261618013 | E128: BNA0407 | F128: Enertec Hameln GmbH | G128: Turbine 1 | H128: 2000-10-31 | I128: Abfall | J128: 0.33 | K128: 4.1905 | L128: 1
C129: Ja | D129: SEE998278854237 | E129: BNA0969c | F129: SWM Services GmbH | G129: SWM HKW Nord 3 T30 | H129: 1984-03-14 | I129: Abfall | J129: 0.33 | K129: 18.7 | L129: 1
C130: Ja | D130: SEE999588015110 | E130: BNA0287a | F130: MHKW Müllheizkraftwerk Frankfurt am Main GmbH | G130: Turbine 3 | H130: 1986-12-12 | I130: Abfall | J130: 0.33 | K130: 22.1 | L130: 1
C131: Ja | D131: SEE999819576335 | E131: BNA0623 | F131: Müllheizkraftwerk Rothensee GmbH | G131: Block 2 | H131: 2006-09-08 | I131: Abfall | J131: 0.33 | K131: 28.56 | L131: 1
C132: Ja | F132: Nicht-EEG-Anlagen < 10 MW | I132: Abfall | J132: 0.33 | K132: 135.044855 | L132: 1
C133: Ja | D133: SEE944567587799 | E133: BNA0607 | F133: Kernkraftwerk Lippe-Ems GmbH | G133: Emsland A | H133: 1988-06-20 | I133: Kernenergie | J133: 0.345 | K133: 1242.48 | L133: 17.14202899
C134: Ja | D134: SEE943690268513 | E134: BNA0263 | F134: PreussenElektra | G134: Isar 2 | H134: 1988-01-22 | I134: Kernenergie | J134: 0.33 | K134: 1311.3 | L134: 17.86666667
C135: Ja | D135: SEE985577062814 | E135: BNA0686 | F135: EnBW Energie Baden-Württemberg AG | G135: GKN II | H135: 1989-04-15 | I135: Kernenergie | J135: 0.33 | K135: 1218.3 | L135: 17.86666667
C136: Ja | D136: SEE968582186379 | E136: BNA1404 | F136: Lausitz Energie Kraftwerke AG | G136: Boxberg Block R | H136: 2012-11-06 | I136: Braunkohle | J136: 0.437 | K136: 548.1 | L136: 83.83427918
C137: Ja | D137: SEE952937205877 | E137: BNA1185 | F137: Pfeifer & Langen GmbH ＆ Co. KG | G137: Könnern Generator 2 | H137: 1993-09-28 | I137: Braunkohle | J137: 0.4336 | K137: 17.1129 | L137: 84.47832103
C138: Ja | D138: SEE985453029962 | E138: BNA1185 | F138: Pfeifer & Langen GmbH ＆ Co. KG | G138: Könnern Generator 1 | H138: 1973-01-01 | I138: Braunkohle | J138: 0.4336 | K138: 7.2645 | L138: 84.47832103
C139: Ja | D139: SEE925599434282 | E139: BNA1401a | F139: RWE Power AG | G139: Neurath F | H139: 2012-08-03 | I139: Braunkohle | J139: 0.43 | K139: 922.2 | L139: 85.17134884
C140: Ja | D140: SEE983252937631 | E140: BNA0709 | F140: RWE Power AG | G140: Niederaußem K | H140: 2003-01-28 | I140: Braunkohle | J140: 0.43 | K140: 821.28 | L140: 85.17134884
C141: Ja | D141: SEE993592183001 | E141: BNA1401b | F141: RWE Power AG | G141: Neurath G | H141: 2012-07-08 | I141: Braunkohle | J141: 0.43 | K141: 922.2 | L141: 85.17134884
C142: Ja | D142: SEE915426748132 | E142: BNA0543 | F142: RheinEnergie AG | G142: Block 6 Merkenich RheinEnergie | H142: 2010-12-16 | I142: Braunkohle | J142: 0.424 | K142: 65.511 | L142: 86.35254717
C143: Ja | D143: SEE907389779292 | E143: BNA0124 | F143: Lausitz Energie Kraftwerke AG | G143: Boxberg Block Q | H143: 2000-10-01 | I143: Braunkohle | J143: 0.423 | K143: 730.8 | L143: 86.55267139
C144: Ja | D144: SEE957229968300 | E144: BNA0707 | F144: RWE Power AG | G144: Niederaußem H | H144: 1974-09-16 | I144: Braunkohle | J144: 0.4216 | K144: 563.76 | L144: 86.83444023
C145: Ja | D145: SEE998199911088 | E145: BNA0116 | F145: EnBW Energie Baden-Württemberg AG | G145: Kraftwerk Lippendorf Block S | H145: 1999-12-01 | I145: Braunkohle | J145: 0.42 | K145: 775.17 | L145: 87.1587619
C146: Ja | D146: SEE921905907730 | E146: BNA0708 | F146: RWE Power AG | G146: Niederaußem G | H146: 1974-10-23 | I146: Braunkohle | J146: 0.4192 | K146: 546.36 | L146: 87.32185115
C147: Ja | D147: SEE938337436349 | E147: BNA0914 | F147: Lausitz Energie Kraftwerke AG | G147: Kraftwerk Schwarze Pumpe Block A | H147: 1997-12-15 | I147: Braunkohle | J147: 0.41 | K147: 656.85 | L147: 89.24312195
C148: Ja | D148: SEE952672318108 | E148: BNA0915 | F148: Lausitz Energie Kraftwerke AG | G148: Kraftwerk Schwarze Pumpe Block B | H148: 1998-05-25 | I148: Braunkohle | J148: 0.41 | K148: 656.85 | L148: 89.24312195
C149: Ja | D149: SEE966331411864 | E149: BNA0115 | F149: Lausitz Energie Kraftwerke AG | G149: Kraftwerk Lippendorf Block R | H149: 2000-06-20 | I149: Braunkohle | J149: 0.41 | K149: 775.17 | L149: 89.24312195
C150: Ja | D150: SEE919134316447 | E150: BNA0878 | F150: Saale Energie GmbH | G150: Schkopau A+B Bahngenerator | H150: 1996-01-01 | I150: Braunkohle | J150: 0.4 | K150: 95.7 | L150: 91.4317
C151: Ja | D151: SEE921449009914 | E151: BNA1461 | F151: CropEnergies Bioethanol GmbH | G151: Dampfturbine IV CropEnergies Zeitz | H151: 2004-01-01 | I151: Braunkohle | J151: 0.4 | K151: 15.46251 | L151: 91.4317
C152: Ja | D152: SEE941974735591 | E152: BNA0183 | F152: Stadtwerke Cottbus GmbH | G152: Rauchgasturbine | H152: 1998-08-29 | I152: Braunkohle | J152: 0.4 | K152: 11.31 | L152: 91.4317
C153: Ja | D153: SEE946537967655 | E153: BNA0183 | F153: Stadtwerke Cottbus GmbH | G153: Hochdruckdampfturbine | H153: 1999-02-20 | I153: Braunkohle | J153: 0.4 | K153: 13.92 | L153: 91.4317
C154: Ja | D154: SEE947677200282 | E154: BNA0879 | F154: Saale Energie GmbH | G154: Schkopau B | H154: 1996-01-01 | I154: Braunkohle | J154: 0.4 | K154: 391.5 | L154: 91.4317
C155: Ja | D155: SEE960652233358 | E155: BNA0878 | F155: Saale Energie GmbH | G155: Schkopau A | H155: 1995-01-01 | I155: Braunkohle | J155: 0.4 | K155: 391.5 | L155: 91.4317
C156: Ja | D156: SEE978888539755 | E156: BNA0183 | F156: Stadtwerke Cottbus GmbH | G156: Mittel-Niederdruckdampfturbine | H156: 1999-03-23 | I156: Braunkohle | J156: 0.4 | K156: 39.15 | L156: 91.4317
C157: Ja | D157: SEE975343602986 | E157: BNA1293b | F157: Martinswerk GmbH | G157: KWK-Anlage: Generator 2 | H157: 1961-01-01 | I157: Braunkohle | J157: 0.388 | K157: 8.613 | L157: 94.20690722
C158: Ja | D158: SEE986936308987 | E158: BNA1293a | F158: Martinswerk GmbH | G158: KWK-Anlage: Generator 1 | H158: 1961-01-01 | I158: Braunkohle | J158: 0.388 | K158: 8.613 | L158: 94.20690722
C159: Ja | D159: SEE998111672394 | E159: BNA1002 | F159: Mitteldeutsche Braunkohlengesellschaft mbH | G159: IKW Wählitz | H159: 1994-08-25 | I159: Braunkohle | J159: 0.385 | K159: 26.97 | L159: 94.92774026
C160: Ja | D160: SEE970305352633 | E160: BNA1400a | F160: Südzucker AG | G160: Dampfturbine III Südzucker Zeitz | H160: 1993-08-01 | I160: Braunkohle | J160: 0.3832 | K160: 14.703 | L160: 95.36565762
C161: Ja | D161: SEE999145467468 | E161: BNA0490a | F161: RWE Power AG | G161: GoWerk F | H161: 1992-12-01 | I161: Braunkohle | J161: 0.3832 | K161: 34.8 | L161: 95.36565762
C162: Ja | D162: SEE933960350956 | E162: BNA0179 | F162: eins energie in sachsen GmbH & Co. KG | G162: HKW Chemnitz Nord II, Block C | H162: 1990-06-07 | I162: Braunkohle | J162: 0.376 | K162: 80.32884 | L162: 97.15925532
C163: Ja | D163: SEE994335340088 | F163: Stadtwerke Frankfurt (Oder) GmbH | G163: HKW DT | H163: 1997-10-09 | I163: Braunkohle | J163: 0.376 | K163: 14.79 | L163: 97.15925532
C164: Ja | F164: Nicht-EEG-Anlagen < 10 MW | I164: Braunkohle | J164: 0.376 | K164: 31.22082 | L164: 97.15925532
C165: Ja | D165: SEE923943268279 | E165: BNA0788 | F165: Lausitz Energie Kraftwerke AG | G165: Kraftwerk Jänschwalde Block D | H165: 1985-10-06 | I165: Braunkohle | J165: 0.375 | K165: 435 | L165: 97.41381333
C166: Ja | D166: SEE938669585906 | E166: BNA0786 | F166: Lausitz Energie Kraftwerke AG | G166: Kraftwerk Jänschwalde Block B | H166: 1982-11-29 | I166: Braunkohle | J166: 0.375 | K166: 435 | L166: 97.41381333
C167: Ja | D167: SEE989591633753 | E167: BNA0787 | F167: Lausitz Energie Kraftwerke AG | G167: Kraftwerk Jänschwalde Block C | H167: 1984-02-01 | I167: Braunkohle | J167: 0.375 | K167: 435 | L167: 97.41381333
C168: Ja | D168: SEE991817093418 | E168: BNA0785 | F168: Lausitz Energie Kraftwerke AG | G168: Kraftwerk Jänschwalde Block A | H168: 1981-10-01 | I168: Braunkohle | J168: 0.375 | K168: 435 | L168: 97.41381333
C169: Nein | D169: Braunkohle 2 | E169: BNA0790 | F169: Lausitz Energie Kraftwerke AG | G169: Kraftwerk Jänschwalde Block F | H169: 1989-03-09 | I169: Braunkohle | J169: 0.3736 | K169: 435 | L169: 97.77248394
C170: Ja | D170: SEE928076311489 | E170: BNA0523 | F170: Städtische Werke Energie + Wärme GmbH | G170: Fernwärmekraftwerk Kassel | H170: 1989-12-21 | I170: Braunkohle | J170: 0.3736 | K170: 29.145 | L170: 97.77248394
C171: Ja | D171: SEE905721866655 | E171: BNA0292 | F171: RWE Power AG | G171: Fab Frechen | H171: 1962-12-23 | I171: Braunkohle | J171: 0.3712 | K171: 153.12 | L171: 98.39364224
C172: Ja | D172: SEE923082939436 | E172: BNA0177 | F172: eins energie in sachsen GmbH & Co. KG | G172: HKW Chemnitz Nord II, Block B | H172: 1988-08-26 | I172: Braunkohle | J172: 0.3712 | K172: 50.60964 | L172: 98.39364224
C173: Nein | D173: Braunkohle 1 | E173: BNA0789 | F173: Lausitz Energie Kraftwerke AG | G173: Kraftwerk Jänschwalde Block E | H173: 1987-10-06 | I173: Braunkohle | J173: 0.3688 | K173: 435 | L173: 99.02288503
C174: Ja | D174: SEE931736847297 | E174: BNA0699 | F174: RWE Power AG | G174: Neurath D | H174: 1975-06-24 | I174: Braunkohle | J174: 0.366 | K174: 528.09 | L174: 99.76743169
C175: Ja | D175: SEE976414005279 | E175: BNA0700 | F175: RWE Power AG | G175: Neurath E | H175: 1976-02-22 | I175: Braunkohle | J175: 0.366 | K175: 525.48 | L175: 99.76743169
C176: Ja | D176: SEE955314088254 | E176: BNA1028 | F176: RWE Power AG | G176: Weißweiler H | H176: 1975-01-18 | I176: Braunkohle | J176: 0.36 | K176: 570.72 | L176: 101.4018889
C177: Ja | D177: SEE987007884447 | E177: BNA1027 | F177: RWE Power AG | G177: Weißweiler G | H177: 1974-02-14 | I177: Braunkohle | J177: 0.36 | K177: 576.81 | L177: 101.4018889
C178: Ja | D178: SEE908125004449 | E178: BNA0123 | F178: Lausitz Energie Kraftwerke AG | G178: Boxberg Block P | H178: 1980-07-01 | I178: Braunkohle | J178: 0.35 | K178: 435 | L178: 104.2505143
C179: Ja | D179: SEE985842749525 | E179: BNA0122 | F179: Lausitz Energie Kraftwerke AG | G179: Boxberg Block N | H179: 1979-01-01 | I179: Braunkohle | J179: 0.35 | K179: 435 | L179: 104.2505143
C180: Ja | D180: SEE912440649056 | E180: BNA1141 | F180: Pfeifer & Langen GmbH ＆ Co. KG | G180: Euskirchen Generator 3 | H180: 1980-07-01 | I180: Braunkohle | J180: 0.3496 | K180: 0.98571 | L180: 104.367849
C181: Ja | D181: SEE927622980674 | E181: BNA1141 | F181: Pfeifer & Langen GmbH ＆ Co. KG | G181: Euskirchen Generator 1 | H181: 1979-08-30 | I181: Braunkohle | J181: 0.3496 | K181: 5.91513 | L181: 104.367849
C182: Ja | D182: SEE927630371594 | E182: BNA1486 | F182: ROMONTA GmbH | G182: Grubenheizkraftwerk Amsdorf | H182: 1960-04-01 | I182: Braunkohle | J182: 0.3496 | K182: 7.98153399 | L182: 104.367849
C183: Nein | D183: Braunkohle 5 | E183: BNA0698 | F183: RWE Power AG | G183: Neurath C | H183: 1973-03-21 | I183: Braunkohle | J183: 0.3352 | K183: 254.04 | L183: 108.778401
C184: Nein | D184: Braunkohle 4 | E184: BNA0706 | F184: RWE Power AG | G184: Niederaußem F | H184: 1971-02-03 | I184: Braunkohle | J184: 0.3304 | K184: 260.13 | L184: 110.3340194
C185: Ja | D185: SEE920672219015 | E185: BNA1865 | F185: KÄMMERER Energie GmbH | G185: Generator 5 | H185: 1977-01-10 | I185: Braunkohle | J185: 0.33 | K185: 8.526 | L185: 110.465697
C186: Ja | D186: SEE933685962403 | E186: BNA1026 | F186: RWE Power AG | G186: Weißweiler F | H186: 1967-09-04 | I186: Braunkohle | J186: 0.33 | K186: 279.27 | L186: 110.465697
C187: Ja | D187: SEE974018310478 | E187: BNA1864 | F187: KÄMMERER Energie GmbH | G187: Generator 4 | H187: 1962-12-22 | I187: Braunkohle | J187: 0.33 | K187: 8.004 | L187: 110.465697
C188: Nein | D188: Braunkohle 3 | E188: BNA0713 | F188: RWE Power AG | G188: Niederaußem E | H188: 1970-04-12 | I188: Braunkohle | J188: 0.328 | K188: 256.65 | L188: 111.1289024
C189: Ja | D189: SEE990438768378 | E189: BNA0270 | F189: Stadtwerke Flensburg | G189: Dampfturbine 8 | H189: 1985-05-24 | I189: Steinkohle | J189: 0.504 | K189: 26.32 | L189: 139.8005754
C190: Ja | D190: SEE906830618081 | E190: BNA0714 | F190: RWE Power AG | G190: Fab Fortuna | H190: 1948-06-01 | I190: Braunkohle | J190: 0.2536 | K190: 13.05 | L190: 143.2326498
C191: Ja | D191: SEE966083015792 | E191: BNA1083 | F191: WSW Energie & Wasser AG | G191: GT21 | H191: 2008-07-09 | I191: Öl | J191: 0.5625 | K191: 24.99 | L191: 145.8846222
C192: Ja | D192: SEE957285549260 | E192: BNA0272 | F192: Stadtwerke Flensburg | G192: Dampfturbine 9 | H192: 1988-08-16 | I192: Steinkohle | J192: 0.4725 | K192: 26.32 | L192: 149.0339471
C193: Ja | D193: SEE950041295098 | E193: BNA1015, BNA1016 | F193: Hamburger Energiewerke GmbH | G193: GTKW Wedel | H193: 1972-07-23 | I193: Öl | J193: 0.55 | K193: 86.7 | L193: 149.1774545
C194: Ja | D194: SEE996990805407 | E194: BNA0138 | F194: Braunschweiger Versorgungs-AG & Co. KG | G194: HKW Mitte Kessel 1 | H194: 1985-01-18 | I194: Steinkohle | J194: 0.468 | K194: 35.6 | L194: 150.4544658
C195: Ja | D195: SEE988477355802 | E195: BNA0646b | F195: Grosskraftwerk Mannheim | G195: GKM Block 9 | H195: 2015-05-02 | I195: Steinkohle | J195: 0.464 | K195: 674.4 | L195: 151.7402802
C196: Ja | D196: SEE923577153439 | E196: BNA0662a | F196: Evonik Operations GmbH | G196: Kraftwerk I, T15 | H196: 1983-10-15 | I196: Steinkohle | J196: 0.4635 | K196: 54.72 | L196: 151.9025674
C197: Ja | D197: SEE970425279599 | E197: BNA1674 | F197: Onyx Kraftwerk Wilhelmshaven GmbH & Co. KG | G197: Kraftwerk Wilhelmshaven Onyx | H197: 2015-11-30 | I197: Steinkohle | J197: 0.4625 | K197: 580.8 | L197: 152.2281946
C198: Ja | D198: SEE980331579218 | E198: BNA0518b | F198: EnBW Energie Baden-Württemberg AG | G198: Rheinhafen-Dampfkraftwerk RDK 8 | H198: 2014-07-01 | I198: Steinkohle | J198: 0.46 | K198: 667.2 | L198: 153.0484565
C199: Ja | D199: SEE961029163353 | E199: BNA1508 | F199: Trianel Kohlekraftwerk Lünen GmbH & Co KG | G199: Trianel Kohlekraftwerk Lünen | H199: 2013-01-01 | I199: Steinkohle | J199: 0.4595 | K199: 596.8 | L199: 153.21358
C200: Ja | D200: SEE958847865460 | E200: BNA1093 | F200: Onyx Kraftwerk Zolling GmbH &Co. KGaA | G200: Kraftwerk Zolling | H200: 1985-01-01 | I200: Steinkohle | J200: 0.4525 | K200: 377.6 | L200: 155.5636243
C201: Ja | D201: SEE913516809497 | E201: BNA1949 | F201: Uniper Kraftwerke GmbH | G201: Datteln 4 | H201: 2020-05-30 | I201: Steinkohle | J201: 0.45 | K201: 841.6 | L201: 156.4206444
C202: Ja | D202: SEE918143230942 | E202: BNA0216b | F202: STEAG Walsum 10 Kraftwerksgesellschaft | G202: Walsum 10 | H202: 2013-12-20 | I202: Steinkohle | J202: 0.45 | K202: 580 | L202: 156.4206444
C203: Ja | D203: SEE948609940009 | E203: BNA0434 | F203: EnBW Energie Baden-Württemberg AG | G203: Heizkraftwerk Heilbronn HLB 7 | H203: 1985-12-01 | I203: Steinkohle | J203: 0.4475 | K203: 622.4 | L203: 157.2872402
C204: Ja | D204: SEE904968236689 | E204: BNA0147 | F204: Onyx Kraftwerk Farge GmbH & Co. KGaA | G204: Kraftwerk Farge | H204: 1969-01-01 | I204: Steinkohle | J204: 0.4425 | K204: 280 | L204: 159.0498079
C205: Ja | D205: SEE965782597448 | E205: BNA0019 | F205: EnBW Energie Baden-Württemberg AG | G205: Heizkraftwerk Altbach/Deizisau HKW 2 DT (Solobetrieb) | H205: 1997-05-29 | I205: Steinkohle | J205: 0.44 | K205: 258.4 | L205: 159.9461136
C206: Ja | D206: SEE909002940690 | E206: BNA0644 | F206: Grosskraftwerk Mannheim | G206: GKM Block 6 | H206: 2005-12-26 | I206: Steinkohle | J206: 0.4375 | K206: 204 | L206: 160.8526629
... 988 more rows

Sheet Hilfssheet Abbildung (hidden)
C2: Abfall | D2: Kernenergie | E2: Braunkohle | F2: Steinkohle | G2: GuD | H2: Gasturbine | I2: Öl
B3: Minimalwert | C3: =MIN(IF(Kraftwerksliste!$S$11:$S$1187='Hilfssheet Abbildung'!C2,Kraftwerksliste!$Z$11:$Z$1187,"fail")) -> 1 | D3: =MIN(IF(Kraftwerksliste!$S$11:$S$1187='Hilfssheet Abbildung'!D2,Kraftwerksliste!$Z$11:$Z$1187,"fail")) -> 17.14202899 | E3: =MIN(IF(Kraftwerksliste!$S$11:$S$1187='Hilfssheet Abbildung'!E2,Kraftwerksliste!$Z$11:$Z$1187,"fail")) -> 83.83427918 | F3: =MIN(IF(Kraftwerksliste!$S$11:$S$1187='Hilfssheet Abbildung'!F2,Kraftwerksliste!$Z$11:$Z$1187,"fail")) -> 139.8005754 | G3: =MIN(IF(Kraftwerksliste!$S$11:$S$1187='Hilfssheet Abbildung'!G2,Kraftwerksliste!$Z$11:$Z$1187,"fail")) -> 232.0002698 | H3: =MIN(IF(Kraftwerksliste!$S$11:$S$1187='Hilfssheet Abbildung'!H2,Kraftwerksliste!$Z$11:$Z$1187,"fail")) -> 274.4748964 | I3: =MIN(IF(Kraftwerksliste!$S$11:$S$1187='Hilfssheet Abbildung'!I2,Kraftwerksliste!$Z$11:$Z$1187,"fail")) -> 145.8846222
B4: erstes Quartil | C4: =_xlfn.QUARTILE.INC(IF(Kraftwerksliste!$S$11:$S$1187='Hilfssheet Abbildung'!C2,Kraftwerksliste!$Z$11:$Z$1187,"fail"),1) -> 1 | D4: =_xlfn.QUARTILE.INC(IF(Kraftwerksliste!$S$11:$S$1187='Hilfssheet Abbildung'!D2,Kraftwerksliste!$Z$11:$Z$1187,"fail"),1) -> 17.50434783 | E4: =_xlfn.QUARTILE.INC(IF(Kraftwerksliste!$S$11:$S$1187='Hilfssheet Abbildung'!E2,Kraftwerksliste!$Z$11:$Z$1187,"fail"),1) -> 89.79026646 | F4: =_xlfn.QUARTILE.INC(IF(Kraftwerksliste!$S$11:$S$1187='Hilfssheet Abbildung'!F2,Kraftwerksliste!$Z$11:$Z$1187,"fail"),1) -> 172.1805589 | G4: =_xlfn.QUARTILE.INC(IF(Kraftwerksliste!$S$11:$S$1187='Hilfssheet Abbildung'!G2,Kraftwerksliste!$Z$11:$Z$1187,"fail"),1) -> 319.9543202 | H4: =_xlfn.QUARTILE.INC(IF(Kraftwerksliste!$S$11:$S$1187='Hilfssheet Abbildung'!H2,Kraftwerksliste!$Z$11:$Z$1187,"fail"),1) -> 364.037925 | I4: =_xlfn.QUARTILE.INC(IF(Kraftwerksliste!$S$11:$S$1187='Hilfssheet Abbildung'!I2,Kraftwerksliste!$Z$11:$Z$1187,"fail"),1) -> 206.2319315
B5: Median | C5: =_xlfn.QUARTILE.INC(IF(Kraftwerksliste!$S$11:$S$1187='Hilfssheet Abbildung'!C2,Kraftwerksliste!$Z$11:$Z$1187,"fail"),2) -> 1 | D5: =_xlfn.QUARTILE.INC(IF(Kraftwerksliste!$S$11:$S$1187='Hilfssheet Abbildung'!D2,Kraftwerksliste!$Z$11:$Z$1187,"fail"),2) -> 17.86666667 | E5: =_xlfn.QUARTILE.INC(IF(Kraftwerksliste!$S$11:$S$1187='Hilfssheet Abbildung'!E2,Kraftwerksliste!$Z$11:$Z$1187,"fail"),2) -> 97.15925532 | F5: =_xlfn.QUARTILE.INC(IF(Kraftwerksliste!$S$11:$S$1187='Hilfssheet Abbildung'!F2,Kraftwerksliste!$Z$11:$Z$1187,"fail"),2) -> 182.6098442 | G5: =_xlfn.QUARTILE.INC(IF(Kraftwerksliste!$S$11:$S$1187='Hilfssheet Abbildung'!G2,Kraftwerksliste!$Z$11:$Z$1187,"fail"),2) -> 364.537925 | H5: =_xlfn.QUARTILE.INC(IF(Kraftwerksliste!$S$11:$S$1187='Hilfssheet Abbildung'!H2,Kraftwerksliste!$Z$11:$Z$1187,"fail"),2) -> 383.1451842 | I5: =_xlfn.QUARTILE.INC(IF(Kraftwerksliste!$S$11:$S$1187='Hilfssheet Abbildung'!I2,Kraftwerksliste!$Z$11:$Z$1187,"fail"),2) -> 215.4673684
B6: Drittes Quartil | C6: =_xlfn.QUARTILE.INC(IF(Kraftwerksliste!$S$11:$S$1187='Hilfssheet Abbildung'!C2,Kraftwerksliste!$Z$11:$Z$1187,"fail"),3) -> 1 | D6: =_xlfn.QUARTILE.INC(IF(Kraftwerksliste!$S$11:$S$1187='Hilfssheet Abbildung'!D2,Kraftwerksliste!$Z$11:$Z$1187,"fail"),3) -> 17.86666667 | E6: =_xlfn.QUARTILE.INC(IF(Kraftwerksliste!$S$11:$S$1187='Hilfssheet Abbildung'!E2,Kraftwerksliste!$Z$11:$Z$1187,"fail"),3) -> 101.4018889 | F6: =_xlfn.QUARTILE.INC(IF(Kraftwerksliste!$S$11:$S$1187='Hilfssheet Abbildung'!F2,Kraftwerksliste!$Z$11:$Z$1187,"fail"),3) -> 210.4778387 | G6: =_xlfn.QUARTILE.INC(IF(Kraftwerksliste!$S$11:$S$1187='Hilfssheet Abbildung'!G2,Kraftwerksliste!$Z$11:$Z$1187,"fail"),3) -> 380.8499739 | H6: =_xlfn.QUARTILE.INC(IF(Kraftwerksliste!$S$11:$S$1187='Hilfssheet Abbildung'!H2,Kraftwerksliste!$Z$11:$Z$1187,"fail"),3) -> 446.0616912 | I6: =_xlfn.QUARTILE.INC(IF(Kraftwerksliste!$S$11:$S$1187='Hilfssheet Abbildung'!I2,Kraftwerksliste!$Z$11:$Z$1187,"fail"),3) -> 226.8802661
B7: Maximalwert | C7: =MAX(IF(Kraftwerksliste!$S$11:$S$1187='Hilfssheet Abbildung'!C2,Kraftwerksliste!$Z$11:$Z$1187,"fail")) -> 1 | D7: =MAX(IF(Kraftwerksliste!$S$11:$S$1187='Hilfssheet Abbildung'!D2,Kraftwerksliste!$Z$11:$Z$1187,"fail")) -> 17.86666667 | E7: =MAX(IF(Kraftwerksliste!$S$11:$S$1187='Hilfssheet Abbildung'!E2,Kraftwerksliste!$Z$11:$Z$1187,"fail")) -> 180.4484064 | F7: =MAX(IF(Kraftwerksliste!$S$11:$S$1187='Hilfssheet Abbildung'!F2,Kraftwerksliste!$Z$11:$Z$1187,"fail")) -> 301.5335054 | G7: =MAX(IF(Kraftwerksliste!$S$11:$S$1187='Hilfssheet Abbildung'!G2,Kraftwerksliste!$Z$11:$Z$1187,"fail")) -> 582.36068 | H7: =MAX(IF(Kraftwerksliste!$S$11:$S$1187='Hilfssheet Abbildung'!H2,Kraftwerksliste!$Z$11:$Z$1187,"fail")) -> 477.740545 | I7: =MAX(IF(Kraftwerksliste!$S$11:$S$1187='Hilfssheet Abbildung'!I2,Kraftwerksliste!$Z$11:$Z$1187,"fail")) -> 355.3373913
C10: Abfall | D10: Kernenergie | E10: Braunkohle | F10: Steinkohle | G10: GuD | H10: Gasturbine | I10: Öl
B11: Q1-Minimum | E11: =E4-E3 -> 5.955987287 | F11: 32.37998351 | G11: 87.95405033 | H11: 89.56302858 | I11: =I4-I3 -> 60.34730928
B12: Q1 | C12: =C4 -> 1 | D12: =D4 -> 17.50434783 | E12: =E4 -> 89.79026646 | F12: 172.1805589 | G12: 319.9543202 | H12: 364.037925 | I12: =I4 -> 206.2319315
B13: Median-Q1 | C13: =C5-C4+0.1 -> 0.1 | D13: =D5-D4+0.1 -> 0.4623188406 | E13: =E5-E4 -> 7.368988856 | F13: 10.42928525 | G13: 44.58360482 | H13: 19.10725921 | I13: =I5-I4 -> 9.235436918
B14: Q3-Median | C14: =C6-C5+0.1 -> 0.1 | D14: =D6-D5+0.1 -> 0.1 | E14: =E6-E5 -> 4.24263357 | F14: 27.86799456 | G14: 16.31204888 | H14: 62.91650703 | I14: =I6-I5 -> 11.41289765
B15: Maximum-Q3 | E15: =E7-E6 -> 79.04651749 | F15: 91.05566666 | G15: 201.5107061 | H15: 31.67885374 | I15: =I7-I6 -> 128.4571252
B18: Teil der Merit Order? | C18: Angenommener Hauptenergieträger | D18: Zuordnung Kraftwerkstyp
B19: Ja | C19: Abfall | D19: Abfall
B20: Nein | C20: Kernenergie | D20: Kernenergie
C21: Braunkohle | D21: Braunkohle
C22: Steinkohle | D22: Steinkohle
C23: Erdgas | D23: GuD
C24: Öl | D24: Gasturbine
C25: Sonstige | D25: Öl
D26: Sonstige
